Workbook

Sheet UV-Evaluation
B2: UV Evaluierung eines Schweißprozesses nach EU-Richtlinie 2006/25/EG
B4: 1) Definieren Sie die Raumdimensionen
E5: Länge (X) [m] | F5: Breite (Y) [m] | G5: Höhe (Z) [m] | W5: EUV 200 nm - 400 nm | Z5: %
E6: 10.2 | F6: 11.9 | G6: 5
B7: 2) Definieren Sie die Position von Schweißquelle und Kopf des Arbeitnehmers | W7: Frontale Wand
W8: Linke Wand
E9: X [m] | F9: Y [m] | G9: Z [m] | W9: Rechte Wand
C10: Quelle | E10: 2 | F10: 3 | G10: 1 | W10: Boden
C11: Kopf | E11: 3 | F11: 4 | G11: 2 | W11: Decke
C12: Abstand der Direkten Bestrahlung | G12: =SQRT((E11-E10)^2+(F11-F10)^2+(G11-G10)^2) -> 1.732050808 | W12: Rückwand
B13: 3) Definieren Sie die Schweißparameter | W13: EReflexion
C14: Schweißverfahren | W14: EDirekt
C15: Schweißmaterial | W15: EGesamt = EReflexion + EDirekt
C16: Schweißstrom
B17: 4) Definieren Sie die Wandmaterialien
C18: Frontale Wand
R19: Eeff 200 nm - 400 nm | U19: % | W19: EUVA 315 nm - 400 nm | Z19: %
C20: Linke Wand
C21: Rechte Wand | R21: Frontale Wand | W21: Frontale Wand
C22: Boden | R22: Linke Wand | W22: Linke Wand
C23: Decke | R23: Rechte Wand | W23: Rechte Wand
C24: Rückwand | R24: Boden | W24: Boden
R25: Decke | W25: Decke
C26: Prüfer | R26: Rückwand | W26: Rückwand
C27: Datum | E27: 2018-04-16 | R27: EReflexion | W27: EReflexion
C28: Situation | R28: EDirekt | W28: EDirekt
C29: Ort | R29: EGesamt = EReflexion + EDirekt | W29: EGesamt = EReflexion + EDirekt
C30: V1.0/2017-11-08 | R30: Expositionsdauer Tmax | T30: [hh:mm:ss] | W30: Expositionsdauer Tmax | Y30: [hh:mm:ss]
B31: 5) Berechnung starten | R31: Werte zur Gefährdungsbeurteilung nach EU-Richtlinie 2006/25/EG
B32: FALSE | C32: =IF(B32,"Mit direkter Bestr.","Ohne direkte Bestr.") -> Ohne direkte Bestr.

Sheet Help (hidden)
D1: Auswahl-Matrix der Schweißverfahren | K1: Tabelle Reflexionsmaterialien | O1: Wellenlänge [nm] | P1: s(l) VOPST | Q1: uva | S1: Normalabstande zu den Wänden | U1: Berechnete Rasterung | V1: Gewählte Rasterung | W1: Flächeninhalt Flächenelement [m2] | X1: Gesamt- Fächeninhalt
B2: Schweiß- verfahren | D2: Anzahl der verfügbaren Materialen (für bestimmtes Verfahren | E2: Schweiß- verfahren | F2: Material | G2: Index | H2: Strom Min [A] | I2: Strom Max [A] | K2: Material | L2: Material# | M2: Spalten # | O2: 200 | P2: 0.03 | Q2: 0 | S2: reye,normal,Frontal | T2: =_2_K_X -> 3 | U2: =ROUNDUP(5*MAX(_1_Y,_1_Z)/(T2),0) -> 20 | V2: =IF(U2<10,10,U2) -> 20 | W2: =_1_Y*_1_Z/V2^2 -> 0.14875 | X2: =_1_Y*_1_Z -> 59.5
B3: Standard | D3: 3 | E3: Standard | F3: Aluminium | G3: =Schweißspektrum!B3 -> 2 | H3: =ROUNDDOWN(Schweißspektrum!B4,-1) -> 240 | I3: =ROUNDUP(Schweißspektrum!B4,-1) -> 250 | K3: - (nicht berücksichtigen) | L3: # 0 | M3: 0 | O3: 201 | P3: 0.0342 | Q3: 0 | S3: reye,normal,Links | T3: =_2_K_Y -> 4 | U3: =ROUNDUP(5*MAX(_1_X,_1_Z)/(T3),0) -> 13 | V3: 13 | W3: =_1_X*_1_Z/V3^2 -> 0.3017751479 | X3: =_1_X*_1_Z -> 51
B4: CMT | E4: Standard | F4: Baustahl (MAG) | G4: =Schweißspektrum!C3 -> 3 | H4: =ROUNDDOWN(Schweißspektrum!C4,-1) -> 150 | I4: =ROUNDUP(Schweißspektrum!G4,-1) -> 510 | K4: 1 - Arbeitsplatte Schwarz/Weiß gesprenkelt | L4: # 31 | M4: 450 | O4: 202 | P4: 0.0384 | Q4: 0 | S4: reye,normal,Rechts | T4: =_1_Y-_2_K_Y -> 7.9 | U4: =ROUNDUP(5*MAX(_1_X,_1_Z)/(T4),0) -> 7 | V4: 10 | W4: =_1_X*_1_Z/V4^2 -> 0.51 | X4: =_1_X*_1_Z -> 51
B5: CMT dyn | E5: Standard | F5: Edelstahl (MIG) | G5: =Schweißspektrum!H3 -> 8 | H5: =ROUNDDOWN(Schweißspektrum!H4,-1) -> 130 | I5: =ROUNDUP(Schweißspektrum!K4,-1) -> 360 | K5: 1 - Bodenplatte Granit Grau gesprenkelt | L5: # 39 | M5: 578 | O5: 203 | P5: 0.0426 | Q5: 0 | S5: reye,normal,Boden | T5: =_2_K_Z -> 2 | U5: =ROUNDUP(5*MAX(_1_X,_1_Y)/(T5),0) -> 30 | V5: 30 | W5: =_1_X*_1_Y/V5^2 -> 0.1348666667 | X5: =_1_X*_1_Y -> 121.38
B6: CMT Pulse | G6: =G7 -> 12 | K6: 1 - Deckenplatte Mineralfaser Hellgrau | L6: # 32 | M6: 466 | O6: 204 | P6: 0.0468 | Q6: 0 | S6: reye,normal,Decke | T6: =_1_Z-_2_K_Z -> 3 | U6: =ROUNDUP(5*MAX(_1_X,_1_Y)/(T6),0) -> 20 | V6: 20 | W6: =_1_X*_1_Y/V6^2 -> 0.30345 | X6: =_1_X*_1_Y -> 121.38
B7: LSC | D7: 4 | E7: CMT | F7: Aluminium (AlSi5) | G7: =Schweißspektrum!L3 -> 12 | H7: =ROUNDDOWN(Schweißspektrum!L4,-1) -> 40 | I7: =ROUNDUP(Schweißspektrum!N4,-1) -> 200 | K7: 1 - Gipskartonplatte Grau | L7: # 44 | M7: 658 | O7: 205 | P7: 0.051 | Q7: 0 | S7: reye,normal,Rück | T7: =_1_X-_2_K_X -> 7.2 | U7: =ROUNDUP(5*MAX(_1_Y,_1_Z)/(T7),0) -> 9 | V7: 10 | W7: =_1_Y*_1_Z/V7^2 -> 0.595 | X7: =_1_Y*_1_Z -> 59.5
B8: PMC | E8: CMT | F8: Aluminium (AlMg5) | G8: =Schweißspektrum!O3 -> 15 | H8: =ROUNDDOWN(Schweißspektrum!O4,-1) -> 90 | I8: =ROUNDUP(Schweißspektrum!P4,-1) -> 180 | K8: 1 - Polystyrolplatte Weiß (Styropor) | L8: # 08 | M8: 114 | O8: 206 | P8: 0.0558 | Q8: 0
B9: WIG AC | E9: CMT | F9: Baustahl | G9: =Schweißspektrum!Q3 -> 17 | H9: =ROUNDDOWN(Schweißspektrum!Q4,-1) -> 80 | I9: =ROUNDUP(Schweißspektrum!T4,-1) -> 250 | K9: 1 - Porenbeton Weiß (Ytong) | L9: # 09 | M9: 130 | O9: 207 | P9: 0.0606 | Q9: 0
B10: WIG DC | E10: CMT | F10: Edelstahl | G10: =Schweißspektrum!U3 -> 21 | H10: =ROUNDDOWN(Schweißspektrum!U4,-1) -> 90 | I10: =ROUNDUP(Schweißspektrum!X4,-1) -> 270 | K10: 1 - Beton Grau | L10: # 12 | M10: 178 | O10: 208 | P10: 0.0654 | Q10: 0
B11: WIG Pulse | D11: 2 | E11: CMT dyn | F11: Baustahl | G11: =Schweißspektrum!Y3 -> 25 | H11: =ROUNDDOWN(Schweißspektrum!Y4,-1) -> 90 | I11: =ROUNDUP(Schweißspektrum!AB4,-1) -> 240 | K11: 1 - Weiße Innendispersionsfarbe auf Beton | L11: # 45 | M11: 674 | O11: 209 | P11: 0.0702 | Q11: 0
B12: Plasma DC | E12: CMT dyn | F12: Edelstahl | G12: =Schweißspektrum!AC3 -> 29 | H12: =ROUNDDOWN(Schweißspektrum!AC4,-1) -> 80 | I12: =ROUNDUP(Schweißspektrum!AF4,-1) -> 220 | K12: 1 - Weiße Kalkfarbe auf Beton | L12: # 46 | M12: 690 | O12: 210 | P12: 0.075 | Q12: 0
G13: =G15 -> 33 | K13: 1 - Weiße Zementbetonbeschichtung auf Beton | L13: # 47 | M13: 706 | O13: 211 | P13: 0.079 | Q13: 0
K14: 1 - Mauerziegel Hautfarben | L14: # 11 | M14: 162 | O14: 212 | P14: 0.083 | Q14: 0
D15: 4 | E15: CMT Pulse | F15: Aluminium (AlSi5) | G15: =Schweißspektrum!AG3 -> 33 | H15: =ROUNDDOWN(Schweißspektrum!AG4,-1) -> 80 | I15: =ROUNDUP(Schweißspektrum!AI4,-1) -> 250 | K15: 1 - Ziegel Ziegelrot | L15: # 10 | M15: 146 | O15: 213 | P15: 0.087 | Q15: 0
A16: Strombereich | E16: CMT Pulse | F16: Aluminium (AlMg5) | G16: =Schweißspektrum!AJ3 -> 36 | H16: =ROUNDDOWN(Schweißspektrum!AJ4,-1) -> 130 | I16: =ROUNDUP(Schweißspektrum!AK4,-1) -> 200 | K16: 2 - Dachtafel Farbe: Aquamarin B3 | L16: # 01 | M16: 2 | O16: 214 | P16: 0.091 | Q16: 0
B17: Auswahl | E17: CMT Pulse | F17: Baustahl | G17: =Schweißspektrum!AL3 -> 38 | H17: =ROUNDDOWN(Schweißspektrum!AL4,-1) -> 120 | I17: =ROUNDUP(Schweißspektrum!AN4,-1) -> 270 | K17: 2 - Dachtafel Farbe: Grau | L17: # 06 | M17: 82 | O17: 215 | P17: 0.095 | Q17: 0
A18: Index D | B18: 4 | E18: CMT Pulse | F18: Edelstahl | G18: =Schweißspektrum!AO3 -> 41 | H18: =ROUNDDOWN(Schweißspektrum!AO4,-1) -> 120 | I18: =ROUNDUP(Schweißspektrum!AR4,-1) -> 360 | K18: 2 - Dachtafel Farbe: Naturgrau | L18: # 05 | M18: 66 | O18: 216 | P18: 0.1 | Q18: 0
A19: Min | B19: 80 | D19: 2 | E19: LSC | F19: Baustahl | G19: =Schweißspektrum!AS3 -> 45 | H19: =ROUNDDOWN(Schweißspektrum!AS4,-1) -> 140 | I19: =ROUNDUP(Schweißspektrum!AV4,-1) -> 400 | K19: 2 - Dachtafel Farbe: Rot-Braun | L19: # 07 | M19: 98 | O19: 217 | P19: 0.105 | Q19: 0
A20: Max | B20: 250 | E20: LSC | F20: Edelstahl | G20: =Schweißspektrum!AW3 -> 49 | H20: =ROUNDDOWN(Schweißspektrum!AW4,-1) -> 120 | I20: =ROUNDUP(Schweißspektrum!AZ4,-1) -> 360 | K20: 2 - Dachtafel Farbe: Topas A4 | L20: # 02 | M20: 18 | O20: 218 | P20: 0.11 | Q20: 0
G21: =G23 -> 53 | K21: 2 - Dachtafel Farbe: Topas E7 | L21: # 04 | M21: 50 | O21: 219 | P21: 0.115 | Q21: 0
K22: 2 - Dachtafel Farbe: Tundra 5 | L22: # 03 | M22: 34 | O22: 220 | P22: 0.12 | Q22: 0
D23: 4 | E23: PMC | F23: Aluminium (AlSi5) | G23: =Schweißspektrum!BA3 -> 53 | H23: =ROUNDDOWN(Schweißspektrum!BA4,-1) -> 80 | I23: =ROUNDUP(Schweißspektrum!BD4,-1) -> 340 | K23: 3 - Einfachglas transparent | L23: # 26 | M23: 370 | O23: 221 | P23: 0.126 | Q23: 0
E24: PMC | F24: Aluminium (AlMg5) | G24: =Schweißspektrum!BE3 -> 57 | H24: =ROUNDDOWN(Schweißspektrum!BE4,-1) -> 120 | I24: =ROUNDUP(Schweißspektrum!BF4,-1) -> 180 | K24: 3 - Polycarbonat Doppelstegplatte 10 mm | L24: # 42 | M24: 626 | O24: 222 | P24: 0.132 | Q24: 0
E25: PMC | F25: Baustahl | G25: =Schweißspektrum!BG3 -> 59 | H25: =ROUNDDOWN(Schweißspektrum!BG4,-1) -> 60 | I25: =ROUNDUP(Schweißspektrum!BK4,-1) -> 380 | K25: 3 - Polycarbonat Doppelstegplatte 6 mm | L25: # 41 | M25: 610 | O25: 223 | P25: 0.138 | Q25: 0
E26: PMC | F26: Edelstahl | G26: =Schweißspektrum!BL3 -> 64 | H26: =ROUNDDOWN(Schweißspektrum!BL4,-1) -> 110 | I26: =ROUNDUP(Schweißspektrum!BN4,-1) -> 250 | K26: 3 - Verbundsicherheitsglas transparent | L26: # 25 | M26: 354 | O26: 224 | P26: 0.144 | Q26: 0
D27: 1 | E27: WIG AC | F27: Aluminium | G27: =Schweißspektrum!BO3 -> 67 | H27: =ROUNDDOWN(Schweißspektrum!BO4,-1) -> 150 | I27: =ROUNDUP(Schweißspektrum!BQ4,-1) -> 350 | K27: 3 - Leimholzplatte Fichte | L27: # 19 | M27: 290 | O27: 225 | P27: 0.15 | Q27: 0
G28: =G31 -> 70 | K28: 3 - Pressspanplatte Braun | L28: # 22 | M28: 338 | O28: 226 | P28: 0.158 | Q28: 0
K29: 3 - Spanplatte Fichtenholz | L29: # 18 | M29: 274 | O29: 227 | P29: 0.166 | Q29: 0
K30: 3 - Spanplatte mit Fichtenfurnier | L30: # 21 | M30: 322 | O30: 228 | P30: 0.174 | Q30: 0
D31: 2 | E31: WIG DC | F31: Baustahl | G31: =Schweißspektrum!BR3 -> 70 | H31: =ROUNDDOWN(Schweißspektrum!BR4,-1) -> 140 | I31: =ROUNDUP(Schweißspektrum!BT4,-1) -> 360 | K31: 3 - Spanplatte mit grauer Oberfläche | L31: # 20 | M31: 306 | O31: 229 | P31: 0.182 | Q31: 0
E32: WIG DC | F32: Edelstahl | G32: =Schweißspektrum!BU3 -> 73 | H32: =ROUNDDOWN(Schweißspektrum!BU4,-1) -> 140 | I32: =ROUNDUP(Schweißspektrum!BW4,-1) -> 360 | K32: 4 - Aluminiumblech eloxiert Bronze | L32: # 48 | M32: 722 | O32: 230 | P32: 0.19 | Q32: 0
G33: =G35 -> 76 | K33: 4 - Aluminiumblech eloxiert Schwarz | L33: # 13 | M33: 194 | O33: 231 | P33: 0.2 | Q33: 0
K34: 4 - Aluminiumblech blank metallisch | L34: # 37 | M34: 546 | O34: 232 | P34: 0.21 | Q34: 0
D35: 1 | E35: WIG Pulse | F35: Edelstahl | G35: =Schweißspektrum!BX3 -> 76 | H35: =ROUNDDOWN(Schweißspektrum!BX4,-1) -> 80 | I35: =ROUNDUP(Schweißspektrum!BZ4,-1) -> 170 | K35: 4 - Aluminiumblech eloxiert metallisch | L35: # 38 | M35: 562 | O35: 233 | P35: 0.22 | Q35: 0
G36: =G39 -> 79 | K36: 4 - Aluminiumblech strukturiert metallisch | L36: # 34 | M36: 498 | O36: 234 | P36: 0.23 | Q36: 0
K37: 4 - Blech mit Polyesterbeschichtung Beige | L37: # 43 | M37: 642 | O37: 235 | P37: 0.24 | Q37: 0
K38: 4 - Edelstahlblech blank metallisch | L38: # 36 | M38: 530 | O38: 236 | P38: 0.252 | Q38: 0
D39: 1 | E39: Plasma DC | F39: Edelstahl | G39: =Schweißspektrum!CA3 -> 79 | H39: =ROUNDDOWN(Schweißspektrum!CA4,-1) -> 40 | I39: =ROUNDUP(Schweißspektrum!CC4,-1) -> 160 | K39: 4 - Kupferblech gewalzt | L39: # 14 | M39: 210 | O39: 237 | P39: 0.264 | Q39: 0
G40: =G39+3 -> 82 | K40: 4 - Stahlblech Militärgrün | L40: # 40 | M40: 594 | O40: 238 | P40: 0.276 | Q40: 0
K41: 4 - Stahlblech Oxid-Rot | L41: # 15 | M41: 226 | O41: 239 | P41: 0.288 | Q41: 0
K42: 4 - Stahlblech verzinkt metallisch | L42: # 35 | M42: 514 | O42: 240 | P42: 0.3 | Q42: 0
K43: 4 - Stahlblech Weißaluminium | L43: # 16 | M43: 242 | O43: 241 | P43: 0.312 | Q43: 0
K44: 4 - Zinkblech gewalzt metallisch | L44: # 33 | M44: 482 | O44: 242 | P44: 0.324 | Q44: 0
K45: 4 - Zinkblech Schiefergrau | L45: # 17 | M45: 258 | O45: 243 | P45: 0.336 | Q45: 0
K46: 5 - Hartscheibe Orange-Rot | L46: # 29 | M46: 418 | O46: 244 | P46: 0.348 | Q46: 0
K47: 5 - Schweißlamelle Dunkelgrün | L47: # 28 | M47: 402 | O47: 245 | P47: 0.36 | Q47: 0
K48: 5 - Schweißlamelle Grün | L48: # 27 | M48: 386 | O48: 246 | P48: 0.374 | Q48: 0
K49: 5 - Schweißvorhang matt Dunkelgrün | L49: # 30 | M49: 434 | O49: 247 | P49: 0.388 | Q49: 0
O50: 248 | P50: 0.402 | Q50: 0
O51: 249 | P51: 0.416 | Q51: 0
O52: 250 | P52: 0.43 | Q52: 0
O53: 251 | P53: 0.4475 | Q53: 0
O54: 252 | P54: 0.465 | Q54: 0
O55: 253 | P55: 0.4825 | Q55: 0
O56: 254 | P56: 0.5 | Q56: 0
O57: 255 | P57: 0.52 | Q57: 0
O58: 256 | P58: 0.546 | Q58: 0
O59: 257 | P59: 0.572 | Q59: 0
O60: 258 | P60: 0.598 | Q60: 0
O61: 259 | P61: 0.624 | Q61: 0
O62: 260 | P62: 0.65 | Q62: 0
O63: 261 | P63: 0.682 | Q63: 0
O64: 262 | P64: 0.714 | Q64: 0
O65: 263 | P65: 0.746 | Q65: 0
O66: 264 | P66: 0.778 | Q66: 0
O67: 265 | P67: 0.81 | Q67: 0
O68: 266 | P68: 0.848 | Q68: 0
O69: 267 | P69: 0.886 | Q69: 0
O70: 268 | P70: 0.924 | Q70: 0
O71: 269 | P71: 0.962 | Q71: 0
O72: 270 | P72: 1 | Q72: 0
O73: 271 | P73: 0.992 | Q73: 0
O74: 272 | P74: 0.984 | Q74: 0
O75: 273 | P75: 0.976 | Q75: 0
O76: 274 | P76: 0.968 | Q76: 0
O77: 275 | P77: 0.96 | Q77: 0
O78: 276 | P78: 0.944 | Q78: 0
O79: 277 | P79: 0.928 | Q79: 0
O80: 278 | P80: 0.912 | Q80: 0
O81: 279 | P81: 0.896 | Q81: 0
O82: 280 | P82: 0.88 | Q82: 0
O83: 281 | P83: 0.858 | Q83: 0
O84: 282 | P84: 0.836 | Q84: 0
O85: 283 | P85: 0.814 | Q85: 0
O86: 284 | P86: 0.792 | Q86: 0
O87: 285 | P87: 0.77 | Q87: 0
O88: 286 | P88: 0.744 | Q88: 0
O89: 287 | P89: 0.718 | Q89: 0
O90: 288 | P90: 0.692 | Q90: 0
O91: 289 | P91: 0.666 | Q91: 0
O92: 290 | P92: 0.64 | Q92: 0
O93: 291 | P93: 0.62 | Q93: 0
O94: 292 | P94: 0.6 | Q94: 0
O95: 293 | P95: 0.58 | Q95: 0
O96: 294 | P96: 0.56 | Q96: 0
O97: 295 | P97: 0.54 | Q97: 0
O98: 296 | P98: 0.5 | Q98: 0
O99: 297 | P99: 0.46 | Q99: 0
O100: 298 | P100: 0.40667 | Q100: 0
O101: 299 | P101: 0.35333 | Q101: 0
O102: 300 | P102: 0.3 | Q102: 0
O103: 301 | P103: 0.24 | Q103: 0
O104: 302 | P104: 0.18 | Q104: 0
O105: 303 | P105: 0.12 | Q105: 0
O106: 304 | P106: 0.09 | Q106: 0
O107: 305 | P107: 0.06 | Q107: 0
O108: 306 | P108: 0.04867 | Q108: 0
O109: 307 | P109: 0.03733 | Q109: 0
O110: 308 | P110: 0.026 | Q110: 0
O111: 309 | P111: 0.0205 | Q111: 0
O112: 310 | P112: 0.015 | Q112: 0
O113: 311 | P113: 0.012 | Q113: 0
O114: 312 | P114: 0.009 | Q114: 0
O115: 313 | P115: 0.006 | Q115: 0
O116: 314 | P116: 0.0045 | Q116: 0
O117: 315 | P117: 0.003 | Q117: 1
O118: 316 | P118: 0.0024 | Q118: 1
O119: 317 | P119: 0.002 | Q119: 1
O120: 318 | P120: 0.0016 | Q120: 1
O121: 319 | P121: 0.0012 | Q121: 1
O122: 320 | P122: 0.001 | Q122: 1
O123: 321 | P123: 0.000835 | Q123: 1
O124: 322 | P124: 0.00067 | Q124: 1
O125: 323 | P125: 0.00054 | Q125: 1
O126: 324 | P126: 0.00052 | Q126: 1
O127: 325 | P127: 0.0005 | Q127: 1
O128: 326 | P128: 0.00048 | Q128: 1
O129: 327 | P129: 0.00046 | Q129: 1
O130: 328 | P130: 0.00044 | Q130: 1
O131: 329 | P131: 0.000425 | Q131: 1
O132: 330 | P132: 0.00041 | Q132: 1
O133: 331 | P133: 0.000396 | Q133: 1
O134: 332 | P134: 0.000382 | Q134: 1
O135: 333 | P135: 0.000368 | Q135: 1
O136: 334 | P136: 0.000354 | Q136: 1
O137: 335 | P137: 0.00034 | Q137: 1
O138: 336 | P138: 0.000328 | Q138: 1
O139: 337 | P139: 0.000316 | Q139: 1
O140: 338 | P140: 0.000304 | Q140: 1
O141: 339 | P141: 0.000292 | Q141: 1
O142: 340 | P142: 0.00028 | Q142: 1
O143: 341 | P143: 0.000272 | Q143: 1
O144: 342 | P144: 0.000264 | Q144: 1
O145: 343 | P145: 0.000256 | Q145: 1
O146: 344 | P146: 0.000248 | Q146: 1
O147: 345 | P147: 0.00024 | Q147: 1
O148: 346 | P148: 0.000232 | Q148: 1
O149: 347 | P149: 0.000224 | Q149: 1
O150: 348 | P150: 0.000216 | Q150: 1
O151: 349 | P151: 0.000208 | Q151: 1
O152: 350 | P152: 0.0002 | Q152: 1
O153: 351 | P153: 0.000192 | Q153: 1
O154: 352 | P154: 0.000184 | Q154: 1
O155: 353 | P155: 0.000176 | Q155: 1
O156: 354 | P156: 0.000168 | Q156: 1
O157: 355 | P157: 0.00016 | Q157: 1
O158: 356 | P158: 0.000154 | Q158: 1
O159: 357 | P159: 0.000148 | Q159: 1
O160: 358 | P160: 0.000142 | Q160: 1
O161: 359 | P161: 0.000136 | Q161: 1
O162: 360 | P162: 0.00013 | Q162: 1
O163: 361 | P163: 0.000126 | Q163: 1
O164: 362 | P164: 0.000122 | Q164: 1
O165: 363 | P165: 0.000118 | Q165: 1
O166: 364 | P166: 0.000114 | Q166: 1
O167: 365 | P167: 0.00011 | Q167: 1
O168: 366 | P168: 0.0001066 | Q168: 1
O169: 367 | P169: 0.0001032 | Q169: 1
O170: 368 | P170: 9.98e-05 | Q170: 1
O171: 369 | P171: 9.64e-05 | Q171: 1
O172: 370 | P172: 9.3e-05 | Q172: 1
O173: 371 | P173: 8.98e-05 | Q173: 1
O174: 372 | P174: 8.66e-05 | Q174: 1
O175: 373 | P175: 8.34e-05 | Q175: 1
O176: 374 | P176: 8.02e-05 | Q176: 1
O177: 375 | P177: 7.7e-05 | Q177: 1
O178: 376 | P178: 7.44e-05 | Q178: 1
O179: 377 | P179: 7.18e-05 | Q179: 1
O180: 378 | P180: 6.92e-05 | Q180: 1
O181: 379 | P181: 6.66e-05 | Q181: 1
O182: 380 | P182: 6.4e-05 | Q182: 1
O183: 381 | P183: 6.18e-05 | Q183: 1
O184: 382 | P184: 5.96e-05 | Q184: 1
O185: 383 | P185: 5.74e-05 | Q185: 1
O186: 384 | P186: 5.52e-05 | Q186: 1
O187: 385 | P187: 5.3e-05 | Q187: 1
O188: 386 | P188: 5.12e-05 | Q188: 1
O189: 387 | P189: 4.94e-05 | Q189: 1
O190: 388 | P190: 4.76e-05 | Q190: 1
O191: 389 | P191: 4.58e-05 | Q191: 1
O192: 390 | P192: 4.4e-05 | Q192: 1
O193: 391 | P193: 4.24e-05 | Q193: 1
O194: 392 | P194: 4.08e-05 | Q194: 1
O195: 393 | P195: 3.92e-05 | Q195: 1
O196: 394 | P196: 3.76e-05 | Q196: 1
O197: 395 | P197: 3.6e-05 | Q197: 1
O198: 396 | P198: 3.48e-05 | Q198: 1
O199: 397 | P199: 3.36e-05 | Q199: 1
O200: 398 | P200: 3.24e-05 | Q200: 1
... 2 more rows

Sheet Reflektivität (hidden)
A1: Materialindex | B1: 1 | C1: 1 | D1: 1 | E1: 1 | F1: 1 | G1: 1 | H1: 1 | I1: 1 | J1: 1 | K1: 1 | L1: 1 | M1: 1 | N1: 1 | O1: 1 | P1: 1 | Q1: 1 | R1: 2 | S1: 2 | T1: 2 | U1: 2 | V1: 2 | W1: 2 | X1: 2 | Y1: 2 | Z1: 2 | AA1: 2 | AB1: 2 | AC1: 2 | AD1: 2 | AE1: 2 | AF1: 2 | AG1: 2 | AH1: 3 | AI1: 3 | AJ1: 3 | AK1: 3 | AL1: 3 | AM1: 3 | AN1: 3 | AO1: 3 | AP1: 3 | AQ1: 3 | AR1: 3 | AS1: 3 | AT1: 3 | AU1: 3 | AV1: 3 | AW1: 3 | AX1: 4 | AY1: 4 | AZ1: 4 | BA1: 4 | BB1: 4 | BC1: 4 | BD1: 4 | BE1: 4 | BF1: 4 | BG1: 4 | BH1: 4 | BI1: 4 | BJ1: 4 | BK1: 4 | BL1: 4 | BM1: 4 | BN1: 5 | BO1: 5 | BP1: 5 | BQ1: 5 | BR1: 5 | BS1: 5 | BT1: 5 | BU1: 5 | BV1: 5 | BW1: 5 | BX1: 5 | BY1: 5 | BZ1: 5 | CA1: 5 | CB1: 5 | CC1: 5 | CD1: 6 | CE1: 6 | CF1: 6 | CG1: 6 | CH1: 6 | CI1: 6 | CJ1: 6 | CK1: 6 | CL1: 6 | CM1: 6 | CN1: 6 | CO1: 6 | CP1: 6 | CQ1: 6 | CR1: 6 | CS1: 6 | CT1: 7 | CU1: 7 | CV1: 7 | CW1: 7 | CX1: 7 | CY1: 7 | CZ1: 7 | DA1: 7 | DB1: 7 | DC1: 7 | DD1: 7 | DE1: 7 | DF1: 7 | DG1: 7 | DH1: 7 | DI1: 7 | DJ1: 8 | DK1: 8 | DL1: 8 | DM1: 8 | DN1: 8 | DO1: 8 | DP1: 8 | DQ1: 8 | DR1: 8 | DS1: 8 | DT1: 8 | DU1: 8 | DV1: 8 | DW1: 8 | DX1: 8 | DY1: 8 | DZ1: 9 | EA1: 9 | EB1: 9 | EC1: 9 | ED1: 9 | EE1: 9 | EF1: 9 | EG1: 9 | EH1: 9 | EI1: 9 | EJ1: 9 | EK1: 9 | EL1: 9 | EM1: 9 | EN1: 9 | EO1: 9 | EP1: 10 | EQ1: 10 | ER1: 10 | ES1: 10 | ET1: 10 | EU1: 10 | EV1: 10 | EW1: 10 | EX1: 10 | EY1: 10 | EZ1: 10 | FA1: 10 | FB1: 10 | FC1: 10 | FD1: 10 | FE1: 10 | FF1: 11 | FG1: 11 | FH1: 11 | FI1: 11 | FJ1: 11 | FK1: 11 | FL1: 11 | FM1: 11 | FN1: 11 | FO1: 11 | FP1: 11 | FQ1: 11 | FR1: 11 | FS1: 11 | FT1: 11 | FU1: 11 | FV1: 12 | FW1: 12 | FX1: 12 | FY1: 12 | FZ1: 12 | GA1: 12 | GB1: 12 | GC1: 12 | GD1: 12 | GE1: 12 | GF1: 12 | GG1: 12 | GH1: 12 | GI1: 12 | GJ1: 12 | GK1: 12 | GL1: 13 | GM1: 13 | GN1: 13 | GO1: 13 | GP1: 13 | GQ1: 13 | GR1: 13 | GS1: 13 | GT1: 13 | GU1: 13 | GV1: 13 | GW1: 13 | GX1: 13 | GY1: 13 | GZ1: 13 | HA1: 13 | HB1: 14 | HC1: 14 | HD1: 14 | HE1: 14 | HF1: 14 | HG1: 14 | HH1: 14 | HI1: 14 | HJ1: 14 | HK1: 14 | HL1: 14 | HM1: 14 | HN1: 14 | HO1: 14 | HP1: 14 | HQ1: 14 | HR1: 15 | HS1: 15 | HT1: 15 | HU1: 15 | HV1: 15 | HW1: 15 | HX1: 15 | HY1: 15 | HZ1: 15 | IA1: 15 | IB1: 15 | IC1: 15 | ID1: 15 | IE1: 15 | IF1: 15 | IG1: 15 | IH1: 16 | II1: 16 | IJ1: 16 | IK1: 16 | IL1: 16 | IM1: 16 | IN1: 16 | IO1: 16 | IP1: 16 | IQ1: 16 | IR1: 16 | IS1: 16 | IT1: 16 | IU1: 16 | IV1: 16 | IW1: 16 | IX1: 17 | IY1: 17 | IZ1: 17 | JA1: 17 | JB1: 17 | JC1: 17 | JD1: 17 | JE1: 17 | JF1: 17 | JG1: 17 | JH1: 17 | JI1: 17 | JJ1: 17 | JK1: 17 | JL1: 17 | JM1: 17 | JN1: 18 | JO1: 18 | JP1: 18 | JQ1: 18 | JR1: 18 | JS1: 18 | JT1: 18 | JU1: 18 | JV1: 18 | JW1: 18 | JX1: 18 | JY1: 18 | JZ1: 18 | KA1: 18 | KB1: 18 | KC1: 18 | KD1: 19 | KE1: 19 | KF1: 19 | KG1: 19 | KH1: 19 | KI1: 19 | KJ1: 19 | KK1: 19 | KL1: 19 | KM1: 19 | KN1: 19 | KO1: 19 | KP1: 19 | KQ1: 19 | KR1: 19 | KS1: 19 | KT1: 20 | KU1: 20 | KV1: 20 | KW1: 20 | KX1: 20 | KY1: 20 | KZ1: 20 | LA1: 20 | LB1: 20 | LC1: 20 | LD1: 20 | LE1: 20 | LF1: 20 | LG1: 20 | LH1: 20 | LI1: 20 | LJ1: 21 | LK1: 21 | LL1: 21 | LM1: 21 | LN1: 21 | LO1: 21 | LP1: 21 | LQ1: 21 | LR1: 21 | LS1: 21 | LT1: 21 | LU1: 21 | LV1: 21 | LW1: 21 | LX1: 21 | LY1: 21 | LZ1: 22 | MA1: 22 | MB1: 22 | MC1: 22 | MD1: 22 | ME1: 22 | MF1: 22 | MG1: 22 | MH1: 22 | MI1: 22 | MJ1: 22 | MK1: 22 | ML1: 22 | MM1: 22 | MN1: 22 | MO1: 22 | MP1: 25 | MQ1: 25 | MR1: 25 | MS1: 25 | MT1: 25 | MU1: 25 | MV1: 25 | MW1: 25 | MX1: 25 | MY1: 25 | MZ1: 25 | NA1: 25 | NB1: 25 | NC1: 25 | ND1: 25 | NE1: 25 | NF1: 26 | NG1: 26 | NH1: 26 | NI1: 26 | NJ1: 26 | NK1: 26 | NL1: 26 | NM1: 26 | NN1: 26 | NO1: 26 | NP1: 26 | NQ1: 26 | NR1: 26 | NS1: 26 | NT1: 26 | NU1: 26 | NV1: 27 | NW1: 27 | NX1: 27 | NY1: 27 | NZ1: 27 | OA1: 27 | OB1: 27 | OC1: 27 | OD1: 27 | OE1: 27 | OF1: 27 | OG1: 27 | OH1: 27 | OI1: 27 | OJ1: 27 | OK1: 27 | OL1: 28 | OM1: 28 | ON1: 28 | OO1: 28 | OP1: 28 | OQ1: 28 | OR1: 28 | OS1: 28 | OT1: 28 | OU1: 28 | OV1: 28 | OW1: 28 | OX1: 28 | OY1: 28 | OZ1: 28 | PA1: 28 | PB1: 29 | PC1: 29 | PD1: 29 | PE1: 29 | PF1: 29 | PG1: 29 | PH1: 29 | PI1: 29 | PJ1: 29 | PK1: 29 | PL1: 29 | PM1: 29 | PN1: 29 | PO1: 29 | PP1: 29 | PQ1: 29 | PR1: 30 | PS1: 30 | PT1: 30 | PU1: 30 | PV1: 30 | PW1: 30 | PX1: 30 | PY1: 30 | PZ1: 30 | QA1: 30 | QB1: 30 | QC1: 30 | QD1: 30 | QE1: 30 | QF1: 30 | QG1: 30 | QH1: 31 | QI1: 31 | QJ1: 31 | QK1: 31 | QL1: 31 | QM1: 31 | QN1: 31 | QO1: 31 | QP1: 31 | QQ1: 31 | QR1: 31 | QS1: 31 | QT1: 31 | QU1: 31 | QV1: 31 | QW1: 31 | QX1: 32 | QY1: 32 | QZ1: 32 | RA1: 32 | RB1: 32 | RC1: 32 | RD1: 32 | RE1: 32 | RF1: 32 | RG1: 32 | RH1: 32 | RI1: 32 | RJ1: 32 | RK1: 32 | RL1: 32 | RM1: 32 | RN1: 33 | RO1: 33 | RP1: 33 | RQ1: 33 | RR1: 33 | RS1: 33 | RT1: 33 | RU1: 33 | RV1: 33 | RW1: 33 | RX1: 33 | RY1: 33 | RZ1: 33 | SA1: 33 | SB1: 33 | SC1: 33 | SD1: 34 | SE1: 34 | SF1: 34 | SG1: 34 | SH1: 34 | SI1: 34 | SJ1: 34 | SK1: 34 | SL1: 34 | SM1: 34 | SN1: 34 | SO1: 34 | SP1: 34 | SQ1: 34 | SR1: 34 | SS1: 34 | ST1: 35 | SU1: 35 | SV1: 35 | SW1: 35 | SX1: 35 | SY1: 35 | SZ1: 35 | TA1: 35 | TB1: 35 | TC1: 35 | TD1: 35 | TE1: 35 | TF1: 35 | TG1: 35 | TH1: 35 | TI1: 35 | TJ1: 36 | TK1: 36 | TL1: 36 | TM1: 36 | TN1: 36 | TO1: 36 | TP1: 36 | TQ1: 36 | TR1: 36 | TS1: 36 | TT1: 36 | TU1: 36 | TV1: 36 | TW1: 36 | TX1: 36 | TY1: 36 | TZ1: 37 | UA1: 37 | UB1: 37 | UC1: 37 | UD1: 37 | UE1: 37 | UF1: 37 | UG1: 37 | UH1: 37 | UI1: 37 | UJ1: 37 | UK1: 37 | UL1: 37 | UM1: 37 | UN1: 37 | UO1: 37 | UP1: 38 | UQ1: 38 | UR1: 38 | US1: 38 | UT1: 38 | UU1: 38 | UV1: 38 | UW1: 38 | UX1: 38 | UY1: 38 | UZ1: 38 | VA1: 38 | VB1: 38 | VC1: 38 | VD1: 38 | VE1: 38 | VF1: 39 | VG1: 39 | VH1: 39 | VI1: 39 | VJ1: 39 | VK1: 39 | VL1: 39 | VM1: 39 | VN1: 39 | VO1: 39 | VP1: 39 | VQ1: 39 | VR1: 39 | VS1: 39 | VT1: 39 | VU1: 39 | VV1: 40 | VW1: 40 | VX1: 40 | VY1: 40 | VZ1: 40 | WA1: 40 | WB1: 40 | WC1: 40 | WD1: 40 | WE1: 40 | WF1: 40 | WG1: 40 | WH1: 40 | WI1: 40 | WJ1: 40 | WK1: 40 | WL1: 41 | WM1: 41 | WN1: 41 | WO1: 41 | WP1: 41 | WQ1: 41 | WR1: 41 | WS1: 41 | WT1: 41 | WU1: 41 | WV1: 41 | WW1: 41 | WX1: 41 | WY1: 41 | WZ1: 41 | XA1: 41 | XB1: 42 | XC1: 42 | XD1: 42 | XE1: 42 | XF1: 42 | XG1: 42 | XH1: 42 | XI1: 42 | XJ1: 42 | XK1: 42 | XL1: 42 | XM1: 42 | XN1: 42 | XO1: 42 | XP1: 42 | XQ1: 42 | XR1: 43 | XS1: 43 | XT1: 43 | XU1: 43 | XV1: 43 | XW1: 43 | XX1: 43 | XY1: 43 | XZ1: 43 | YA1: 43 | YB1: 43 | YC1: 43 | YD1: 43 | YE1: 43 | YF1: 43 | YG1: 43 | YH1: 44 | YI1: 44 | YJ1: 44 | YK1: 44 | YL1: 44 | YM1: 44 | YN1: 44 | YO1: 44 | YP1: 44 | YQ1: 44 | YR1: 44 | YS1: 44 | YT1: 44 | YU1: 44 | YV1: 44 | YW1: 44 | YX1: 45 | YY1: 45 | YZ1: 45 | ZA1: 45 | ZB1: 45 | ZC1: 45 | ZD1: 45 | ZE1: 45 | ZF1: 45 | ZG1: 45 | ZH1: 45 | ZI1: 45 | ZJ1: 45 | ZK1: 45 | ZL1: 45 | ZM1: 45 | ZN1: 46 | ZO1: 46 | ZP1: 46 | ZQ1: 46 | ZR1: 46 | ZS1: 46 | ZT1: 46 | ZU1: 46 | ZV1: 46 | ZW1: 46 | ZX1: 46 | ZY1: 46 | ZZ1: 46 | AAA1: 46 | AAB1: 46 | AAC1: 46 | AAD1: 47 | AAE1: 47 | AAF1: 47 | AAG1: 47 | AAH1: 47 | AAI1: 47 | AAJ1: 47 | AAK1: 47 | AAL1: 47 | AAM1: 47 | AAN1: 47 | AAO1: 47 | AAP1: 47 | AAQ1: 47 | AAR1: 47 | AAS1: 47 | AAT1: 48 | AAU1: 48 | AAV1: 48 | AAW1: 48 | AAX1: 48 | AAY1: 48 | AAZ1: 48 | ABA1: 48 | ABB1: 48 | ABC1: 48 | ABD1: 48 | ABE1: 48 | ABF1: 48 | ABG1: 48 | ABH1: 48 | ABI1: 48 | ABJ1: 0 | ABK1: 0 | ABL1: 0 | ABM1: 0 | ABN1: 0 | ABO1: 0 | ABP1: 0 | ABQ1: 0 | ABR1: 0 | ABS1: 0 | ABT1: 0 | ABU1: 0 | ABV1: 0 | ABW1: 0 | ABX1: 0 | ABY1: 0
A2: Wellenlänge [nm] | B2: 0/0 | C2: 0/30 | D2: 0/45 | E2: 0/60 | F2: 30/0 | G2: 30/30 | H2: 30/45 | I2: 30/60 | J2: 45/0 | K2: 45/30 | L2: 45/45 | M2: 45/60 | N2: 60/0 | O2: 60/30 | P2: 60/45 | Q2: 60/60 | R2: 0/0 | S2: 0/30 | T2: 0/45 | U2: 0/60 | V2: 30/0 | W2: 30/30 | X2: 30/45 | Y2: 30/60 | Z2: 45/0 | AA2: 45/30 | AB2: 45/45 | AC2: 45/60 | AD2: 60/0 | AE2: 60/30 | AF2: 60/45 | AG2: 60/60 | AH2: 0/0 | AI2: 0/30 | AJ2: 0/45 | AK2: 0/60 | AL2: 30/0 | AM2: 30/30 | AN2: 30/45 | AO2: 30/60 | AP2: 45/0 | AQ2: 45/30 | AR2: 45/45 | AS2: 45/60 | AT2: 60/0 | AU2: 60/30 | AV2: 60/45 | AW2: 60/60 | AX2: 0/0 | AY2: 0/30 | AZ2: 0/45 | BA2: 0/60 | BB2: 30/0 | BC2: 30/30 | BD2: 30/45 | BE2: 30/60 | BF2: 45/0 | BG2: 45/30 | BH2: 45/45 | BI2: 45/60 | BJ2: 60/0 | BK2: 60/30 | BL2: 60/45 | BM2: 60/60 | BN2: 0/0 | BO2: 0/30 | BP2: 0/45 | BQ2: 0/60 | BR2: 30/0 | BS2: 30/30 | BT2: 30/45 | BU2: 30/60 | BV2: 45/0 | BW2: 45/30 | BX2: 45/45 | BY2: 45/60 | BZ2: 60/0 | CA2: 60/30 | CB2: 60/45 | CC2: 60/60 | CD2: 0/0 | CE2: 0/30 | CF2: 0/45 | CG2: 0/60 | CH2: 30/0 | CI2: 30/30 | CJ2: 30/45 | CK2: 30/60 | CL2: 45/0 | CM2: 45/30 | CN2: 45/45 | CO2: 45/60 | CP2: 60/0 | CQ2: 60/30 | CR2: 60/45 | CS2: 60/60 | CT2: 0/0 | CU2: 0/30 | CV2: 0/45 | CW2: 0/60 | CX2: 30/0 | CY2: 30/30 | CZ2: 30/45 | DA2: 30/60 | DB2: 45/0 | DC2: 45/30 | DD2: 45/45 | DE2: 45/60 | DF2: 60/0 | DG2: 60/30 | DH2: 60/45 | DI2: 60/60 | DJ2: 0/0 | DK2: 0/30 | DL2: 0/45 | DM2: 0/60 | DN2: 30/0 | DO2: 30/30 | DP2: 30/45 | DQ2: 30/60 | DR2: 45/0 | DS2: 45/30 | DT2: 45/45 | DU2: 45/60 | DV2: 60/0 | DW2: 60/30 | DX2: 60/45 | DY2: 60/60 | DZ2: 0/0 | EA2: 0/30 | EB2: 0/45 | EC2: 0/60 | ED2: 30/0 | EE2: 30/30 | EF2: 30/45 | EG2: 30/60 | EH2: 45/0 | EI2: 45/30 | EJ2: 45/45 | EK2: 45/60 | EL2: 60/0 | EM2: 60/30 | EN2: 60/45 | EO2: 60/60 | EP2: 0/0 | EQ2: 0/30 | ER2: 0/45 | ES2: 0/60 | ET2: 30/0 | EU2: 30/30 | EV2: 30/45 | EW2: 30/60 | EX2: 45/0 | EY2: 45/30 | EZ2: 45/45 | FA2: 45/60 | FB2: 60/0 | FC2: 60/30 | FD2: 60/45 | FE2: 60/60 | FF2: 0/0 | FG2: 0/30 | FH2: 0/45 | FI2: 0/60 | FJ2: 30/0 | FK2: 30/30 | FL2: 30/45 | FM2: 30/60 | FN2: 45/0 | FO2: 45/30 | FP2: 45/45 | FQ2: 45/60 | FR2: 60/0 | FS2: 60/30 | FT2: 60/45 | FU2: 60/60 | FV2: 0/0 | FW2: 0/30 | FX2: 0/45 | FY2: 0/60 | FZ2: 30/0 | GA2: 30/30 | GB2: 30/45 | GC2: 30/60 | GD2: 45/0 | GE2: 45/30 | GF2: 45/45 | GG2: 45/60 | GH2: 60/0 | GI2: 60/30 | GJ2: 60/45 | GK2: 60/60 | GL2: 0/0 | GM2: 0/30 | GN2: 0/45 | GO2: 0/60 | GP2: 30/0 | GQ2: 30/30 | GR2: 30/45 | GS2: 30/60 | GT2: 45/0 | GU2: 45/30 | GV2: 45/45 | GW2: 45/60 | GX2: 60/0 | GY2: 60/30 | GZ2: 60/45 | HA2: 60/60 | HB2: 0/0 | HC2: 0/30 | HD2: 0/45 | HE2: 0/60 | HF2: 30/0 | HG2: 30/30 | HH2: 30/45 | HI2: 30/60 | HJ2: 45/0 | HK2: 45/30 | HL2: 45/45 | HM2: 45/60 | HN2: 60/0 | HO2: 60/30 | HP2: 60/45 | HQ2: 60/60 | HR2: 0/0 | HS2: 0/30 | HT2: 0/45 | HU2: 0/60 | HV2: 30/0 | HW2: 30/30 | HX2: 30/45 | HY2: 30/60 | HZ2: 45/0 | IA2: 45/30 | IB2: 45/45 | IC2: 45/60 | ID2: 60/0 | IE2: 60/30 | IF2: 60/45 | IG2: 60/60 | IH2: 0/0 | II2: 0/30 | IJ2: 0/45 | IK2: 0/60 | IL2: 30/0 | IM2: 30/30 | IN2: 30/45 | IO2: 30/60 | IP2: 45/0 | IQ2: 45/30 | IR2: 45/45 | IS2: 45/60 | IT2: 60/0 | IU2: 60/30 | IV2: 60/45 | IW2: 60/60 | IX2: 0/0 | IY2: 0/30 | IZ2: 0/45 | JA2: 0/60 | JB2: 30/0 | JC2: 30/30 | JD2: 30/45 | JE2: 30/60 | JF2: 45/0 | JG2: 45/30 | JH2: 45/45 | JI2: 45/60 | JJ2: 60/0 | JK2: 60/30 | JL2: 60/45 | JM2: 60/60 | JN2: 0/0 | JO2: 0/30 | JP2: 0/45 | JQ2: 0/60 | JR2: 30/0 | JS2: 30/30 | JT2: 30/45 | JU2: 30/60 | JV2: 45/0 | JW2: 45/30 | JX2: 45/45 | JY2: 45/60 | JZ2: 60/0 | KA2: 60/30 | KB2: 60/45 | KC2: 60/60 | KD2: 0/0 | KE2: 0/30 | KF2: 0/45 | KG2: 0/60 | KH2: 30/0 | KI2: 30/30 | KJ2: 30/45 | KK2: 30/60 | KL2: 45/0 | KM2: 45/30 | KN2: 45/45 | KO2: 45/60 | KP2: 60/0 | KQ2: 60/30 | KR2: 60/45 | KS2: 60/60 | KT2: 0/0 | KU2: 0/30 | KV2: 0/45 | KW2: 0/60 | KX2: 30/0 | KY2: 30/30 | KZ2: 30/45 | LA2: 30/60 | LB2: 45/0 | LC2: 45/30 | LD2: 45/45 | LE2: 45/60 | LF2: 60/0 | LG2: 60/30 | LH2: 60/45 | LI2: 60/60 | LJ2: 0/0 | LK2: 0/30 | LL2: 0/45 | LM2: 0/60 | LN2: 30/0 | LO2: 30/30 | LP2: 30/45 | LQ2: 30/60 | LR2: 45/0 | LS2: 45/30 | LT2: 45/45 | LU2: 45/60 | LV2: 60/0 | LW2: 60/30 | LX2: 60/45 | LY2: 60/60 | LZ2: 0/0 | MA2: 0/30 | MB2: 0/45 | MC2: 0/60 | MD2: 30/0 | ME2: 30/30 | MF2: 30/45 | MG2: 30/60 | MH2: 45/0 | MI2: 45/30 | MJ2: 45/45 | MK2: 45/60 | ML2: 60/0 | MM2: 60/30 | MN2: 60/45 | MO2: 60/60 | MP2: 0/0 | MQ2: 0/30 | MR2: 0/45 | MS2: 0/60 | MT2: 30/0 | MU2: 30/30 | MV2: 30/45 | MW2: 30/60 | MX2: 45/0 | MY2: 45/30 | MZ2: 45/45 | NA2: 45/60 | NB2: 60/0 | NC2: 60/30 | ND2: 60/45 | NE2: 60/60 | NF2: 0/0 | NG2: 0/30 | NH2: 0/45 | NI2: 0/60 | NJ2: 30/0 | NK2: 30/30 | NL2: 30/45 | NM2: 30/60 | NN2: 45/0 | NO2: 45/30 | NP2: 45/45 | NQ2: 45/60 | NR2: 60/0 | NS2: 60/30 | NT2: 60/45 | NU2: 60/60 | NV2: 0/0 | NW2: 0/30 | NX2: 0/45 | NY2: 0/60 | NZ2: 30/0 | OA2: 30/30 | OB2: 30/45 | OC2: 30/60 | OD2: 45/0 | OE2: 45/30 | OF2: 45/45 | OG2: 45/60 | OH2: 60/0 | OI2: 60/30 | OJ2: 60/45 | OK2: 60/60 | OL2: 0/0 | OM2: 0/30 | ON2: 0/45 | OO2: 0/60 | OP2: 30/0 | OQ2: 30/30 | OR2: 30/45 | OS2: 30/60 | OT2: 45/0 | OU2: 45/30 | OV2: 45/45 | OW2: 45/60 | OX2: 60/0 | OY2: 60/30 | OZ2: 60/45 | PA2: 60/60 | PB2: 0/0 | PC2: 0/30 | PD2: 0/45 | PE2: 0/60 | PF2: 30/0 | PG2: 30/30 | PH2: 30/45 | PI2: 30/60 | PJ2: 45/0 | PK2: 45/30 | PL2: 45/45 | PM2: 45/60 | PN2: 60/0 | PO2: 60/30 | PP2: 60/45 | PQ2: 60/60 | PR2: 0/0 | PS2: 0/30 | PT2: 0/45 | PU2: 0/60 | PV2: 30/0 | PW2: 30/30 | PX2: 30/45 | PY2: 30/60 | PZ2: 45/0 | QA2: 45/30 | QB2: 45/45 | QC2: 45/60 | QD2: 60/0 | QE2: 60/30 | QF2: 60/45 | QG2: 60/60 | QH2: 0/0 | QI2: 0/30 | QJ2: 0/45 | QK2: 0/60 | QL2: 30/0 | QM2: 30/30 | QN2: 30/45 | QO2: 30/60 | QP2: 45/0 | QQ2: 45/30 | QR2: 45/45 | QS2: 45/60 | QT2: 60/0 | QU2: 60/30 | QV2: 60/45 | QW2: 60/60 | QX2: 0/0 | QY2: 0/30 | QZ2: 0/45 | RA2: 0/60 | RB2: 30/0 | RC2: 30/30 | RD2: 30/45 | RE2: 30/60 | RF2: 45/0 | RG2: 45/30 | RH2: 45/45 | RI2: 45/60 | RJ2: 60/0 | RK2: 60/30 | RL2: 60/45 | RM2: 60/60 | RN2: 0/0 | RO2: 0/30 | RP2: 0/45 | RQ2: 0/60 | RR2: 30/0 | RS2: 30/30 | RT2: 30/45 | RU2: 30/60 | RV2: 45/0 | RW2: 45/30 | RX2: 45/45 | RY2: 45/60 | RZ2: 60/0 | SA2: 60/30 | SB2: 60/45 | SC2: 60/60 | SD2: 0/0 | SE2: 0/30 | SF2: 0/45 | SG2: 0/60 | SH2: 30/0 | SI2: 30/30 | SJ2: 30/45 | SK2: 30/60 | SL2: 45/0 | SM2: 45/30 | SN2: 45/45 | SO2: 45/60 | SP2: 60/0 | SQ2: 60/30 | SR2: 60/45 | SS2: 60/60 | ST2: 0/0 | SU2: 0/30 | SV2: 0/45 | SW2: 0/60 | SX2: 30/0 | SY2: 30/30 | SZ2: 30/45 | TA2: 30/60 | TB2: 45/0 | TC2: 45/30 | TD2: 45/45 | TE2: 45/60 | TF2: 60/0 | TG2: 60/30 | TH2: 60/45 | TI2: 60/60 | TJ2: 0/0 | TK2: 0/30 | TL2: 0/45 | TM2: 0/60 | TN2: 30/0 | TO2: 30/30 | TP2: 30/45 | TQ2: 30/60 | TR2: 45/0 | TS2: 45/30 | TT2: 45/45 | TU2: 45/60 | TV2: 60/0 | TW2: 60/30 | TX2: 60/45 | TY2: 60/60 | TZ2: 0/0 | UA2: 0/30 | UB2: 0/45 | UC2: 0/60 | UD2: 30/0 | UE2: 30/30 | UF2: 30/45 | UG2: 30/60 | UH2: 45/0 | UI2: 45/30 | UJ2: 45/45 | UK2: 45/60 | UL2: 60/0 | UM2: 60/30 | UN2: 60/45 | UO2: 60/60 | UP2: 0/0 | UQ2: 0/30 | UR2: 0/45 | US2: 0/60 | UT2: 30/0 | UU2: 30/30 | UV2: 30/45 | UW2: 30/60 | UX2: 45/0 | UY2: 45/30 | UZ2: 45/45 | VA2: 45/60 | VB2: 60/0 | VC2: 60/30 | VD2: 60/45 | VE2: 60/60 | VF2: 0/0 | VG2: 0/30 | VH2: 0/45 | VI2: 0/60 | VJ2: 30/0 | VK2: 30/30 | VL2: 30/45 | VM2: 30/60 | VN2: 45/0 | VO2: 45/30 | VP2: 45/45 | VQ2: 45/60 | VR2: 60/0 | VS2: 60/30 | VT2: 60/45 | VU2: 60/60 | VV2: 0/0 | VW2: 0/30 | VX2: 0/45 | VY2: 0/60 | VZ2: 30/0 | WA2: 30/30 | WB2: 30/45 | WC2: 30/60 | WD2: 45/0 | WE2: 45/30 | WF2: 45/45 | WG2: 45/60 | WH2: 60/0 | WI2: 60/30 | WJ2: 60/45 | WK2: 60/60 | WL2: 0/0 | WM2: 0/30 | WN2: 0/45 | WO2: 0/60 | WP2: 30/0 | WQ2: 30/30 | WR2: 30/45 | WS2: 30/60 | WT2: 45/0 | WU2: 45/30 | WV2: 45/45 | WW2: 45/60 | WX2: 60/0 | WY2: 60/30 | WZ2: 60/45 | XA2: 60/60 | XB2: 0/0 | XC2: 0/30 | XD2: 0/45 | XE2: 0/60 | XF2: 30/0 | XG2: 30/30 | XH2: 30/45 | XI2: 30/60 | XJ2: 45/0 | XK2: 45/30 | XL2: 45/45 | XM2: 45/60 | XN2: 60/0 | XO2: 60/30 | XP2: 60/45 | XQ2: 60/60 | XR2: 0/0 | XS2: 0/30 | XT2: 0/45 | XU2: 0/60 | XV2: 30/0 | XW2: 30/30 | XX2: 30/45 | XY2: 30/60 | XZ2: 45/0 | YA2: 45/30 | YB2: 45/45 | YC2: 45/60 | YD2: 60/0 | YE2: 60/30 | YF2: 60/45 | YG2: 60/60 | YH2: 0/0 | YI2: 0/30 | YJ2: 0/45 | YK2: 0/60 | YL2: 30/0 | YM2: 30/30 | YN2: 30/45 | YO2: 30/60 | YP2: 45/0 | YQ2: 45/30 | YR2: 45/45 | YS2: 45/60 | YT2: 60/0 | YU2: 60/30 | YV2: 60/45 | YW2: 60/60 | YX2: 0/0 | YY2: 0/30 | YZ2: 0/45 | ZA2: 0/60 | ZB2: 30/0 | ZC2: 30/30 | ZD2: 30/45 | ZE2: 30/60 | ZF2: 45/0 | ZG2: 45/30 | ZH2: 45/45 | ZI2: 45/60 | ZJ2: 60/0 | ZK2: 60/30 | ZL2: 60/45 | ZM2: 60/60 | ZN2: 0/0 | ZO2: 0/30 | ZP2: 0/45 | ZQ2: 0/60 | ZR2: 30/0 | ZS2: 30/30 | ZT2: 30/45 | ZU2: 30/60 | ZV2: 45/0 | ZW2: 45/30 | ZX2: 45/45 | ZY2: 45/60 | ZZ2: 60/0 | AAA2: 60/30 | AAB2: 60/45 | AAC2: 60/60 | AAD2: 0/0 | AAE2: 0/30 | AAF2: 0/45 | AAG2: 0/60 | AAH2: 30/0 | AAI2: 30/30 | AAJ2: 30/45 | AAK2: 30/60 | AAL2: 45/0 | AAM2: 45/30 | AAN2: 45/45 | AAO2: 45/60 | AAP2: 60/0 | AAQ2: 60/30 | AAR2: 60/45 | AAS2: 60/60 | AAT2: 0/0 | AAU2: 0/30 | AAV2: 0/45 | AAW2: 0/60 | AAX2: 30/0 | AAY2: 30/30 | AAZ2: 30/45 | ABA2: 30/60 | ABB2: 45/0 | ABC2: 45/30 | ABD2: 45/45 | ABE2: 45/60 | ABF2: 60/0 | ABG2: 60/30 | ABH2: 60/45 | ABI2: 60/60 | ABJ2: 0/0 | ABK2: 0/30 | ABL2: 0/45 | ABM2: 0/60 | ABN2: 30/0 | ABO2: 30/30 | ABP2: 30/45 | ABQ2: 30/60 | ABR2: 45/0 | ABS2: 45/30 | ABT2: 45/45 | ABU2: 45/60 | ABV2: 60/0 | ABW2: 60/30 | ABX2: 60/45 | ABY2: 60/60 | ABZ2: 0/0 | ACA2: 0/30 | ACB2: 0/45 | ACC2: 0/60 | ACD2: 30/0 | ACE2: 30/30 | ACF2: 30/45 | ACG2: 30/60 | ACH2: 45/0 | ACI2: 45/30 | ACJ2: 45/45 | ACK2: 45/60 | ACL2: 60/0 | ACM2: 60/30 | ACN2: 60/45 | ACO2: 60/60 | ACP2: 0/0 | ACQ2: 0/30 | ACR2: 0/45 | ACS2: 0/60 | ACT2: 30/0 | ACU2: 30/30 | ACV2: 30/45 | ACW2: 30/60 | ACX2: 45/0 | ACY2: 45/30 | ACZ2: 45/45 | ADA2: 45/60 | ADB2: 60/0 | ADC2: 60/30 | ADD2: 60/45 | ADE2: 60/60
A3: 230 | B3: 0.3013588908 | C3: 0.007481764812 | D3: 0.0006941084362 | E3: 0.0007113968834 | F3: 0.002153837104 | G3: 0.05333157321 | H3: 0.01692503822 | I3: 0.01007154106 | J3: 0.0001523081851 | K3: 0.01023443562 | L3: 0.09404030569 | M3: 0.1238476987 | N3: 0.0008534091675 | O3: 0.005851757245 | P3: 0.02962183958 | Q3: 0.3177653428 | R3: 0.1328915676 | S3: 0.007262255178 | T3: 0.00535827841 | U3: 0.0004263836811 | V3: 0.01199581844 | W3: 0.1295841759 | X3: 0.05594900727 | Y3: 0.01740427631 | Z3: 0.004584499813 | AA3: 0.0726645918 | AB3: 0.2456780416 | AC3: 0.1369124868 | AD3: 0.003214452436 | AE3: 0.03071537897 | AF3: 0.1963447016 | AG3: 1.109083656 | AH3: 0.07494973107 | AI3: 0.008564669553 | AJ3: 0.005270763421 | AK3: 0.001833701618 | AL3: 0.01595116415 | AM3: 0.07946669586 | AN3: 0.04785242789 | AO3: 0.02763720661 | AP3: 0.006097128507 | AQ3: 0.0550892302 | AR3: 0.1627191918 | AS3: 0.124267543 | AT3: 0.003934067368 | AU3: 0.03236982824 | AV3: 0.1724923713 | AW3: 0.6401618301 | AX3: 0.165292904 | AY3: 0.005900912519 | AZ3: 0.001829625231 | BA3: 0.0001281054816 | BB3: 0.01007205873 | BC3: 0.1722486505 | BD3: 0.05399588562 | BE3: 0.0208883959 | BF3: 0.004579689766 | BG3: 0.06182144947 | BH3: 0.3408064663 | BI3: 0.1263369711 | BJ3: 0.001911493071 | BK3: 0.0207486871 | BL3: 0.178142227 | BM3: 1.493268288 | BN3: 0.04025707972 | BO3: 0.01208441134 | BP3: 0.007243662321 | BQ3: 0.004867148532 | BR3: 0.0139477756 | BS3: 0.04194073759 | BT3: 0.03170952474 | BU3: 0.02511344434 | BV3: 0.006753423022 | BW3: 0.03630629231 | BX3: 0.08640678584 | BY3: 0.08620799993 | BZ3: 0.007290491997 | CA3: 0.02953206754 | CB3: 0.1090559417 | CC3: 0.3744259146 | CD3: 0.02826964661 | CE3: 0.01090981674 | CF3: 0.01219607853 | CG3: 0.008856596421 | CH3: 0.01502235387 | CI3: 0.02587640778 | CJ3: 0.02094870897 | CK3: 0.01867797236 | CL3: 0.01217326772 | CM3: 0.02170984778 | CN3: 0.04099835298 | CO3: 0.04404644857 | CP3: 0.01649331196 | CQ3: 0.0287025621 | CR3: 0.06389466253 | CS3: 0.1478303168 | CT3: 0.07621024813 | CU3: 0.007576893927 | CV3: 0.004569554465 | CW3: 0.003302492991 | CX3: 0.009901199291 | CY3: 0.07123038297 | CZ3: 0.03615966553 | DA3: 0.02019661463 | DB3: 0.004766581968 | DC3: 0.03392611415 | DD3: 0.1439368915 | DE3: 0.08198950099 | DF3: 0.004946545763 | DG3: 0.02400519779 | DH3: 0.09558981053 | DI3: 0.6389552239 | DJ3: 0.04965284227 | DK3: 0.01604643437 | DL3: 0.008465096851 | DM3: 0.007790197099 | DN3: 0.02053555233 | DO3: 0.04298420361 | DP3: 0.03864729672 | DQ3: 0.03075465797 | DR3: 0.01253352568 | DS3: 0.03957567534 | DT3: 0.07920724072 | DU3: 0.08269989153 | DV3: 0.01419112385 | DW3: 0.0354924772 | DX3: 0.09389205879 | DY3: 0.1985632577 | DZ3: 0.07630454055 | EA3: 0.03476527709 | EB3: 0.02652361971 | EC3: 0.02907294335 | ED3: 0.01036382814 | EE3: 0.009798273961 | EF3: 0.006756468902 | EG3: 0.0260449343 | EH3: 0.01141479614 | EI3: 0.01802865994 | EJ3: 0.008468329639 | EK3: 0.02369633365 | EL3: 0.007999070077 | EM3: 0.008569643709 | EN3: 0.01239058699 | EO3: 0.00271864067 | EP3: 0.02283829443 | EQ3: 0.01129472977 | ER3: 0.007301947565 | ES3: 0.006765701248 | ET3: 0.01344856519 | EU3: 0.02145058773 | EV3: 0.02439752717 | EW3: 0.03360002129 | EX3: 0.007878420207 | EY3: 0.02029185282 | EZ3: 0.03788213729 | FA3: 0.05385078256 | FB3: 0.008725730674 | FC3: 0.02900976457 | FD3: 0.06485417995 | FE3: 0.1247674921 | FF3: 0.01731952059 | FG3: 0.006978215172 | FH3: 0.006942129837 | FI3: 0.007655991356 | FJ3: 0.01099371308 | FK3: 0.01371743668 | FL3: 0.02018621896 | FM3: 0.01665683098 | FN3: 0.009546457157 | FO3: 0.01899460203 | FP3: 0.01988813238 | FQ3: 0.03111465097 | FR3: 0.008371635084 | FS3: 0.0253334928 | FT3: 0.04262228301 | FU3: 0.08267986424 | FV3: 0.04018918556 | FW3: 0.01937361326 | FX3: 0.01572059337 | FY3: 0.01402116338 | FZ3: 0.02775023998 | GA3: 0.02560573413 | GB3: 0.01633225527 | GC3: 0.01609190775 | GD3: 0.02154198634 | GE3: 0.02006780121 | GF3: 0.02118640786 | GG3: 0.01623201478 | GH3: 0.02372963785 | GI3: 0.02587166731 | GJ3: 0.02178025939 | GK3: 0.03186982487 | GL3: 0.1602366422 | GM3: 0.008142527459 | GN3: 0.004962827401 | GO3: 0.003184397669 | GP3: 0.01218507016 | GQ3: 0.06596342821 | GR3: 0.03465113593 | GS3: 0.01867066416 | GT3: 0.005458878958 | GU3: 0.04639871361 | GV3: 0.1169485664 | GW3: 0.09021415715 | GX3: 0.005437746742 | GY3: 0.03164063094 | GZ3: 0.1325180716 | HA3: 0.5737985645 | HB3: 1.758592187 | HC3: 0.03529169601 | HD3: 0.01477700841 | HE3: 0.009564431407 | HF3: 0.05067195757 | HG3: 0.955435418 | HH3: 0.1757489089 | HI3: 0.07089013137 | HJ3: 0.2424633791 | HK3: 0.2799725944 | HL3: 1.973242364 | HM3: 0.2985920732 | HN3: 0.01562437372 | HO3: 0.110226885 | HP3: 0.7757652723 | HQ3: 6.439485977 | HR3: 0.5958009976 | HS3: 0.001686760108 | HT3: 0.0007927751619 | HU3: -0.000451931083 | HV3: 0.00345336428 | HW3: 0.6379040173 | HX3: 0.02241869635 | HY3: 0.006216408934 | HZ3: 0.0009425943608 | IA3: 0.03347686642 | IB3: 1.240759365 | IC3: 0.05159460801 | ID3: 0.0009389672631 | IE3: 0.005774254138 | IF3: 0.09720312681 | IG3: 5.260904851 | IH3: 0.4940401077 | II3: 0.003030516468 | IJ3: 0.0005412948053 | IK3: 0.0004836810993 | IL3: 0.006571099848 | IM3: 0.4656278985 | IN3: 0.02630508718 | IO3: 0.008485358913 | IP3: 0.001654627121 | IQ3: 0.0461533542 | IR3: 0.8764152018 | IS3: 0.06327742581 | IT3: 0.001597431522 | IU3: 0.01140693414 | IV3: 0.1321666652 | IW3: 3.944938192 | IX3: 0.1362244387 | IY3: 0.01152203978 | IZ3: 0.005322340199 | JA3: 0.00214358669 | JB3: 0.01785187261 | JC3: 0.1438509162 | JD3: 0.06591499201 | JE3: 0.02947004024 | JF3: 0.009717578234 | JG3: 0.07990392309 | JH3: 0.2562197079 | JI3: 0.1688932693 | JJ3: 0.006441102426 | JK3: 0.03723996895 | JL3: 0.2254533258 | JM3: 1.200967922 | JN3: 0.02547161156 | JO3: 0.01070998532 | JP3: 0.009771272958 | JQ3: 0.007074726551 | JR3: 0.01449333212 | JS3: 0.01833752432 | JT3: 0.01512202954 | JU3: 0.01787632461 | JV3: 0.009766028529 | JW3: 0.01624266514 | JX3: 0.02305827282 | JY3: 0.03112951838 | JZ3: 0.007988644121 | KA3: 0.02055129217 | KB3: 0.02760071934 | KC3: 0.03558688167 | KD3: 0.03169102421 | KE3: 0.01399241844 | KF3: 0.01437964069 | KG3: 0.01466236633 | KH3: 0.02413384212 | KI3: 0.02195536701 | KJ3: 0.02507910005 | KK3: 0.02312123123 | KL3: 0.01684854624 | KM3: 0.02295889516 | KN3: 0.0339688 | KO3: 0.0602598645 | KP3: 0.02222866679 | KQ3: 0.03952958547 | KR3: 0.06191100518 | KS3: 0.1281164231 | KT3: 0.5698957011 | KU3: 0.2235093341 | KV3: 0.001570870109 | KW3: 0.001573498873 | KX3: 0.01398641766 | KY3: 0.572670877 | KZ3: 0.1470487956 | LA3: 0.02249747705 | LB3: 0.003722976613 | LC3: 0.1990924659 | LD3: 0.9765308265 | LE3: 0.3267924619 | LF3: 0.004265335817 | LG3: 0.02899666761 | LH3: 0.5030029389 | LI3: 3.172776673 | LJ3: 0.4553571032 | LK3: 0.0129873047 | LL3: 0.002020380901 | LM3: 0.001040196859 | LN3: 0.0211094687 | LO3: 0.4421260376 | LP3: 0.1622972418 | LQ3: 0.02165575605 | LR3: 0.003252349925 | LS3: 0.2182799056 | LT3: 0.753714512 | LU3: 0.4416613685 | LV3: 0.001921756121 | LW3: 0.03507146992 | LX3: 0.5665947599 | LY3: 2.470541626 | LZ3: 0.04219726164 | MA3: 0.007135321809 | MB3: 0.004636116389 | MC3: 0.00280480995 | MD3: 0.008260632012 | ME3: 0.05158361816 | MF3: 0.02060583393 | MG3: 0.01365060625 | MH3: 0.005792288116 | MI3: 0.02496246733 | MJ3: 0.09833862635 | MK3: 0.05691772703 | ML3: 0.003004894801 | MM3: 0.02077053104 | MN3: 0.08351962905 | MO3: 0.3978344957 | MP3: 4.727566658 | MQ3: 0.0007225628874 | MR3: 0.002634597604 | MS3: -0.0008824907817 | MT3: 0.0007472017205 | MU3: 5.197839866 | MV3: 0.001574417419 | MW3: -0.0006299052404 | MX3: -0.0002564775526 | MY3: 0.001726065929 | MZ3: 6.958789138 | NA3: 0.00330680549 | NB3: 0.0007367403782 | NC3: 0.001801854719 | ND3: 0.006460810185 | NE3: 25.03623929 | NF3: 4.752440565 | NG3: 0.0007922344156 | NH3: -0.0003186085793 | NI3: -0.0003477148786 | NJ3: -0.0001794161112 | NK3: 4.701664663 | NL3: 0.000282197958 | NM3: -0.0008235114242 | NN3: -0.0001474498137 | NO3: 0.0003070274653 | NP3: 6.741010963 | NQ3: -0.0004751743701 | NR3: -0.0003399024432 | NS3: -0.0005082889882 | NT3: 0.0009304315412 | NU3: 22.05112698 | NV3: 2.192968886 | NW3: 0.8600679292 | NX3: 0.000301096869 | NY3: 0.0009526847249 | NZ3: 0.001239834756 | OA3: 2.585271488 | OB3: 0.00644124483 | OC3: 0.001006094419 | OD3: 0.000348218273 | OE3: 0.01477575988 | OF3: 3.469479795 | OG3: 0.009418422443 | OH3: -0.0003333658577 | OI3: 0.004840490327 | OJ3: 0.02632068122 | OK3: 10.6387432 | OL3: 0.06063464018 | OM3: 0.02378050584 | ON3: 0.008123124804 | OO3: 0.002514146841 | OP3: 0.01892261408 | OQ3: 0.06035065955 | OR3: 0.05222905854 | OS3: 0.04340055024 | OT3: 0.008860952537 | OU3: 0.05992448359 | OV3: 0.1057087927 | OW3: 0.1386810764 | OX3: 0.00859279974 | OY3: 0.05255454664 | OZ3: 0.1597438097 | PA3: 0.3455683652 | PB3: 2.012778797 | PC3: 0.0003939189204 | PD3: 0.0004905892562 | PE3: -4.630466593e-05 | PF3: 0.001172599391 | PG3: 0.9520271366 | PH3: 0.006671083623 | PI3: 0.003383327441 | PJ3: 0.0002297550676 | PK3: 0.01563507695 | PL3: 1.375097647 | PM3: 0.02371650669 | PN3: 0.0004043315907 | PO3: 0.001366175084 | PP3: 0.01564060345 | PQ3: 3.197373409 | PR3: 0.05381204529 | PS3: 0.02110472914 | PT3: 0.00344174805 | PU3: 0.00202401748 | PV3: 0.01444765592 | PW3: 0.04228581309 | PX3: 0.03908000313 | PY3: 0.0285468938 | PZ3: 0.00747399726 | QA3: 0.05302765909 | QB3: 0.08015365857 | QC3: 0.1105092335 | QD3: 0.004103967682 | QE3: 0.05303323226 | QF3: 0.140971915 | QG3: 0.3626338714 | QH3: 0.09499258205 | QI3: 0.01164194099 | QJ3: 0.008102491189 | QK3: 0.006978862382 | QL3: 0.004892387867 | QM3: 0.01999479171 | QN3: 0.007774651689 | QO3: 0.01966443616 | QP3: 0.002580711845 | QQ3: 0.02125779182 | QR3: 0.04249809044 | QS3: 0.07996926169 | QT3: 0.005362525101 | QU3: 0.00517341644 | QV3: 0.02843695293 | QW3: 0.1229555557 | QX3: 0.03353435223 | QY3: 0.01356884627 | QZ3: 0.0127083614 | RA3: 0.008157686649 | RB3: 0.004939282098 | RC3: 0.00375108906 | RD3: 0.007475771328 | RE3: 0.01756406181 | RF3: 0.003772554111 | RG3: 0.009939734707 | RH3: 0.01136795308 | RI3: 0.02703145525 | RJ3: 0.003567468777 | RK3: 0.007295076799 | RL3: 0.01164892572 | RM3: 0.009876264993 | RN3: 3.360068202 | RO3: 0.5253955948 | RP3: 0.2954247013 | RQ3: 0.173770015 | RR3: 0.7203004362 | RS3: 3.232008745 | RT3: 1.747432195 | RU3: 0.8786891508 | RV3: 0.3816298247 | RW3: 1.947474465 | RX3: 4.366970042 | RY3: 2.424110085 | RZ3: 0.2881254533 | SA3: 1.204419581 | SB3: 3.179732761 | SC3: 8.391390743 | SD3: 1.038839973 | SE3: 0.0659832038 | SF3: 0.02284194961 | SG3: 0.01046399473 | SH3: 0.01647148712 | SI3: 0.2018033727 | SJ3: 0.1235507771 | SK3: 0.1325194438 | SL3: 0.01399923941 | SM3: 0.1063063897 | SN3: 0.3131163084 | SO3: 0.6496363803 | SP3: 0.007634935432 | SQ3: 0.04879903474 | SR3: 0.04116959383 | SS3: 0.5022622341 | ST3: 10.38908601 | SU3: 0.0431850015 | SV3: 0.01221045382 | SW3: 0.007064839215 | SX3: 0.006227635129 | SY3: 2.024879092 | SZ3: 0.1283921671 | TA3: 0.07515744553 | TB3: 0.003135490068 | TC3: 0.09186721323 | TD3: 2.251516918 | TE3: 0.6007351213 | TF3: 0.001845271962 | TG3: 0.0255162624 | TH3: 0.04664593933 | TI3: 2.917442129 | TJ3: 4.228269653 | TK3: 0.03030566107 | TL3: 0.02042623386 | TM3: 0.006651904768 | TN3: 0.0142884896 | TO3: 1.013234849 | TP3: 0.04700979322 | TQ3: 0.05306271075 | TR3: 0.008621703699 | TS3: 0.06336090036 | TT3: 1.484627627 | TU3: 0.258508932 | TV3: 0.004863545382 | TW3: 0.02383867595 | TX3: 0.02001155411 | TY3: 2.112002715 | TZ3: 5.847024942 | UA3: 0.02053930835 | UB3: 0.006788619223 | UC3: 0.009134670065 | UD3: 0.004263152544 | UE3: 1.590361011 | UF3: 0.03501261949 | UG3: 0.03907081194 | UH3: 0.001376120523 | UI3: 0.02746738433 | UJ3: 2.232468276 | UK3: 0.2072869474 | UL3: 0.003579075798 | UM3: 0.0161689838 | UN3: 0.01992251553 | UO3: 3.921946267 | UP3: 0.8792202442 | UQ3: 0.0006935951324 | UR3: 0.0005089721958 | US3: 7.639655758e-05 | UT3: 0.001779057516 | UU3: 0.2216525777 | UV3: 0.003328112846 | UW3: 0.004102818934 | UX3: 0.0006620179853 | UY3: 0.005554106202 | UZ3: 0.4124016813 | VA3: 0.02230719199 | VB3: -8.291892814e-05 | VC3: 0.002222438756 | VD3: 0.002623749093 | VE3: 0.8787852252 | VF3: 0.06471000762 | VG3: 0.03626174351 | VH3: 0.03196287889 | VI3: 0.03358120002 | VJ3: 0.04857222269 | VK3: 0.04182829094 | VL3: 0.04574487897 | VM3: 0.04471279699 | VN3: 0.03798398155 | VO3: 0.04658418903 | VP3: 0.06386652868 | VQ3: 0.06634559466 | VR3: 0.04906409907 | VS3: 0.07042629972 | VT3: 0.08269013416 | VU3: 0.1171176508 | VV3: 0.5350331559 | VW3: 0.001533482746 | VX3: -0.000805712918 | VY3: -0.001375138036 | VZ3: 0.0007143351574 | WA3: 0.07876495253 | WB3: 0.01566956972 | WC3: 0.004519751282 | WD3: 0.001026104556 | WE3: 0.01458677336 | WF3: 0.2077710909 | WG3: 0.06084109313 | WH3: -3.494324182e-05 | WI3: 0.002848506323 | WJ3: 0.006442944662 | WK3: 0.5763136165 | WL3: 3.89242426 | WM3: 0.002074509641 | WN3: -0.0003587722531 | WO3: -0.000219609397 | WP3: 0.002287433615 | WQ3: 3.765398682 | WR3: 0.006647176561 | WS3: 0.001152745469 | WT3: -0.0003200867842 | WU3: 0.006815397089 | WV3: 5.874243098 | WW3: 0.003967910053 | WX3: 0.002061681812 | WY3: 0.000840603753 | WZ3: 0.008887292937 | XA3: 24.99127887 | XB3: 6.289941246 | XC3: 0.006291498552 | XD3: 0.002440400578 | XE3: 0.0003496800634 | XF3: 0.005953405378 | XG3: 5.836923036 | XH3: 0.02384312208 | XI3: 0.01034468474 | XJ3: 0.002890255394 | XK3: 0.03853166077 | XL3: 8.538729517 | XM3: 0.04481424872 | XN3: 0.001143780274 | XO3: 0.008475025821 | XP3: 0.0679036766 | XQ3: 22.23244033 | XR3: 0.1304787483 | XS3: 0.005483911581 | XT3: 0.002481958219 | XU3: 0.002350422386 | XV3: 0.008950433976 | XW3: 0.1385855801 | XX3: 0.05151294839 | XY3: 0.01498337684 | XZ3: 0.003346714307 | YA3: 0.06483426377 | YB3: 0.2545432246 | YC3: 0.1288063619 | YD3: 0.002835411933 | YE3: 0.01419277728 | YF3: 0.1777537242 | YG3: 1.09883537 | YH3: 0.02346868856 | YI3: 0.01208093663 | YJ3: 0.007132232085 | YK3: 0.003447671015 | YL3: 0.01377810374 | YM3: 0.02267385822 | YN3: 0.02131109197 | YO3: 0.02077926023 | YP3: 0.01066848086 | YQ3: 0.02273366538 | YR3: 0.03938836111 | YS3: 0.04709974999 | YT3: 0.01207997644 | YU3: 0.03116399097 | YV3: 0.06225787595 | YW3: 0.1320343425 | YX3: 0.04805993613 | YY3: 0.02891290418 | YZ3: 0.02899499249 | ZA3: 0.0256123144 | ZB3: 0.03447703477 | ZC3: 0.03784979619 | ZD3: 0.0374269079 | ZE3: 0.03333869253 | ZF3: 0.04033647366 | ZG3: 0.04518585245 | ZH3: 0.04747649652 | ZI3: 0.05050689598 | ZJ3: 0.04754174665 | ZK3: 0.05642033634 | ZL3: 0.06967777159 | ZM3: 0.08191766987 | ZN3: 0.0573617076 | ZO3: 0.03282319654 | ZP3: 0.03130862919 | ZQ3: 0.02448657059 | ZR3: 0.04080693383 | ZS3: 0.04173261635 | ZT3: 0.03654151343 | ZU3: 0.04091046655 | ZV3: 0.03668075025 | ZW3: 0.04122078511 | ZX3: 0.0558737098 | ZY3: 0.05700745627 | ZZ3: 0.04880510978 | AAA3: 0.06458016514 | AAB3: 0.07428900748 | AAC3: 0.09977012324 | AAD3: 0.02273649838 | AAE3: 0.01066279306 | AAF3: 0.005377576141 | AAG3: 0.005355005649 | AAH3: 0.01796460147 | AAI3: 0.03207647988 | AAJ3: 0.02911225276 | AAK3: 0.03051888758 | AAL3: 0.01034221389 | AAM3: 0.02686545863 | AAN3: 0.06316579551 | AAO3: 0.07876257144 | AAP3: 0.007643559245 | AAQ3: 0.03876123837 | AAR3: 0.1143634822 | AAS3: 0.2926467932 | AAT3: 0.0680841034 | AAU3: 0.008740568002 | AAV3: 0.003212745411 | AAW3: 0.00148813616 | AAX3: 0.01382061306 | AAY3: 0.06862758404 | AAZ3: 0.03861715197 | ABA3: 0.02515729349 | ABB3: 0.005465000836 | ABC3: 0.04292248004 | ABD3: 0.1399016213 | ABE3: 0.1140688434 | ABF3: 0.005615843241 | ABG3: 0.03004595271 | ABH3: 0.131207153 | ABI3: 0.5900274563 | ABJ3: 0.2309193472 | ABK3: 0.1296510279 | ABL3: 0.1103021682 | ABM3: 0.1014586817 | ABN3: 0.1537476971 | ABO3: 0.1447238903 | ABP3: 0.1514733558 | ABQ3: 0.1442113328 | ABR3: 0.1364677851 | ABS3: 0.1500740687 | ABT3: 0.1804689142 | ABU3: 0.1698878707 | ABV3: 0.1759781866 | ABW3: 0.1924623266 | ABX3: 0.2303141315 | ABY3: 0.289659803
A4: 231 | B4: 0.3069924059 | C4: 0.006786393766 | D4: 0.001430719135 | E4: 0.001704337371 | F4: 0.002295335382 | G4: 0.06533840794 | H4: 0.02004973584 | I4: 0.01238498172 | J4: 0.0006590486675 | K4: 0.01435848788 | L4: 0.107426389 | M4: 0.1205600539 | N4: 0.0009472837212 | O4: 0.005227666458 | P4: 0.02735198024 | Q4: 0.3799360312 | R4: 0.1366229397 | S4: 0.009484899161 | T4: 0.003476438019 | U4: 0.000339222726 | V4: 0.01319612185 | W4: 0.1304453303 | X4: 0.05501107891 | Y4: 0.01931989031 | Z4: 0.004715343883 | AA4: 0.06937385341 | AB4: 0.2478146756 | AC4: 0.1348201746 | AD4: 0.004612988113 | AE4: 0.03221456467 | AF4: 0.1944991545 | AG4: 1.100132182 | AH4: 0.07538762739 | AI4: 0.008687238726 | AJ4: 0.005220518341 | AK4: 0.001924381545 | AL4: 0.01488241317 | AM4: 0.08128869042 | AN4: 0.04701285908 | AO4: 0.02546432024 | AP4: 0.006155672404 | AQ4: 0.05759032514 | AR4: 0.158905913 | AS4: 0.1227631251 | AT4: 0.003726967288 | AU4: 0.03539936405 | AV4: 0.1674092088 | AW4: 0.640174372 | AX4: 0.1648086937 | AY4: 0.007388658946 | AZ4: 0.001620517536 | BA4: 0.001182904932 | BB4: 0.0106206506 | BC4: 0.172461341 | BD4: 0.05570094354 | BE4: 0.01907229491 | BF4: 0.004662843158 | BG4: 0.06545993839 | BH4: 0.3449140529 | BI4: 0.1262440584 | BJ4: 0.002158350308 | BK4: 0.0206820451 | BL4: 0.1782724626 | BM4: 1.48427409 | BN4: 0.03907071869 | BO4: 0.01184456877 | BP4: 0.006581572666 | BQ4: 0.0050205016 | BR4: 0.01311523946 | BS4: 0.04345580436 | BT4: 0.03456994718 | BU4: 0.02583135733 | BV4: 0.007939202439 | BW4: 0.03607566322 | BX4: 0.09427034169 | BY4: 0.08120618822 | BZ4: 0.006825224822 | CA4: 0.03030504616 | CB4: 0.1015543636 | CC4: 0.3605867493 | CD4: 0.03007866157 | CE4: 0.01178304224 | CF4: 0.01250859804 | CG4: 0.009964572334 | CH4: 0.01588977141 | CI4: 0.02695678057 | CJ4: 0.02058570421 | CK4: 0.01821977921 | CL4: 0.01173590922 | CM4: 0.02328007082 | CN4: 0.03987971925 | CO4: 0.04439348322 | CP4: 0.0183069398 | CQ4: 0.02821064211 | CR4: 0.06031310534 | CS4: 0.1558282379 | CT4: 0.07190241479 | CU4: 0.007685035973 | CV4: 0.003987331929 | CW4: 0.002792314589 | CX4: 0.01139023092 | CY4: 0.07161654339 | CZ4: 0.03454251415 | DA4: 0.01932778641 | DB4: 0.00472497739 | DC4: 0.03496265809 | DD4: 0.1443408489 | DE4: 0.07973144535 | DF4: 0.005342875198 | DG4: 0.02445188328 | DH4: 0.1006338857 | DI4: 0.6423512984 | DJ4: 0.05540072463 | DK4: 0.01768341463 | DL4: 0.008560260758 | DM4: 0.007536747236 | DN4: 0.02049151377 | DO4: 0.04378116706 | DP4: 0.04264801564 | DQ4: 0.03421587601 | DR4: 0.01358441623 | DS4: 0.03938150536 | DT4: 0.07951154509 | DU4: 0.08231026927 | DV4: 0.01258315277 | DW4: 0.03721458985 | DX4: 0.0923417059 | DY4: 0.2023413046 | DZ4: 0.07567636548 | EA4: 0.03495034202 | EB4: 0.02735165677 | EC4: 0.02798872562 | ED4: 0.01219087897 | EE4: 0.01000467197 | EF4: 0.0101135379 | EG4: 0.02532705968 | EH4: 0.012507371 | EI4: 0.01453132232 | EJ4: 0.009301419691 | EK4: 0.02564396689 | EL4: 0.01062212144 | EM4: 0.01068671297 | EN4: 0.01199401801 | EO4: 0.005380105584 | EP4: 0.02080503925 | EQ4: 0.01109719443 | ER4: 0.007211985148 | ES4: 0.007338650552 | ET4: 0.0147752236 | EU4: 0.02091799053 | EV4: 0.02237000566 | EW4: 0.02992016897 | EX4: 0.009691093878 | EY4: 0.02121194042 | EZ4: 0.03783616171 | FA4: 0.05566908166 | FB4: 0.009599918376 | FC4: 0.02891885016 | FD4: 0.06163268499 | FE4: 0.1280882195 | FF4: 0.01736825338 | FG4: 0.007514836861 | FH4: 0.006256470219 | FI4: 0.007499420737 | FJ4: 0.0110790719 | FK4: 0.01365330446 | FL4: 0.01744063841 | FM4: 0.01689062853 | FN4: 0.01027121434 | FO4: 0.01827506473 | FP4: 0.02277532258 | FQ4: 0.03269820554 | FR4: 0.009965844223 | FS4: 0.02659971943 | FT4: 0.04509398148 | FU4: 0.08997923787 | FV4: 0.03844834406 | FW4: 0.01985531912 | FX4: 0.01620743043 | FY4: 0.01576307131 | FZ4: 0.02794039274 | GA4: 0.02476557046 | GB4: 0.01788427569 | GC4: 0.01473494033 | GD4: 0.02598431729 | GE4: 0.02051670924 | GF4: 0.02148500149 | GG4: 0.0182210174 | GH4: 0.02738767095 | GI4: 0.02516999593 | GJ4: 0.02514030684 | GK4: 0.03008955559 | GL4: 0.1613721792 | GM4: 0.009721600313 | GN4: 0.0035229185 | GO4: 0.002650540456 | GP4: 0.01203381579 | GQ4: 0.06373825035 | GR4: 0.03750571044 | GS4: 0.0208395739 | GT4: 0.005622651879 | GU4: 0.04447856695 | GV4: 0.1221930219 | GW4: 0.08884514428 | GX4: 0.004615742073 | GY4: 0.03192289597 | GZ4: 0.1279850371 | HA4: 0.5905128423 | HB4: 1.77424056 | HC4: 0.03601020313 | HD4: 0.0155752288 | HE4: 0.008199016704 | HF4: 0.05222639099 | HG4: 0.9664236654 | HH4: 0.1712613305 | HI4: 0.06665419931 | HJ4: 0.238393131 | HK4: 0.2752726767 | HL4: 1.990986188 | HM4: 0.2969556002 | HN4: 0.01552277402 | HO4: 0.1135609971 | HP4: 0.7749039666 | HQ4: 6.426155751 | HR4: 0.5971064355 | HS4: 0.002420953421 | HT4: 0.0005255238924 | HU4: -0.0003722490576 | HV4: 0.003586685421 | HW4: 0.6465337401 | HX4: 0.02235833638 | HY4: 0.004928377736 | HZ4: 0.001449962027 | IA4: 0.0318725435 | IB4: 1.28243336 | IC4: 0.05180892184 | ID4: 0.000352769987 | IE4: 0.006925065598 | IF4: 0.08997482185 | IG4: 5.322035437 | IH4: 0.5138904937 | II4: 0.003335250305 | IJ4: 0.0009155760076 | IK4: 0.001018824231 | IL4: 0.006361796425 | IM4: 0.4782243335 | IN4: 0.02672629411 | IO4: 0.007941714106 | IP4: 0.001931951345 | IQ4: 0.04652562446 | IR4: 0.8866488749 | IS4: 0.06447837686 | IT4: 0.0007621101697 | IU4: 0.01133355695 | IV4: 0.1365142274 | IW4: 3.958711095 | IX4: 0.1355637551 | IY4: 0.01271343371 | IZ4: 0.005329879792 | JA4: 0.003700945952 | JB4: 0.01781434074 | JC4: 0.1434011333 | JD4: 0.07011639145 | JE4: 0.03132296395 | JF4: 0.008548487176 | JG4: 0.08095910629 | JH4: 0.2589406145 | JI4: 0.1765554696 | JJ4: 0.006513220458 | JK4: 0.03858385962 | JL4: 0.23114397 | JM4: 1.18367647 | JN4: 0.02617524981 | JO4: 0.01050431903 | JP4: 0.009275968215 | JQ4: 0.007495348278 | JR4: 0.01422210173 | JS4: 0.0186921942 | JT4: 0.0176180226 | JU4: 0.01870865314 | JV4: 0.01149410445 | JW4: 0.01568908956 | JX4: 0.02390661602 | JY4: 0.02970604098 | JZ4: 0.008213781938 | KA4: 0.02044820378 | KB4: 0.02875688386 | KC4: 0.03510698991 | KD4: 0.03200526231 | KE4: 0.01409153076 | KF4: 0.01276862036 | KG4: 0.01233976199 | KH4: 0.02294579303 | KI4: 0.02351061959 | KJ4: 0.02448292662 | KK4: 0.02689933131 | KL4: 0.01597212746 | KM4: 0.0231363024 | KN4: 0.03453732849 | KO4: 0.05888134735 | KP4: 0.02081406071 | KQ4: 0.03741364024 | KR4: 0.06392047899 | KS4: 0.1309901231 | KT4: 0.6130060982 | KU4: 0.2398316521 | KV4: 0.001846862939 | KW4: 0.002331653753 | KX4: 0.01445182563 | KY4: 0.5897684277 | KZ4: 0.1522723006 | LA4: 0.02167516563 | LB4: 0.003486274264 | LC4: 0.2024435153 | LD4: 0.9999222758 | LE4: 0.3204377394 | LF4: 0.003456272323 | LG4: 0.02982105842 | LH4: 0.517566448 | LI4: 3.208259236 | LJ4: 0.4596641125 | LK4: 0.01239642649 | LL4: 0.00240574692 | LM4: 7.88480676e-05 | LN4: 0.0208942544 | LO4: 0.4583100323 | LP4: 0.1716620816 | LQ4: 0.02547932283 | LR4: 0.002899873814 | LS4: 0.2259159869 | LT4: 0.7688784388 | LU4: 0.4466464327 | LV4: 0.002134739926 | LW4: 0.03658321489 | LX4: 0.5714008403 | LY4: 2.478116846 | LZ4: 0.04177400822 | MA4: 0.007009882493 | MB4: 0.004730590967 | MC4: 0.003693300238 | MD4: 0.008999660033 | ME4: 0.05419052442 | MF4: 0.02234495486 | MG4: 0.01464158209 | MH4: 0.00596081684 | MI4: 0.02807954014 | MJ4: 0.09861332334 | MK4: 0.058764012 | ML4: 0.003923340417 | MM4: 0.02061731086 | MN4: 0.07997438074 | MO4: 0.3958837293 | MP4: 4.768975731 | MQ4: 0.0008185029993 | MR4: 0.001690089162 | MS4: -0.0008129154321 | MT4: 0.0006083419385 | MU4: 5.243864378 | MV4: 0.001137987232 | MW4: 0.0004010956086 | MX4: -3.888570494e-05 | MY4: 0.001286113153 | MZ4: 6.963554406 | NA4: 0.003247609482 | NB4: 0.0005165648229 | NC4: 0.001215914141 | ND4: 0.004920453882 | NE4: 25.04516069 | NF4: 4.793371479 | NG4: 0.0003995280032 | NH4: 0.0006699413916 | NI4: -0.0001884891826 | NJ4: -3.630890426e-05 | NK4: 4.796730831 | NL4: 7.176512827e-05 | NM4: -0.0004439977571 | NN4: -5.326688458e-05 | NO4: 0.0003004590286 | NP4: 6.806693385 | NQ4: -0.0001940517252 | NR4: 1.89970611e-05 | NS4: -0.0004180989771 | NT4: 0.0007605555613 | NU4: 22.21938638 | NV4: 2.237105237 | NW4: 0.8752419371 | NX4: 0.001090241229 | NY4: 0.0004749275808 | NZ4: 0.001593459495 | OA4: 2.611160343 | OB4: 0.005909046861 | OC4: 0.00132562375 | OD4: 0.0004203198049 | OE4: 0.0156719615 | OF4: 3.495822947 | OG4: 0.01101339625 | OH4: 0.0001624353971 | OI4: 0.003981297987 | OJ4: 0.02490873418 | OK4: 10.69987092 | OL4: 0.06494280707 | OM4: 0.02540813339 | ON4: 0.007038699059 | OO4: 0.003364455715 | OP4: 0.02069281171 | OQ4: 0.05740786323 | OR4: 0.05511690269 | OS4: 0.04290459636 | OT4: 0.007723359144 | OU4: 0.05594729271 | OV4: 0.1069438487 | OW4: 0.137022797 | OX4: 0.006826391308 | OY4: 0.05135526223 | OZ4: 0.1594970695 | PA4: 0.3458519257 | PB4: 2.001136 | PC4: 0.001213085823 | PD4: 0.0005353269127 | PE4: -0.0003890643736 | PF4: 0.0008427185415 | PG4: 1.128830946 | PH4: 0.009098962087 | PI4: 0.002018980376 | PJ4: 0.0001156058165 | PK4: 0.01274727776 | PL4: 1.568520335 | PM4: 0.01873200772 | PN4: 0.0004253908505 | PO4: 0.001159550541 | PP4: 0.0147068648 | PQ4: 3.771284917 | PR4: 0.05129844922 | PS4: 0.02006993383 | PT4: 0.003093598392 | PU4: 0.001760773775 | PV4: 0.01580099292 | PW4: 0.04623216891 | PX4: 0.03836812032 | PY4: 0.03202134776 | PZ4: 0.006919784042 | QA4: 0.04950252848 | QB4: 0.08107687802 | QC4: 0.1114547131 | QD4: 0.004471255653 | QE4: 0.05350800003 | QF4: 0.1412388304 | QG4: 0.3646211213 | QH4: 0.1003251199 | QI4: 0.01236057141 | QJ4: 0.007891543191 | QK4: 0.006714653444 | QL4: 0.005049776321 | QM4: 0.02567461359 | QN4: 0.01075970579 | QO4: 0.02152768401 | QP4: 0.002673354239 | QQ4: 0.01706357029 | QR4: 0.04904581464 | QS4: 0.07961566743 | QT4: 0.004529432225 | QU4: 0.006523333458 | QV4: 0.03155361479 | QW4: 0.1449642174 | QX4: 0.03403258084 | QY4: 0.01387560644 | QZ4: 0.01168226803 | RA4: 0.008989730664 | RB4: 0.005950913109 | RC4: 0.005395603713 | RD4: 0.008245977516 | RE4: 0.01949375368 | RF4: 0.004567063402 | RG4: 0.008102633394 | RH4: 0.01095426194 | RI4: 0.0255720903 | RJ4: 0.005174804141 | RK4: 0.007256659225 | RL4: 0.01078520438 | RM4: 0.0143573979 | RN4: 3.361259952 | RO4: 0.527983253 | RP4: 0.2998029812 | RQ4: 0.1748819355 | RR4: 0.7490854621 | RS4: 3.292004942 | RT4: 1.793148761 | RU4: 0.8993503925 | RV4: 0.3871717424 | RW4: 1.976926473 | RX4: 4.398344867 | RY4: 2.46432953 | RZ4: 0.2872305293 | SA4: 1.213045478 | SB4: 3.189643537 | SC4: 8.437235698 | SD4: 1.020208691 | SE4: 0.06780332129 | SF4: 0.02104430155 | SG4: 0.01110415155 | SH4: 0.01865855816 | SI4: 0.238232419 | SJ4: 0.1411353401 | SK4: 0.1400012579 | SL4: 0.01451774088 | SM4: 0.1007292605 | SN4: 0.3449633122 | SO4: 0.6720260772 | SP4: 0.007787690223 | SQ4: 0.05506641445 | SR4: 0.04227571217 | SS4: 0.6074400199 | ST4: 10.59156257 | SU4: 0.04026695572 | SV4: 0.01058312457 | SW4: 0.00777787186 | SX4: 0.01007372981 | SY4: 2.429153559 | SZ4: 0.1510188361 | TA4: 0.07632660714 | TB4: 0.004068606124 | TC4: 0.09451871919 | TD4: 2.572439805 | TE4: 0.6076427747 | TF4: 0.001981490438 | TG4: 0.02913091007 | TH4: 0.04800971515 | TI4: 3.530498459 | TJ4: 4.277723764 | TK4: 0.02990571317 | TL4: 0.01953358032 | TM4: 0.01288426294 | TN4: 0.01336805121 | TO4: 1.207849976 | TP4: 0.0548696189 | TQ4: 0.05314791861 | TR4: 0.008159973609 | TS4: 0.05635434825 | TT4: 1.685509502 | TU4: 0.2652665598 | TV4: 0.005636413418 | TW4: 0.02597575742 | TX4: 0.02024805171 | TY4: 2.51382319 | TZ4: 5.974201706 | UA4: 0.02152551546 | UB4: 0.008221304867 | UC4: 0.007873981901 | UD4: 0.006212351392 | UE4: 1.935647584 | UF4: 0.04718963077 | UG4: 0.04531914507 | UH4: 0.002160624621 | UI4: 0.02398112985 | UJ4: 2.533048282 | UK4: 0.2032083972 | UL4: 0.002932962754 | UM4: 0.01737883645 | UN4: 0.01910328576 | UO4: 4.694401635 | UP4: 0.9219749956 | UQ4: 0.0001846705866 | UR4: 0.0009675916535 | US4: -1.739334247e-05 | UT4: 0.001050671615 | UU4: 0.2605620142 | UV4: 0.003837122995 | UW4: 0.004355647213 | UX4: 0.0005993799846 | UY4: 0.005762050474 | UZ4: 0.4455206271 | VA4: 0.02322988807 | VB4: -4.733813009e-05 | VC4: 0.002747045573 | VD4: 0.002993850096 | VE4: 1.035002509 | VF4: 0.06485587934 | VG4: 0.03741059899 | VH4: 0.03354709107 | VI4: 0.03273497993 | VJ4: 0.04510825337 | VK4: 0.04368342605 | VL4: 0.04290804636 | VM4: 0.04593390917 | VN4: 0.03808367472 | VO4: 0.04704516608 | VP4: 0.06109892273 | VQ4: 0.06278398502 | VR4: 0.04946603169 | VS4: 0.06714217486 | VT4: 0.08179386957 | VU4: 0.1127174395 | VV4: 0.533415795 | VW4: 0.001103563757 | VX4: -0.0002589041036 | VY4: -0.0009086576375 | VZ4: 0.001195417345 | WA4: 0.0984925171 | WB4: 0.01628575721 | WC4: 0.00383297797 | WD4: 0.001035538213 | WE4: 0.01204901476 | WF4: 0.2336689092 | WG4: 0.06655645104 | WH4: 0.0002181247008 | WI4: 0.003869856809 | WJ4: 0.006029538842 | WK4: 0.6924705641 | WL4: 3.980274745 | WM4: 0.002155066609 | WN4: 0.001171852305 | WO4: 7.614185269e-05 | WP4: 0.001670196436 | WQ4: 3.804036597 | WR4: 0.007086006132 | WS4: 0.001372763473 | WT4: 0.0001845061388 | WU4: 0.007320195408 | WV4: 5.887365678 | WW4: 0.005497805656 | WX4: 0.001477324086 | WY4: 0.001291241633 | WZ4: 0.009459724531 | XA4: 25.03867345 | XB4: 6.393598905 | XC4: 0.006541941121 | XD4: 0.00161710698 | XE4: 0.0001001824998 | XF4: 0.007405792574 | XG4: 5.926759569 | XH4: 0.02781803229 | XI4: 0.009191535287 | XJ4: 0.002542956799 | XK4: 0.03847148931 | XL4: 8.572309869 | XM4: 0.0501732856 | XN4: 0.001796656263 | XO4: 0.008714291024 | XP4: 0.06614055007 | XQ4: 22.37557227 | XR4: 0.1328163426 | XS4: 0.006152030429 | XT4: 0.002139089857 | XU4: 0.001967155505 | XV4: 0.009163912094 | XW4: 0.1361931048 | XX4: 0.05159177577 | XY4: 0.01313324257 | XZ4: 0.004027433658 | YA4: 0.06214354771 | YB4: 0.2517608263 | YC4: 0.1295512287 | YD4: 0.003075261091 | YE4: 0.0138310512 | YF4: 0.1803612113 | YG4: 1.085425162 | YH4: 0.02494965413 | YI4: 0.01142178629 | YJ4: 0.008250676655 | YK4: 0.004146814565 | YL4: 0.01463564686 | YM4: 0.02368944674 | YN4: 0.02202258874 | YO4: 0.02386235927 | YP4: 0.01084116121 | YQ4: 0.02275259605 | YR4: 0.03681073275 | YS4: 0.04998300187 | YT4: 0.01297684771 | YU4: 0.03095378621 | YV4: 0.06327599504 | YW4: 0.13019139 | YX4: 0.04873454647 | YY4: 0.03051571467 | YZ4: 0.02838211076 | ZA4: 0.02758930932 | ZB4: 0.03812950826 | ZC4: 0.03955658824 | ZD4: 0.04005292582 | ZE4: 0.03869650095 | ZF4: 0.03932266672 | ZG4: 0.04485184563 | ZH4: 0.04808808893 | ZI4: 0.05199576414 | ZJ4: 0.04768203136 | ZK4: 0.05642266154 | ZL4: 0.06877578988 | ZM4: 0.08303154077 | ZN4: 0.05754479979 | ZO4: 0.03352142794 | ZP4: 0.02936286008 | ZQ4: 0.02758702349 | ZR4: 0.04253877 | ZS4: 0.04227221416 | ZT4: 0.0428772819 | ZU4: 0.04400678677 | ZV4: 0.03832878277 | ZW4: 0.04419509095 | ZX4: 0.05595982376 | ZY4: 0.05713694166 | ZZ4: 0.05351497109 | AAA4: 0.06239232985 | AAB4: 0.07796797171 | AAC4: 0.1046720877 | AAD4: 0.02949482671 | AAE4: 0.01215872417 | AAF4: 0.006018253098 | AAG4: 0.006004145037 | AAH4: 0.01556268859 | AAI4: 0.03383089768 | AAJ4: 0.02731202858 | AAK4: 0.03012720474 | AAL4: 0.009262886405 | AAM4: 0.02686659471 | AAN4: 0.06403694634 | AAO4: 0.07431447574 | AAP4: 0.008013326107 | AAQ4: 0.04194560468 | AAR4: 0.1154950202 | AAS4: 0.2977072959 | AAT4: 0.06415871275 | AAU4: 0.008358778712 | AAV4: 0.005095874614 | AAW4: 0.001965657891 | AAX4: 0.01360871945 | AAY4: 0.07089740217 | AAZ4: 0.03861293321 | ABA4: 0.02244103478 | ABB4: 0.005849296758 | ABC4: 0.04320607213 | ABD4: 0.1384210008 | ABE4: 0.106751082 | ABF4: 0.004778694934 | ABG4: 0.03124522198 | ABH4: 0.1364981709 | ABI4: 0.5706334646 | ABJ4: 0.2325556352 | ABK4: 0.1302551815 | ABL4: 0.1106498758 | ABM4: 0.09911567306 | ABN4: 0.1564955904 | ABO4: 0.151357499 | ABP4: 0.1564556653 | ABQ4: 0.1553443407 | ABR4: 0.1414413833 | ABS4: 0.1521469355 | ABT4: 0.1759849381 | ABU4: 0.1709440429 | ABV4: 0.1723907073 | ABW4: 0.1988899978 | ABX4: 0.2313666862 | ABY4: 0.2929812628
A5: 232 | B5: 0.3059381937 | C5: 0.006194999644 | D5: 0.001958917095 | E5: 0.002418897144 | F5: 0.002315197937 | G5: 0.07472274989 | H5: 0.02215590994 | I5: 0.01373441557 | J5: 0.001247907805 | K5: 0.01830857456 | L5: 0.1171546113 | M5: 0.1159192979 | N5: 0.001030379914 | O5: 0.002999599899 | P5: 0.0243257754 | Q5: 0.4249820255 | R5: 0.1370574907 | S5: 0.01101976278 | T5: 0.002045731056 | U5: 0.0002709251963 | V5: 0.01369937903 | W5: 0.127288334 | X5: 0.05271823434 | Y5: 0.02017366895 | Z5: 0.004726643639 | AA5: 0.06566373789 | AB5: 0.2448858569 | AC5: 0.1308078805 | AD5: 0.005608405874 | AE5: 0.0329802909 | AF5: 0.1909690843 | AG5: 1.081278145 | AH5: 0.07443078662 | AI5: 0.008678802302 | AJ5: 0.005123859142 | AK5: 0.001969473645 | AL5: 0.01365984196 | AM5: 0.08027122192 | AN5: 0.04502529017 | AO5: 0.02311808887 | AP5: 0.006086986597 | AQ5: 0.05839947789 | AR5: 0.1531755985 | AS5: 0.1194075112 | AT5: 0.003530830846 | AU5: 0.03727491381 | AV5: 0.1617560833 | AW5: 0.6331098067 | AX5: 0.1616527995 | AY5: 0.00840417839 | AZ5: 0.001447468231 | BA5: 0.001949136097 | BB5: 0.01071719975 | BC5: 0.1676033081 | BD5: 0.05534115731 | BE5: 0.01717560284 | BF5: 0.004639656046 | BG5: 0.06697096896 | BH5: 0.3416802772 | BI5: 0.1238740319 | BJ5: 0.00231920029 | BK5: 0.02040364591 | BL5: 0.1763999886 | BM5: 1.461143306 | BN5: 0.03753155026 | BO5: 0.01153223858 | BP5: 0.006017115549 | BQ5: 0.005076624292 | BR5: 0.01211861653 | BS5: 0.04331170895 | BT5: 0.03567844797 | BU5: 0.02561070163 | BV5: 0.008675772024 | BW5: 0.03524673024 | BX5: 0.09839633708 | BY5: 0.07600874031 | BZ5: 0.006401690603 | CA5: 0.03054852084 | CB5: 0.09481946582 | CC5: 0.3462477199 | CD5: 0.03090329898 | CE5: 0.0122942033 | CF5: 0.01259700839 | CG5: 0.01066999481 | CH5: 0.01606870005 | CI5: 0.02697124869 | CJ5: 0.01971881413 | CK5: 0.01735134813 | CL5: 0.01119696062 | CM5: 0.02402275067 | CN5: 0.03832148601 | CO5: 0.04384226675 | CP5: 0.01946161296 | CQ5: 0.0275308565 | CR5: 0.05696690428 | CS5: 0.1600904153 | CT5: 0.06750156059 | CU5: 0.007677360706 | CV5: 0.003511489468 | CW5: 0.002383351831 | CX5: 0.01215936874 | CY5: 0.06981928688 | CZ5: 0.03234296549 | DA5: 0.01812368229 | DB5: 0.004607937531 | DC5: 0.03509577561 | DD5: 0.1420102576 | DE5: 0.07660003928 | DF5: 0.005580371919 | DG5: 0.02451590145 | DH5: 0.1032958803 | DI5: 0.6377942542 | DJ5: 0.05870297667 | DK5: 0.01869188157 | DL5: 0.008533013756 | DM5: 0.007263470616 | DN5: 0.01986307309 | DO5: 0.0430969445 | DP5: 0.04436426347 | DQ5: 0.03577865047 | DR5: 0.01411784438 | DS5: 0.03851941527 | DT5: 0.07828849586 | DU5: 0.08052048234 | DV5: 0.01124101643 | DW5: 0.0380918607 | DX5: 0.09016134497 | DY5: 0.2029321798 | DZ5: 0.07392767163 | EA5: 0.03468868512 | EB5: 0.02765192095 | EC5: 0.02686817105 | ED5: 0.01350485907 | EE5: 0.009569955047 | EF5: 0.01329636787 | EG5: 0.02406004761 | EH5: 0.01262596203 | EI5: 0.009316090508 | EJ5: 0.009772317452 | EK5: 0.02662405312 | EL5: 0.01304371142 | EM5: 0.01157358932 | EN5: 0.01130040237 | EO5: 0.00832774656 | EP5: 0.01895086458 | EQ5: 0.01082465872 | ER5: 0.007063262417 | ES5: 0.007678513974 | ET5: 0.0153259343 | EU5: 0.0199161117 | EV5: 0.02022117957 | EW5: 0.02633073975 | EX5: 0.01086164132 | EY5: 0.02150913343 | EZ5: 0.0371123759 | FA5: 0.0560057971 | FB5: 0.01014791059 | FC5: 0.02853127324 | FD5: 0.0585413029 | FE5: 0.1291574251 | FF5: 0.01710931292 | FG5: 0.00782583794 | FH5: 0.005678296374 | FI5: 0.007298183663 | FJ5: 0.01081996911 | FK5: 0.0132088713 | FL5: 0.0149045264 | FM5: 0.01657221818 | FN5: 0.01062264751 | FO5: 0.0174072153 | FP5: 0.02450597363 | FQ5: 0.03327913478 | FR5: 0.01104851661 | FS5: 0.02725318874 | FT5: 0.04644502866 | FU5: 0.09444639228 | FV5: 0.03651043839 | FW5: 0.01998503572 | FX5: 0.01638252858 | FY5: 0.01687099499 | FZ5: 0.0272684005 | GA5: 0.02342451718 | GB5: 0.0185111131 | GC5: 0.01330367084 | GD5: 0.02881226231 | GE5: 0.02047639261 | GF5: 0.02131532256 | GG5: 0.01936714298 | GH5: 0.02982199502 | GI5: 0.02436687252 | GJ5: 0.02737651001 | GK5: 0.02842505851 | GL5: 0.1594702989 | GM5: 0.01077803189 | GN5: 0.002418361306 | GO5: 0.002225690436 | GP5: 0.01157209594 | GQ5: 0.06024036363 | GR5: 0.03852451717 | GS5: 0.0218363409 | GT5: 0.005641887442 | GU5: 0.04224082799 | GV5: 0.1238635692 | GW5: 0.08620836596 | GX5: 0.003949709926 | GY5: 0.03178133898 | GZ5: 0.1231791588 | HA5: 0.5964933616 | HB5: 1.755665138 | HC5: 0.03613078828 | HD5: 0.01598771182 | HE5: 0.007096215467 | HF5: 0.05185633656 | HG5: 0.9464400073 | HH5: 0.1629647793 | HI5: 0.06158560476 | HJ5: 0.2310230714 | HK5: 0.2667624649 | HL5: 1.967884923 | HM5: 0.2903269424 | HN5: 0.01527522943 | HO5: 0.1148007437 | HP5: 0.7656968174 | HQ5: 6.345172762 | HR5: 0.5879311801 | HS5: 0.002936075059 | HT5: 0.0003219780391 | HU5: -0.0003091034955 | HV5: 0.003580905898 | HW5: 0.634109632 | HX5: 0.02166354693 | HY5: 0.003833227527 | HZ5: 0.001800610673 | IA5: 0.03009928744 | IB5: 1.290031387 | IC5: 0.05102391041 | ID5: -8.972388983e-05 | IE5: 0.007709586315 | IF5: 0.08357234271 | IG5: 5.308964971 | IH5: 0.5198177196 | II5: 0.003522488057 | IJ5: 0.001181809782 | IK5: 0.001402791469 | IL5: 0.006022122724 | IM5: 0.4736260232 | IN5: 0.026260353 | IO5: 0.007309023791 | IP5: 0.002102846518 | IQ5: 0.04595430188 | IR5: 0.8780941424 | IS5: 0.06419571688 | IT5: 0.0001286971807 | IU5: 0.01115341957 | IV5: 0.1382586083 | IW5: 3.925272154 | IX5: 0.132774173 | IY5: 0.01344918058 | IZ5: 0.005274688739 | JA5: 0.004809966349 | JB5: 0.01726856107 | JC5: 0.1388986206 | JD5: 0.07118215322 | JE5: 0.031781364 | JF5: 0.007523809307 | JG5: 0.08026772723 | JH5: 0.2562432423 | JI5: 0.1790320563 | JJ5: 0.006495208218 | JK5: 0.03916301238 | JL5: 0.2328475897 | JM5: 1.157659252 | JN5: 0.02625020278 | JO5: 0.01023253203 | JP5: 0.008804081976 | JQ5: 0.007720823338 | JR5: 0.01360808599 | JS5: 0.01841071648 | JT5: 0.01895018164 | JU5: 0.01877967802 | JV5: 0.01256891636 | JW5: 0.01499171607 | JX5: 0.02410137429 | JY5: 0.02810667702 | JZ5: 0.008291468609 | KA5: 0.02014511915 | KB5: 0.0293041674 | KC5: 0.03435999901 | KD5: 0.03169377477 | KE5: 0.01400414209 | KF5: 0.01143216855 | KG5: 0.01048219027 | KH5: 0.02140057809 | KI5: 0.02397623039 | KJ5: 0.02333039711 | KK5: 0.02890904241 | KL5: 0.01502965779 | KM5: 0.02284646035 | KN5: 0.03433036863 | KO5: 0.05678363734 | KP5: 0.01952564922 | KQ5: 0.03541705732 | KR5: 0.06471765389 | KS5: 0.1316927944 | KT5: 0.6344203606 | KU5: 0.2491630045 | KV5: 0.00202982375 | KW5: 0.002865506072 | KX5: 0.01437549208 | KY5: 0.585252639 | KZ5: 0.1517042713 | LA5: 0.02043717437 | LB5: 0.00324681461 | LC5: 0.2012442041 | LD5: 0.999081852 | LE5: 0.3098744787 | LF5: 0.00281273501 | LG5: 0.03010834803 | LH5: 0.5227438116 | LI5: 3.199356092 | LJ5: 0.455038329 | LK5: 0.01181831607 | LL5: 0.002663185691 | LM5: -0.0006326884149 | LN5: 0.02012760613 | LO5: 0.4569419762 | LP5: 0.1735905665 | LQ5: 0.02756392712 | LR5: 0.002585058935 | LS5: 0.2274734978 | LT5: 0.7661344066 | LU5: 0.4422105851 | LV5: 0.002270506531 | LW5: 0.0373100643 | LX5: 0.5686827745 | LY5: 2.456401386 | LZ5: 0.04075224693 | MA5: 0.006837239035 | MB5: 0.004746495342 | MC5: 0.004307973919 | MD5: 0.009284076801 | ME5: 0.05454111129 | MF5: 0.02298033884 | MG5: 0.01494811569 | MH5: 0.005977423395 | MI5: 0.02988436347 | MJ5: 0.09702011338 | MK5: 0.05906511716 | ML5: 0.004567173007 | MM5: 0.02027484874 | MN5: 0.07643808838 | MO5: 0.390049627 | MP5: 4.718565516 | MQ5: 0.0008800912705 | MR5: 0.0009726319304 | MS5: -0.0007522169072 | MT5: 0.0004880363414 | MU5: 5.125383136 | MV5: 0.0007823802316 | MW5: 0.001151322915 | MX5: 0.0001235375477 | MY5: 0.000935698552 | MZ5: 6.840175488 | NA5: 0.003144422738 | NB5: 0.0003461203035 | NC5: 0.0007640745539 | ND5: 0.003713580347 | NE5: 24.77508582 | NF5: 4.742194057 | NG5: 0.0001046810368 | NH5: 0.0013930485 | NI5: -6.863922533e-05 | NJ5: 7.050063895e-05 | NK5: 4.727493224 | NL5: -8.582792291e-05 | NM5: -0.0001506323898 | NN5: 1.770083769e-05 | NO5: 0.0002901010751 | NP5: 6.731447175 | NQ5: 1.841580421e-05 | NR5: 0.0002873175606 | NS5: -0.000345998348 | NT5: 0.0006250493315 | NU5: 22.0997539 | NV5: 2.231699541 | NW5: 0.8764803234 | NX5: 0.001661154226 | NY5: 0.0001163507503 | NZ5: 0.001808443776 | OA5: 2.554358725 | OB5: 0.005343925891 | OC5: 0.001523200846 | OD5: 0.0004662448312 | OE5: 0.01605237623 | OF5: 3.451684967 | OG5: 0.0119980481 | OH5: 0.0005316014777 | OI5: 0.003294452466 | OJ5: 0.02357706591 | OK5: 10.62737305 | OL5: 0.06702026795 | OM5: 0.02632161949 | ON5: 0.006156835792 | OO5: 0.003954654415 | OP5: 0.02139920543 | OQ5: 0.05356375808 | OR5: 0.05564815841 | OS5: 0.04129042178 | OT5: 0.006737129482 | OU5: 0.05197172268 | OV5: 0.1059125431 | OW5: 0.1332929307 | OX5: 0.005429323754 | OY5: 0.04989047415 | OZ5: 0.157550009 | PA5: 0.3422424112 | PB5: 1.958562143 | PC5: 0.001804791235 | PD5: 0.0005622942814 | PE5: -0.0006379997836 | PF5: 0.0004209785999 | PG5: 1.255830305 | PH5: 0.01125713773 | PI5: 0.0009520399083 | PJ5: -4.445791792e-05 | PK5: 0.008388705852 | PL5: 1.70825232 | PM5: 0.01468610554 | PN5: 0.0004426927056 | PO5: 0.0005559688714 | PP5: 0.01338302391 | PQ5: 4.162391743 | PR5: 0.04857191773 | PS5: 0.01907619255 | PT5: 0.002800973873 | PU5: 0.00154610763 | PV5: 0.01634158906 | PW5: 0.04780401555 | PX5: 0.03672629967 | PY5: 0.03365772062 | PZ5: 0.006381769458 | QA5: 0.04598039496 | QB5: 0.0802852768 | QC5: 0.1101259774 | QD5: 0.004696654833 | QE5: 0.05327195839 | QF5: 0.1398778439 | QG5: 0.3620789155 | QH5: 0.1025579551 | QI5: 0.01275087017 | QJ5: 0.007645639404 | QK5: 0.006442796069 | QL5: 0.004920538052 | QM5: 0.03046509654 | QN5: 0.01344757231 | QO5: 0.02227856195 | QP5: 0.002515959949 | QQ5: 0.01083451844 | QR5: 0.05398440826 | QS5: 0.07790176943 | QT5: 0.003710598578 | QU5: 0.007157118418 | QV5: 0.03412930088 | QW5: 0.1599306569 | QX5: 0.03382248703 | QY5: 0.01394417458 | QZ5: 0.01079058462 | RA5: 0.009502295719 | RB5: 0.006726896587 | RC5: 0.006919400513 | RD5: 0.0084991227 | RE5: 0.02035287964 | RF5: 0.005123435611 | RG5: 0.005330351722 | RH5: 0.009919388775 | RI5: 0.02402140168 | RJ5: 0.006667083783 | RK5: 0.005491639616 | RL5: 0.009625057281 | RM5: 0.01882416513 | RN5: 3.305065292 | RO5: 0.5238766916 | RP5: 0.2996214793 | RQ5: 0.1737100996 | RR5: 0.7485735408 | RS5: 3.240608956 | RT5: 1.774787394 | RU5: 0.8884654078 | RV5: 0.384233758 | RW5: 1.962783002 | RX5: 4.341496715 | RY5: 2.449304832 | RZ5: 0.2833870352 | SA5: 1.206095223 | SB5: 3.161813156 | SC5: 8.378305374 | SD5: 0.9891322911 | SE5: 0.06837576265 | SF5: 0.01947554427 | SG5: 0.011450766 | SH5: 0.01998503717 | SI5: 0.2640207723 | SJ5: 0.1507092958 | SK5: 0.1414589229 | SL5: 0.01368298586 | SM5: 0.08699566449 | SN5: 0.3635101974 | SO5: 0.6764175145 | SP5: 0.007883605045 | SQ5: 0.05219218036 | SR5: 0.04247957296 | SS5: 0.6869544366 | ST5: 10.56118096 | SU5: 0.0376508387 | SV5: 0.00925953326 | SW5: 0.008216278698 | SX5: 0.01378467137 | SY5: 2.72974718 | SZ5: 0.1658004309 | TA5: 0.07497100503 | TB5: 0.004856514779 | TC5: 0.09110144708 | TD5: 2.805824156 | TE5: 0.6017014152 | TF5: 0.00209825007 | TG5: 0.02809013283 | TH5: 0.04835507926 | TI5: 3.994917255 | TJ5: 4.241593705 | TK5: 0.02926912192 | TL5: 0.01865102632 | TM5: 0.01734438774 | TN5: 0.01152355034 | TO5: 1.34997203 | TP5: 0.05981025055 | TQ5: 0.05166533451 | TR5: 0.006713867794 | TS5: 0.04400341536 | TT5: 1.827723906 | TU5: 0.2654539841 | TV5: 0.006334150103 | TW5: 0.02330583086 | TX5: 0.02003545626 | TY5: 2.799511042 | TZ5: 5.966638496 | UA5: 0.02200912246 | UB5: 0.009186630141 | UC5: 0.006852301077 | UD5: 0.008025956557 | UE5: 2.201714164 | UF5: 0.05788884661 | UG5: 0.04861866279 | UH5: 0.002953866107 | UI5: 0.01811918143 | UJ5: 2.745277357 | UK5: 0.1964734583 | UL5: 0.002301557182 | UM5: 0.01523979605 | UN5: 0.01780009427 | UO5: 5.256541249 | UP5: 0.937880419 | UQ5: -0.0001936363294 | UR5: 0.001295576 | US5: -8.652537267e-05 | UT5: 0.0001685594594 | UU5: 0.2876962948 | UV5: 0.004134241029 | UW5: 0.004415819785 | UX5: 0.0004559030933 | UY5: 0.005609336553 | UZ5: 0.4603445484 | VA5: 0.0234922398 | VB5: -1.328565664e-05 | VC5: 0.002943598494 | VD5: 0.003316922975 | VE5: 1.140667829 | VF5: 0.06386230215 | VG5: 0.03783333596 | VH5: 0.0343356943 | VI5: 0.03173624468 | VJ5: 0.04123668557 | VK5: 0.04378401579 | VL5: 0.03956390382 | VM5: 0.04550052281 | VN5: 0.03746363881 | VO5: 0.04653030111 | VP5: 0.05792842196 | VQ5: 0.05899266722 | VR5: 0.04922015831 | VS5: 0.06394305271 | VT5: 0.08021945476 | VU5: 0.1081796476 | VV5: 0.5231644649 | VW5: 0.00077318242 | VX5: 0.0001482535146 | VY5: -0.0005534718487 | VZ5: 0.001663512044 | WA5: 0.1145058649 | WB5: 0.01570822147 | WC5: 0.003214001041 | WD5: 0.0009402604095 | WE5: 0.008159610251 | WF5: 0.2511611522 | WG5: 0.06959102753 | WH5: 0.0004568315695 | WI5: 0.004599541979 | WJ5: 0.005454429969 | WK5: 0.7782604843 | WL5: 3.977538738 | WM5: 0.002190045757 | WN5: 0.002289943622 | WO5: 0.0002938957307 | WP5: 0.001165499551 | WQ5: 3.721967247 | WR5: 0.007204231003 | WS5: 0.00149543264 | WT5: 0.000556157287 | WU5: 0.007561941338 | WV5: 5.78981296 | WW5: 0.006534620633 | WX5: 0.001023780207 | WY5: 0.001614142901 | WZ5: 0.009783490447 | XA5: 24.7974561 | XB5: 6.361553026 | XC5: 0.006652487751 | XD5: 0.0009900848854 | XE5: -8.539046484e-05 | XF5: 0.008263719006 | XG5: 5.820795913 | XH5: 0.02994646658 | XI5: 0.008072086883 | XJ5: 0.002238495165 | XK5: 0.03772557338 | XL5: 8.441024546 | XM5: 0.05324164988 | XN5: 0.002265288254 | XO5: 0.008797017234 | XP5: 0.06409051452 | XQ5: 22.23541346 | XR5: 0.132286674 | XS5: 0.006575772329 | XT5: 0.001861251389 | XU5: 0.001661414265 | XV5: 0.009055180376 | XW5: 0.1304645878 | XX5: 0.05014972953 | XY5: 0.01138410924 | XZ5: 0.004459939462 | YA5: 0.05901115185 | YB5: 0.2451042532 | YC5: 0.1277435631 | YD5: 0.003220735697 | YE5: 0.01340757233 | YF5: 0.1803191485 | YG5: 1.063397591 | YH5: 0.02561922358 | YI5: 0.01080432009 | YJ5: 0.008983377278 | YK5: 0.004616351074 | YL5: 0.01484374864 | YM5: 0.02375105511 | YN5: 0.02190795125 | YO5: 0.02544679271 | YP5: 0.01077190219 | YQ5: 0.02235196761 | YR5: 0.0342241096 | YS5: 0.05121482814 | YT5: 0.01350449669 | YU5: 0.03045446953 | YV5: 0.0633385549 | YW5: 0.1273738643 | YX5: 0.04840501356 | YY5: 0.03135262576 | YZ5: 0.02760548707 | ZA5: 0.02873618393 | ZB5: 0.03971980796 | ZC5: 0.03966756431 | ZD5: 0.04082875982 | ZE5: 0.04153052449 | ZF5: 0.03785249393 | ZG5: 0.04378612407 | ZH5: 0.04766615274 | ZI5: 0.05215459746 | ZJ5: 0.04726010497 | ZK5: 0.05580092887 | ZL5: 0.06734094773 | ZM5: 0.08294744316 | ZN5: 0.05670284047 | ZO5: 0.03365539889 | ZP5: 0.02758977297 | ZQ5: 0.02956439427 | ZR5: 0.04258153083 | ZS5: 0.0414416836 | ZT5: 0.0463124226 | ZU5: 0.04501518678 | ZV5: 0.03885500698 | ZW5: 0.04560008136 | ZX5: 0.05500387807 | ZY5: 0.05619177506 | ZZ5: 0.05644757076 | AAA5: 0.06006594304 | AAB5: 0.07985904247 | AAC5: 0.1071831319 | AAD5: 0.03398285118 | AAE5: 0.0131259117 | AAF5: 0.006423234864 | AAG5: 0.006415543149 | AAH5: 0.01333515198 | AAI5: 0.03414357245 | AAJ5: 0.02518745623 | AAK5: 0.02896165348 | AAL5: 0.008291900001 | AAM5: 0.02637775797 | AAN5: 0.06351722415 | AAO5: 0.06965416124 | AAP5: 0.008201440002 | AAQ5: 0.04386466319 | AAR5: 0.1150654187 | AAS5: 0.2982039135 | AAT5: 0.06017165778 | AAU5: 0.007981260711 | AAV5: 0.006429803872 | AAW5: 0.002296236307 | AAX5: 0.0130563898 | AAY5: 0.07051304786 | AAZ5: 0.03748694446 | ABA5: 0.01978117864 | ABB5: 0.006028294345 | ABC5: 0.04262934728 | ABD5: 0.1347976866 | ABE5: 0.09936682639 | ABF5: 0.004099531605 | ABG5: 0.0317972605 | ABH5: 0.1389486275 | ABI5: 0.5498172625 | ABJ5: 0.2298146991 | ABK5: 0.1292167763 | ABL5: 0.1096454177 | ABM5: 0.09625371176 | ABN5: 0.1539753141 | ABO5: 0.1518581137 | ABP5: 0.1555877437 | ABQ5: 0.1590539932 | ABR5: 0.142559801 | ABS5: 0.1509144027 | ABT5: 0.1694448715 | ABU5: 0.1686132981 | ABV5: 0.1678016138 | ABW5: 0.2015014724 | ABX5: 0.229597603 | ABY5: 0.2922289425
A6: 233 | B6: 0.3141124481 | C6: 0.004593912227 | D6: 0.001746820942 | E6: 0.001784168197 | F6: 0.003293786402 | G6: 0.07624352515 | H6: 0.02148967743 | I6: 0.01463072424 | J6: 0.0008073253315 | K6: 0.01879416509 | L6: 0.1206103933 | M6: 0.1172713878 | N6: 0.001008662662 | O6: 0.00419145468 | P6: 0.02815786746 | Q6: 0.4874795904 | R6: 0.1361201024 | S6: 0.01028078255 | T6: 0.002154896794 | U6: 0.0009361990178 | V6: 0.01337320129 | W6: 0.1313159845 | X6: 0.05426559857 | Y6: 0.01899279696 | Z6: 0.004462420528 | AA6: 0.06621096939 | AB6: 0.2403781227 | AC6: 0.1325581939 | AD6: 0.004520672186 | AE6: 0.03120983599 | AF6: 0.1952831721 | AG6: 1.067634171 | AH6: 0.0768418514 | AI6: 0.009774886997 | AJ6: 0.004049803659 | AK6: 0.002284348582 | AL6: 0.0141947454 | AM6: 0.07665605069 | AN6: 0.05044493736 | AO6: 0.0232946491 | AP6: 0.006204263316 | AQ6: 0.05890713339 | AR6: 0.1564626067 | AS6: 0.1218145432 | AT6: 0.004471730691 | AU6: 0.03469504904 | AV6: 0.1609888894 | AW6: 0.6413141248 | AX6: 0.1645951121 | AY6: 0.00824142899 | AZ6: 0.002459696098 | BA6: 0.001439073444 | BB6: 0.01014380903 | BC6: 0.1671979273 | BD6: 0.05422092746 | BE6: 0.01635923981 | BF6: 0.003914702821 | BG6: 0.06500617294 | BH6: 0.3427791178 | BI6: 0.1227959731 | BJ6: 0.00234150301 | BK6: 0.02118802487 | BL6: 0.1719408065 | BM6: 1.451934007 | BN6: 0.04329536304 | BO6: 0.0100961468 | BP6: 0.006295260637 | BQ6: 0.004636979215 | BR6: 0.01341065699 | BS6: 0.04363443373 | BT6: 0.03282375699 | BU6: 0.02574334996 | BV6: 0.008759435617 | BW6: 0.03714531247 | BX6: 0.09284553824 | BY6: 0.07745371073 | BZ6: 0.00701775666 | CA6: 0.03115349074 | CB6: 0.09763352479 | CC6: 0.3587672972 | CD6: 0.03505283273 | CE6: 0.01171810279 | CF6: 0.01087878626 | CG6: 0.009931443071 | CH6: 0.01473059626 | CI6: 0.02640380992 | CJ6: 0.02079667264 | CK6: 0.01726678237 | CL6: 0.0127358965 | CM6: 0.02467778473 | CN6: 0.04127511323 | CO6: 0.04245587638 | CP6: 0.01672869348 | CQ6: 0.02647526585 | CR6: 0.05912683683 | CS6: 0.1547556517 | CT6: 0.07631262264 | CU6: 0.007480744337 | CV6: 0.004059372548 | CW6: 0.003317077462 | CX6: 0.01082791711 | CY6: 0.07276789274 | CZ6: 0.03394437807 | DA6: 0.01967515238 | DB6: 0.005056226907 | DC6: 0.03425486961 | DD6: 0.1445532109 | DE6: 0.08141640757 | DF6: 0.004615099861 | DG6: 0.0238548459 | DH6: 0.1013500524 | DI6: 0.6245899245 | DJ6: 0.06108368818 | DK6: 0.01785406968 | DL6: 0.00886797547 | DM6: 0.006889666214 | DN6: 0.02110561747 | DO6: 0.04516766023 | DP6: 0.04304951029 | DQ6: 0.03324660105 | DR6: 0.01553712152 | DS6: 0.03838538354 | DT6: 0.07513356357 | DU6: 0.08061512317 | DV6: 0.01134188037 | DW6: 0.03914357817 | DX6: 0.08952043342 | DY6: 0.2022942052 | DZ6: 0.07592663202 | EA6: 0.03492827139 | EB6: 0.02806741833 | EC6: 0.02747953401 | ED6: 0.01535306659 | EE6: 0.00936642616 | EF6: 0.01026917076 | EG6: 0.02898901832 | EH6: 0.01386973032 | EI6: 0.0108196062 | EJ6: 0.01062442295 | EK6: 0.02262838165 | EL6: 0.01367966264 | EM6: 0.01203420806 | EN6: 0.01260574306 | EO6: 0.009394438112 | EP6: 0.02159189099 | EQ6: 0.009599000401 | ER6: 0.006612129949 | ES6: 0.007366280344 | ET6: 0.01415713216 | EU6: 0.02029101301 | EV6: 0.02231583858 | EW6: 0.02811136943 | EX6: 0.01031245894 | EY6: 0.02094498381 | EZ6: 0.03868578739 | FA6: 0.05738909916 | FB6: 0.01099442784 | FC6: 0.03036712414 | FD6: 0.05850564784 | FE6: 0.1271687361 | FF6: 0.02058300255 | FG6: 0.008588169989 | FH6: 0.005184243849 | FI6: 0.007216107374 | FJ6: 0.01092914793 | FK6: 0.01261577719 | FL6: 0.01617308717 | FM6: 0.01845181613 | FN6: 0.01110458311 | FO6: 0.01778026039 | FP6: 0.02530942038 | FQ6: 0.03427799033 | FR6: 0.01110700251 | FS6: 0.02629620976 | FT6: 0.04773850257 | FU6: 0.08959827967 | FV6: 0.03950817553 | FW6: 0.02046836659 | FX6: 0.0177202323 | FY6: 0.01658520903 | FZ6: 0.02856492408 | GA6: 0.02198646535 | GB6: 0.01803397042 | GC6: 0.01669074836 | GD6: 0.0273585658 | GE6: 0.02054560339 | GF6: 0.02059702404 | GG6: 0.02035333406 | GH6: 0.02919214756 | GI6: 0.02547787865 | GJ6: 0.02754493654 | GK6: 0.02974893784 | GL6: 0.1612701842 | GM6: 0.009906844832 | GN6: 0.002865453497 | GO6: 0.00219596027 | GP6: 0.01255821488 | GQ6: 0.0595685158 | GR6: 0.03666760317 | GS6: 0.02289911927 | GT6: 0.006617914365 | GU6: 0.04190691175 | GV6: 0.1255004511 | GW6: 0.09275004555 | GX6: 0.004146548683 | GY6: 0.03030983472 | GZ6: 0.1258585768 | HA6: 0.5707694645 | HB6: 1.735469577 | HC6: 0.03577481212 | HD6: 0.0153273498 | HE6: 0.007819334824 | HF6: 0.05265673011 | HG6: 0.9408095848 | HH6: 0.1694984295 | HI6: 0.06281750214 | HJ6: 0.2317377906 | HK6: 0.2675877516 | HL6: 1.947864759 | HM6: 0.2871203058 | HN6: 0.01604063752 | HO6: 0.1140276531 | HP6: 0.7562276722 | HQ6: 6.257510458 | HR6: 0.5783277313 | HS6: 0.002531776556 | HT6: 0.0003923525246 | HU6: -0.0001999334903 | HV6: 0.00295653871 | HW6: 0.6434653037 | HX6: 0.02239657522 | HY6: 0.004068945434 | HZ6: 0.001390082514 | IA6: 0.03243302414 | IB6: 1.302583778 | IC6: 0.05287229551 | ID6: 0.0002190695683 | IE6: 0.006413049674 | IF6: 0.08527648181 | IG6: 5.304690857 | IH6: 0.5303628516 | II6: 0.004126044045 | IJ6: 0.001201408357 | IK6: 0.0008548033266 | IL6: 0.004998898393 | IM6: 0.4795199325 | IN6: 0.02621261336 | IO6: 0.006663707768 | IP6: 0.00245935488 | IQ6: 0.04472159854 | IR6: 0.8989354751 | IS6: 0.06612317747 | IT6: 0.0004813305661 | IU6: 0.01131207183 | IV6: 0.1392851727 | IW6: 3.897771522 | IX6: 0.1329632784 | IY6: 0.01364816626 | IZ6: 0.005588315101 | JA6: 0.003666866977 | JB6: 0.01892828335 | JC6: 0.140385771 | JD6: 0.0685598115 | JE6: 0.03357310763 | JF6: 0.007539299158 | JG6: 0.07979698436 | JH6: 0.2553736908 | JI6: 0.1757212457 | JJ6: 0.005967156458 | JK6: 0.03751645404 | JL6: 0.2315707889 | JM6: 1.147190127 | JN6: 0.02574669412 | JO6: 0.01096530953 | JP6: 0.009225968051 | JQ6: 0.00713726706 | JR6: 0.01370857947 | JS6: 0.01733039241 | JT6: 0.01782814632 | JU6: 0.01767735749 | JV6: 0.01146161391 | JW6: 0.01603898716 | JX6: 0.02181873905 | JY6: 0.02789809334 | JZ6: 0.007711259353 | KA6: 0.01844888395 | KB6: 0.02860923513 | KC6: 0.03805472228 | KD6: 0.03108094036 | KE6: 0.01378824422 | KF6: 0.01261554652 | KG6: 0.01199854499 | KH6: 0.0203028209 | KI6: 0.02368584022 | KJ6: 0.02440045337 | KK6: 0.02969325243 | KL6: 0.01507686359 | KM6: 0.02262201598 | KN6: 0.03680569786 | KO6: 0.05896128975 | KP6: 0.02004524136 | KQ6: 0.03683003175 | KR6: 0.06548994875 | KS6: 0.1292165123 | KT6: 0.6118378821 | KU6: 0.2418173922 | KV6: 0.002267826538 | KW6: 0.002097667396 | KX6: 0.01479051159 | KY6: 0.5897393132 | KZ6: 0.155685043 | LA6: 0.02243332554 | LB6: 0.003971806516 | LC6: 0.2014870672 | LD6: 0.9989044478 | LE6: 0.3158985065 | LF6: 0.002756180298 | LG6: 0.02859785261 | LH6: 0.5208157248 | LI6: 3.174994982 | LJ6: 0.4658273611 | LK6: 0.01216169064 | LL6: 0.002082532954 | LM6: 0.0001812732954 | LN6: 0.01998463453 | LO6: 0.4611683659 | LP6: 0.1779742431 | LQ6: 0.02592353905 | LR6: 0.002970425362 | LS6: 0.2302710931 | LT6: 0.7689034568 | LU6: 0.4342648841 | LV6: 0.002089990414 | LW6: 0.0353787759 | LX6: 0.5646639327 | LY6: 2.473196194 | LZ6: 0.03888021373 | MA6: 0.006181146082 | MB6: 0.004863187271 | MC6: 0.00356998055 | MD6: 0.008922373134 | ME6: 0.05202008858 | MF6: 0.02372857644 | MG6: 0.01570715222 | MH6: 0.005562851567 | MI6: 0.02851981408 | MJ6: 0.09442841999 | MK6: 0.05942869828 | ML6: 0.004837967637 | MM6: 0.0207262831 | MN6: 0.07868544056 | MO6: 0.3789161654 | MP6: 4.754004147 | MQ6: 0.0004404084167 | MR6: 0.0004469696597 | MS6: -0.0001518369368 | MT6: 0.0004101123465 | MU6: 5.179007053 | MV6: 0.001013315729 | MW6: 0.001184305126 | MX6: 0.0001533666455 | MY6: 0.001255256587 | MZ6: 6.883356633 | NA6: 0.00315300741 | NB6: 0.0004405525813 | NC6: 0.001011641024 | ND6: 0.004026743018 | NE6: 24.46548931 | NF6: 4.791366731 | NG6: 0.0001525440808 | NH6: 0.0005272302914 | NI6: 1.240051174e-05 | NJ6: 0.0001175758452 | NK6: 4.745260419 | NL6: 0.0001313258298 | NM6: 0.0002305238831 | NN6: 0.0001718988039 | NO6: 0.0004010770225 | NP6: 6.791148231 | NQ6: 0.001016661891 | NR6: 0.0001473190423 | NS6: -0.0002153607105 | NT6: 0.001234395368 | NU6: 21.95106539 | NV6: 2.231327065 | NW6: 0.8818899707 | NX6: 0.001312370929 | NY6: 5.30092163e-05 | NZ6: 0.001488352067 | OA6: 2.563670376 | OB6: 0.005867233141 | OC6: 0.001661875149 | OD6: 0.0002973202816 | OE6: 0.01525875761 | OF6: 3.439496742 | OG6: 0.01294657539 | OH6: 0.0003404737529 | OI6: 0.003993066558 | OJ6: 0.02435543528 | OK6: 10.62693689 | OL6: 0.06262545144 | OM6: 0.02475152944 | ON6: 0.006163923781 | OO6: 0.00353945469 | OP6: 0.02064156655 | OQ6: 0.05633903446 | OR6: 0.05425356745 | OS6: 0.04124150252 | OT6: 0.007318477352 | OU6: 0.05287684789 | OV6: 0.1094362887 | OW6: 0.1396811781 | OX6: 0.005494404831 | OY6: 0.05110842249 | OZ6: 0.1565258415 | PA6: 0.3359020683 | PB6: 1.951389481 | PC6: 0.001877579978 | PD6: 0.0005736274564 | PE6: 0.001654893852 | PF6: 0.0009998130953 | PG6: 1.295195816 | PH6: 0.0106448819 | PI6: 0.001535211078 | PJ6: 0.0005203271961 | PK6: 0.009633225617 | PL6: 1.899472298 | PM6: 0.01659366626 | PN6: 0.0001845326399 | PO6: 0.0006908163185 | PP6: 0.01709954161 | PQ6: 5.097963408 | PR6: 0.04804817818 | PS6: 0.0189901369 | PT6: 0.003210607936 | PU6: 0.0009150032549 | PV6: 0.01492756361 | PW6: 0.04671791467 | PX6: 0.03981342145 | PY6: 0.03042440661 | PZ6: 0.006978130232 | QA6: 0.0449937433 | QB6: 0.08291351843 | QC6: 0.1094712123 | QD6: 0.004864406727 | QE6: 0.05163392578 | QF6: 0.1397757765 | QG6: 0.3624347936 | QH6: 0.09639413736 | QI6: 0.01222434144 | QJ6: 0.007279043528 | QK6: 0.006083646157 | QL6: 0.006667552373 | QM6: 0.0319246685 | QN6: 0.01393908485 | QO6: 0.02171775494 | QP6: 0.003493458407 | QQ6: 0.01427894409 | QR6: 0.05812417805 | QS6: 0.07711908282 | QT6: 0.003354221201 | QU6: 0.009536721483 | QV6: 0.04014956133 | QW6: 0.194464223 | QX6: 0.03233283207 | QY6: 0.01405871318 | QZ6: 0.01197447784 | RA6: 0.01044443996 | RB6: 0.007099418809 | RC6: 0.007475388339 | RD6: 0.008326409238 | RE6: 0.02080448178 | RF6: 0.005705778851 | RG6: 0.007400810591 | RH6: 0.01261301125 | RI6: 0.02557119362 | RJ6: 0.007043547187 | RK6: 0.007314299382 | RL6: 0.0121017244 | RM6: 0.02107872243 | RN6: 3.344811295 | RO6: 0.538758224 | RP6: 0.3003357955 | RQ6: 0.1794914636 | RR6: 0.7435213778 | RS6: 3.288994732 | RT6: 1.798052368 | RU6: 0.8988103104 | RV6: 0.3922626894 | RW6: 1.98893332 | RX6: 4.370191045 | RY6: 2.47731097 | RZ6: 0.2890562196 | SA6: 1.203044687 | SB6: 3.173418007 | SC6: 8.360696731 | SD6: 1.029410061 | SE6: 0.06768147203 | SF6: 0.02069801602 | SG6: 0.01170679621 | SH6: 0.02371277103 | SI6: 0.274872788 | SJ6: 0.147660214 | SK6: 0.1470358104 | SL6: 0.01452291622 | SM6: 0.1144151264 | SN6: 0.4221711535 | SO6: 0.6922224904 | SP6: 0.009245043922 | SQ6: 0.05714583321 | SR6: 0.04908524711 | SS6: 0.8326741461 | ST6: 10.86606198 | SU6: 0.04076602745 | SV6: 0.01073525293 | SW6: 0.006059214904 | SX6: 0.01438059624 | SY6: 2.865600721 | SZ6: 0.1714893516 | TA6: 0.07795118041 | TB6: 0.004966277113 | TC6: 0.1156799879 | TD6: 3.223046008 | TE6: 0.6180084055 | TF6: 0.002736750095 | TG6: 0.03342322578 | TH6: 0.05699517992 | TI6: 4.929381493 | TJ6: 4.251144459 | TK6: 0.03085155427 | TL6: 0.01633823752 | TM6: 0.01244769707 | TN6: 0.01424710957 | TO6: 1.413960073 | TP6: 0.05676722575 | TQ6: 0.05883364928 | TR6: 0.007309113421 | TS6: 0.05981457598 | TT6: 2.049426575 | TU6: 0.2696433051 | TV6: 0.006195676254 | TW6: 0.02683394579 | TX6: 0.02484874374 | TY6: 3.397844021 | TZ6: 6.066739147 | UA6: 0.02412790343 | UB6: 0.009161121619 | UC6: 0.00589396719 | UD6: 0.00960525575 | UE6: 2.263655148 | UF6: 0.05575956772 | UG6: 0.04459985307 | UH6: 0.002926917918 | UI6: 0.0239184277 | UJ6: 3.114880085 | UK6: 0.2056530489 | UL6: 0.002334963096 | UM6: 0.01685731983 | UN6: 0.02078207969 | UO6: 6.457886768 | UP6: 0.9357321253 | UQ6: 0.0006001348099 | UR6: 0.001335822433 | US6: 0.0001691303022 | UT6: 0.0005723554941 | UU6: 0.2984001825 | UV6: 0.004799253375 | UW6: 0.00438137166 | UX6: 0.0003429960677 | UY6: 0.005758528737 | UZ6: 0.5041315268 | VA6: 0.02380378499 | VB6: 0.0001915575992 | VC6: 0.002939538832 | VD6: 0.003340121825 | VE6: 1.395391643 | VF6: 0.06636796022 | VG6: 0.03666422943 | VH6: 0.03357940714 | VI6: 0.03281304165 | VJ6: 0.04238367491 | VK6: 0.04388063195 | VL6: 0.04195136864 | VM6: 0.04840316236 | VN6: 0.03739603784 | VO6: 0.04720190122 | VP6: 0.05832241659 | VQ6: 0.06188444152 | VR6: 0.05126124085 | VS6: 0.06704071292 | VT6: 0.08033755834 | VU6: 0.1080071225 | VV6: 0.5325476278 | VW6: 0.002068917695 | VX6: 0.000109712012 | VY6: 7.361070545e-05 | VZ6: 0.001858942587 | WA6: 0.1185825843 | WB6: 0.01445030999 | WC6: 0.003127767581 | WD6: 0.0007737855891 | WE6: 0.01057911632 | WF6: 0.2820756227 | WG6: 0.06849398561 | WH6: 0.0002937785803 | WI6: 0.004962960449 | WJ6: 0.007327911161 | WK6: 0.934644381 | WL6: 3.943097855 | WM6: 0.001836384613 | WN6: 0.001673543772 | WO6: 0.0009849690815 | WP6: 0.00118784983 | WQ6: 3.745708458 | WR6: 0.006699093362 | WS6: 0.002729539838 | WT6: 0.0004478052001 | WU6: 0.007342034406 | WV6: 5.826983994 | WW6: 0.006814942965 | WX6: 0.0005892069312 | WY6: 0.002017388638 | WZ6: 0.009143336436 | XA6: 24.42290335 | XB6: 6.394408931 | XC6: 0.005355145846 | XD6: 0.001738052973 | XE6: 0.0003162130493 | XF6: 0.008327522658 | XG6: 5.843513012 | XH6: 0.02780367362 | XI6: 0.008263944463 | XJ6: 0.002613366122 | XK6: 0.04075710727 | XL6: 8.463047492 | XM6: 0.04959313672 | XN6: 0.001994227431 | XO6: 0.009424262052 | XP6: 0.06316546052 | XQ6: 21.84897525 | XR6: 0.1349991067 | XS6: 0.006053031013 | XT6: 0.001861113655 | XU6: 0.002185362389 | XV6: 0.008242538392 | XW6: 0.1355680366 | XX6: 0.05057310223 | XY6: 0.01293919173 | XZ6: 0.003425662384 | YA6: 0.05882197293 | YB6: 0.2461872048 | YC6: 0.1339026779 | YD6: 0.002897182182 | YE6: 0.01353396329 | YF6: 0.1768796396 | YG6: 1.05485732 | YH6: 0.02731406663 | YI6: 0.01170849587 | YJ6: 0.008354243728 | YK6: 0.006182031474 | YL6: 0.01478551947 | YM6: 0.02408739323 | YN6: 0.02185747231 | YO6: 0.02445871003 | YP6: 0.01175536995 | YQ6: 0.02382899052 | YR6: 0.03695971763 | YS6: 0.04832479769 | YT6: 0.01378203568 | YU6: 0.03055926147 | YV6: 0.06451347755 | YW6: 0.133493606 | YX6: 0.0521007469 | YY6: 0.03160939116 | YZ6: 0.02971409615 | ZA6: 0.02897706418 | ZB6: 0.03960779792 | ZC6: 0.03894139809 | ZD6: 0.04014275951 | ZE6: 0.04194591388 | ZF6: 0.03801926817 | ZG6: 0.04458084614 | ZH6: 0.04859360613 | ZI6: 0.05273414325 | ZJ6: 0.04578839817 | ZK6: 0.05614925348 | ZL6: 0.06415079092 | ZM6: 0.08461273582 | ZN6: 0.0640251051 | ZO6: 0.03400648792 | ZP6: 0.03154179597 | ZQ6: 0.03108946956 | ZR6: 0.04357107469 | ZS6: 0.04134159767 | ZT6: 0.04380368807 | ZU6: 0.04649802209 | ZV6: 0.04135713267 | ZW6: 0.04623438856 | ZX6: 0.05502125371 | ZY6: 0.05987523324 | ZZ6: 0.05181311751 | AAA6: 0.05982842325 | AAB6: 0.0803321357 | AAC6: 0.1052557836 | AAD6: 0.03427202571 | AAE6: 0.01293401795 | AAF6: 0.006703786129 | AAG6: 0.005501905004 | AAH6: 0.01507050378 | AAI6: 0.03499086827 | AAJ6: 0.02704597747 | AAK6: 0.0289958911 | AAL6: 0.008446749285 | AAM6: 0.02876517575 | AAN6: 0.06441411366 | AAO6: 0.07201678304 | AAP6: 0.007910282823 | AAQ6: 0.04104218999 | AAR6: 0.115480881 | AAS6: 0.2894440657 | AAT6: 0.06095439767 | AAU6: 0.008748685521 | AAV6: 0.00602592664 | AAW6: 0.001830640402 | AAX6: 0.0125547391 | AAY6: 0.0704117744 | AAZ6: 0.03779123204 | ABA6: 0.02126304169 | ABB6: 0.006192006497 | ABC6: 0.04295946255 | ABD6: 0.1365493401 | ABE6: 0.09767484591 | ABF6: 0.004496643244 | ABG6: 0.0310921772 | ABH6: 0.134503967 | ABI6: 0.5555606248 | ABJ6: 0.2240028048 | ABK6: 0.1319469631 | ABL6: 0.1089025934 | ABM6: 0.09858004859 | ABN6: 0.1561526749 | ABO6: 0.1585394257 | ABP6: 0.1585952772 | ABQ6: 0.15411052 | ABR6: 0.1432977213 | ABS6: 0.1601407108 | ABT6: 0.1714983946 | ABU6: 0.1794026663 | ABV6: 0.1774591365 | ABW6: 0.1956143988 | ABX6: 0.2327894076 | ABY6: 0.292966941
A7: 234 | B7: 0.316049305 | C7: 0.003322925038 | D7: 0.001567779281 | E7: 0.00128065011 | F7: 0.004237235365 | G7: 0.07475629343 | H7: 0.02059315083 | I7: 0.01508697283 | J7: 0.0002898427151 | K7: 0.01708411331 | L7: 0.1151295517 | M7: 0.1164017697 | N7: 0.0009345236409 | O7: 0.005378947978 | P7: 0.03085729459 | Q7: 0.5161864576 | R7: 0.1335761783 | S7: 0.009617636205 | T7: 0.00221841114 | U7: 0.001437632802 | V7: 0.01291310317 | W7: 0.1323349125 | X7: 0.05459704109 | Y7: 0.01778983116 | Z7: 0.004187764139 | AA7: 0.06555457725 | AB7: 0.2330252841 | AC7: 0.1317450801 | AD7: 0.003662456221 | AE7: 0.02963060391 | AF7: 0.197056897 | AG7: 1.049140333 | AH7: 0.07762636276 | AI7: 0.01052383549 | AJ7: 0.003188110926 | AK7: 0.002504411836 | AL7: 0.01438110318 | AM7: 0.07268211479 | AN7: 0.0538016867 | AO7: 0.0230634859 | AP7: 0.006193261287 | AQ7: 0.05833905823 | AR7: 0.1564372657 | AS7: 0.1216784359 | AT7: 0.005150011796 | AU7: 0.03247626986 | AV7: 0.1591771524 | AW7: 0.6426235891 | AX7: 0.1645972427 | AY7: 0.00803933023 | AZ7: 0.003212930064 | BA7: 0.001034400702 | BB7: 0.009545196526 | BC7: 0.1642579115 | BD7: 0.05251035069 | BE7: 0.01547681744 | BF7: 0.003296371282 | BG7: 0.06244704043 | BH7: 0.3380538339 | BI7: 0.1199769977 | BJ7: 0.002340489685 | BK7: 0.02161998473 | BL7: 0.1672496902 | BM7: 1.433860123 | BN7: 0.04706448751 | BO7: 0.008900101966 | BP7: 0.006449543266 | BQ7: 0.004256323361 | BR7: 0.01418912746 | BS7: 0.04319530413 | BT7: 0.03012153151 | BU7: 0.02544004926 | BV7: 0.008681219741 | BW7: 0.0379950059 | BX7: 0.08709018764 | BY7: 0.07730174108 | BZ7: 0.007430601928 | CA7: 0.03137340978 | CB7: 0.09901795418 | CC7: 0.3655045083 | CD7: 0.03771395645 | CE7: 0.01116639417 | CF7: 0.009459030483 | CG7: 0.009271901223 | CH7: 0.01347426299 | CI7: 0.02555402712 | CJ7: 0.02129496929 | CK7: 0.01693046365 | CL7: 0.01370674229 | CM7: 0.02477831705 | CN7: 0.04286510836 | CO7: 0.04070554227 | CP7: 0.01453137559 | CQ7: 0.02547354066 | CR7: 0.06031034197 | CS7: 0.1495329121 | CT7: 0.08193783245 | CU7: 0.007259805471 | CV7: 0.004441489759 | CW7: 0.004002066408 | CX7: 0.009638056879 | CY7: 0.07388134864 | CZ7: 0.03463680894 | DA7: 0.0205537578 | DB7: 0.005317171241 | DC7: 0.03305513269 | DD7: 0.1441518779 | DE7: 0.08378001929 | DF7: 0.003848892428 | DG7: 0.02317190457 | DH7: 0.09910178402 | DI7: 0.6098161826 | DJ7: 0.0620578191 | DK7: 0.01704410988 | DL7: 0.009041706757 | DM7: 0.006538380766 | DN7: 0.02172516413 | DO7: 0.04604294865 | DP7: 0.0413656741 | DQ7: 0.03078478952 | DR7: 0.01637091242 | DS7: 0.03765950252 | DT7: 0.07149923911 | DU7: 0.07937849108 | DV7: 0.01133154498 | DW7: 0.03964069734 | DX7: 0.08835071501 | DY7: 0.2002645257 | DZ7: 0.0764122483 | EA7: 0.03478448076 | EB7: 0.02812287433 | EC7: 0.02769071634 | ED7: 0.01614496167 | EE7: 0.008745457434 | EF7: 0.007262471505 | EG7: 0.03230747646 | EH7: 0.01471419666 | EI7: 0.01151436099 | EJ7: 0.01082794271 | EK7: 0.01920328635 | EL7: 0.01377066741 | EM7: 0.01227534807 | EN7: 0.01329495586 | EO7: 0.009758820535 | EP7: 0.02329528252 | EQ7: 0.008569003443 | ER7: 0.006204142493 | ES7: 0.007057745475 | ET7: 0.01303946149 | EU7: 0.02025896983 | EV7: 0.02356886211 | EW7: 0.0290327748 | EX7: 0.009724745414 | EY7: 0.0201731623 | EZ7: 0.03926163239 | FA7: 0.05751575422 | FB7: 0.0115513728 | FC7: 0.0315251035 | FD7: 0.05803135818 | FE7: 0.1246906219 | FF7: 0.02292886581 | FG7: 0.009092284639 | FH7: 0.004756729859 | FI7: 0.007085493358 | FJ7: 0.01084086468 | FK7: 0.01196319902 | FL7: 0.01689013203 | FM7: 0.01960092683 | FN7: 0.01129305967 | FO7: 0.01777700772 | FP7: 0.02551326733 | FQ7: 0.03448573732 | FR7: 0.01106637331 | FS7: 0.02537052428 | FT7: 0.04835297425 | FU7: 0.08524218721 | FV7: 0.04123931865 | FW7: 0.02064710449 | FX7: 0.01857997738 | FY7: 0.01621050836 | FZ7: 0.02910848984 | GA7: 0.02053948027 | GB7: 0.01738496831 | GC7: 0.01902191522 | GD7: 0.02580188145 | GE7: 0.02026493994 | GF7: 0.01971289189 | GG7: 0.02077750288 | GH7: 0.02849203258 | GI7: 0.02612437025 | GJ7: 0.02746188435 | GK7: 0.03052396803 | GL7: 0.1604543495 | GM7: 0.009145812769 | GN7: 0.003181467793 | GO7: 0.002152567284 | GP7: 0.01311583133 | GQ7: 0.05811718571 | GR7: 0.03466897597 | GS7: 0.02335280216 | GT7: 0.007257345449 | GU7: 0.04097088734 | GV7: 0.1247151409 | GW7: 0.09624989534 | GX7: 0.004263897579 | GY7: 0.02896385494 | GZ7: 0.1269252655 | HA7: 0.546927121 | HB7: 1.69680925 | HC7: 0.03516633352 | HD7: 0.01467717405 | HE7: 0.008300586048 | HF7: 0.05244147993 | HG7: 0.9217015471 | HH7: 0.1718358261 | HI7: 0.06277287508 | HJ7: 0.2285216875 | HK7: 0.2638741156 | HL7: 1.900914453 | HM7: 0.2800041041 | HN7: 0.01649758536 | HO7: 0.1125704819 | HP7: 0.7432758836 | HQ7: 6.143290466 | HR7: 0.5632743872 | HS7: 0.002197969966 | HT7: 0.0004426450102 | HU7: -0.0001143338125 | HV7: 0.002431928045 | HW7: 0.6405093946 | HX7: 0.02260565426 | HY7: 0.004185453398 | HZ7: 0.001053357273 | IA7: 0.03369223493 | IB7: 1.291037585 | IC7: 0.05342819613 | ID7: 0.0004512194612 | IE7: 0.005382256113 | IF7: 0.08591492994 | IG7: 5.260898667 | IH7: 0.5311735476 | II7: 0.004550232809 | IJ7: 0.001205172905 | IK7: 0.0004265236106 | IL7: 0.004136740053 | IM7: 0.4764916031 | IN7: 0.02576379947 | IO7: 0.006064751199 | IP7: 0.002692233566 | IQ7: 0.04305208035 | IR7: 0.9002868873 | IS7: 0.06652441763 | IT7: 0.0007446718969 | IU7: 0.01134572283 | IV7: 0.1389976368 | IW7: 3.847148 | IX7: 0.1313127109 | IY7: 0.01367278908 | IZ7: 0.005776438357 | JA7: 0.002755813925 | JB7: 0.0199015297 | JC7: 0.1393166555 | JD7: 0.06547347219 | JE7: 0.03441712445 | JF7: 0.007428726979 | JG7: 0.07814098318 | JH7: 0.2505614326 | JI7: 0.1703342609 | JJ7: 0.005521684373 | JK7: 0.03598282325 | JL7: 0.2288335501 | JM7: 1.130492123 | JN7: 0.0250191547 | JO7: 0.01142446689 | JP7: 0.009463006485 | JQ7: 0.006622796535 | JR7: 0.01356993207 | JS7: 0.01623056699 | JT7: 0.01668855193 | JU7: 0.01655523131 | JV7: 0.01042814416 | JW7: 0.01657995464 | JX7: 0.01971767505 | JY7: 0.02728545826 | JZ7: 0.007212958423 | KA7: 0.01702341335 | KB7: 0.0278642931 | KC7: 0.04056150421 | KD7: 0.03019888582 | KE7: 0.01349337035 | KF7: 0.01340480426 | KG7: 0.01304895562 | KH7: 0.01914289732 | KI7: 0.02309095528 | KJ7: 0.02483609721 | KK7: 0.02982676614 | KL7: 0.01486816427 | KM7: 0.02208291835 | KN7: 0.03810225602 | KO7: 0.05967028383 | KP7: 0.02028543609 | KQ7: 0.03761838977 | KR7: 0.06557405852 | KS7: 0.1263535267 | KT7: 0.5865302224 | KU7: 0.2339162781 | KV7: 0.002429089815 | KW7: 0.001489124796 | KX7: 0.01487569786 | KY7: 0.5838999197 | KZ7: 0.1562848107 | LA7: 0.02360906848 | LB7: 0.004462103907 | LC7: 0.1984011022 | LD7: 0.9825481499 | LE7: 0.3153786698 | LF7: 0.002692284194 | LG7: 0.02723543646 | LH7: 0.515373966 | LI7: 3.132274587 | LJ7: 0.4676927059 | LK7: 0.01231098761 | LL7: 0.00161768921 | LM7: 0.0008038182288 | LN7: 0.01956084645 | LO7: 0.4571517491 | LP7: 0.1785319852 | LQ7: 0.02425969405 | LR7: 0.003217088466 | LS7: 0.2286727071 | LT7: 0.7585367363 | LU7: 0.4211327779 | LV7: 0.001937321388 | LW7: 0.03364588476 | LX7: 0.5573037803 | LY7: 2.467005338 | LZ7: 0.0369419613 | MA7: 0.005620011494 | MB7: 0.004907077037 | MC7: 0.00297052057 | MD7: 0.008505070966 | ME7: 0.04927146207 | MF7: 0.02392835313 | MG7: 0.01604135463 | MH7: 0.005155273142 | MI7: 0.02701249194 | MJ7: 0.09091179227 | MK7: 0.05874190227 | ML7: 0.005006031359 | MM7: 0.02090966062 | MN7: 0.079785611 | MO7: 0.3675887673 | MP7: 4.716647684 | MQ7: 9.907628822e-05 | MR7: 3.963653433e-05 | MS7: 0.0003100312425 | MT7: 0.0003439916927 | MU7: 5.13861733 | MV7: 0.001174218745 | MW7: 0.001190935323 | MX7: 0.0001737026497 | MY7: 0.001479411947 | MZ7: 6.804626354 | NA7: 0.003108377167 | NB7: 0.0005086904986 | NC7: 0.001191369171 | ND7: 0.004233090712 | NE7: 24.04401144 | NF7: 4.763878883 | NG7: 0.0001878208231 | NH7: -0.0001417283929 | NI7: 7.443535054e-05 | NJ7: 0.0001517747247 | NK7: 4.684234974 | NL7: 0.0002955468494 | NM7: 0.0005187704203 | NN7: 0.0002871059258 | NO7: 0.0004794874494 | NP7: 6.726556961 | NQ7: 0.001764050962 | NR7: 4.01830018e-05 | NS7: -0.0001147927245 | NT7: 0.001686367404 | NU7: 21.67065379 | NV7: 2.200949957 | NW7: 0.8777689581 | NX7: 0.001032574937 | NY7: 3.934141539e-06 | NZ7: 0.001219832486 | OA7: 2.530480866 | OB7: 0.00617568146 | OC7: 0.001741928579 | OD7: 0.0001632244523 | OE7: 0.01440367203 | OF7: 3.374318137 | OG7: 0.01346219575 | OH7: 0.0001931449109 | OI7: 0.004491543436 | OJ7: 0.02475862887 | OK7: 10.54536093 | OL7: 0.05846160962 | OM7: 0.02331528984 | ON7: 0.006111558463 | OO7: 0.003187838371 | OP7: 0.01973676245 | OQ7: 0.05757814627 | OR7: 0.05233238411 | OS7: 0.04055541954 | OT7: 0.007644508212 | OU7: 0.05271085427 | OV7: 0.1103557374 | OW7: 0.1423015322 | OX7: 0.005501679399 | OY7: 0.05163994073 | OZ7: 0.1545536401 | PA7: 0.3285329717 | PB7: 1.919652328 | PC7: 0.001915796517 | PD7: 0.0005769400094 | PE7: 0.003397844935 | PF7: 0.001660676487 | PG7: 1.285123191 | PH7: 0.00993215221 | PI7: 0.00195763203 | PJ7: 0.00112432827 | PK7: 0.01012265332 | PL7: 1.984576426 | PM7: 0.01778395482 | PN7: -0.0001285671467 | PO7: 0.0008206407583 | PP7: 0.02049758948 | PQ7: 5.784809218 | PR7: 0.04700456049 | PS7: 0.01874606188 | PT7: 0.003494658154 | PU7: 0.000422415392 | PV7: 0.01360999522 | PW7: 0.04515147543 | PX7: 0.04155123567 | PY7: 0.02746998451 | PZ7: 0.00732117624 | QA7: 0.04350809456 | QB7: 0.08357837724 | QC7: 0.1071925301 | QD7: 0.004954242242 | QE7: 0.04999881908 | QF7: 0.1386298667 | QG7: 0.3599333633 | QH7: 0.09043880091 | QI7: 0.01170590332 | QJ7: 0.006929635129 | QK7: 0.005751157884 | QL7: 0.008266484132 | QM7: 0.03222571335 | QN7: 0.01423670505 | QO7: 0.02094675003 | QP7: 0.004439859843 | QQ7: 0.01719913572 | QR7: 0.05858354806 | QS7: 0.07526785443 | QT7: 0.002772823251 | QU7: 0.01188318511 | QV7: 0.04470264528 | QW7: 0.2190816547 | QX7: 0.03077167864 | QY7: 0.01401472188 | QZ7: 0.01277014226 | RA7: 0.01106904957 | RB7: 0.00682489995 | RC7: 0.007786390723 | RD7: 0.008060348881 | RE7: 0.02082309705 | RF7: 0.006131248706 | RG7: 0.009305638141 | RH7: 0.01496240385 | RI7: 0.0263419231 | RJ7: 0.007148167226 | RK7: 0.009111374435 | RL7: 0.01431217025 | RM7: 0.02170595582 | RN7: 3.329714927 | RO7: 0.5451190698 | RP7: 0.2980672672 | RQ7: 0.1822421627 | RR7: 0.7279589813 | RS7: 3.274318917 | RT7: 1.787588881 | RU7: 0.8925959884 | RV7: 0.3920370585 | RW7: 1.976647635 | RX7: 4.321184489 | RY7: 2.458514995 | RZ7: 0.2911391321 | SA7: 1.191537168 | SB7: 3.157943831 | SC7: 8.283443399 | SD7: 1.045945084 | SE7: 0.06651433297 | SF7: 0.02144146351 | SG7: 0.01179337261 | SH7: 0.02609626931 | SI7: 0.2755393505 | SJ7: 0.1429550564 | SK7: 0.148993841 | SL7: 0.0148963714 | SM7: 0.1375669424 | SN7: 0.4613377539 | SO7: 0.6930765543 | SP7: 0.01040440941 | SQ7: 0.06125059455 | SR7: 0.05369663833 | SS7: 0.9351364686 | ST7: 10.94976179 | SU7: 0.04277285575 | SV7: 0.011766346 | SW7: 0.004348096786 | SX7: 0.01361368275 | SY7: 2.898057411 | SZ7: 0.1748101147 | TA7: 0.07900729101 | TB7: 0.004897960446 | TC7: 0.1347742939 | TD7: 3.483687986 | TE7: 0.6204517439 | TF7: 0.003357443818 | TG7: 0.03843005173 | TH7: 0.06357748417 | TI7: 5.634415591 | TJ7: 4.201018824 | TK7: 0.03177585007 | TL7: 0.01441130058 | TM7: 0.008575592986 | TN7: 0.01632219301 | TO7: 1.426555695 | TP7: 0.053177692 | TQ7: 0.0633975156 | TR7: 0.007687636827 | TS7: 0.07394390939 | TT7: 2.160530737 | TU7: 0.2684705843 | TV7: 0.005734297793 | TW7: 0.0300474519 | TX7: 0.02904305302 | TY7: 3.82103348 | TZ7: 6.060512325 | UA7: 0.02552658656 | UB7: 0.009055651573 | UC7: 0.005103730485 | UD7: 0.01066285218 | UE7: 2.23834964 | UF7: 0.05305204756 | UG7: 0.04082099084 | UH7: 0.002785432048 | UI7: 0.02885052705 | UJ7: 3.324648667 | UK7: 0.2093381778 | UL7: 0.002261946511 | UM7: 0.01823535116 | UN7: 0.02296895281 | UO7: 7.350169857 | UP7: 0.9214886275 | UQ7: 0.001203267349 | UR7: 0.001354161822 | US7: 0.0003636121614 | UT7: 0.001046937732 | UU7: 0.297914622 | UV7: 0.005373614756 | UW7: 0.004286085141 | UX7: 0.0002051869803 | UY7: 0.005235128025 | UZ7: 0.5179920006 | VA7: 0.02365565813 | VB7: 0.0004237270428 | VC7: 0.002873721358 | VD7: 0.003114283325 | VE7: 1.581531848 | VF7: 0.06736518286 | VG7: 0.03542380323 | VH7: 0.03268450847 | VI7: 0.03333116121 | VJ7: 0.04259540073 | VK7: 0.04326448662 | VL7: 0.04311979307 | VM7: 0.04986461395 | VN7: 0.03673705762 | VO7: 0.04694935648 | VP7: 0.05767685839 | VQ7: 0.06309244322 | VR7: 0.05241488484 | VS7: 0.06887378101 | VT7: 0.07981278721 | VU7: 0.1070507403 | VV7: 0.5324512855 | VW7: 0.003043244073 | VX7: 7.91248947e-05 | VY7: 0.0005538435717 | VZ7: 0.00191714958 | WA7: 0.1181909615 | WB7: 0.01307657435 | WC7: 0.003012542186 | WD7: 0.0005603625042 | WE7: 0.0125609657 | WF7: 0.2978689951 | WG7: 0.06654225709 | WH7: 8.749580408e-05 | WI7: 0.005247987125 | WJ7: 0.009139561476 | WK7: 1.039808589 | WL7: 3.863902681 | WM7: 0.001547933836 | WN7: 0.001185120029 | WO7: 0.001505731747 | WP7: 0.001186282828 | WQ7: 3.704978026 | WR7: 0.006206922478 | WS7: 0.003631634182 | WT7: 0.0003576182261 | WU7: 0.007054530412 | WV7: 5.760808265 | WW7: 0.006918793563 | WX7: 0.0002556344972 | WY7: 0.002307311116 | WZ7: 0.008588695504 | XA7: 23.95256486 | XB7: 6.332976352 | XC7: 0.004309969293 | XD7: 0.002295387512 | XE7: 0.0006212462091 | XF7: 0.008245410053 | XG7: 5.769005288 | XH7: 0.02572554018 | XI7: 0.008280889635 | XJ7: 0.002857795717 | XK7: 0.04241513126 | XL7: 8.342474568 | XM7: 0.04599583826 | XN7: 0.001773728231 | XO7: 0.009827173747 | XP7: 0.06198207425 | XQ7: 21.3893152 | XR7: 0.1352268082 | XS7: 0.005595368051 | XT7: 0.001843555716 | XU7: 0.002566696608 | XV7: 0.007490620286 | XW7: 0.137343888 | XX7: 0.0501019168 | XY7: 0.01392650273 | XZ7: 0.002578565019 | YA7: 0.05772203496 | YB7: 0.2430182536 | YC7: 0.1364415237 | YD7: 0.002630031114 | YE7: 0.01352619844 | YF7: 0.172922882 | YG7: 1.040325793 | YH7: 0.02822567892 | YI7: 0.01229213317 | YJ7: 0.007793406998 | YK7: 0.0073248145 | YL7: 0.014508392 | YM7: 0.02396611282 | YN7: 0.02147505597 | YO7: 0.02331740874 | YP7: 0.01231707136 | YQ7: 0.02457232468 | YR7: 0.03845295055 | YS7: 0.04532851635 | YT7: 0.01388682663 | YU7: 0.03040497855 | YV7: 0.06490993072 | YW7: 0.1371070065 | YX7: 0.05418920087 | YY7: 0.03150989788 | YZ7: 0.03105259456 | ZA7: 0.02889007246 | ZB7: 0.03889909686 | ZC7: 0.037772885 | ZD7: 0.03898610932 | ZE7: 0.04160429868 | ZF7: 0.03752952104 | ZG7: 0.04446508082 | ZH7: 0.04851425162 | ZI7: 0.05232132047 | ZJ7: 0.04432392737 | ZK7: 0.05598373634 | ZL7: 0.06124468926 | ZM7: 0.08522684314 | ZN7: 0.06869164159 | ZO7: 0.03395685506 | ZP7: 0.03427690932 | ZQ7: 0.03196754598 | ZR7: 0.04364356121 | ZS7: 0.04061475934 | ZT7: 0.04119369417 | ZU7: 0.04690221532 | ZV7: 0.04260028885 | ZW7: 0.04596901658 | ZX7: 0.05414109692 | ZY7: 0.06172168941 | ZZ7: 0.04790768972 | AAA7: 0.0591911645 | AAB7: 0.08007621148 | AAC7: 0.102991648 | AAD7: 0.03402816724 | AAE7: 0.01266556374 | AAF7: 0.006856083222 | AAG7: 0.004749622931 | AAH7: 0.01616233673 | AAI7: 0.03508937231 | AAJ7: 0.02804378452 | AAK7: 0.02856607786 | AAL7: 0.00842808506 | AAM7: 0.0301250252 | AAN7: 0.06405447181 | AAO7: 0.07265532369 | AAP7: 0.007629336464 | AAQ7: 0.03859117718 | AAR7: 0.1149125961 | AAS7: 0.2805980541 | AAT7: 0.06072341378 | AAU7: 0.00925520071 | AAV7: 0.005659677276 | AAW7: 0.001456398309 | AAX7: 0.0119731441 | AAY7: 0.06922682752 | AAZ7: 0.03742988262 | ABA7: 0.0220633718 | ABB7: 0.006216737755 | ABC7: 0.04251449003 | ABD7: 0.1356724423 | ABE7: 0.09479399808 | ABF7: 0.004762966308 | ABG7: 0.03032056587 | ABH7: 0.1301100611 | ABI7: 0.5556622108 | ABJ7: 0.2165920903 | ABK7: 0.1328034899 | ABL7: 0.107311688 | ABM7: 0.09943974723 | ABN7: 0.1553641181 | ABO7: 0.1611622519 | ABP7: 0.158404013 | ABQ7: 0.1479012713 | ABR7: 0.1415354917 | ABS7: 0.1646006341 | ABT7: 0.1702849851 | ABU7: 0.1847459239 | ABV7: 0.1834152893 | ABW7: 0.1896610629 | ABX7: 0.2334265717 | ABY7: 0.2912859599
A8: 235 | B8: 0.3212689486 | C8: 0.005349121111 | D8: 0.001407855318 | E8: 0.001028135078 | F8: 0.003383394035 | G8: 0.08801928249 | H8: 0.02342356189 | I8: 0.01369286466 | J8: 0.001299438864 | K8: 0.01804090677 | L8: 0.123521872 | M8: 0.1159620795 | N8: 0.00077376098 | O8: 0.005106498075 | P8: 0.03760685034 | Q8: 0.6361588942 | R8: 0.1407307306 | S8: 0.009022208802 | T8: 0.003003949134 | U8: 0.002019123228 | V8: 0.01289070449 | W8: 0.1262932083 | X8: 0.05468015258 | Y8: 0.02057362237 | Z8: 0.005060278979 | AA8: 0.06595232042 | AB8: 0.2348317849 | AC8: 0.1337871228 | AD8: 0.003525962947 | AE8: 0.0287307306 | AF8: 0.1940052012 | AG8: 1.049208249 | AH8: 0.07646390756 | AI8: 0.009514078754 | AJ8: 0.003494614441 | AK8: 0.002559584235 | AL8: 0.01407039071 | AM8: 0.07566739838 | AN8: 0.0513018087 | AO8: 0.02424566339 | AP8: 0.006199341952 | AQ8: 0.05528873723 | AR8: 0.1528471684 | AS8: 0.123099294 | AT8: 0.004997555505 | AU8: 0.03327751532 | AV8: 0.162615425 | AW8: 0.641085193 | AX8: 0.1701572488 | AY8: 0.007413566942 | AZ8: 0.003160057566 | BA8: 0.001254524547 | BB8: 0.01015773738 | BC8: 0.1576662972 | BD8: 0.0514121391 | BE8: 0.017648938 | BF8: 0.004022472723 | BG8: 0.06171411914 | BH8: 0.3407551784 | BI8: 0.1219149122 | BJ8: 0.003049778213 | BK8: 0.02207059582 | BL8: 0.1748972581 | BM8: 1.439274829 | BN8: 0.04458862583 | BO8: 0.009279623338 | BP8: 0.006440649053 | BQ8: 0.004038032 | BR8: 0.01420398141 | BS8: 0.04078362401 | BT8: 0.0308985498 | BU8: 0.02444177588 | BV8: 0.008321593655 | BW8: 0.0361808426 | BX8: 0.0897921042 | BY8: 0.07565323377 | BZ8: 0.007684669559 | CA8: 0.02924677694 | CB8: 0.09807474083 | CC8: 0.3672338594 | CD8: 0.03480514971 | CE8: 0.0118542905 | CF8: 0.009995666276 | CG8: 0.008495265176 | CH8: 0.01612007422 | CI8: 0.02467416312 | CJ8: 0.02276171797 | CK8: 0.01975887725 | CL8: 0.01379056998 | CM8: 0.02504286666 | CN8: 0.04281623275 | CO8: 0.04157209141 | CP8: 0.01559738306 | CQ8: 0.02848552145 | CR8: 0.0576981962 | CS8: 0.1518719314 | CT8: 0.07890826073 | CU8: 0.007762800268 | CV8: 0.00506125117 | CW8: 0.003100841794 | CX8: 0.009472050851 | CY8: 0.07688859569 | CZ8: 0.03348032045 | DA8: 0.01898092127 | DB8: 0.004885488243 | DC8: 0.03295290085 | DD8: 0.1474345256 | DE8: 0.08181818737 | DF8: 0.004611233551 | DG8: 0.02088928393 | DH8: 0.09916767815 | DI8: 0.6126839523 | DJ8: 0.05894867063 | DK8: 0.0176795834 | DL8: 0.01037246562 | DM8: 0.007170036365 | DN8: 0.02198504932 | DO8: 0.04524262159 | DP8: 0.04248819178 | DQ8: 0.033642207 | DR8: 0.01584870439 | DS8: 0.03753010273 | DT8: 0.07230705115 | DU8: 0.0819214573 | DV8: 0.01233780565 | DW8: 0.04013473431 | DX8: 0.08969367569 | DY8: 0.1980643096 | DZ8: 0.07637399251 | EA8: 0.03547850822 | EB8: 0.02665106801 | EC8: 0.02746905857 | ED8: 0.01662769374 | EE8: 0.01233403454 | EF8: 0.009115386576 | EG8: 0.03055160391 | EH8: 0.01644863345 | EI8: 0.01324624194 | EJ8: 0.01111476415 | EK8: 0.02223911366 | EL8: 0.01668054576 | EM8: 0.01185427325 | EN8: 0.01307382652 | EO8: 0.01071552954 | EP8: 0.02237003955 | EQ8: 0.00970905439 | ER8: 0.00695270905 | ES8: 0.005957877189 | ET8: 0.01425806253 | EU8: 0.02046350546 | EV8: 0.0237349202 | EW8: 0.02742373514 | EX8: 0.009222596013 | EY8: 0.02106068555 | EZ8: 0.03835378405 | FA8: 0.05611398022 | FB8: 0.01094433907 | FC8: 0.03068221875 | FD8: 0.05689620812 | FE8: 0.1306942401 | FF8: 0.01968416371 | FG8: 0.008448920646 | FH8: 0.005819464187 | FI8: 0.006710297805 | FJ8: 0.01075150426 | FK8: 0.01321259774 | FL8: 0.01590055459 | FM8: 0.01947639617 | FN8: 0.01090682322 | FO8: 0.01800631097 | FP8: 0.02593359071 | FQ8: 0.03472747141 | FR8: 0.01154382675 | FS8: 0.02626527566 | FT8: 0.04734939612 | FU8: 0.08362137234 | FV8: 0.04075925458 | FW8: 0.02033171547 | FX8: 0.01787924533 | FY8: 0.01527084967 | FZ8: 0.02805251178 | GA8: 0.02157487245 | GB8: 0.01817353569 | GC8: 0.01883685197 | GD8: 0.02607826052 | GE8: 0.02089329393 | GF8: 0.02159009602 | GG8: 0.01993792454 | GH8: 0.02818183554 | GI8: 0.02531013799 | GJ8: 0.02809547308 | GK8: 0.02820997521 | GL8: 0.1588334451 | GM8: 0.009062926747 | GN8: 0.003388531987 | GO8: 0.002310860654 | GP8: 0.01286393768 | GQ8: 0.05767235766 | GR8: 0.03667333614 | GS8: 0.02226803734 | GT8: 0.006696885268 | GU8: 0.04189484635 | GV8: 0.1181262318 | GW8: 0.09603365789 | GX8: 0.004008246316 | GY8: 0.03065844576 | GZ8: 0.1304537365 | HA8: 0.557309687 | HB8: 1.721770634 | HC8: 0.0339278744 | HD8: 0.01511584249 | HE8: 0.007786057544 | HF8: 0.05024593281 | HG8: 0.9314824195 | HH8: 0.1626493787 | HI8: 0.06410227654 | HJ8: 0.2286299254 | HK8: 0.263999098 | HL8: 1.89155415 | HM8: 0.2782710841 | HN8: 0.01607041615 | HO8: 0.1193720046 | HP8: 0.744023546 | HQ8: 6.169538592 | HR8: 0.568591219 | HS8: 0.002192180254 | HT8: 0.0007206500701 | HU8: 8.359207848e-05 | HV8: 0.002929071998 | HW8: 0.6436670407 | HX8: 0.02321440643 | HY8: 0.004723672392 | HZ8: 0.0009415607243 | IA8: 0.03387507324 | IB8: 1.301064083 | IC8: 0.05360517856 | ID8: 0.0004738823964 | IE8: 0.005967149831 | IF8: 0.08860984663 | IG8: 5.29957625 | IH8: 0.540742656 | II8: 0.003948809383 | IJ8: 0.001138753806 | IK8: 0.0006836107177 | IL8: 0.00477420995 | IM8: 0.4842196188 | IN8: 0.02625395218 | IO8: 0.006060674437 | IP8: 0.002044717528 | IQ8: 0.04383369331 | IR8: 0.9085334678 | IS8: 0.06539367005 | IT8: 0.0007999035799 | IU8: 0.01086976135 | IV8: 0.1393996058 | IW8: 3.869696439 | IX8: 0.1326334703 | IY8: 0.01337200681 | IZ8: 0.006199841989 | JA8: 0.003300868432 | JB8: 0.01897558312 | JC8: 0.1385785133 | JD8: 0.06733984729 | JE8: 0.03277971253 | JF8: 0.007140485078 | JG8: 0.07918865465 | JH8: 0.2531120769 | JI8: 0.1672969326 | JJ8: 0.006367609875 | JK8: 0.03838743155 | JL8: 0.2307549346 | JM8: 1.125132823 | JN8: 0.02737855914 | JO8: 0.01095487848 | JP8: 0.009343959479 | JQ8: 0.008065509677 | JR8: 0.01334361865 | JS8: 0.01736332794 | JT8: 0.01897276015 | JU8: 0.01736809944 | JV8: 0.01138203599 | JW8: 0.0150876719 | JX8: 0.0202077698 | JY8: 0.02785042523 | JZ8: 0.006599859422 | KA8: 0.01668303662 | KB8: 0.0269238787 | KC8: 0.0446787264 | KD8: 0.03024854255 | KE8: 0.01465702768 | KF8: 0.01300550465 | KG8: 0.01229230935 | KH8: 0.02032588492 | KI8: 0.02404081977 | KJ8: 0.02525207986 | KK8: 0.0276606518 | KL8: 0.01533864532 | KM8: 0.02312029525 | KN8: 0.03787413445 | KO8: 0.0560088772 | KP8: 0.02065641609 | KQ8: 0.03742918638 | KR8: 0.06839056748 | KS8: 0.1290472183 | KT8: 0.5947321143 | KU8: 0.2385540364 | KV8: 0.002901941341 | KW8: 0.001226905614 | KX8: 0.0144774515 | KY8: 0.5847655112 | KZ8: 0.1529243492 | LA8: 0.02190527106 | LB8: 0.004413506369 | LC8: 0.19715469 | LD8: 0.9959012843 | LE8: 0.3152785173 | LF8: 0.003062241532 | LG8: 0.02750049031 | LH8: 0.5122360506 | LI8: 3.145552413 | LJ8: 0.468438949 | LK8: 0.01243300889 | LL8: 0.001938289323 | LM8: 0.00112629488 | LN8: 0.021739583 | LO8: 0.4558906539 | LP8: 0.1748277507 | LQ8: 0.02625994171 | LR8: 0.003177648392 | LS8: 0.2301233741 | LT8: 0.7550579422 | LU8: 0.4239885387 | LV8: 0.001527974238 | LW8: 0.03516976005 | LX8: 0.5573422474 | LY8: 2.431119593 | LZ8: 0.03863317598 | MA8: 0.006281574447 | MB8: 0.003931276902 | MC8: 0.003194543965 | MD8: 0.007565661014 | ME8: 0.05181560413 | MF8: 0.02270930311 | MG8: 0.01402115347 | MH8: 0.005116229891 | MI8: 0.02737819414 | MJ8: 0.09230792536 | MK8: 0.05794783966 | ML8: 0.005058644186 | MM8: 0.0195731206 | MN8: 0.07853727585 | MO8: 0.3663604093 | MP8: 4.72578164 | MQ8: 0.0002620753436 | MR8: 1.097442171e-05 | MS8: 0.0004072375676 | MT8: 0.0001467687942 | MU8: 5.112572951 | MV8: 0.001412480492 | MW8: 0.0006910550999 | MX8: 0.0001998539893 | MY8: 0.001940472084 | MZ8: 6.806356592 | NA8: 0.002702435622 | NB8: 0.0001555228795 | NC8: 0.0009657008153 | ND8: 0.00461085286 | NE8: 24.06239604 | NF8: 4.78854998 | NG8: 0.0004341360802 | NH8: 7.575610706e-05 | NI8: 0.0003201682302 | NJ8: 0.0001001169859 | NK8: 4.693554433 | NL8: 0.000349030925 | NM8: 6.662805944e-05 | NN8: 8.669936982e-05 | NO8: 0.0004982072551 | NP8: 6.728088974 | NQ8: 0.001046194863 | NR8: -8.158715677e-05 | NS8: -4.92710526e-06 | NT8: 0.001297463967 | NU8: 21.69246767 | NV8: 2.206309344 | NW8: 0.8849765915 | NX8: 0.0006397109936 | NY8: -3.483386228e-05 | NZ8: 0.001526217522 | OA8: 2.520705045 | OB8: 0.005921653339 | OC8: 0.001566694714 | OD8: 0.0004213718316 | OE8: 0.01474204337 | OF8: 3.359989118 | OG8: 0.01224453867 | OH8: 0.0002357746807 | OI8: 0.00319713598 | OJ8: 0.022711719 | OK8: 10.47477298 | OL8: 0.06253483615 | OM8: 0.02508345727 | ON8: 0.006130464086 | OO8: 0.003087836539 | OP8: 0.01837999123 | OQ8: 0.05834019426 | OR8: 0.05372669437 | OS8: 0.04067441517 | OT8: 0.007645852876 | OU8: 0.05437733613 | OV8: 0.1089471085 | OW8: 0.136899199 | OX8: 0.005193773474 | OY8: 0.05201679662 | OZ8: 0.1545598975 | PA8: 0.3328836759 | PB8: 1.938019016 | PC8: 0.001904740213 | PD8: 0.0006250422121 | PE8: 0.001197004251 | PF8: 0.001455092313 | PG8: 1.504484278 | PH8: 0.009958515075 | PI8: 0.002033486549 | PJ8: 0.0007189964414 | PK8: 0.01234996872 | PL8: 2.169032867 | PM8: 0.0177758178 | PN8: -7.106018779e-05 | PO8: 0.001431068262 | PP8: 0.02344516694 | PQ8: 6.643415117 | PR8: 0.0461617423 | PS8: 0.01851601702 | PT8: 0.003369397376 | PU8: 0.000748545081 | PV8: 0.01377268601 | PW8: 0.04458067294 | PX8: 0.04095167497 | PY8: 0.02862985358 | PZ8: 0.00693993509 | QA8: 0.04528716396 | QB8: 0.08087494292 | QC8: 0.1086893198 | QD8: 0.004539195978 | QE8: 0.04892089203 | QF8: 0.1359560366 | QG8: 0.3613134234 | QH8: 0.09447009799 | QI8: 0.01204168679 | QJ8: 0.007787159889 | QK8: 0.006952424295 | QL8: 0.007638411392 | QM8: 0.0362354893 | QN8: 0.0159664937 | QO8: 0.02026664055 | QP8: 0.004763900041 | QQ8: 0.01811282094 | QR8: 0.06622692207 | QS8: 0.08052141614 | QT8: 0.004304858338 | QU8: 0.01292624012 | QV8: 0.04965902334 | QW8: 0.2571206999 | QX8: 0.03289467908 | QY8: 0.01426146929 | QZ8: 0.01310503143 | RA8: 0.01151892816 | RB8: 0.007076066141 | RC8: 0.01101089748 | RD8: 0.009153075687 | RE8: 0.01852412136 | RF8: 0.006514501886 | RG8: 0.009225497321 | RH8: 0.01421967361 | RI8: 0.02724720256 | RJ8: 0.008338733185 | RK8: 0.009491811309 | RL8: 0.01456066637 | RM8: 0.02673121502 | RN8: 3.384935422 | RO8: 0.5447090539 | RP8: 0.3025134743 | RQ8: 0.1879722236 | RR8: 0.7385214243 | RS8: 3.271307824 | RT8: 1.784792022 | RU8: 0.9009648954 | RV8: 0.3916193121 | RW8: 1.986519125 | RX8: 4.331820808 | RY8: 2.458515289 | RZ8: 0.292320052 | SA8: 1.208206563 | SB8: 3.168812639 | SC8: 8.330922136 | SD8: 1.050072298 | SE8: 0.06724451726 | SF8: 0.022336092 | SG8: 0.01144809625 | SH8: 0.02807775191 | SI8: 0.3147567085 | SJ8: 0.1585764852 | SK8: 0.1489972896 | SL8: 0.01654839856 | SM8: 0.1491423224 | SN8: 0.5154914221 | SO8: 0.6987586595 | SP8: 0.01241190974 | SQ8: 0.06984464688 | SR8: 0.06206720741 | SS8: 1.07068432 | ST8: 11.17615355 | SU8: 0.04165948175 | SV8: 0.01468625364 | SW8: 0.007371635684 | SX8: 0.01511120013 | SY8: 3.441049013 | SZ8: 0.2006633418 | TA8: 0.08219948431 | TB8: 0.005364891363 | TC8: 0.1525645807 | TD8: 3.871707918 | TE8: 0.6331868201 | TF8: 0.00402029177 | TG8: 0.04104649568 | TH8: 0.07230530578 | TI8: 6.560907213 | TJ8: 4.271666202 | TK8: 0.0307583927 | TL8: 0.0153078188 | TM8: 0.009879275492 | TN8: 0.01921916075 | TO8: 1.672169844 | TP8: 0.05919823891 | TQ8: 0.06190998374 | TR8: 0.009801783338 | TS8: 0.07922100469 | TT8: 2.371795506 | TU8: 0.2733558919 | TV8: 0.007123284549 | TW8: 0.03685172208 | TX8: 0.03128281273 | TY8: 4.409312547 | TZ8: 6.048930883 | UA8: 0.02545554359 | UB8: 0.01049122118 | UC8: 0.00516898365 | UD8: 0.01023277398 | UE8: 2.630930016 | UF8: 0.0571265548 | UG8: 0.04037575235 | UH8: 0.00413715235 | UI8: 0.03304166484 | UJ8: 3.666138618 | UK8: 0.2086607289 | UL8: 0.00303678822 | UM8: 0.02234785877 | UN8: 0.02604376337 | UO8: 8.479068228 | UP8: 0.9372342616 | UQ8: 0.001503698519 | UR8: 0.001534984758 | US8: 0.0006523766609 | UT8: 0.001847611256 | UU8: 0.355526221 | UV8: 0.005884167314 | UW8: 0.004652801185 | UX8: 0.00055330312 | UY8: 0.006806302954 | UZ8: 0.5748778793 | VA8: 0.02484284944 | VB8: 0.0006757513217 | VC8: 0.003135444303 | VD8: 0.003562984169 | VE8: 1.790137524 | VF8: 0.07108719489 | VG8: 0.03499462444 | VH8: 0.0320098238 | VI8: 0.03152297567 | VJ8: 0.04281408677 | VK8: 0.04313795258 | VL8: 0.04385722622 | VM8: 0.04773901219 | VN8: 0.03874399055 | VO8: 0.04779141869 | VP8: 0.05992934289 | VQ8: 0.06244745117 | VR8: 0.05451126062 | VS8: 0.06900156426 | VT8: 0.07899273764 | VU8: 0.1090654696 | VV8: 0.5477757165 | VW8: 0.002707159675 | VX8: 0.0004531892876 | VY8: 0.0004659220559 | VZ8: 0.002209356534 | WA8: 0.1370351235 | WB8: 0.01450663454 | WC8: 0.003270995153 | WD8: 0.0006185195732 | WE8: 0.01429099903 | WF8: 0.3132140509 | WG8: 0.06792931525 | WH8: 0.0001931947367 | WI8: 0.005458864325 | WJ8: 0.009719364644 | WK8: 1.200655656 | WL8: 3.877406524 | WM8: 0.001766976652 | WN8: 0.0008391412273 | WO8: 0.0009282596246 | WP8: 0.001636524145 | WQ8: 3.677271053 | WR8: 0.005520949577 | WS8: 0.002575255862 | WT8: 0.0006583774606 | WU8: 0.006139280128 | WV8: 5.693348052 | WW8: 0.006223496745 | WX8: 0.0002892809978 | WY8: 0.002185590637 | WZ8: 0.0101045728 | XA8: 23.85589766 | XB8: 6.251166287 | XC8: 0.004741182019 | XD8: 0.002671554545 | XE8: 0.0009943581804 | XF8: 0.007677534103 | XG8: 5.709222881 | XH8: 0.02539643043 | XI8: 0.009008217053 | XJ8: 0.002822748031 | XK8: 0.04029389491 | XL8: 8.226219634 | XM8: 0.04538451927 | XN8: 0.002104466689 | XO8: 0.01016388558 | XP8: 0.05707749405 | XQ8: 21.23290686 | XR8: 0.136737771 | XS8: 0.005821887944 | XT8: 0.002398367505 | XU8: 0.002300750562 | XV8: 0.007716269932 | XW8: 0.1352955478 | XX8: 0.04954724975 | XY8: 0.01491834341 | XZ8: 0.00311207073 | YA8: 0.06051949767 | YB8: 0.2404322282 | YC8: 0.1274810141 | YD8: 0.00305889291 | YE8: 0.01266341672 | YF8: 0.1799834496 | YG8: 1.062875772 | YH8: 0.02776253917 | YI8: 0.01149486884 | YJ8: 0.008625037066 | YK8: 0.008096192274 | YL8: 0.01418311547 | YM8: 0.02370073028 | YN8: 0.02191731606 | YO8: 0.0241583823 | YP8: 0.01218033835 | YQ8: 0.02525228595 | YR8: 0.03920851021 | YS8: 0.04994989972 | YT8: 0.01364052689 | YU8: 0.03161614742 | YV8: 0.06403235267 | YW8: 0.1402048991 | YX8: 0.05590561876 | YY8: 0.03075541226 | YZ8: 0.03024156195 | ZA8: 0.03119406067 | ZB8: 0.03897596964 | ZC8: 0.03877050885 | ZD8: 0.03932084582 | ZE8: 0.04142449412 | ZF8: 0.03704350361 | ZG8: 0.0447814496 | ZH8: 0.04780210604 | ZI8: 0.049189445 | ZJ8: 0.04749072473 | ZK8: 0.0566519662 | ZL8: 0.06499480144 | ZM8: 0.08264157351 | ZN8: 0.06337586598 | ZO8: 0.03349525065 | ZP8: 0.03273605887 | ZQ8: 0.03149028637 | ZR8: 0.04428109317 | ZS8: 0.04422497645 | ZT8: 0.04338563227 | ZU8: 0.0462623817 | ZV8: 0.04449997892 | ZW8: 0.04730617072 | ZX8: 0.05676632407 | ZY8: 0.06064945474 | ZZ8: 0.05092229624 | AAA8: 0.06340287955 | AAB8: 0.08057845245 | AAC8: 0.1065732755 | AAD8: 0.03063664571 | AAE8: 0.01176908705 | AAF8: 0.006540603216 | AAG8: 0.004322003037 | AAH8: 0.01446156631 | AAI8: 0.03216388509 | AAJ8: 0.02663514823 | AAK8: 0.02781369407 | AAL8: 0.008640023722 | AAM8: 0.02845820717 | AAN8: 0.06242152289 | AAO8: 0.07014828869 | AAP8: 0.008032332712 | AAQ8: 0.03817679484 | AAR8: 0.1114257203 | AAS8: 0.2878458095 | AAT8: 0.06372661845 | AAU8: 0.008738651293 | AAV8: 0.005164541123 | AAW8: 0.002277665852 | AAX8: 0.01346236594 | AAY8: 0.07060308723 | AAZ8: 0.03820031417 | ABA8: 0.02307514785 | ABB8: 0.005525374137 | ABC8: 0.04334993641 | ABD8: 0.1325906474 | ABE8: 0.09844816752 | ABF8: 0.005066768878 | ABG8: 0.03175491869 | ABH8: 0.1297116215 | ABI8: 0.5480609272 | ABJ8: 0.2213047507 | ABK8: 0.133150725 | ABL8: 0.1129285246 | ABM8: 0.1036200757 | ABN8: 0.1569409522 | ABO8: 0.1631358044 | ABP8: 0.1552526864 | ABQ8: 0.1499885598 | ABR8: 0.1433682975 | ABS8: 0.1643221378 | ABT8: 0.174106814 | ABU8: 0.1808778661 | ABV8: 0.1800168019 | ABW8: 0.2033684471 | ABX8: 0.2364925092 | ABY8: 0.2862217999
A9: 236 | B9: 0.3221288381 | C9: 0.006919774899 | D9: 0.00127827797 | E9: 0.0008271981671 | F9: 0.002304457723 | G9: 0.09776445283 | H9: 0.02516286843 | I9: 0.01252940404 | J9: 0.002400058882 | K9: 0.01846014059 | L9: 0.1296412566 | M9: 0.1142551519 | N9: 0.0003976770906 | O9: 0.004505729336 | P9: 0.04368412966 | Q9: 0.7351952425 | R9: 0.1448559543 | S9: 0.008528181648 | T9: 0.003610026897 | U9: 0.002468395981 | V9: 0.01280931355 | W9: 0.1209197753 | X9: 0.05447490251 | Y9: 0.0226597501 | Z9: 0.00568351258 | AA9: 0.06548840813 | AB9: 0.2334853466 | AC9: 0.133812552 | AD9: 0.00337538458 | AE9: 0.02767088622 | AF9: 0.1892293577 | AG9: 1.036423707 | AH9: 0.07481684555 | AI9: 0.008694014793 | AJ9: 0.003723977861 | AK9: 0.002594954519 | AL9: 0.01375656102 | AM9: 0.07763927123 | AN9: 0.049083165 | AO9: 0.02505482639 | AP9: 0.006131239696 | AQ9: 0.05225218642 | AR9: 0.1482416725 | AS9: 0.122764285 | AT9: 0.004816406257 | AU9: 0.03350100259 | AV9: 0.1633319749 | AW9: 0.6320300582 | AX9: 0.1727652557 | AY9: 0.006900708732 | AZ9: 0.003108959884 | BA9: 0.001423094994 | BB9: 0.01058890306 | BC9: 0.1517054179 | BD9: 0.0502945946 | BE9: 0.01926879293 | BF9: 0.004543341162 | BG9: 0.06041532017 | BH9: 0.338864013 | BI9: 0.1219983982 | BJ9: 0.003570748722 | BK9: 0.02215522234 | BL9: 0.1787767023 | BM9: 1.425925979 | BN9: 0.0422436721 | BO9: 0.009548449883 | BP9: 0.006413944053 | BQ9: 0.003854676921 | BR9: 0.01414537088 | BS9: 0.03868634655 | BT9: 0.03135635612 | BU9: 0.02353623469 | BV9: 0.007942398556 | BW9: 0.03433610642 | BX9: 0.09085092532 | BY9: 0.07347420219 | BZ9: 0.007790619642 | CA9: 0.027215025 | CB9: 0.09613229724 | CC9: 0.3641016128 | CD9: 0.03222302903 | CE9: 0.01235676563 | CF9: 0.0103853605 | CG9: 0.007860918667 | CH9: 0.01811979338 | CI9: 0.02386053633 | CJ9: 0.02380188375 | CK9: 0.02188410768 | CL9: 0.01369408272 | CM9: 0.02495553988 | CN9: 0.04227477557 | CO9: 0.04176153815 | CP9: 0.01624559905 | CQ9: 0.03050773236 | CR9: 0.05493616425 | CS9: 0.1518547054 | CT9: 0.07579943885 | CU9: 0.008132987707 | CV9: 0.005531177095 | CW9: 0.002385441645 | CX9: 0.009294707559 | CY9: 0.078871688 | CZ9: 0.03240570438 | DA9: 0.01765082171 | DB9: 0.004490295753 | DC9: 0.03248561721 | DD9: 0.14827028 | DE9: 0.07932153641 | DF9: 0.005154856426 | DG9: 0.01883701402 | DH9: 0.09800613891 | DI9: 0.607444464 | DJ9: 0.05597485519 | DK9: 0.018123145 | DL9: 0.01138301335 | DM9: 0.007642815847 | DN9: 0.02208051925 | DO9: 0.04438972898 | DP9: 0.04316019606 | DQ9: 0.03572153476 | DR9: 0.01525383048 | DS9: 0.03698776599 | DT9: 0.07208931426 | DU9: 0.08294840918 | DV9: 0.01297887825 | DW9: 0.04003251087 | DX9: 0.08965324971 | DY9: 0.1939090063 | DZ9: 0.07559347382 | EA9: 0.03591338517 | EB9: 0.02541657784 | EC9: 0.02721125828 | ED9: 0.0166555277 | EE9: 0.01598985793 | EF9: 0.01077771714 | EG9: 0.02902039168 | EH9: 0.01776263137 | EI9: 0.01471273791 | EJ9: 0.01116930201 | EK9: 0.02435314822 | EL9: 0.01815994789 | EM9: 0.01071164295 | EN9: 0.01216873428 | EO9: 0.01099710752 | EP9: 0.02143759476 | EQ9: 0.01057226055 | ER9: 0.007517726751 | ES9: 0.005078130662 | ET9: 0.01514527406 | EU9: 0.02052300218 | EV9: 0.02374798753 | EW9: 0.02602340431 | EX9: 0.008721292994 | EY9: 0.02150761175 | EZ9: 0.03719266317 | FA9: 0.05435764967 | FB9: 0.01033262369 | FC9: 0.02964335238 | FD9: 0.05530654556 | FE9: 0.1338205803 | FF9: 0.01699209555 | FG9: 0.007919103412 | FH9: 0.006634031317 | FI9: 0.006395855651 | FJ9: 0.01062806981 | FK9: 0.01412918807 | FL9: 0.01504411223 | FM9: 0.01928214646 | FN9: 0.01047642272 | FO9: 0.01797410518 | FP9: 0.02595768184 | FQ9: 0.03450847044 | FR9: 0.01177838554 | FS9: 0.02664816328 | FT9: 0.04598010876 | FU9: 0.08132243248 | FV9: 0.03998876835 | FW9: 0.02002237246 | FX9: 0.0172755929 | FY9: 0.01448804839 | FZ9: 0.0270837505 | GA9: 0.02228188476 | GB9: 0.0187033858 | GC9: 0.01859819107 | GD9: 0.02598802093 | GE9: 0.02113939834 | GF9: 0.0228051841 | GG9: 0.01904666149 | GH9: 0.02759284678 | GI9: 0.02435955645 | GJ9: 0.02825040316 | GK9: 0.02604343678 | GL9: 0.1560233458 | GM9: 0.008970230183 | GN9: 0.003540333242 | GO9: 0.002427764173 | GP9: 0.01260230673 | GQ9: 0.05703736525 | GR9: 0.03806720138 | GS9: 0.0213052741 | GT9: 0.006179640874 | GU9: 0.0421254206 | GV9: 0.1115823619 | GW9: 0.09473578903 | GX9: 0.003757976475 | GY9: 0.03161713971 | GZ9: 0.1316348092 | HA9: 0.5586627149 | HB9: 1.724059597 | HC9: 0.03285385575 | HD9: 0.01541311071 | HE9: 0.00735918401 | HF9: 0.04827170391 | HG9: 0.9345605124 | HH9: 0.1546244227 | HI9: 0.06482992973 | HJ9: 0.226027557 | HK9: 0.2609941417 | HL9: 1.861998893 | HM9: 0.2736445815 | HN9: 0.0155375516 | HO9: 0.1232649202 | HP9: 0.7355082453 | HQ9: 6.11470891 | HR9: 0.5670937816 | HS9: 0.002180927066 | HT9: 0.0009361929582 | HU9: 0.0002383641847 | HV9: 0.003305310383 | HW9: 0.64296377 | HX9: 0.02357798653 | HY9: 0.005123313707 | HZ9: 0.0008430185398 | IA9: 0.03362000691 | IB9: 1.293618149 | IC9: 0.05311364469 | ID9: 0.0004859222187 | IE9: 0.006354511439 | IF9: 0.08964681878 | IG9: 5.26517467 | IH9: 0.5427934306 | II9: 0.003465634065 | IJ9: 0.001083240188 | IK9: 0.0008828828331 | IL9: 0.005251607823 | IM9: 0.4878974359 | IN9: 0.02650927809 | IO9: 0.00602748047 | IP9: 0.001514031927 | IQ9: 0.0439301007 | IR9: 0.9043081879 | IS9: 0.06374034328 | IT9: 0.0008335893912 | IU9: 0.01036212663 | IV9: 0.1380103206 | IW9: 3.840095323 | IX9: 0.1323461692 | IY9: 0.01309543398 | IZ9: 0.006512478464 | JA9: 0.003717674099 | JB9: 0.01815393562 | JC9: 0.1373126444 | JD9: 0.06847351662 | JE9: 0.03133057961 | JF9: 0.006831026552 | JG9: 0.07907771909 | JH9: 0.2521330536 | JI9: 0.1629541291 | JJ9: 0.00695553192 | JK9: 0.03981041549 | JL9: 0.2294437807 | JM9: 1.107147466 | JN9: 0.02892611377 | JO9: 0.01055349352 | JP9: 0.009222078034 | JQ9: 0.009170817261 | JR9: 0.01309971899 | JS9: 0.01816770745 | JT9: 0.02067416019 | JU9: 0.01792103433 | JV9: 0.01199464484 | JW9: 0.01374269932 | JX9: 0.02035374899 | JY9: 0.02796516561 | JZ9: 0.006036528607 | KA9: 0.01621099125 | KB9: 0.02585423252 | KC9: 0.04737274426 | KD9: 0.02998931557 | KE9: 0.01552355996 | KF9: 0.01265288991 | KG9: 0.01166198342 | KH9: 0.02115508074 | KI9: 0.0246684091 | KJ9: 0.02545406906 | KK9: 0.02582131365 | KL9: 0.01552650385 | KM9: 0.02366026934 | KN9: 0.03725050868 | KO9: 0.05248571367 | KP9: 0.02069566803 | KQ9: 0.0368222832 | KR9: 0.06977064692 | KS9: 0.1295884388 | KT9: 0.5951991694 | KU9: 0.241455537 | KV9: 0.00326341557 | KW9: 0.00101775862 | KX9: 0.01409280997 | KY9: 0.5825522517 | KZ9: 0.1495264713 | LA9: 0.02045777182 | LB9: 0.004323609412 | LC9: 0.1938622891 | LD9: 0.9946448462 | LE9: 0.3114947215 | LF9: 0.003315968963 | LG9: 0.02737262349 | LH9: 0.5034985043 | LI9: 3.117514865 | LJ9: 0.4644069506 | LK9: 0.01249048071 | LL9: 0.002183463731 | LM9: 0.001375427611 | LN9: 0.02334439619 | LO9: 0.4526436238 | LP9: 0.1710512994 | LQ9: 0.02770210294 | LR9: 0.00310944166 | LS9: 0.228553848 | LT9: 0.7434618255 | LU9: 0.4212399659 | LV9: 0.001187077351 | LW9: 0.03593888235 | LX9: 0.5505529451 | LY9: 2.373126688 | LZ9: 0.03955553156 | MA9: 0.006780502137 | MB9: 0.003154919396 | MC9: 0.003360223266 | MD9: 0.006789891242 | ME9: 0.05355878509 | MF9: 0.02163881439 | MG9: 0.01236398819 | MH9: 0.005025549738 | MI9: 0.02734256821 | MJ9: 0.09231545726 | MK9: 0.05664546479 | ML9: 0.005038159178 | MM9: 0.01828162354 | MN9: 0.07659372653 | MO9: 0.3609108112 | MP9: 4.686341718 | MQ9: 0.0003889435128 | MR9: -1.150922147e-05 | MS9: 0.0004821277641 | MT9: -8.965555211e-06 | MU9: 5.066804908 | MV9: 0.001592753905 | MW9: 0.0002947527849 | MX9: 0.0002179674613 | MY9: 0.002278426266 | MZ9: 6.727716137 | NA9: 0.0023530419 | NB9: -0.0001243614357 | NC9: 0.0007762590469 | ND9: 0.004851774884 | NE9: 23.78244182 | NF9: 4.760456747 | NG9: 0.0006257355479 | NH9: 0.0002458717885 | NI9: 0.0005116608166 | NJ9: 5.902098129e-05 | NK9: 4.677654149 | NL9: 0.0003893398433 | NM9: -0.0002890646683 | NN9: -7.112936497e-05 | NO9: 0.0005069993517 | NP9: 6.650213286 | NQ9: 0.0004722066177 | NR9: -0.0001764352329 | NS9: 8.160938204e-05 | NT9: 0.0009754790059 | NU9: 21.44421086 | NV9: 2.188739375 | NW9: 0.8879099104 | NX9: 0.0003300341795 | NY9: -6.509270208e-05 | NZ9: 0.001759469896 | OA9: 2.500548586 | OB9: 0.005692697048 | OC9: 0.001421216562 | OD9: 0.0006184090513 | OE9: 0.01483354334 | OF9: 3.309287709 | OG9: 0.01114786421 | OH9: 0.0002664440355 | OI9: 0.002139176621 | OJ9: 0.02082267999 | OK9: 10.29104439 | OL9: 0.06505634637 | OM9: 0.02639152716 | ON9: 0.006126484322 | OO9: 0.003000045466 | OP9: 0.01722268259 | OQ9: 0.05865044611 | OR9: 0.054556704 | OS9: 0.04056667248 | OT9: 0.007557044227 | OU9: 0.05504219832 | OV9: 0.1065644728 | OW9: 0.1310631389 | OX9: 0.004887867543 | OY9: 0.05167695127 | OZ9: 0.1526736444 | PA9: 0.3322350246 | PB9: 1.93310333 | PC9: 0.001890242801 | PD9: 0.0006608034017 | PE9: -0.0005305041585 | PF9: 0.001175201004 | PG9: 1.661340154 | PH9: 0.009154446236 | PI9: 0.002083042471 | PJ9: 0.0002267802551 | PK9: 0.01440681269 | PL9: 2.315775095 | PM9: 0.01756053386 | PN9: 2.775089796e-05 | PO9: 0.002081411481 | PP9: 0.02575262521 | PQ9: 7.163902432 | PR9: 0.04505879917 | PS9: 0.01827908557 | PT9: 0.00326095898 | PU9: 0.001001696785 | PV9: 0.01383240258 | PW9: 0.04391145155 | PX9: 0.04027780819 | PY9: 0.02939978906 | PZ9: 0.006560065573 | QA9: 0.04614695692 | QB9: 0.07780910486 | QC9: 0.1085830828 | QD9: 0.00415696828 | QE9: 0.04747385534 | QF9: 0.1321878979 | QG9: 0.3579786886 | QH9: 0.09664527063 | QI9: 0.01226779019 | QJ9: 0.008434963344 | QK9: 0.007872026513 | QL9: 0.006683067509 | QM9: 0.03832745503 | QN9: 0.01689039645 | QO9: 0.01963182117 | QP9: 0.004940786056 | QQ9: 0.01848090935 | QR9: 0.07283799189 | QS9: 0.08368575041 | QT9: 0.005861142205 | QU9: 0.01347105297 | QV9: 0.05303390624 | QW9: 0.2835306783 | QX9: 0.03420595182 | QY9: 0.014411031 | QZ9: 0.01332717554 | RA9: 0.01183600027 | RB9: 0.007140012876 | RC9: 0.0143022026 | RD9: 0.009815298123 | RE9: 0.01662557029 | RF9: 0.006688002432 | RG9: 0.008798937589 | RH9: 0.01311399724 | RI9: 0.02763531286 | RJ9: 0.008681163756 | RK9: 0.009432337509 | RL9: 0.01413417826 | RM9: 0.03087191264 | RN9: 3.394169047 | RO9: 0.5427185484 | RP9: 0.305068925 | RQ9: 0.1918843026 | RR9: 0.7431686178 | RS9: 3.252753946 | RT9: 1.773762197 | RU9: 0.9030842575 | RV9: 0.3866897881 | RW9: 1.970895832 | RX9: 4.289231913 | RY9: 2.429620883 | RZ9: 0.2896727676 | SA9: 1.206543706 | SB9: 3.138594323 | SC9: 8.266356798 | SD9: 1.042923949 | SE9: 0.06761036214 | SF9: 0.02296836978 | SG9: 0.01114256892 | SH9: 0.02945344696 | SI9: 0.3387356005 | SJ9: 0.1657086171 | SK9: 0.148262722 | SL9: 0.0177642054 | SM9: 0.1567342326 | SN9: 0.5612934001 | SO9: 0.6949922429 | SP9: 0.01327555375 | SQ9: 0.07631476271 | SR9: 0.06884265601 | SS9: 1.150882001 | ST9: 11.24057421 | SU9: 0.04065974297 | SV9: 0.01692830455 | SW9: 0.009717274177 | SX9: 0.01634269935 | SY9: 3.854442317 | SZ9: 0.217669484 | TA9: 0.08430165617 | TB9: 0.005680628314 | TC9: 0.1670273416 | TD9: 4.19589154 | TE9: 0.6357097171 | TF9: 0.004318987756 | TG9: 0.04194716023 | TH9: 0.07899541039 | TI9: 7.177283829 | TJ9: 4.284058778 | TK9: 0.02986719025 | TL9: 0.0159631161 | TM9: 0.01087012674 | TN9: 0.02191593405 | TO9: 1.848896167 | TP9: 0.06210847484 | TQ9: 0.06043450535 | TR9: 0.01181924516 | TS9: 0.08227269599 | TT9: 2.542387474 | TU9: 0.2739657222 | TV9: 0.007975114077 | TW9: 0.04297137135 | TX9: 0.03237154732 | TY9: 4.778758175 | TZ9: 5.980527801 | UA9: 0.02532188527 | UB9: 0.01158349948 | UC9: 0.005204252885 | UD9: 0.009421525473 | UE9: 2.917113045 | UF9: 0.05765915853 | UG9: 0.03982602553 | UH9: 0.005513470631 | UI9: 0.03655462948 | UJ9: 3.945644828 | UK9: 0.2056782888 | UL9: 0.003674651135 | UM9: 0.02604254679 | UN9: 0.02837252708 | UO9: 9.186437592 | UP9: 0.9401420081 | UQ9: 0.001734407192 | UR9: 0.001671912687 | US9: 0.0008765562697 | UT9: 0.002701728982 | UU9: 0.4002368328 | UV9: 0.006058194972 | UW9: 0.004917999784 | UX9: 0.0009285346393 | UY9: 0.008326698228 | UZ9: 0.622242082 | VA9: 0.02547980208 | VB9: 0.0009373919156 | VC9: 0.003277985583 | VD9: 0.003914537842 | VE9: 1.900737829 | VF9: 0.07325415817 | VG9: 0.03455121695 | VH9: 0.03138326774 | VI9: 0.03001008085 | VJ9: 0.04277410848 | VK9: 0.04282504466 | VL9: 0.0442197975 | VM9: 0.04583216202 | VN9: 0.03985897834 | VO9: 0.04788861042 | VP9: 0.06098747564 | VQ9: 0.06120883439 | VR9: 0.05549434257 | VS9: 0.06825784784 | VT9: 0.0773807227 | VU9: 0.1093167674 | VV9: 0.5541890574 | VW9: 0.002435620201 | VX9: 0.0007447917036 | VY9: 0.0003956283711 | VZ9: 0.002472868062 | WA9: 0.1498181217 | WB9: 0.01516040412 | WC9: 0.003457941512 | WD9: 0.0006598611817 | WE9: 0.01571732456 | WF9: 0.3224438237 | WG9: 0.06821626527 | WH9: 0.000318590479 | WI9: 0.005415222369 | WJ9: 0.009921196905 | WK9: 1.302114003 | WL9: 3.849674425 | WM9: 0.001933129869 | WN9: 0.0005655766835 | WO9: 0.0004731015033 | WP9: 0.001982295092 | WQ9: 3.63729854 | WR9: 0.004954487407 | WS9: 0.001732248195 | WT9: 0.0008859711802 | WU9: 0.005350980748 | WV9: 5.573650014 | WW9: 0.005606311987 | WX9: 0.0003122248444 | WY9: 0.002063040719 | WZ9: 0.01117409474 | XA9: 23.48791185 | XB9: 6.126696789 | XC9: 0.005064405393 | XD9: 0.002958005322 | XE9: 0.001283556093 | XF9: 0.007193219338 | XG9: 5.633985922 | XH9: 0.02501209708 | XI9: 0.009535287805 | XJ9: 0.00276214926 | XK9: 0.03816054666 | XL9: 8.038573226 | XM9: 0.04437278885 | XN9: 0.002339043823 | XO9: 0.01030455023 | XP9: 0.05251866153 | XQ9: 20.8499929 | XR9: 0.1365565691 | XS9: 0.005981470716 | XT9: 0.002825581573 | XU9: 0.002085393467 | XV9: 0.007855437998 | XW9: 0.1330161687 | XX9: 0.04886613414 | XY9: 0.0156240645 | XZ9: 0.003492940891 | YA9: 0.0619971171 | YB9: 0.235583 | YC9: 0.1189715201 | YD9: 0.003359025534 | YE9: 0.01182936538 | YF9: 0.1833386266 | YG9: 1.067619825 | YH9: 0.02713289459 | YI9: 0.01083517213 | YJ9: 0.009249990314 | YK9: 0.008675572786 | YL9: 0.01385728131 | YM9: 0.02337487437 | YN9: 0.02215645941 | YO9: 0.02469980666 | YP9: 0.01193019642 | YQ9: 0.02548754018 | YR9: 0.0393388912 | YS9: 0.05297888419 | YT9: 0.01327975815 | YU9: 0.03218261734 | YV9: 0.06255811023 | YW9: 0.1409277456 | YX9: 0.0566775244 | YY9: 0.03007019534 | YZ9: 0.02951362857 | ZA9: 0.03290309286 | ZB9: 0.03884352468 | ZC9: 0.03936274843 | ZD9: 0.03938936332 | ZE9: 0.04107819668 | ZF9: 0.03622784739 | ZG9: 0.04450268395 | ZH9: 0.04668306943 | ZI9: 0.04616076548 | ZJ9: 0.04940224749 | ZK9: 0.05648474844 | ZL9: 0.06715127844 | ZM9: 0.0795954915 | ZN9: 0.05865936052 | ZO9: 0.03303104042 | ZP9: 0.03142884039 | ZQ9: 0.03101995854 | ZR9: 0.04456304931 | ZS9: 0.04684360365 | ZT9: 0.0448937109 | ZU9: 0.04553058349 | ZV9: 0.0454634042 | ZW9: 0.04779645429 | ZX9: 0.05815328697 | ZY9: 0.05909767008 | ZZ9: 0.05267203991 | AAA9: 0.06594216684 | AAB9: 0.07998782145 | AAC9: 0.1080883869 | AAD9: 0.02772381668 | AAE9: 0.01103084044 | AAF9: 0.006273454179 | AAG9: 0.003973818109 | AAH9: 0.01305327958 | AAI9: 0.02970543171 | AAJ9: 0.02539622734 | AAK9: 0.0270847256 | AAL9: 0.008704311717 | AAM9: 0.02681952571 | AAN9: 0.06041017583 | AAO9: 0.06736219398 | AAP9: 0.008251251857 | AAQ9: 0.03738350367 | AAR9: 0.1073177764 | AAS9: 0.2900285313 | AAT9: 0.06541246755 | AAU9: 0.008307275462 | AAV9: 0.004760891015 | AAW9: 0.002913955118 | AAX9: 0.01456621025 | AAY9: 0.07133540111 | AAZ9: 0.03861681256 | ABA9: 0.0237561752 | ABB9: 0.004919471895 | ABC9: 0.04349415173 | ABD9: 0.1286209495 | ABE9: 0.1001503531 | ABF9: 0.005243898125 | ABG9: 0.03249536068 | ABH9: 0.1278108686 | ABI9: 0.5353718749 | ABJ9: 0.2227572983 | ABK9: 0.1330146386 | ABL9: 0.1169819033 | ABM9: 0.1065768163 | ABN9: 0.1574036856 | ABO9: 0.1638796866 | ABP9: 0.1520076578 | ABQ9: 0.1508868891 | ABR9: 0.1431174011 | ABS9: 0.1621729677 | ABT9: 0.175050979 | ABU9: 0.1757254363 | ABV9: 0.1751391562 | ABW9: 0.2116692558 | ABX9: 0.2360120386 | ABY9: 0.2787335755
A10: 237 | B10: 0.3216778694 | C10: 0.00700739207 | D10: 0.001641882469 | E10: 0.0007272591847 | F10: 0.00244555383 | G10: 0.107652164 | H10: 0.02562610335 | I10: 0.01284991113 | J10: 0.002286085543 | K10: 0.02245594432 | L10: 0.1608545798 | M10: 0.1127667765 | N10: 0.0007789669324 | O10: 0.006635222661 | P10: 0.04240058193 | Q10: 0.7793410378 | R10: 0.1387466349 | S10: 0.008517623334 | T10: 0.003268855068 | U10: 0.002420555993 | V10: 0.01285739195 | W10: 0.1267100655 | X10: 0.05468601839 | Y10: 0.02247638957 | Z10: 0.005232129083 | AA10: 0.06728882257 | AB10: 0.2319825324 | AC10: 0.1322514675 | AD10: 0.00334111014 | AE10: 0.02857443634 | AF10: 0.1915096584 | AG10: 1.043225633 | AH10: 0.07729458789 | AI10: 0.009344593303 | AJ10: 0.003449242033 | AK10: 0.002382888746 | AL10: 0.0145724174 | AM10: 0.07743643051 | AN10: 0.04821786592 | AO10: 0.02466159882 | AP10: 0.005627979636 | AQ10: 0.05443837063 | AR10: 0.1496240629 | AS10: 0.1198333787 | AT10: 0.004786509132 | AU10: 0.03134218622 | AV10: 0.1598279759 | AW10: 0.6229795063 | AX10: 0.1705464448 | AY10: 0.007719487911 | AZ10: 0.002818725579 | BA10: 0.001475659766 | BB10: 0.01064884449 | BC10: 0.1564618606 | BD10: 0.0515570614 | BE10: 0.01945492679 | BF10: 0.003976001137 | BG10: 0.06121489006 | BH10: 0.3366081467 | BI10: 0.1246955964 | BJ10: 0.002834038896 | BK10: 0.02206922521 | BL10: 0.1762451146 | BM10: 1.42651666 | BN10: 0.03958594734 | BO10: 0.009819298083 | BP10: 0.006310753583 | BQ10: 0.003315010016 | BR10: 0.01373638176 | BS10: 0.03840798913 | BT10: 0.03246743846 | BU10: 0.02422303902 | BV10: 0.008092681864 | BW10: 0.03523393993 | BX10: 0.0898042195 | BY10: 0.07642968016 | BZ10: 0.007745829156 | CA10: 0.02924697704 | CB10: 0.09623965019 | CC10: 0.3608900952 | CD10: 0.03119108224 | CE10: 0.01216465539 | CF10: 0.01056042066 | CG10: 0.00801761906 | CH10: 0.0168270784 | CI10: 0.02556824398 | CJ10: 0.02317971556 | CK10: 0.02136186906 | CL10: 0.01427199115 | CM10: 0.02521525393 | CN10: 0.04016071018 | CO10: 0.04041084114 | CP10: 0.01699250305 | CQ10: 0.02846396635 | CR10: 0.0575483771 | CS10: 0.1533317816 | CT10: 0.0753146573 | CU10: 0.007756316817 | CV10: 0.004834028589 | CW10: 0.002417706289 | CX10: 0.009916214789 | CY10: 0.07626917708 | CZ10: 0.03272936597 | DA10: 0.01894781705 | DB10: 0.005085075304 | DC10: 0.03195258089 | DD10: 0.1490362966 | DE10: 0.07941471091 | DF10: 0.004797081104 | DG10: 0.0199696172 | DH10: 0.1006537282 | DI10: 0.6055732133 | DJ10: 0.05488790761 | DK10: 0.01734014802 | DL10: 0.009782988144 | DM10: 0.007727724555 | DN10: 0.02211189953 | DO10: 0.04502937884 | DP10: 0.04144322389 | DQ10: 0.03453335037 | DR10: 0.01636737387 | DS10: 0.03730306922 | DT10: 0.07067135765 | DU10: 0.08382005938 | DV10: 0.01308526764 | DW10: 0.03827149546 | DX10: 0.09027688332 | DY10: 0.1948503458 | DZ10: 0.07730529078 | EA10: 0.03333356365 | EB10: 0.02746928423 | EC10: 0.0285861402 | ED10: 0.01998890978 | EE10: 0.01674651419 | EF10: 0.01236506135 | EG10: 0.03104916241 | EH10: 0.01960836562 | EI10: 0.01570435033 | EJ10: 0.01317391438 | EK10: 0.02519298297 | EL10: 0.01921597885 | EM10: 0.01383584015 | EN10: 0.01391334178 | EO10: 0.01284621728 | EP10: 0.02100990209 | EQ10: 0.01022749568 | ER10: 0.006623472122 | ES10: 0.005543990367 | ET10: 0.01381952413 | EU10: 0.02026208711 | EV10: 0.02355801725 | EW10: 0.02550159275 | EX10: 0.009218810039 | EY10: 0.02056006107 | EZ10: 0.03559021173 | FA10: 0.05374167183 | FB10: 0.01015986058 | FC10: 0.03005927245 | FD10: 0.05916659818 | FE10: 0.132055853 | FF10: 0.0177441454 | FG10: 0.008380537959 | FH10: 0.006587450015 | FI10: 0.005877296181 | FJ10: 0.01048896324 | FK10: 0.01412271681 | FL10: 0.0162978209 | FM10: 0.02045401517 | FN10: 0.009663103272 | FO10: 0.01738262063 | FP10: 0.02506641056 | FQ10: 0.03474028749 | FR10: 0.01178449365 | FS10: 0.02688120681 | FT10: 0.04604226014 | FU10: 0.08505550654 | FV10: 0.04004577565 | FW10: 0.02004140091 | FX10: 0.01730889036 | FY10: 0.01538567601 | FZ10: 0.02828776088 | GA10: 0.02226818148 | GB10: 0.01878058997 | GC10: 0.01767894722 | GD10: 0.02561699733 | GE10: 0.02047258981 | GF10: 0.0203839996 | GG10: 0.01921158734 | GH10: 0.02784738716 | GI10: 0.02486417813 | GJ10: 0.02798776649 | GK10: 0.02680533214 | GL10: 0.1592092537 | GM10: 0.009229198874 | GN10: 0.004097225322 | GO10: 0.002628133822 | GP10: 0.01252151179 | GQ10: 0.05754664338 | GR10: 0.03776843829 | GS10: 0.0219079202 | GT10: 0.005877758394 | GU10: 0.04375237884 | GV10: 0.1143840963 | GW10: 0.0899423452 | GX10: 0.004013743682 | GY10: 0.03153375671 | GZ10: 0.1278401285 | HA10: 0.550824196 | HB10: 1.722081439 | HC10: 0.03384845522 | HD10: 0.01559203526 | HE10: 0.007099100867 | HF10: 0.04938246357 | HG10: 0.9287458452 | HH10: 0.1544705149 | HI10: 0.0685130365 | HJ10: 0.2243050264 | HK10: 0.2590051348 | HL10: 1.844750051 | HM10: 0.267144398 | HN10: 0.01584192829 | HO10: 0.12229402 | HP10: 0.7304737077 | HQ10: 6.05056246 | HR10: 0.5966032697 | HS10: 0.002248166402 | HT10: 0.0005606145615 | HU10: 0.0006089964508 | HV10: 0.002737161514 | HW10: 0.6451090725 | HX10: 0.0229793818 | HY10: 0.004894257179 | HZ10: 0.001001846 | IA10: 0.03326945109 | IB10: 1.307677353 | IC10: 0.05282948285 | ID10: 0.0004987099244 | IE10: 0.005899547729 | IF10: 0.09055237218 | IG10: 5.321725699 | IH10: 0.5610771277 | II10: 0.003285767061 | IJ10: 0.0008215286453 | IK10: 0.000782170797 | IL10: 0.005359816916 | IM10: 0.4941439765 | IN10: 0.02493323723 | IO10: 0.005849174846 | IP10: 0.001746615171 | IQ10: 0.04672169823 | IR10: 0.9189259971 | IS10: 0.06612079784 | IT10: 0.000786959301 | IU10: 0.01068388357 | IV10: 0.1441639228 | IW10: 3.890154288 | IX10: 0.1350543693 | IY10: 0.01316963877 | IZ10: 0.006041995836 | JA10: 0.003859400988 | JB10: 0.01808850978 | JC10: 0.1371920916 | JD10: 0.06808630589 | JE10: 0.03088762279 | JF10: 0.007586349228 | JG10: 0.07892786626 | JH10: 0.2535719075 | JI10: 0.1652238691 | JJ10: 0.007513653648 | JK10: 0.04104610571 | JL10: 0.2247334889 | JM10: 1.117391324 | JN10: 0.02963425977 | JO10: 0.01161466861 | JP10: 0.008930113643 | JQ10: 0.007452488573 | JR10: 0.01323134801 | JS10: 0.01781062729 | JT10: 0.01974133606 | JU10: 0.01762175166 | JV10: 0.01177852082 | JW10: 0.01507452526 | JX10: 0.02155709632 | JY10: 0.02797603444 | JZ10: 0.006522098959 | KA10: 0.01775733508 | KB10: 0.02561203003 | KC10: 0.04755843889 | KD10: 0.03038389194 | KE10: 0.01518825379 | KF10: 0.01267511705 | KG10: 0.01273821534 | KH10: 0.0196335343 | KI10: 0.02505471021 | KJ10: 0.02502599591 | KK10: 0.02567291312 | KL10: 0.01455106678 | KM10: 0.02393651088 | KN10: 0.03648328479 | KO10: 0.05400433261 | KP10: 0.02052997778 | KQ10: 0.03827724049 | KR10: 0.06797556579 | KS10: 0.1263660234 | KT10: 0.6099869577 | KU10: 0.2492489765 | KV10: 0.002750223106 | KW10: 0.001130979491 | KX10: 0.01434079657 | KY10: 0.573212844 | KZ10: 0.1470066242 | LA10: 0.02175899386 | LB10: 0.004102084588 | LC10: 0.198497762 | LD10: 0.9797869544 | LE10: 0.3134518038 | LF10: 0.002869058552 | LG10: 0.02692350906 | LH10: 0.4963368782 | LI10: 3.082750928 | LJ10: 0.4661771992 | LK10: 0.01249572181 | LL10: 0.001241855671 | LM10: 0.00134966386 | LN10: 0.02320559359 | LO10: 0.4475049318 | LP10: 0.1735010224 | LQ10: 0.02427085329 | LR10: 0.003030395596 | LS10: 0.2284421762 | LT10: 0.7410282576 | LU10: 0.4204930918 | LV10: 0.001363294906 | LW10: 0.03639383014 | LX10: 0.5571227927 | LY10: 2.353786612 | LZ10: 0.03906623793 | MA10: 0.00662478065 | MB10: 0.003442650938 | MC10: 0.003020430954 | MD10: 0.007302607786 | ME10: 0.0526466082 | MF10: 0.02316838286 | MG10: 0.01401998094 | MH10: 0.005498467952 | MI10: 0.02686245383 | MJ10: 0.09387849556 | MK10: 0.05716420475 | ML10: 0.00505790535 | MM10: 0.0187491819 | MN10: 0.07850586145 | MO10: 0.3678154395 | MP10: 4.742048662 | MQ10: 0.0003712983785 | MR10: -4.720882891e-05 | MS10: 0.0004702012311 | MT10: 0.000280990579 | MU10: 5.032390453 | MV10: 0.001718693301 | MW10: 0.0003584739158 | MX10: 0.0002318647866 | MY10: 0.001651896519 | MZ10: 6.68025219 | NA10: 0.002586096553 | NB10: 4.765952521e-05 | NC10: 0.0006591746585 | ND10: 0.004908112585 | NE10: 23.62441215 | NF10: 4.783717721 | NG10: 0.0004783820459 | NH10: 8.743783462e-05 | NI10: 9.530678153e-05 | NJ10: 0.0001279546338 | NK10: 4.647585318 | NL10: 0.0003574080902 | NM10: 0.0001277791131 | NN10: -8.913987798e-05 | NO10: 0.000521271565 | NP10: 6.602432782 | NQ10: 0.0004442176958 | NR10: -8.449012107e-06 | NS10: 0.0002341458919 | NT10: 0.0008840716885 | NU10: 21.43273688 | NV10: 2.173867027 | NW10: 0.8882716667 | NX10: 0.0001014925034 | NY10: 0.0001062671832 | NZ10: 0.001702593736 | OA10: 2.490012104 | OB10: 0.005750216501 | OC10: 0.001916384074 | OD10: 0.0005291391036 | OE10: 0.01406689146 | OF10: 3.280149905 | OG10: 0.01158954381 | OH10: 8.991682182e-05 | OI10: 0.002889014428 | OJ10: 0.02138572345 | OK10: 10.26833181 | OL10: 0.06299646192 | OM10: 0.0257412121 | ON10: 0.006665817534 | OO10: 0.003715917152 | OP10: 0.01856227057 | OQ10: 0.05867680967 | OR10: 0.05455323643 | OS10: 0.04252012193 | OT10: 0.007802386036 | OU10: 0.05323018853 | OV10: 0.1060316232 | OW10: 0.1354474321 | OX10: 0.005265404767 | OY10: 0.05141226129 | OZ10: 0.1494761336 | PA10: 0.3279933718 | PB10: 1.937852905 | PC10: 0.001697448389 | PD10: 0.0006010076967 | PE10: -0.0004537362722 | PF10: 0.001309694214 | PG10: 1.854098456 | PH10: 0.01195973314 | PI10: 0.002192290604 | PJ10: 0.0004273527701 | PK10: 0.01686479054 | PL10: 2.590462628 | PM10: 0.01595525373 | PN10: 0.0001292376871 | PO10: 0.002119475863 | PP10: 0.02673842244 | PQ10: 7.951296309 | PR10: 0.04765564776 | PS10: 0.01947274656 | PT10: 0.00334688569 | PU10: 0.002019039946 | PV10: 0.01455426008 | PW10: 0.04383298643 | PX10: 0.03868055819 | PY10: 0.02826702522 | PZ10: 0.007408551749 | QA10: 0.04531044871 | QB10: 0.07943235843 | QC10: 0.1085473068 | QD10: 0.004458172324 | QE10: 0.05011634517 | QF10: 0.1367980681 | QG10: 0.3563787738 | QH10: 0.09891828122 | QI10: 0.01161603499 | QJ10: 0.008788294232 | QK10: 0.008127503176 | QL10: 0.007978459407 | QM10: 0.04389640167 | QN10: 0.01846627346 | QO10: 0.02145340616 | QP10: 0.006017942011 | QQ10: 0.02235097946 | QR10: 0.08546843885 | QS10: 0.08439644079 | QT10: 0.006771421201 | QU10: 0.01455113799 | QV10: 0.05305187937 | QW10: 0.3187968277 | QX10: 0.03442508014 | QY10: 0.01433830384 | QZ10: 0.01391056303 | RA10: 0.01223875796 | RB10: 0.008870605698 | RC10: 0.01434141718 | RD10: 0.009894936074 | RE10: 0.01757710887 | RF10: 0.008454693434 | RG10: 0.008975914887 | RH10: 0.01508122612 | RI10: 0.02617212516 | RJ10: 0.008276883068 | RK10: 0.01056165411 | RL10: 0.01548219819 | RM10: 0.03483091386 | RN10: 3.432378748 | RO10: 0.5550384593 | RP10: 0.3018306885 | RQ10: 0.1873882915 | RR10: 0.7448380346 | RS10: 3.275590561 | RT10: 1.773505293 | RU10: 0.8937190684 | RV10: 0.391116563 | RW10: 1.975105787 | RX10: 4.29859073 | RY10: 2.437450792 | RZ10: 0.2945017666 | SA10: 1.198030542 | SB10: 3.141145294 | SC10: 8.286238005 | SD10: 1.050363616 | SE10: 0.06895761953 | SF10: 0.02196849824 | SG10: 0.0114949851 | SH10: 0.03066920277 | SI10: 0.3972822321 | SJ10: 0.1865728002 | SK10: 0.149436874 | SL10: 0.01781152828 | SM10: 0.1804636524 | SN10: 0.6207265933 | SO10: 0.7026372675 | SP10: 0.01385555716 | SQ10: 0.08346003054 | SR10: 0.07658314757 | SS10: 1.304186247 | ST10: 11.41688086 | SU10: 0.04316381191 | SV10: 0.01419208832 | SW10: 0.008516597435 | SX10: 0.01933677835 | SY10: 4.360561569 | SZ10: 0.2375907107 | TA10: 0.08195299391 | TB10: 0.005417983332 | TC10: 0.1876653563 | TD10: 4.754689539 | TE10: 0.6412964035 | TF10: 0.005113808255 | TG10: 0.04987605982 | TH10: 0.08619165719 | TI10: 8.093559205 | TJ10: 4.29687614 | TK10: 0.03040908839 | TL10: 0.01567706298 | TM10: 0.0104517416 | TN10: 0.02234857441 | TO10: 2.097661733 | TP10: 0.07561491838 | TQ10: 0.06076010613 | TR10: 0.01291990624 | TS10: 0.09549420241 | TT10: 2.845656954 | TU10: 0.2832939578 | TV10: 0.00856789432 | TW10: 0.04565784223 | TX10: 0.03625083287 | TY10: 5.331214391 | TZ10: 6.087369048 | UA10: 0.02341688482 | UB10: 0.01147247969 | UC10: 0.005928213336 | UD10: 0.01007433137 | UE10: 3.302145063 | UF10: 0.06566330393 | UG10: 0.0383056506 | UH10: 0.005370223848 | UI10: 0.04106563562 | UJ10: 4.408109004 | UK10: 0.2101686985 | UL10: 0.003837823701 | UM10: 0.02710151502 | UN10: 0.03148143704 | UO10: 10.31448686 | UP10: 0.9484882571 | UQ10: 0.002064851538 | UR10: 0.001408213883 | US10: 0.001019780127 | UT10: 0.00256435406 | UU10: 0.4492980935 | UV10: 0.007661727178 | UW10: 0.005757516695 | UX10: 0.0008295939817 | UY10: 0.008676207657 | UZ10: 0.7008833735 | VA10: 0.02604711279 | VB10: 0.0006908286807 | VC10: 0.003131417142 | VD10: 0.004099134038 | VE10: 2.119380856 | VF10: 0.06609174676 | VG10: 0.03500124939 | VH10: 0.03299313185 | VI10: 0.02921752022 | VJ10: 0.04359847666 | VK10: 0.04298796296 | VL10: 0.04425882404 | VM10: 0.0459190996 | VN10: 0.03953414287 | VO10: 0.04915632903 | VP10: 0.06084556437 | VQ10: 0.06229824088 | VR10: 0.05432309248 | VS10: 0.06724142309 | VT10: 0.08117783773 | VU10: 0.1105178335 | VV10: 0.5434026821 | VW10: 0.002042183269 | VX10: 0.0004678381987 | VY10: 0.0003381405694 | VZ10: 0.002223298207 | WA10: 0.1647591677 | WB10: 0.01890503189 | WC10: 0.00405244751 | WD10: 0.000822207141 | WE10: 0.01600809759 | WF10: 0.3630744994 | WG10: 0.06771693845 | WH10: 0.0006125407547 | WI10: 0.006421777776 | WJ10: 0.01087745307 | WK10: 1.452991795 | WL10: 3.824114225 | WM10: 0.001551187428 | WN10: 0.0006021220496 | WO10: 0.0001193222394 | WP10: 0.001997837812 | WQ10: 3.573051863 | WR10: 0.005830367122 | WS10: 0.001830633104 | WT10: 0.0007602543273 | WU10: 0.005632164411 | WV10: 5.480255255 | WW10: 0.005575086062 | WX10: 0.000326360682 | WY10: 0.002131360596 | WZ10: 0.009532247971 | XA10: 23.15283096 | XB10: 6.107063677 | XC10: 0.00566311588 | XD10: 0.002266015149 | XE10: 0.001050530142 | XF10: 0.007011709362 | XG10: 5.523280432 | XH10: 0.02474287523 | XI10: 0.00768590881 | XJ10: 0.002502988041 | XK10: 0.03890469666 | XL10: 7.914533636 | XM10: 0.04560505628 | XN10: 0.001987243132 | XO10: 0.009531512403 | XP10: 0.05677657177 | XQ10: 20.63071658 | XR10: 0.1399171765 | XS10: 0.007155966264 | XT10: 0.002931240675 | XU10: 0.001823640341 | XV10: 0.007587411402 | XW10: 0.1340311299 | XX10: 0.05101535507 | XY10: 0.01604020067 | XZ10: 0.003332103374 | YA10: 0.06129744963 | YB10: 0.2394295214 | YC10: 0.1205955449 | YD10: 0.00292660075 | YE10: 0.01288333656 | YF10: 0.1789185161 | YG10: 1.060366586 | YH10: 0.0270237537 | YI10: 0.01122958928 | YJ10: 0.008247343537 | YK10: 0.007394069632 | YL10: 0.01385625638 | YM10: 0.02275273987 | YN10: 0.0233894647 | YO10: 0.02527635725 | YP10: 0.01243955393 | YQ10: 0.023885472 | YR10: 0.03749824624 | YS10: 0.04998244544 | YT10: 0.01384829181 | YU10: 0.03211849976 | YV10: 0.0629759915 | YW10: 0.1331807519 | YX10: 0.05612113126 | YY10: 0.03054876956 | YZ10: 0.02954825221 | ZA10: 0.03165929068 | ZB10: 0.0386146125 | ZC10: 0.03853228975 | ZD10: 0.0384830576 | ZE10: 0.0423094365 | ZF10: 0.03758638747 | ZG10: 0.04330640129 | ZH10: 0.04563416194 | ZI10: 0.0487857712 | ZJ10: 0.04871409625 | ZK10: 0.05553297082 | ZL10: 0.06631608736 | ZM10: 0.08359437121 | ZN10: 0.06045743461 | ZO10: 0.03400567641 | ZP10: 0.03181754995 | ZQ10: 0.03187256792 | ZR10: 0.04413012052 | ZS10: 0.04877680845 | ZT10: 0.04438635731 | ZU10: 0.04777728341 | ZV10: 0.04334515587 | ZW10: 0.04857966335 | ZX10: 0.05573987597 | ZY10: 0.0621745461 | ZZ10: 0.05278084629 | AAA10: 0.06481673967 | AAB10: 0.08106067663 | AAC10: 0.1092427238 | AAD10: 0.03053922144 | AAE10: 0.01249962407 | AAF10: 0.006237102627 | AAG10: 0.004154856882 | AAH10: 0.01443770219 | AAI10: 0.03086073783 | AAJ10: 0.02614116291 | AAK10: 0.02872682908 | AAL10: 0.008641571078 | AAM10: 0.02748972819 | AAN10: 0.05998054731 | AAO10: 0.06969908997 | AAP10: 0.008033028269 | AAQ10: 0.03985159538 | AAR10: 0.1115412093 | AAS10: 0.2884359192 | AAT10: 0.06477443147 | AAU10: 0.008694722705 | AAV10: 0.004975102218 | AAW10: 0.002567035672 | AAX10: 0.01431165407 | AAY10: 0.07103525227 | AAZ10: 0.0375935432 | ABA10: 0.02236996346 | ABB10: 0.00510230944 | ABC10: 0.04268341587 | ABD10: 0.1309463251 | ABE10: 0.09877499307 | ABF10: 0.005141520592 | ABG10: 0.03224955571 | ABH10: 0.1282859268 | ABI10: 0.5425776034 | ABJ10: 0.2283975428 | ABK10: 0.1326654445 | ABL10: 0.1126596513 | ABM10: 0.103220163 | ABN10: 0.1596932004 | ABO10: 0.1538460461 | ABP10: 0.1523782111 | ABQ10: 0.1516974595 | ABR10: 0.1444380921 | ABS10: 0.1606446172 | ABT10: 0.174198023 | ABU10: 0.1758320429 | ABV10: 0.1820949095 | ABW10: 0.2017582619 | ABX10: 0.2343037766 | ABY10: 0.2878891289
A11: 238 | B11: 0.3193729316 | C11: 0.007063457431 | D11: 0.001931295068 | E11: 0.0006452749453 | F11: 0.002535181166 | G11: 0.1137447591 | H11: 0.02519806419 | I11: 0.01299465926 | J11: 0.002000826141 | K11: 0.02617307914 | L11: 0.1857090103 | M11: 0.1109750483 | N11: 0.001170508148 | O11: 0.008896081646 | P11: 0.03920764903 | Q11: 0.8081055252 | R11: 0.1330697037 | S11: 0.008491505307 | T11: 0.002987351337 | U11: 0.002377024772 | V11: 0.01278387197 | W11: 0.1302437774 | X11: 0.05437862423 | Y11: 0.02213368566 | Z11: 0.004840444413 | AA11: 0.06838944285 | AB11: 0.2295548287 | AC11: 0.1302990204 | AD11: 0.003294125849 | AE11: 0.02914276922 | AF11: 0.1922579321 | AG11: 1.042745781 | AH11: 0.07878816652 | AI11: 0.009849173957 | AJ11: 0.003220865697 | AK11: 0.002207185525 | AL11: 0.01509890917 | AM11: 0.07659924793 | AN11: 0.04710467066 | AO11: 0.02413176091 | AP11: 0.005192355478 | AQ11: 0.0559176192 | AR11: 0.1499561385 | AS11: 0.1168404635 | AT11: 0.004734768489 | AU11: 0.02941192119 | AV11: 0.1560688923 | AW11: 0.6120625569 | AX11: 0.1677570728 | AY11: 0.00836288033 | AZ11: 0.002579172411 | BA11: 0.001514937972 | BB11: 0.0106040697 | BC11: 0.1589082756 | BD11: 0.05211901438 | BE11: 0.01943449751 | BF11: 0.003497313167 | BG11: 0.06153959762 | BH11: 0.3330247845 | BI11: 0.1262193225 | BJ11: 0.002220495956 | BK11: 0.02187269924 | BL11: 0.1731800447 | BM11: 1.418798938 | BN11: 0.03724211176 | BO11: 0.01001710277 | BP11: 0.006214603592 | BQ11: 0.002873564106 | BR11: 0.0132891128 | BS11: 0.03785038238 | BT11: 0.03307447046 | BU11: 0.02456207853 | BV11: 0.008171585788 | BW11: 0.03577401017 | BX11: 0.08848918915 | BY11: 0.0784146128 | BZ11: 0.007665010398 | CA11: 0.03072625363 | CB11: 0.09577370089 | CC11: 0.3562128506 | CD11: 0.03018521226 | CE11: 0.01198479233 | CF11: 0.01067955516 | CG11: 0.008127227395 | CH11: 0.01564505567 | CI11: 0.02671325939 | CJ11: 0.02247941858 | CK11: 0.02075745029 | CL11: 0.01466364505 | CM11: 0.02529280337 | CN11: 0.03824425701 | CO11: 0.03910914672 | CP11: 0.01750038958 | CQ11: 0.02664351185 | CR11: 0.05933546116 | CS11: 0.1536482377 | CT11: 0.07447479064 | CU11: 0.007436945315 | CV11: 0.004262622307 | CW11: 0.002438688672 | CX11: 0.01032761205 | CY11: 0.07352013883 | CZ11: 0.03270342772 | DA11: 0.01982155557 | DB11: 0.005538455974 | DC11: 0.0313550664 | DD11: 0.148874012 | DE11: 0.07907401833 | DF11: 0.004479465196 | DG11: 0.02077308823 | DH11: 0.1022218141 | DI11: 0.600576618 | DJ11: 0.05369499842 | DK11: 0.01667374435 | DL11: 0.008474266383 | DM11: 0.007780119075 | DN11: 0.02194436905 | DO11: 0.0451493607 | DP11: 0.039706906 | DQ11: 0.03328077418 | DR11: 0.01718033317 | DS11: 0.03736217848 | DT11: 0.06915691031 | DU11: 0.08408455725 | DV11: 0.01309633232 | DW11: 0.03662391714 | DX11: 0.09026374986 | DY11: 0.1944939135 | DZ11: 0.07819242031 | EA11: 0.03118711314 | EB11: 0.02906550478 | EC11: 0.02963420355 | ED11: 0.02313410091 | EE11: 0.01674346122 | EF11: 0.01372921066 | EG11: 0.03240357853 | EH11: 0.02070828007 | EI11: 0.016097707 | EJ11: 0.01442915533 | EK11: 0.02573882954 | EL11: 0.02006721135 | EM11: 0.01684820609 | EN11: 0.01541663261 | EO11: 0.01458088006 | EP11: 0.02054407267 | EQ11: 0.009928707173 | ER11: 0.00588963684 | ES11: 0.005907678346 | ET11: 0.01263724723 | EU11: 0.01987655915 | EV11: 0.02320059483 | EW11: 0.02486144596 | EX11: 0.009572047977 | EY11: 0.01968767866 | EZ11: 0.03411058668 | FA11: 0.05296311261 | FB11: 0.009961422256 | FC11: 0.03022374651 | FD11: 0.06195602177 | FE11: 0.1298663917 | FF11: 0.01823209558 | FG11: 0.00873479606 | FH11: 0.006536314757 | FI11: 0.005447548822 | FJ11: 0.01028615316 | FK11: 0.01399448006 | FL11: 0.01715997861 | FM11: 0.02121440921 | FN11: 0.008956117239 | FO11: 0.01681423774 | FP11: 0.02421584849 | FQ11: 0.03474544114 | FR11: 0.01172173327 | FS11: 0.0269156816 | FT11: 0.04582809361 | FU11: 0.08759323261 | FV11: 0.03984841311 | FW11: 0.02001527631 | FX11: 0.01729990767 | FY11: 0.01607670992 | FZ11: 0.0290056422 | GA11: 0.02206317943 | GB11: 0.01867878859 | GC11: 0.01678863533 | GD11: 0.02518341247 | GE11: 0.01982723556 | GF11: 0.01832325804 | GG11: 0.01924407961 | GH11: 0.02789373813 | GI11: 0.02513041398 | GJ11: 0.02761402963 | GK11: 0.02726898898 | GL11: 0.1607674576 | GM11: 0.009418657473 | GN11: 0.004537213137 | GO11: 0.002784054826 | GP11: 0.01234769673 | GQ11: 0.05745313845 | GR11: 0.03720006006 | GS11: 0.02219972483 | GT11: 0.005603345891 | GU11: 0.04483627141 | GV11: 0.1160461877 | GW11: 0.08560282474 | GX11: 0.004198034524 | GY11: 0.03128496797 | GZ11: 0.1240291843 | HA11: 0.541304451 | HB11: 1.710087346 | HC11: 0.03457939662 | HD11: 0.01570387574 | HE11: 0.006874975881 | HF11: 0.04984185369 | HG11: 0.9159962462 | HH11: 0.1530013145 | HI11: 0.07086607122 | HJ11: 0.2217402093 | HK11: 0.256043539 | HL11: 1.821168749 | HM11: 0.2604994786 | HN11: 0.01599766405 | HO11: 0.1208042136 | HP11: 0.7221949371 | HQ11: 5.963792407 | HR11: 0.6163532732 | HS11: 0.002297664295 | HT11: 0.0002570044307 | HU11: 0.0009062045975 | HV11: 0.0022582509 | HW11: 0.6412064195 | HX11: 0.02229970362 | HY11: 0.004668148898 | HZ11: 0.001124779501 | IA11: 0.03281230929 | IB11: 1.312175494 | IC11: 0.05232348941 | ID11: 0.0005062115325 | IE11: 0.005496805467 | IF11: 0.09076621133 | IG11: 5.336994249 | IH11: 0.5721547823 | II11: 0.003134126026 | IJ11: 0.0006090751102 | IK11: 0.0006994504588 | IL11: 0.00539978648 | IM11: 0.4948416118 | IN11: 0.02345365312 | IO11: 0.005655395363 | IP11: 0.001925172234 | IQ11: 0.04872995101 | IR11: 0.9259108136 | IS11: 0.06769565045 | IT11: 0.0007446339914 | IU11: 0.0108833472 | IV11: 0.1483243682 | IW11: 3.908385287 | IX11: 0.1363806401 | IY11: 0.01320215896 | IZ11: 0.00565062381 | JA11: 0.003965550967 | JB11: 0.0178784985 | JC11: 0.135900157 | JD11: 0.06718292053 | JE11: 0.03026370565 | JF11: 0.008156195634 | JG11: 0.07839359052 | JH11: 0.2534051852 | JI11: 0.1661903762 | JJ11: 0.007922956613 | JK11: 0.04181204756 | JL11: 0.2196235109 | JM11: 1.119275736 | JN11: 0.03001545116 | JO11: 0.01244520509 | JP11: 0.008676528149 | JQ11: 0.006053317586 | JR11: 0.01322148991 | JS11: 0.01736943546 | JT11: 0.01882217704 | JU11: 0.01722849869 | JV11: 0.01154241701 | JW11: 0.01607041781 | JX11: 0.02241535283 | JY11: 0.02783829789 | JZ11: 0.006878281068 | KA11: 0.01890894178 | KB11: 0.0252685101 | KC11: 0.04743571848 | KD11: 0.03051229042 | KE11: 0.01488682286 | KF11: 0.01266680271 | KG11: 0.01357855335 | KH11: 0.01824377492 | KI11: 0.02514581389 | KJ11: 0.02446507325 | KK11: 0.02533035874 | KL11: 0.01368764752 | KM11: 0.02403409533 | KN11: 0.03567304468 | KO11: 0.05494710245 | KP11: 0.02027768804 | KQ11: 0.03923685417 | KR11: 0.06612969397 | KS11: 0.1230274912 | KT11: 0.6180007247 | KU11: 0.2550095025 | KV11: 0.002331264931 | KW11: 0.001219816478 | KX11: 0.01441446877 | KY11: 0.5607379069 | KZ11: 0.1437074489 | LA11: 0.02261162351 | LB11: 0.003901822965 | LC11: 0.2011992572 | LD11: 0.962664983 | LE11: 0.3133897267 | LF11: 0.002490258019 | LG11: 0.0264047077 | LH11: 0.4876789755 | LI11: 3.036854297 | LJ11: 0.4647557936 | LK11: 0.01247409975 | LL11: 0.0004810168385 | LM11: 0.001326125218 | LN11: 0.02289222488 | LO11: 0.4394898899 | LP11: 0.1739513953 | LQ11: 0.02131110321 | LR11: 0.002950732351 | LS11: 0.2271557203 | LT11: 0.7351835692 | LU11: 0.4176882481 | LV11: 0.001498323118 | LW11: 0.03655354679 | LX11: 0.5592478805 | LY11: 2.324582819 | LZ11: 0.03844229964 | MA11: 0.006485678344 | MB11: 0.003667239354 | MC11: 0.002740551911 | MD11: 0.007649641468 | ME11: 0.05145727759 | MF11: 0.02419162732 | MG11: 0.01522419701 | MH11: 0.00585133677 | MI11: 0.02633430602 | MJ11: 0.09464829598 | MK11: 0.05728348445 | ML11: 0.005044851672 | MM11: 0.01902050613 | MN11: 0.0796049653 | MO11: 0.3712996751 | MP11: 4.75743668 | MQ11: 0.0003563209821 | MR11: -7.585984468e-05 | MS11: 0.000459624442 | MT11: 0.0005107838699 | MU11: 4.960977997 | MV11: 0.001804589741 | MW11: 0.000406388186 | MX11: 0.0002418662252 | MY11: 0.001137611226 | MZ11: 6.606962981 | NA11: 0.002760637768 | NB11: 0.0001868449949 | NC11: 0.0005604654972 | ND11: 0.00492558476 | NE11: 23.36055268 | NF11: 4.773165891 | NG11: 0.000358729927 | NH11: -4.032877574e-05 | NI11: -0.0002401773781 | NJ11: 0.0001820524484 | NK11: 4.583006379 | NL11: 0.0003287180599 | NM11: 0.0004605385657 | NN11: -0.0001032082611 | NO11: 0.0005300599545 | NP11: 6.529295632 | NQ11: 0.000419303191 | NR11: 0.0001277878417 | NS11: 0.0003564635709 | NT11: 0.0008048869842 | NU11: 21.30028485 | NV11: 2.148928817 | NW11: 0.8867259319 | NX11: -8.276044246e-05 | NY11: 0.0002440423519 | NZ11: 0.001642203552 | OA11: 2.459876977 | OB11: 0.005746184364 | OC11: 0.002296292844 | OD11: 0.0004543236448 | OE11: 0.01337450575 | OF11: 3.23945667 | OG11: 0.01188530337 | OH11: -5.371241461e-05 | OI11: 0.003480316387 | OJ11: 0.02171930926 | OK11: 10.19091785 | OL11: 0.06098417616 | OM11: 0.02516428186 | ON11: 0.00708635315 | OO11: 0.004284718747 | OP11: 0.01947348318 | OQ11: 0.05818666492 | OR11: 0.05407512768 | OS11: 0.04371426078 | OT11: 0.007959526209 | OU11: 0.05148906249 | OV11: 0.1050463138 | OW11: 0.1382764045 | OX11: 0.005541224027 | OY11: 0.05090226544 | OZ11: 0.1460250037 | PA11: 0.3226700056 | PB11: 1.929878574 | PC11: 0.001538681839 | PD11: 0.0005516116673 | PE11: -0.0003909772368 | PF11: 0.001422908254 | PG11: 1.986360387 | PH11: 0.01474176783 | PI11: 0.002260691572 | PJ11: 0.0006527519439 | PK11: 0.01899200362 | PL11: 2.668293252 | PM11: 0.01457617244 | PN11: 0.0002345206524 | PO11: 0.002011303599 | PP11: 0.02683944993 | PQ11: 8.623557651 | PR11: 0.0494230002 | PS11: 0.02039372155 | PT11: 0.003409160112 | PU11: 0.002834123805 | PV11: 0.01500562126 | PW11: 0.04338821538 | PX11: 0.03706420384 | PY11: 0.02711343789 | PZ11: 0.008054515919 | QA11: 0.04439806629 | QB11: 0.08032640816 | QC11: 0.1079499811 | QD11: 0.004676745683 | QE11: 0.05197067868 | QF11: 0.1397495592 | QG11: 0.353033995 | QH11: 0.1001188322 | QI11: 0.01106715761 | QJ11: 0.009054653907 | QK11: 0.008316428111 | QL11: 0.009194991917 | QM11: 0.04825091481 | QN11: 0.0195882881 | QO11: 0.02272548539 | QP11: 0.006997041298 | QQ11: 0.02591972989 | QR11: 0.09308187764 | QS11: 0.08452801922 | QT11: 0.007639030256 | QU11: 0.01486719931 | QV11: 0.05096967093 | QW11: 0.3499053747 | QX11: 0.03439010491 | QY11: 0.01425008379 | QZ11: 0.01435159222 | RA11: 0.01253778471 | RB11: 0.01054448475 | RC11: 0.0135981193 | RD11: 0.009615377972 | RE11: 0.0181860955 | RF11: 0.01014854013 | RG11: 0.008723743074 | RH11: 0.01605486498 | RI11: 0.02485421322 | RJ11: 0.007737296883 | RK11: 0.01123763457 | RL11: 0.01645615901 | RM11: 0.03834880246 | RN11: 3.441844818 | RO11: 0.5638117116 | RP11: 0.298598736 | RQ11: 0.1833801426 | RR11: 0.739685264 | RS11: 3.265340883 | RT11: 1.757846679 | RU11: 0.8784308577 | RV11: 0.3926409023 | RW11: 1.968159927 | RX11: 4.283632312 | RY11: 2.431005117 | RZ11: 0.296724518 | SA11: 1.184245084 | SB11: 3.125164749 | SC11: 8.254744188 | SD11: 1.049893184 | SE11: 0.06989994387 | SF11: 0.02111787498 | SG11: 0.0117550104 | SH11: 0.03118045104 | SI11: 0.4466026137 | SJ11: 0.2036010651 | SK11: 0.1490752477 | SL11: 0.01676394748 | SM11: 0.20007811 | SN11: 0.6303427026 | SO11: 0.7051274549 | SP11: 0.01427794654 | SQ11: 0.08650164205 | SR11: 0.0826641054 | SS11: 1.441602079 | ST11: 11.48732872 | SU11: 0.04509105342 | SV11: 0.01195928115 | SW11: 0.007532087309 | SX11: 0.02212421947 | SY11: 4.73583912 | SZ11: 0.2516187131 | TA11: 0.07935775281 | TB11: 0.00475130715 | TC11: 0.2031206286 | TD11: 4.974793107 | TE11: 0.6424466671 | TF11: 0.005882289762 | TG11: 0.05642491049 | TH11: 0.09125061124 | TI11: 8.906879784 | TJ11: 4.281004134 | TK11: 0.03078258552 | TL11: 0.01541428428 | TM11: 0.01009320342 | TN11: 0.02221950331 | TO11: 2.284632901 | TP11: 0.08833277664 | TQ11: 0.06049148461 | TR11: 0.01349955959 | TS11: 0.1066869887 | TT11: 2.933306953 | TU11: 0.2893386289 | TV11: 0.009076043481 | TW11: 0.04574109388 | TX11: 0.03938286989 | TY11: 5.809517478 | TZ11: 6.135093649 | UA11: 0.02183437201 | UB11: 0.01135934972 | UC11: 0.006498953458 | UD11: 0.0105227465 | UE11: 3.588475371 | UF11: 0.07241769319 | UG11: 0.03675413632 | UH11: 0.004856504615 | UI11: 0.04444139771 | UJ11: 4.533531845 | UK11: 0.2126920024 | UL11: 0.003957477114 | UM11: 0.02645827967 | UN11: 0.03389516662 | UO11: 11.30641109 | UP11: 0.9493524691 | UQ11: 0.002326685741 | UR11: 0.001192946683 | US11: 0.001133008288 | UT11: 0.002342582451 | UU11: 0.4842088135 | UV11: 0.009220997157 | UW11: 0.006379765166 | UX11: 0.0006537430559 | UY11: 0.00865082276 | UZ11: 0.7280526081 | VA11: 0.0263685486 | VB11: 0.0004213067521 | VC11: 0.002709354361 | VD11: 0.004154043656 | VE11: 2.308423185 | VF11: 0.06002103929 | VG11: 0.03529127055 | VH11: 0.03422131055 | VI11: 0.02851885117 | VJ11: 0.04387887714 | VK11: 0.04274389183 | VL11: 0.04390444806 | VM11: 0.04558863191 | VN11: 0.03906495076 | VO11: 0.04992200089 | VP11: 0.06041239326 | VQ11: 0.06285118469 | VR11: 0.05306141293 | VS11: 0.06603103499 | VT11: 0.08378976315 | VU11: 0.1108565288 | VV11: 0.531572543 | VW11: 0.001721127716 | VX11: 0.0002438418909 | VY11: 0.0002911467201 | VZ11: 0.001886643197 | WA11: 0.1738503007 | WB11: 0.02250828422 | WC11: 0.004493309991 | WD11: 0.0009750448136 | WE11: 0.01552794286 | WF11: 0.3769969085 | WG11: 0.06695933395 | WH11: 0.0009142300571 | WI11: 0.00724644629 | WJ11: 0.01157253402 | WK11: 1.583697909 | WL11: 3.780721432 | WM11: 0.001240403749 | WN11: 0.0006303065205 | WO11: -0.0001658205524 | WP11: 0.001992879328 | WQ11: 3.490460618 | WR11: 0.00648110578 | WS11: 0.00189348431 | WT11: 0.000654814434 | WU11: 0.005829595656 | WV11: 5.376182334 | WW11: 0.005520689245 | WX11: 0.000335945534 | WY11: 0.00217450174 | WZ11: 0.008146413286 | XA11: 22.74814374 | XB11: 6.054539074 | XC11: 0.006133541318 | XD11: 0.001704073805 | XE11: 0.0008607033149 | XF11: 0.006805233984 | XG11: 5.386485138 | XH11: 0.02431165205 | XI11: 0.006137672182 | XJ11: 0.002280726683 | XK11: 0.03930151474 | XL11: 7.772981006 | XM11: 0.04636071535 | XN11: 0.001690615919 | XO11: 0.008850035063 | XP11: 0.0599022758 | XQ11: 20.33440518 | XR11: 0.1417305125 | XS11: 0.00808698007 | XT11: 0.00301026506 | XU11: 0.001609080829 | XV11: 0.007306623978 | XW11: 0.133676232 | XX11: 0.05229227754 | XY11: 0.0162337458 | XZ11: 0.003184851151 | YA11: 0.06041178057 | YB11: 0.2412799451 | YC11: 0.1212746489 | YD11: 0.002559213245 | YE11: 0.01366377666 | YF11: 0.1743070386 | YG11: 1.048393565 | YH11: 0.02677370562 | YI11: 0.01152398654 | YJ11: 0.007422862436 | YK11: 0.006346792074 | YL11: 0.01373470361 | YM11: 0.02205619019 | YN11: 0.02417324929 | YO11: 0.02551791084 | YP11: 0.01278548084 | YQ11: 0.022467453 | YR11: 0.03581639733 | YS11: 0.04730244624 | YT11: 0.01422963776 | YU11: 0.03188196985 | YV11: 0.06295291998 | YW11: 0.1261349368 | YX11: 0.05534079509 | YY11: 0.0308709835 | YZ11: 0.02951502498 | ZA11: 0.03059219001 | ZB11: 0.0380948088 | ZC11: 0.03753139209 | ZD11: 0.0374218389 | ZE11: 0.04292695418 | ZF11: 0.03848594669 | ZG11: 0.04211416159 | ZH11: 0.04454866959 | ZI11: 0.05064876838 | ZJ11: 0.04787629896 | ZK11: 0.05444226824 | ZL11: 0.06525794429 | ZM11: 0.0863559844 | ZN11: 0.06151487545 | ZO11: 0.03472021619 | ZP11: 0.0320647725 | ZQ11: 0.03249325204 | ZR11: 0.0433988513 | ZS11: 0.04990021671 | ZT11: 0.04359324459 | ZU11: 0.04916049596 | ZV11: 0.04140865022 | ZW11: 0.04895733667 | ZX11: 0.05350025219 | ZY11: 0.06433210473 | ZZ11: 0.05256578438 | AAA11: 0.06353191404 | AAB11: 0.08146468734 | AAC11: 0.1095508619 | AAD11: 0.03258325285 | AAE11: 0.01365657472 | AAF11: 0.006194929878 | AAG11: 0.004292053414 | AAH11: 0.01542076332 | AAI11: 0.0315171905 | AAJ11: 0.02651004996 | AAK11: 0.02979177728 | AAL11: 0.008545681709 | AAM11: 0.0278866469 | AAN11: 0.05931970695 | AAO11: 0.07122004986 | AAP11: 0.007809955145 | AAQ11: 0.04162352239 | AAR11: 0.1143242911 | AAS11: 0.2854874524 | AAT11: 0.06387705881 | AAU11: 0.008988749564 | AAV11: 0.005137315913 | AAW11: 0.002282354874 | AAX11: 0.0139830664 | AAY11: 0.07017590486 | AAZ11: 0.03644639245 | ABA11: 0.02106475804 | ABB11: 0.005223146256 | ABC11: 0.04180559031 | ABD11: 0.1321372411 | ABE11: 0.09714774648 | ABF11: 0.005028979418 | ABG11: 0.03186497678 | ABH11: 0.1279339461 | ABI11: 0.5453017818 | ABJ11: 0.2314798823 | ABK11: 0.1321098725 | ABL11: 0.1089459775 | ABM11: 0.1003036012 | ABN11: 0.1601355637 | ABO11: 0.1444690727 | ABP11: 0.1513473107 | ABQ11: 0.1510249243 | ABR11: 0.1447475323 | ABS11: 0.1585698953 | ABT11: 0.1725973933 | ABU11: 0.1749972612 | ABV11: 0.1866877208 | ABW11: 0.1925640296 | ABX11: 0.2315725879 | ABY11: 0.2936574618
A12: 239 | B12: 0.3127243455 | C12: 0.007493942239 | D12: 0.002103134242 | E12: 0.0009791330978 | F12: 0.002953961147 | G12: 0.1245167364 | H12: 0.02649275014 | I12: 0.01384294064 | J12: 0.001887404017 | K12: 0.02583157751 | L12: 0.1867037704 | M12: 0.111096103 | N12: 0.001629312152 | O12: 0.008529709852 | P12: 0.04221548468 | Q12: 0.8433809805 | R12: 0.1333292158 | S12: 0.007998667389 | T12: 0.003377327349 | U12: 0.001984434763 | V12: 0.0122588438 | W12: 0.1266116014 | X12: 0.05463478814 | Y12: 0.02104173432 | Z12: 0.004701643281 | AA12: 0.06743642417 | AB12: 0.2273290032 | AC12: 0.1317146013 | AD12: 0.003321989923 | AE12: 0.02866747955 | AF12: 0.1859002789 | AG12: 1.026661378 | AH12: 0.07799104036 | AI12: 0.009996813321 | AJ12: 0.003537541971 | AK12: 0.002277094055 | AL12: 0.01469518014 | AM12: 0.07520295882 | AN12: 0.04789364872 | AO12: 0.02333307386 | AP12: 0.005560740379 | AQ12: 0.05410416691 | AR12: 0.14889657 | AS12: 0.1177131444 | AT12: 0.005119056398 | AU12: 0.02899875038 | AV12: 0.1554683169 | AW12: 0.6100138804 | AX12: 0.1670152103 | AY12: 0.007544177048 | AZ12: 0.002753404642 | BA12: 0.001703170013 | BB12: 0.01081059412 | BC12: 0.157459316 | BD12: 0.05108209981 | BE12: 0.01867056136 | BF12: 0.003733865426 | BG12: 0.05996880892 | BH12: 0.3321549443 | BI12: 0.1238945261 | BJ12: 0.002619909165 | BK12: 0.02081543146 | BL12: 0.1744829522 | BM12: 1.398477225 | BN12: 0.03979506631 | BO12: 0.009606094942 | BP12: 0.005834691687 | BQ12: 0.00338454784 | BR12: 0.01371697884 | BS12: 0.04078439852 | BT12: 0.03202534022 | BU12: 0.02353448436 | BV12: 0.007896024334 | BW12: 0.03540023855 | BX12: 0.08725271424 | BY12: 0.07885970985 | BZ12: 0.00736533466 | CA12: 0.02942129759 | CB12: 0.09592085656 | CC12: 0.3549404354 | CD12: 0.03224812073 | CE12: 0.01189218164 | CF12: 0.01028272819 | CG12: 0.009299381844 | CH12: 0.01575702186 | CI12: 0.02543551419 | CJ12: 0.0219527848 | CK12: 0.01947230257 | CL12: 0.01364921943 | CM12: 0.02452830397 | CN12: 0.04043036387 | CO12: 0.04107139037 | CP12: 0.0168565379 | CQ12: 0.02648581617 | CR12: 0.05863394046 | CS12: 0.1501954795 | CT12: 0.07749224254 | CU12: 0.007610728961 | CV12: 0.004926742829 | CW12: 0.00293314254 | CX12: 0.01003476618 | CY12: 0.07078588362 | CZ12: 0.03185181911 | DA12: 0.01946264435 | DB12: 0.005718945284 | DC12: 0.03099092185 | DD12: 0.1457994004 | DE12: 0.07767217377 | DF12: 0.004798515551 | DG12: 0.02227449627 | DH12: 0.0988203234 | DI12: 0.5960034984 | DJ12: 0.05660707553 | DK12: 0.01710326031 | DL12: 0.009301720933 | DM12: 0.00860956843 | DN12: 0.02165300047 | DO12: 0.04379557503 | DP12: 0.03964993587 | DQ12: 0.03171079299 | DR12: 0.01587939249 | DS12: 0.03807562999 | DT12: 0.06877805912 | DU12: 0.07983048392 | DV12: 0.01279831005 | DW12: 0.03644478521 | DX12: 0.08832453215 | DY12: 0.1938661749 | DZ12: 0.07765055559 | EA12: 0.03329144656 | EB12: 0.02755516135 | EC12: 0.02878558397 | ED12: 0.02419168358 | EE12: 0.01856972213 | EF12: 0.01752269283 | EG12: 0.03007442521 | EH12: 0.02203970048 | EI12: 0.01672392047 | EJ12: 0.01526809208 | EK12: 0.0249173319 | EL12: 0.02177674592 | EM12: 0.01739061867 | EN12: 0.0177295926 | EO12: 0.01536754908 | EP12: 0.02180298087 | EQ12: 0.009790740097 | ER12: 0.006357621975 | ES12: 0.005899272428 | ET12: 0.01317030658 | EU12: 0.01980977763 | EV12: 0.02329402782 | EW12: 0.02543993934 | EX12: 0.009368804242 | EY12: 0.02007350668 | EZ12: 0.03331465619 | FA12: 0.05231933547 | FB12: 0.01050090458 | FC12: 0.02861653688 | FD12: 0.06084671262 | FE12: 0.1292982338 | FF12: 0.01744002015 | FG12: 0.00825452073 | FH12: 0.00621004378 | FI12: 0.00612276695 | FJ12: 0.01113097459 | FK12: 0.01408912631 | FL12: 0.0168065629 | FM12: 0.01983869292 | FN12: 0.009239088652 | FO12: 0.01779706445 | FP12: 0.02531855892 | FQ12: 0.03283395452 | FR12: 0.01199521551 | FS12: 0.02645755135 | FT12: 0.04426891207 | FU12: 0.08810795387 | FV12: 0.04477551809 | FW12: 0.02094110648 | FX12: 0.01753359777 | FY12: 0.01753145498 | FZ12: 0.02949779286 | GA12: 0.02252586102 | GB12: 0.01972031265 | GC12: 0.01675505313 | GD12: 0.02592608038 | GE12: 0.02012302696 | GF12: 0.01975977701 | GG12: 0.01905576448 | GH12: 0.02735867922 | GI12: 0.02434469665 | GJ12: 0.02709609729 | GK12: 0.02796446227 | GL12: 0.1615997812 | GM12: 0.008934405818 | GN12: 0.003610814863 | GO12: 0.002455169913 | GP12: 0.01224775857 | GQ12: 0.05821225528 | GR12: 0.03763489402 | GS12: 0.02220716987 | GT12: 0.005380366573 | GU12: 0.04379729702 | GV12: 0.1154255986 | GW12: 0.08798087318 | GX12: 0.004454054936 | GY12: 0.03007817376 | GZ12: 0.1260794706 | HA12: 0.5308723145 | HB12: 1.726625035 | HC12: 0.0327462781 | HD12: 0.01503514913 | HE12: 0.007257256604 | HF12: 0.05054103863 | HG12: 0.9139071041 | HH12: 0.1573611108 | HI12: 0.06881070845 | HJ12: 0.2190126581 | HK12: 0.2528940343 | HL12: 1.807236931 | HM12: 0.2621798003 | HN12: 0.01557848853 | HO12: 0.117855248 | HP12: 0.7169595815 | HQ12: 5.860122267 | HR12: 0.6210207443 | HS12: 0.002144078973 | HT12: 0.0004850775768 | HU12: 0.0007793946512 | HV12: 0.002755215735 | HW12: 0.64981762 | HX12: 0.02351974004 | HY12: 0.004760684686 | HZ12: 0.001176977875 | IA12: 0.03305228276 | IB12: 1.319136893 | IC12: 0.05277481229 | ID12: 0.0004827552914 | IE12: 0.005567378895 | IF12: 0.09069855028 | IG12: 5.29575969 | IH12: 0.5814445447 | II12: 0.003387563163 | IJ12: 0.001052578318 | IK12: 0.0007003406543 | IL12: 0.00561995553 | IM12: 0.5025444516 | IN12: 0.02523176057 | IO12: 0.005742179464 | IP12: 0.001760856991 | IQ12: 0.04739261582 | IR12: 0.9312818025 | IS12: 0.06713000042 | IT12: 0.0008254413641 | IU12: 0.01090743436 | IV12: 0.1443517595 | IW12: 3.87739332 | IX12: 0.1351745026 | IY12: 0.01357991697 | IZ12: 0.005779804196 | JA12: 0.004371995066 | JB12: 0.01875308091 | JC12: 0.1366512966 | JD12: 0.06782932222 | JE12: 0.02982042775 | JF12: 0.008860741628 | JG12: 0.07532028769 | JH12: 0.2492659424 | JI12: 0.1671913969 | JJ12: 0.007599035915 | JK12: 0.04062129367 | JL12: 0.2148717322 | JM12: 1.108104279 | JN12: 0.02882007029 | JO12: 0.01164557178 | JP12: 0.008961786665 | JQ12: 0.007221796948 | JR12: 0.01347321238 | JS12: 0.01735125893 | JT12: 0.01847851486 | JU12: 0.01755965823 | JV12: 0.01065163957 | JW12: 0.0158526294 | JX12: 0.02172366504 | JY12: 0.027163945 | JZ12: 0.007055188511 | KA12: 0.01777679074 | KB12: 0.02600991827 | KC12: 0.04691044743 | KD12: 0.02987617777 | KE12: 0.01497851437 | KF12: 0.01218934371 | KG12: 0.01281221049 | KH12: 0.01949879356 | KI12: 0.02516337617 | KJ12: 0.02429472281 | KK12: 0.02537355634 | KL12: 0.01515270934 | KM12: 0.02423537385 | KN12: 0.03479467723 | KO12: 0.05368726088 | KP12: 0.02093218995 | KQ12: 0.03929606802 | KR12: 0.06690783129 | KS12: 0.1241663344 | KT12: 0.6165027667 | KU12: 0.2569091791 | KV12: 0.002475466887 | KW12: 0.001227869072 | KX12: 0.01436968911 | KY12: 0.5694751919 | KZ12: 0.1450465617 | LA12: 0.02194889632 | LB12: 0.003913105164 | LC12: 0.1981227069 | LD12: 0.9577124447 | LE12: 0.3066778431 | LF12: 0.002922598248 | LG12: 0.02748278226 | LH12: 0.49097903 | LI12: 2.99816157 | LJ12: 0.4770752664 | LK12: 0.01282292422 | LL12: 0.001062711502 | LM12: 0.0009779667274 | LN12: 0.02049058846 | LO12: 0.4310018773 | LP12: 0.1744154847 | LQ12: 0.02297898836 | LR12: 0.002949915778 | LS12: 0.2222919808 | LT12: 0.7297616616 | LU12: 0.4126847379 | LV12: 0.001390051578 | LW12: 0.0352876691 | LX12: 0.5398202769 | LY12: 2.308564352 | LZ12: 0.04084747227 | MA12: 0.006788496567 | MB12: 0.003409282589 | MC12: 0.003136679167 | MD12: 0.008015590061 | ME12: 0.0531820914 | MF12: 0.0244497459 | MG12: 0.01490219498 | MH12: 0.005756526126 | MI12: 0.0260808341 | MJ12: 0.09219018866 | MK12: 0.05633225369 | ML12: 0.004665750535 | MM12: 0.018475921 | MN12: 0.0765939512 | MO12: 0.3700090079 | MP12: 4.767581161 | MQ12: 0.0004848108003 | MR12: -1.407190265e-05 | MS12: 0.0001947439885 | MT12: 0.0004899524123 | MU12: 4.9722058 | MV12: 0.001700330955 | MW12: 0.0003796037485 | MX12: 0.000126118838 | MY12: 0.001661564597 | MZ12: 6.557839422 | NA12: 0.002897179228 | NB12: 0.0001519825792 | NC12: 0.0007651838313 | ND12: 0.004962533819 | NE12: 23.08460854 | NF12: 4.812772537 | NG12: 0.0003533242958 | NH12: 6.326699146e-05 | NI12: -5.955467558e-05 | NJ12: 0.0001637651594 | NK12: 4.586471705 | NL12: 0.000230830777 | NM12: 0.0006412250838 | NN12: 6.742249782e-05 | NO12: 0.0008448362372 | NP12: 6.51450512 | NQ12: 0.0009805657804 | NR12: 0.0001031527548 | NS12: 0.0001289913329 | NT12: 0.0009136852123 | NU12: 21.09126324 | NV12: 2.147526045 | NW12: 0.8949175628 | NX12: -3.01237715e-06 | NY12: 8.674007905e-05 | NZ12: 0.001350383625 | OA12: 2.457635648 | OB12: 0.005958249602 | OC12: 0.002281878825 | OD12: 0.0004121792718 | OE12: 0.01386682701 | OF12: 3.212667536 | OG12: 0.01155688708 | OH12: 2.278990988e-05 | OI12: 0.003109751725 | OJ12: 0.02150865877 | OK12: 10.14428411 | OL12: 0.0605623395 | OM12: 0.02523755248 | ON12: 0.006337836456 | OO12: 0.003673847587 | OP12: 0.01979272748 | OQ12: 0.05639071445 | OR12: 0.05335445991 | OS12: 0.04129772571 | OT12: 0.007968932116 | OU12: 0.05153234171 | OV12: 0.1046024972 | OW12: 0.1369108716 | OX12: 0.005617154503 | OY12: 0.05147875324 | OZ12: 0.1458781494 | PA12: 0.325504116 | PB12: 1.969830542 | PC12: 0.001190083805 | PD12: 0.0005397105014 | PE12: -0.0002368429833 | PF12: 0.001355491982 | PG12: 2.116422166 | PH12: 0.01628112333 | PI12: 0.002401796833 | PJ12: 0.0004762312386 | PK12: 0.01989854916 | PL12: 2.874060974 | PM12: 0.01490756078 | PN12: 0.0004001655772 | PO12: 0.002514401398 | PP12: 0.02902500603 | PQ12: 8.83694985 | PR12: 0.04789175681 | PS12: 0.01995746426 | PT12: 0.003678798417 | PU12: 0.002153458788 | PV12: 0.01460938687 | PW12: 0.04479202032 | PX12: 0.03704295982 | PY12: 0.02716129554 | PZ12: 0.007569379438 | QA12: 0.04489606716 | QB12: 0.07986529683 | QC12: 0.1089839702 | QD12: 0.004809922137 | QE12: 0.04983658745 | QF12: 0.1343149976 | QG12: 0.349773169 | QH12: 0.09735029412 | QI12: 0.01200862111 | QJ12: 0.008845517864 | QK12: 0.008038452317 | QL12: 0.009614330436 | QM12: 0.05278292031 | QN12: 0.02168312081 | QO12: 0.02276474301 | QP12: 0.007635604368 | QQ12: 0.02565669361 | QR12: 0.09744357864 | QS12: 0.08295987124 | QT12: 0.00789762698 | QU12: 0.01649929459 | QV12: 0.05912747454 | QW12: 0.358559095 | QX12: 0.03323845255 | QY12: 0.0149233029 | QZ12: 0.01345317264 | RA12: 0.0127973833 | RB12: 0.01232712139 | RC12: 0.01384412226 | RD12: 0.01074459973 | RE12: 0.02006502257 | RF12: 0.01014702574 | RG12: 0.0104232512 | RH12: 0.01657516126 | RI12: 0.02667257866 | RJ12: 0.009297443275 | RK12: 0.01232046368 | RL12: 0.01732754605 | RM12: 0.03908989979 | RN12: 3.459088024 | RO12: 0.5588019974 | RP12: 0.302798673 | RQ12: 0.1843136562 | RR12: 0.7503465122 | RS12: 3.264396406 | RT12: 1.768618435 | RU12: 0.8839769531 | RV12: 0.3917189891 | RW12: 1.971212704 | RX12: 4.274754501 | RY12: 2.413465352 | RZ12: 0.2948957711 | SA12: 1.185770058 | SB12: 3.120035026 | SC12: 8.203923444 | SD12: 1.078181369 | SE12: 0.07154665165 | SF12: 0.02205863374 | SG12: 0.01193117214 | SH12: 0.03393944216 | SI12: 0.4861773283 | SJ12: 0.2294960482 | SK12: 0.1515825579 | SL12: 0.02131072873 | SM12: 0.2112256721 | SN12: 0.6832469003 | SO12: 0.7038069863 | SP12: 0.01558042113 | SQ12: 0.09081147152 | SR12: 0.08522246765 | SS12: 1.482896808 | ST12: 11.73703381 | SU12: 0.04601382808 | SV12: 0.01183848663 | SW12: 0.006943692364 | SX12: 0.02295358088 | SY12: 5.143084118 | SZ12: 0.2852658181 | TA12: 0.08196882957 | TB12: 0.006247013748 | TC12: 0.2076135481 | TD12: 5.418551182 | TE12: 0.6474407731 | TF12: 0.006560934361 | TG12: 0.06150980446 | TH12: 0.09581709507 | TI12: 9.224231274 | TJ12: 4.341649792 | TK12: 0.03099585732 | TL12: 0.01484877067 | TM12: 0.01137691689 | TN12: 0.0223598826 | TO12: 2.439698262 | TP12: 0.09324296011 | TQ12: 0.06218326877 | TR12: 0.01366433732 | TS12: 0.1121507923 | TT12: 3.183795036 | TU12: 0.2809709394 | TV12: 0.009297029045 | TW12: 0.04913092862 | TX12: 0.0417787936 | TY12: 6.023790563 | TZ12: 6.208249981 | UA12: 0.02208059287 | UB12: 0.009867868698 | UC12: 0.007260287173 | UD12: 0.01217001294 | UE12: 3.839933164 | UF12: 0.0841136949 | UG12: 0.03833347066 | UH12: 0.005088167227 | UI12: 0.04790550612 | UJ12: 4.954376545 | UK12: 0.2049903692 | UL12: 0.004266677994 | UM12: 0.02803226373 | UN12: 0.03433194069 | UO12: 11.67740444 | UP12: 0.9751573412 | UQ12: 0.002503820754 | UR12: 0.001289226707 | US12: 0.0009120418748 | UT12: 0.002468447307 | UU12: 0.5224635127 | UV12: 0.01106942215 | UW12: 0.005907870343 | UX12: 0.000714452305 | UY12: 0.009692586279 | UZ12: 0.7852798689 | VA12: 0.02577759154 | VB12: 0.0005095906432 | VC12: 0.003358494921 | VD12: 0.004514185508 | VE12: 2.357673359 | VF12: 0.06244008869 | VG12: 0.03538672259 | VH12: 0.03354670634 | VI12: 0.03046829764 | VJ12: 0.04374563258 | VK12: 0.04373698156 | VL12: 0.04521497168 | VM12: 0.04629268651 | VN12: 0.03890501685 | VO12: 0.04882724898 | VP12: 0.05958526917 | VQ12: 0.06375139163 | VR12: 0.05288509347 | VS12: 0.06582116782 | VT12: 0.0804802343 | VU12: 0.1079244097 | VV12: 0.5196735461 | VW12: 0.001859631849 | VX12: 0.0002327025992 | VY12: 0.0002952412575 | VZ12: 0.002471605751 | WA12: 0.1861807234 | WB12: 0.02305368891 | WC12: 0.003977627894 | WD12: 0.0009639330829 | WE12: 0.01646012138 | WF12: 0.4133641142 | WG12: 0.06688094594 | WH12: 0.0007185468382 | WI12: 0.007606852545 | WJ12: 0.01248314129 | WK12: 1.628420425 | WL12: 3.713494549 | WM12: 0.001552674605 | WN12: 0.0007515244572 | WO12: 2.515173192e-05 | WP12: 0.001815425128 | WQ12: 3.431959519 | WR12: 0.005943683018 | WS12: 0.001841837111 | WT12: 0.000607794197 | WU12: 0.005467809583 | WV12: 5.255804343 | WW12: 0.00556938587 | WX12: 0.0004019837035 | WY12: 0.002686615948 | WZ12: 0.009003562305 | XA12: 22.23752204 | XB12: 5.946397143 | XC12: 0.005622137313 | XD12: 0.001939794102 | XE12: 0.0009603914189 | XF12: 0.006947985996 | XG12: 5.313590761 | XH12: 0.02391413414 | XI12: 0.007049545479 | XJ12: 0.002333808243 | XK12: 0.03729803759 | XL12: 7.592681422 | XM12: 0.04541893386 | XN12: 0.001654870464 | XO12: 0.008978350861 | XP12: 0.05884193621 | XQ12: 19.93694503 | XR12: 0.1429490853 | XS12: 0.00707410632 | XT12: 0.002473911199 | XU12: 0.001669763967 | XV12: 0.007516413946 | XW12: 0.1319844799 | XX12: 0.05234531583 | XY12: 0.01515493826 | XZ12: 0.003619912911 | YA12: 0.06057148909 | YB12: 0.2366848269 | YC12: 0.1247634238 | YD12: 0.002949458971 | YE12: 0.01496664763 | YF12: 0.1766940664 | YG12: 1.038494859 | YH12: 0.02928400347 | YI12: 0.01087551383 | YJ12: 0.008185788411 | YK12: 0.006180567085 | YL12: 0.0141493078 | YM12: 0.02201248202 | YN12: 0.02324712286 | YO12: 0.02445207488 | YP12: 0.01198008437 | YQ12: 0.02309636375 | YR12: 0.03667848261 | YS12: 0.04822718153 | YT12: 0.01421387538 | YU12: 0.03098383635 | YV12: 0.06168783941 | YW12: 0.1263290793 | YX12: 0.05450957918 | YY12: 0.03053269388 | YZ12: 0.02858733187 | ZA12: 0.0308653421 | ZB12: 0.03997765419 | ZC12: 0.03890298215 | ZD12: 0.03790799737 | ZE12: 0.04267703463 | ZF12: 0.03765989307 | ZG12: 0.04285463477 | ZH12: 0.04567451191 | ZI12: 0.04890944852 | ZJ12: 0.0483189121 | ZK12: 0.05532437803 | ZL12: 0.065906577 | ZM12: 0.08241275621 | ZN12: 0.06186538539 | ZO12: 0.03445563919 | ZP12: 0.03234519458 | ZQ12: 0.03074235482 | ZR12: 0.04452691734 | ZS12: 0.04819691704 | ZT12: 0.04593285255 | ZU12: 0.04949932546 | ZV12: 0.04168081746 | ZW12: 0.04911804509 | ZX12: 0.05398033224 | ZY12: 0.06386477891 | ZZ12: 0.05205682131 | AAA12: 0.06478953508 | AAB12: 0.08002455473 | AAC12: 0.1122295532 | AAD12: 0.03004885096 | AAE12: 0.01293935985 | AAF12: 0.006881945311 | AAG12: 0.004976224802 | AAH12: 0.01565639561 | AAI12: 0.030961716 | AAJ12: 0.02709446076 | AAK12: 0.02888960409 | AAL12: 0.008939647161 | AAM12: 0.0269660053 | AAN12: 0.06127417797 | AAO12: 0.07104261182 | AAP12: 0.00760203004 | AAQ12: 0.04109316265 | AAR12: 0.1117074936 | AAS12: 0.2911670503 | AAT12: 0.06400284804 | AAU12: 0.008835461432 | AAV12: 0.0046647933 | AAW12: 0.002254873203 | AAX12: 0.013757335 | AAY12: 0.07183021783 | AAZ12: 0.03696381509 | ABA12: 0.0213237584 | ABB12: 0.005379986968 | ABC12: 0.04295510095 | ABD12: 0.1302534468 | ABE12: 0.09767085301 | ABF12: 0.004827213956 | ABG12: 0.03093269558 | ABH12: 0.1263885335 | ABI12: 0.5437718904 | ABJ12: 0.2307037073 | ABK12: 0.1333183154 | ABL12: 0.1079192708 | ABM12: 0.0994428247 | ABN12: 0.1616955539 | ABO12: 0.1507850359 | ABP12: 0.1541481152 | ABQ12: 0.1497475808 | ABR12: 0.146549223 | ABS12: 0.1572742421 | ABT12: 0.1778361626 | ABU12: 0.1744541479 | ABV12: 0.1891562385 | ABW12: 0.1999652717 | ABX12: 0.2347000842 | ABY12: 0.2896693935
A13: 240 | B13: 0.3048697811 | C13: 0.007814658528 | D13: 0.002235361865 | E13: 0.001250741338 | F13: 0.003332043845 | G13: 0.1338519371 | H13: 0.027082707 | I13: 0.01441114027 | J13: 0.001670665154 | K13: 0.02518105553 | L13: 0.1854067333 | M13: 0.1107928561 | N13: 0.002122527508 | O13: 0.008025318194 | P13: 0.04484738505 | Q13: 0.8681016757 | R13: 0.1324870468 | S13: 0.00755301034 | T13: 0.003684015141 | U13: 0.00165019942 | V13: 0.01170598397 | W13: 0.1223830611 | X13: 0.05431898883 | Y13: 0.01993492541 | Z13: 0.004569942176 | AA13: 0.06640456019 | AB13: 0.2246655889 | AC13: 0.1324056729 | AD13: 0.003350221014 | AE13: 0.02832125328 | AF13: 0.1809557155 | AG13: 1.015034272 | AH13: 0.07672966853 | AI13: 0.0100716456 | AJ13: 0.003782820935 | AK13: 0.00232415774 | AL13: 0.01421915605 | AM13: 0.07332113126 | AN13: 0.0480838515 | AO13: 0.02244679598 | AP13: 0.005844807949 | AQ13: 0.05241005746 | AR13: 0.1474810442 | AS13: 0.1180066515 | AT13: 0.005443867985 | AU13: 0.02870424191 | AV13: 0.1552199289 | AW13: 0.6092929454 | AX13: 0.165095916 | AY13: 0.006831041361 | AZ13: 0.002884533718 | BA13: 0.001850855151 | BB13: 0.01087705627 | BC13: 0.1547393194 | BD13: 0.04973064556 | BE13: 0.01785807784 | BF13: 0.003915682631 | BG13: 0.05845383035 | BH13: 0.3302309744 | BI13: 0.1215247897 | BJ13: 0.002953222317 | BK13: 0.01997714204 | BL13: 0.175833388 | BM13: 1.383947774 | BN13: 0.04154914898 | BO13: 0.009220536279 | BP13: 0.005492717967 | BQ13: 0.003791326717 | BR13: 0.01393851747 | BS13: 0.04281821353 | BT13: 0.0308478639 | BU13: 0.02245684892 | BV13: 0.007639778284 | BW13: 0.03496305306 | BX13: 0.08591481894 | BY13: 0.07894109361 | BZ13: 0.007130050724 | CA13: 0.02839253466 | CB13: 0.09619424417 | CC13: 0.3544547134 | CD13: 0.03366477806 | CE13: 0.01175925071 | CF13: 0.009905699725 | CG13: 0.01022522927 | CH13: 0.01569745877 | CI13: 0.02413252453 | CJ13: 0.02130495414 | CK13: 0.01822079149 | CL13: 0.01276186139 | CM13: 0.02380787496 | CN13: 0.04208913437 | CO13: 0.04254294479 | CP13: 0.0163526685 | CQ13: 0.02639786086 | CR13: 0.05814879834 | CS13: 0.1475882319 | CT13: 0.07932506889 | CU13: 0.007718490414 | CV13: 0.005452930139 | CW13: 0.003328381257 | CX13: 0.009695512736 | CY13: 0.06783960818 | CZ13: 0.03083946063 | DA13: 0.01897765218 | DB13: 0.005847254992 | DC13: 0.03057769113 | DD13: 0.1427308844 | DE13: 0.07623247191 | DF13: 0.005069056222 | DG13: 0.02354713793 | DH13: 0.09617385229 | DI13: 0.5931799392 | DJ13: 0.05851938824 | DK13: 0.01737768072 | DL13: 0.009942342678 | DM13: 0.009255117651 | DN13: 0.02120273872 | DO13: 0.04225230887 | DP13: 0.03921978182 | DQ13: 0.03010537073 | DR13: 0.01474730615 | DS13: 0.03852667563 | DT13: 0.06821553267 | DU13: 0.07602728229 | DV13: 0.01257300462 | DW13: 0.03635495761 | DX13: 0.08686648266 | DY13: 0.1936562947 | DZ13: 0.07659866338 | EA13: 0.03487501796 | EB13: 0.02617500298 | EC13: 0.02794712964 | ED13: 0.02457836027 | EE13: 0.02018906619 | EF13: 0.02126140597 | EG13: 0.02785662388 | EH13: 0.02270789484 | EI13: 0.01719907713 | EJ13: 0.01597040265 | EK13: 0.02414841586 | EL13: 0.0228811178 | EM13: 0.01777696769 | EN13: 0.02001851497 | EO13: 0.01598012259 | EP13: 0.02265074895 | EQ13: 0.009630229021 | ER13: 0.006714746892 | ES13: 0.005864387694 | ET13: 0.01348416947 | EU13: 0.01956315847 | EV13: 0.02314632267 | EW13: 0.02567287407 | EX13: 0.009166940165 | EY13: 0.0203193061 | EZ13: 0.03253637782 | FA13: 0.05159774311 | FB13: 0.01096214744 | FC13: 0.02733740905 | FD13: 0.06002901918 | FE13: 0.1290350595 | FF13: 0.01666068609 | FG13: 0.00781804702 | FH13: 0.005910677044 | FI13: 0.006652474299 | FJ13: 0.01172250849 | FK13: 0.01403134329 | FL13: 0.01635177549 | FM13: 0.0185087005 | FN13: 0.009439262244 | FO13: 0.01854418967 | FP13: 0.02613739707 | FQ13: 0.031136079 | FR13: 0.01223961615 | FS13: 0.02612196163 | FT13: 0.04305418671 | FU13: 0.088671864 | FV13: 0.04841363233 | FW13: 0.02160802169 | FX13: 0.01764394885 | FY13: 0.01865215219 | FZ13: 0.02962008388 | GA13: 0.02269111549 | GB13: 0.0203916386 | GC13: 0.01656541342 | GD13: 0.02644535308 | GE13: 0.02029428506 | GF13: 0.02087448461 | GG13: 0.01883107089 | GH13: 0.02696112127 | GI13: 0.02373579015 | GJ13: 0.02671223702 | GK13: 0.02858195259 | GL13: 0.1609985101 | GM13: 0.008491423143 | GN13: 0.0028271913 | GO13: 0.002171417354 | GP13: 0.0120467517 | GQ13: 0.05827807258 | GR13: 0.03763115427 | GS13: 0.02199881186 | GT13: 0.00517667895 | GU13: 0.04278024077 | GV13: 0.1144941114 | GW13: 0.08962558303 | GX13: 0.004672106062 | GY13: 0.02913134819 | GZ13: 0.1279690645 | HA13: 0.5231170227 | HB13: 1.726393794 | HC13: 0.03107446959 | HD13: 0.01441064331 | HE13: 0.007539208007 | HF13: 0.05063136755 | HG13: 0.9033501894 | HH13: 0.1594485883 | HI13: 0.06644527075 | HJ13: 0.2159650512 | HK13: 0.2493749609 | HL13: 1.789171174 | HM13: 0.2626159952 | HN13: 0.01525774905 | HO13: 0.1156118915 | HP13: 0.7137820885 | HQ13: 5.783980463 | HR13: 0.6199000603 | HS13: 0.002006847162 | HT13: 0.0006714953113 | HU13: 0.0006707784997 | HV13: 0.00313982027 | HW13: 0.650665905 | HX13: 0.0243020762 | HY13: 0.004791266925 | HZ13: 0.001215816828 | IA13: 0.03313051354 | IB13: 1.320098493 | IC13: 0.05295601386 | ID13: 0.0004641904651 | IE13: 0.005634367818 | IF13: 0.09078662461 | IG13: 5.270176359 | IH13: 0.5843808512 | II13: 0.003581226304 | IJ13: 0.001414562312 | IK13: 0.0006977615443 | IL13: 0.005747849009 | IM13: 0.504063743 | IN13: 0.02645934147 | IO13: 0.005758521282 | IP13: 0.001618757353 | IQ13: 0.04611609298 | IR13: 0.9323376085 | IS13: 0.06641917779 | IT13: 0.0008933441389 | IU13: 0.01094458223 | IV13: 0.1413068333 | IW13: 3.858001645 | IX13: 0.133130418 | IY13: 0.01382819224 | IZ13: 0.005859327933 | JA13: 0.004687599885 | JB13: 0.0192956123 | JC13: 0.1359528016 | JD13: 0.06770897234 | JE13: 0.02916557047 | JF13: 0.009410468425 | JG13: 0.07250865859 | JH13: 0.244942609 | JI13: 0.1674113177 | JJ13: 0.007344142203 | JK13: 0.03970440678 | JL13: 0.211296522 | JM13: 1.100655112 | JN13: 0.02762418505 | JO13: 0.01092879755 | JP13: 0.0091553892 | JQ13: 0.008154439592 | JR13: 0.01355135363 | JS13: 0.01716860755 | JT13: 0.01801564727 | JU13: 0.01766405611 | JV13: 0.009877282805 | JW13: 0.01561521961 | JX13: 0.02107355091 | JY13: 0.02650840219 | JZ13: 0.007212167256 | KA13: 0.01687197083 | KB13: 0.02666216413 | KC13: 0.04655196184 | KD13: 0.02912503003 | KE13: 0.01498346849 | KF13: 0.01173657134 | KG13: 0.01211745842 | KH13: 0.02034891803 | KI13: 0.02493483321 | KJ13: 0.02391908028 | KK13: 0.02516419532 | KL13: 0.01630771206 | KM13: 0.02431364755 | KN13: 0.0339429421 | KO13: 0.05245189373 | KP13: 0.02150476343 | KQ13: 0.03940718405 | KR13: 0.0676552037 | KS13: 0.1253017697 | KT13: 0.6104230148 | KU13: 0.2572647188 | KV13: 0.002583063914 | KW13: 0.001228718813 | KX13: 0.01419382623 | KY13: 0.5712039049 | KZ13: 0.1447534951 | LA13: 0.02118849107 | LB13: 0.003908220449 | LC13: 0.1948626808 | LD13: 0.9501460812 | LE13: 0.3000213782 | LF13: 0.003283526737 | LG13: 0.02841481229 | LH13: 0.4944772391 | LI13: 2.971029334 | LJ13: 0.4832898138 | LK13: 0.01305084293 | LL13: 0.001538991106 | LM13: 0.0006852603088 | LN13: 0.01830538877 | LO13: 0.4198149439 | LP13: 0.1731146692 | LQ13: 0.02413712597 | LR13: 0.002938534566 | LS13: 0.2174681856 | LT13: 0.7226349982 | LU13: 0.4070544699 | LV13: 0.001303028884 | LW13: 0.03430041399 | LX13: 0.5246659669 | LY13: 2.299024487 | LZ13: 0.04247352711 | MA13: 0.007006917704 | MB13: 0.003179700883 | MC13: 0.003449595997 | MD13: 0.008240969059 | ME13: 0.05409557712 | MF13: 0.02442714775 | MG13: 0.01449179715 | MH13: 0.005657328197 | MI13: 0.02577682961 | MJ13: 0.089825422 | MK13: 0.05534216925 | ML13: 0.004360730609 | MM13: 0.01805642574 | MN13: 0.07423402614 | MO13: 0.3695321409 | MP13: 4.738167548 | MQ13: 0.0005888316887 | MR13: 3.711983909e-05 | MS13: -2.53477085e-05 | MT13: 0.0004679822909 | MU13: 4.933465494 | MV13: 0.001597635774 | MW13: 0.0003537737162 | MX13: 3.006489707e-05 | MY13: 0.002088268901 | MZ13: 6.493466234 | NA13: 0.002999433924 | NB13: 0.0001234933136 | NC13: 0.0009351066749 | ND13: 0.005000853543 | NE13: 22.89381032 | NF13: 4.806870067 | NG13: 0.0003471787472 | NH13: 0.0001486855777 | NI13: 9.017969699e-05 | NJ13: 0.0001470511694 | NK13: 4.545034386 | NL13: 0.0001476029619 | NM13: 0.0007845421788 | NN13: 0.000208102352 | NO13: 0.00110174476 | NP13: 6.478645004 | NQ13: 0.001440555609 | NR13: 8.301444412e-05 | NS13: -5.826508803e-05 | NT13: 0.001004795329 | NU13: 20.95245505 | NV13: 2.129438612 | NW13: 0.8974586679 | NX13: 6.298772695e-05 | NY13: -4.382700567e-05 | NZ13: 0.001095869153 | OA13: 2.43204058 | OB13: 0.006076169605 | OC13: 0.002247909105 | OD13: 0.0003758760643 | OE13: 0.01422310691 | OF13: 3.178881825 | OG13: 0.01124370082 | OH13: 8.587199021e-05 | OI13: 0.002809299172 | OJ13: 0.02136917014 | OK13: 10.1219403 | OL13: 0.05974256632 | OM13: 0.02517869436 | ON13: 0.005688486452 | OO13: 0.003151001808 | OP13: 0.01986569476 | OQ13: 0.05435990619 | OR13: 0.05224273719 | OS13: 0.03889920359 | OT13: 0.007947777028 | OU13: 0.05138104811 | OV13: 0.1038562899 | OW13: 0.1352861511 | OX13: 0.005688637132 | OY13: 0.05203547712 | OZ13: 0.1459884667 | PA13: 0.3283559202 | PB13: 1.986647957 | PC13: 0.0008960094519 | PD13: 0.0005273079363 | PE13: -0.0001081865637 | PF13: 0.001232454494 | PG13: 2.220288103 | PH13: 0.01749154353 | PI13: 0.002495355033 | PJ13: 0.0002433899116 | PK13: 0.02063470258 | PL13: 3.057317958 | PM13: 0.01512714821 | PN13: 0.0005870164112 | PO13: 0.003036215665 | PP13: 0.03096707664 | PQ13: 8.919961938 | PR13: 0.04627324493 | PS13: 0.01950200608 | PT13: 0.00388448805 | PU13: 0.001580061675 | PV13: 0.01414039306 | PW13: 0.0455209304 | PX13: 0.03666755082 | PY13: 0.02693852121 | PZ13: 0.007141230176 | QA13: 0.04514441637 | QB13: 0.07919458997 | QC13: 0.1094423851 | QD13: 0.004927301309 | QE13: 0.04815690571 | QF13: 0.1300493521 | QG13: 0.3476405934 | QH13: 0.09433903669 | QI13: 0.01273076162 | QJ13: 0.008630594586 | QK13: 0.00777039001 | QL13: 0.009766897583 | QM13: 0.05670472644 | QN13: 0.02334614305 | QO13: 0.02257732263 | QP13: 0.008080658051 | QQ13: 0.02509113392 | QR13: 0.1008667661 | QS13: 0.08136362694 | QT13: 0.007849721584 | QU13: 0.01809195084 | QV13: 0.06726174864 | QW13: 0.3619220536 | QX13: 0.03204311707 | QY13: 0.01540969106 | QZ13: 0.01264610192 | RA13: 0.01295159488 | RB13: 0.01394491126 | RC13: 0.0138985304 | RD13: 0.01167261596 | RE13: 0.02142593792 | RF13: 0.009714475234 | RG13: 0.01210433973 | RH13: 0.0169209578 | RI13: 0.02807756443 | RJ13: 0.01079917024 | RK13: 0.01336063234 | RL13: 0.01799831943 | RM13: 0.03922857487 | RN13: 3.445753522 | RO13: 0.552011231 | RP13: 0.3048402556 | RQ13: 0.18421346 | RR13: 0.7519200374 | RS13: 3.232081224 | RT13: 1.760447022 | RU13: 0.8800270298 | RV13: 0.3895358227 | RW13: 1.966579432 | RX13: 4.251906943 | RY13: 2.390219456 | RZ13: 0.2938563518 | SA13: 1.188907247 | SB13: 3.120755498 | SC13: 8.175051997 | SD13: 1.092587771 | SE13: 0.07257045551 | SF13: 0.02273261049 | SG13: 0.01202044665 | SH13: 0.0359387019 | SI13: 0.5200589737 | SJ13: 0.2513421305 | SK13: 0.1521929935 | SL13: 0.02588289323 | SM13: 0.2206526772 | SN13: 0.7310669653 | SO13: 0.7001619195 | SP13: 0.01646903918 | SQ13: 0.09444997218 | SR13: 0.08657389365 | SS13: 1.503007793 | ST13: 11.84668089 | SU13: 0.04655951111 | SV13: 0.0116824898 | SW13: 0.006423963344 | SX13: 0.02312159357 | SY13: 5.489722752 | SZ13: 0.3140844877 | TA13: 0.08333758802 | TB13: 0.007783473562 | TC13: 0.2100414452 | TD13: 5.823611273 | TE13: 0.6492155192 | TF13: 0.007096652017 | TG13: 0.06635050179 | TH13: 0.09924209358 | TI13: 9.417471635 | TJ13: 4.356510122 | TK13: 0.03102557817 | TL13: 0.01431054863 | TM13: 0.01238523561 | TN13: 0.0217610097 | TO13: 2.564738387 | TP13: 0.09572230461 | TQ13: 0.06298247345 | TR13: 0.01328278739 | TS13: 0.1166747427 | TT13: 3.410857893 | TU13: 0.2730402423 | TV13: 0.009137109802 | TW13: 0.05226041616 | TX13: 0.04372861578 | TY13: 6.157904541 | TZ13: 6.218511846 | UA13: 0.02217978503 | UB13: 0.008587056108 | UC13: 0.007855863574 | UD13: 0.01363850005 | UE13: 4.044380585 | UF13: 0.09463454002 | UG13: 0.03927001345 | UH13: 0.005151228557 | UI13: 0.051033528 | UJ13: 5.340850667 | UK13: 0.197885544 | UL13: 0.004451110363 | UM13: 0.02942269691 | UN13: 0.03420677842 | UO13: 11.88738374 | UP13: 0.988365162 | UQ13: 0.002638533301 | UR13: 0.00136278787 | US13: 0.000724889952 | UT13: 0.002528410056 | UU13: 0.5544572046 | UV13: 0.01280650237 | UW13: 0.00546032596 | UX13: 0.0007572514886 | UY13: 0.01068606739 | UZ13: 0.8364239187 | VA13: 0.02519595746 | VB13: 0.0005953403035 | VC13: 0.004030414081 | VD13: 0.004839037847 | VE13: 2.371165454 | VF13: 0.06390694884 | VG13: 0.03529816793 | VH13: 0.03282969634 | VI13: 0.031937077 | VJ13: 0.0432128004 | VK13: 0.0441362319 | VL13: 0.04586260936 | VM13: 0.04642808344 | VN13: 0.03863172001 | VO13: 0.04774586952 | VP13: 0.05868587797 | VQ13: 0.06426348837 | VR13: 0.05282365547 | VS13: 0.06575259762 | VT13: 0.07788046484 | VU13: 0.1056791877 | VV13: 0.5059320181 | VW13: 0.001965429936 | VX13: 0.0002223839249 | VY13: 0.0002972314091 | VZ13: 0.003055902159 | WA13: 0.1962364608 | WB13: 0.02290444704 | WC13: 0.003512497103 | WD13: 0.0009096310283 | WE13: 0.01726189465 | WF13: 0.4469477378 | WG13: 0.06657345874 | WH13: 0.0004421855401 | WI13: 0.007910965621 | WJ13: 0.01328528597 | WK13: 1.649801218 | WL13: 3.629721146 | WM13: 0.001803705528 | WN13: 0.0008482656561 | WO13: 0.0001830486132 | WP13: 0.001651051719 | WQ13: 3.350399773 | WR13: 0.005441570802 | WS13: 0.001781309094 | WT13: 0.0005667540059 | WU13: 0.005149163579 | WV13: 5.137307633 | WW13: 0.005589390349 | WX13: 0.0004570435664 | WY13: 0.003112912332 | WZ13: 0.009724221276 | XA13: 21.85198154 | XB13: 5.811852773 | XC13: 0.005172369561 | XD13: 0.002125652119 | XE13: 0.001038329358 | XF13: 0.0069989912 | XG13: 5.201944801 | XH13: 0.02335419557 | XI13: 0.00773598836 | XJ13: 0.002369177875 | XK13: 0.03550798424 | XL13: 7.416213489 | XM13: 0.0444762638 | XN13: 0.001628036833 | XO13: 0.009098334837 | XP13: 0.05806141955 | XQ13: 19.64101315 | XR13: 0.142807937 | XS13: 0.0062025339 | XT13: 0.002018404139 | XU13: 0.001712069633 | XV13: 0.007617399576 | XW13: 0.1293096655 | XX13: 0.05188355378 | XY13: 0.01411587107 | XZ13: 0.003966093431 | YA13: 0.06048354702 | YB13: 0.2320306479 | YC13: 0.1271919834 | YD13: 0.003275739772 | YE13: 0.01606408479 | YF13: 0.1789414376 | YG13: 1.031984183 | YH13: 0.03108649589 | YI13: 0.01028745998 | YJ13: 0.008778300613 | YK13: 0.006013766555 | YL13: 0.01435569651 | YM13: 0.02176367734 | YN13: 0.022256224 | YO13: 0.023333932 | YP13: 0.01127142243 | YQ13: 0.02353195452 | YR13: 0.03725735641 | YS13: 0.04881588188 | YT13: 0.01422342657 | YU13: 0.0302928158 | YV13: 0.06074310788 | YW13: 0.1266894118 | YX13: 0.05340593633 | YY13: 0.03010822975 | YZ13: 0.02768438843 | ZA13: 0.03094522753 | ZB13: 0.04114945828 | ZC13: 0.03966212301 | ZD13: 0.03794408856 | ZE13: 0.04205798083 | ZF13: 0.03684096475 | ZG13: 0.04331065217 | ZH13: 0.04643857226 | ZI13: 0.0472954197 | ZJ13: 0.04876029821 | ZK13: 0.05613906507 | ZL13: 0.0665456362 | ZM13: 0.07929381673 | ZN13: 0.06166101933 | ZO13: 0.03407359425 | ZP13: 0.03242408922 | ZQ13: 0.02914806591 | ZR13: 0.04503022479 | ZS13: 0.04632192488 | ZT13: 0.04742508388 | ZU13: 0.04930153672 | ZV13: 0.04175431968 | ZW13: 0.04907249945 | ZX13: 0.05418090899 | ZY13: 0.06324701383 | ZZ13: 0.05171993657 | AAA13: 0.06592869308 | AAB13: 0.07896464121 | AAC13: 0.1146150547 | AAD13: 0.02775850065 | AAE13: 0.01228465571 | AAF13: 0.007417819844 | AAG13: 0.005518768509 | AAH13: 0.01570013357 | AAI13: 0.03020299558 | AAJ13: 0.02731630944 | AAK13: 0.02786401997 | AAL13: 0.009232577966 | AAM13: 0.02610777017 | AAN13: 0.06266598638 | AAO13: 0.07063821395 | AAP13: 0.00744273361 | AAQ13: 0.04072125812 | AAR13: 0.1097281292 | AAS13: 0.2963093813 | AAT13: 0.06359955994 | AAU13: 0.008666795933 | AAV13: 0.004251729569 | AAW13: 0.002221458637 | AAX13: 0.01343765668 | AAY13: 0.07250522819 | AAZ13: 0.03703489687 | ABA13: 0.02133208655 | ABB13: 0.005489995471 | ABC13: 0.04374857924 | ABD13: 0.1282248557 | ABE13: 0.09774838951 | ABF13: 0.004668593282 | ABG13: 0.03021345266 | ABH13: 0.1253153844 | ABI13: 0.543373439 | ABJ13: 0.2282539048 | ABK13: 0.1336870353 | ABL13: 0.1065588127 | ABM13: 0.0982597927 | ABN13: 0.1614244278 | ABO13: 0.1545546915 | ABP13: 0.1549766233 | ABQ13: 0.1472440844 | ABR13: 0.1475053415 | ABS13: 0.1556333261 | ABT13: 0.18151742 | ABU13: 0.1733724024 | ABV13: 0.1914905291 | ABW13: 0.2063817859 | ABX13: 0.2376496679 | ABY13: 0.2868421785
A14: 241 | B14: 0.3096223615 | C14: 0.007451633598 | D14: 0.002085088366 | E14: 0.001595436117 | F14: 0.003269188679 | G14: 0.1457507361 | H14: 0.03030355514 | I14: 0.01469130382 | J14: 0.002304408731 | K14: 0.02874075838 | L14: 0.2020546813 | M14: 0.1096041582 | N14: 0.001929581542 | O14: 0.008823962888 | P14: 0.0482865005 | Q14: 0.986031291 | R14: 0.1343322668 | S14: 0.008352741691 | T14: 0.003542231537 | U14: 0.001677384522 | V14: 0.0119977491 | W14: 0.1240594759 | X14: 0.05432978627 | Y14: 0.02007425397 | Z14: 0.004824438384 | AA14: 0.0657696097 | AB14: 0.2255823282 | AC14: 0.1295332381 | AD14: 0.003585483818 | AE14: 0.02714633711 | AF14: 0.1825448318 | AG14: 1.015509757 | AH14: 0.07759978768 | AI14: 0.01006280601 | AJ14: 0.003699552128 | AK14: 0.002538407474 | AL14: 0.01433738493 | AM14: 0.07316807316 | AN14: 0.04610729331 | AO14: 0.02381041877 | AP14: 0.006450710826 | AQ14: 0.05290031731 | AR14: 0.1467406609 | AS14: 0.1174448871 | AT14: 0.005168859169 | AU14: 0.03081287958 | AV14: 0.156406801 | AW14: 0.6066160963 | AX14: 0.1671687287 | AY14: 0.00725698796 | AZ14: 0.002969322335 | BA14: 0.001870346939 | BB14: 0.01023547434 | BC14: 0.1534864541 | BD14: 0.0493729032 | BE14: 0.01673449732 | BF14: 0.004128013293 | BG14: 0.05992443797 | BH14: 0.3293284937 | BI14: 0.122467764 | BJ14: 0.002923911799 | BK14: 0.02021067595 | BL14: 0.1770552731 | BM14: 1.383736333 | BN14: 0.04127883672 | BO14: 0.009222387738 | BP14: 0.005944052253 | BQ14: 0.004256101842 | BR14: 0.0137107021 | BS14: 0.04078413852 | BT14: 0.02960515158 | BU14: 0.02289132598 | BV14: 0.007796397138 | BW14: 0.034220454 | BX14: 0.08815471475 | BY14: 0.07775510608 | BZ14: 0.007287570044 | CA14: 0.0299885061 | CB14: 0.09616120862 | CC14: 0.3501220603 | CD14: 0.03263296901 | CE14: 0.01237971097 | CF14: 0.01093841405 | CG14: 0.01024402394 | CH14: 0.01542283225 | CI14: 0.02499066946 | CJ14: 0.0209284178 | CK14: 0.01985874143 | CL14: 0.01382388328 | CM14: 0.0243182904 | CN14: 0.04139291252 | CO14: 0.04062731577 | CP14: 0.01644000168 | CQ14: 0.02581299128 | CR14: 0.05930390619 | CS14: 0.1479133691 | CT14: 0.07873870564 | CU14: 0.007407240565 | CV14: 0.005233061201 | CW14: 0.002781595261 | CX14: 0.009630017719 | CY14: 0.06940769548 | CZ14: 0.03126344685 | DA14: 0.01763436576 | DB14: 0.005301541958 | DC14: 0.03168601309 | DD14: 0.1427837147 | DE14: 0.0787739573 | DF14: 0.004471114931 | DG14: 0.02333893091 | DH14: 0.09505933538 | DI14: 0.5907468469 | DJ14: 0.05613964792 | DK14: 0.01705483899 | DL14: 0.009626246709 | DM14: 0.008351816893 | DN14: 0.02096798493 | DO14: 0.04204958541 | DP14: 0.03835181795 | DQ14: 0.0305598346 | DR14: 0.01478440196 | DS14: 0.0388906142 | DT14: 0.06818803793 | DU14: 0.07564965218 | DV14: 0.01225636284 | DW14: 0.03594274442 | DX14: 0.08505094028 | DY14: 0.1851632832 | DZ14: 0.07812189142 | EA14: 0.03693419409 | EB14: 0.02826225536 | EC14: 0.02740235732 | ED14: 0.0282267225 | EE14: 0.02203325649 | EF14: 0.02113894758 | EG14: 0.02839245515 | EH14: 0.02440184042 | EI14: 0.01949821295 | EJ14: 0.01874626 | EK14: 0.02241879203 | EL14: 0.02505335075 | EM14: 0.02026282252 | EN14: 0.01906101987 | EO14: 0.01675160424 | EP14: 0.02348131465 | EQ14: 0.009924702879 | ER14: 0.006873007753 | ES14: 0.006025200813 | ET14: 0.01331826082 | EU14: 0.01979709057 | EV14: 0.0217413865 | EW14: 0.02558787733 | EX14: 0.009231898793 | EY14: 0.02055413593 | EZ14: 0.03453570371 | FA14: 0.05219606935 | FB14: 0.01067452288 | FC14: 0.02749298384 | FD14: 0.05987175546 | FE14: 0.1321267767 | FF14: 0.01838885537 | FG14: 0.007453172659 | FH14: 0.006019781968 | FI14: 0.006744732387 | FJ14: 0.01112171052 | FK14: 0.01394135289 | FL14: 0.01617403711 | FM14: 0.01915625831 | FN14: 0.009830924382 | FO14: 0.01832169617 | FP14: 0.02469945632 | FQ14: 0.03291098291 | FR14: 0.01239287532 | FS14: 0.02467357825 | FT14: 0.04598016959 | FU14: 0.08851650474 | FV14: 0.04454315337 | FW14: 0.02173524425 | FX14: 0.01776691822 | FY14: 0.01751390542 | FZ14: 0.02836616488 | GA14: 0.02265837375 | GB14: 0.01972362949 | GC14: 0.01798726529 | GD14: 0.02585630537 | GE14: 0.0209659461 | GF14: 0.0206751425 | GG14: 0.01871303109 | GH14: 0.02697945383 | GI14: 0.02448408635 | GJ14: 0.02645026649 | GK14: 0.02780854502 | GL14: 0.1628550751 | GM14: 0.008532557688 | GN14: 0.00317638915 | GO14: 0.00214073183 | GP14: 0.01259597203 | GQ14: 0.05812708752 | GR14: 0.03680705067 | GS14: 0.02174216319 | GT14: 0.005447276092 | GU14: 0.0421573468 | GV14: 0.1119261222 | GW14: 0.08967449284 | GX14: 0.004611086657 | GY14: 0.02973324521 | GZ14: 0.1279982346 | HA14: 0.5239288994 | HB14: 1.733851809 | HC14: 0.03207926177 | HD14: 0.01504311662 | HE14: 0.007356580037 | HF14: 0.04963636898 | HG14: 0.9033868411 | HH14: 0.15783278 | HI14: 0.06371072825 | HJ14: 0.2181843127 | HK14: 0.2519375433 | HL14: 1.781376228 | HM14: 0.2602522885 | HN14: 0.01537741083 | HO14: 0.1126708385 | HP14: 0.7099596902 | HQ14: 5.802460083 | HR14: 0.6242712724 | HS14: 0.002316003574 | HT14: 0.0007318968362 | HU14: 0.0005354881465 | HV14: 0.003047060128 | HW14: 0.6534453379 | HX14: 0.02408857003 | HY14: 0.004683037926 | HZ14: 0.00121439026 | IA14: 0.03311680742 | IB14: 1.329310789 | IC14: 0.05253229457 | ID14: 0.0004493002509 | IE14: 0.005044293583 | IF14: 0.09206598974 | IG14: 5.276810445 | IH14: 0.5951873641 | II14: 0.003554794065 | IJ14: 0.001436290402 | IK14: 0.0008578672577 | IL14: 0.005988116119 | IM14: 0.5101623773 | IN14: 0.0263650989 | IO14: 0.006029987221 | IP14: 0.00193063894 | IQ14: 0.04737068366 | IR14: 0.9410686527 | IS14: 0.06595037781 | IT14: 0.001210764866 | IU14: 0.01106008274 | IV14: 0.144126469 | IW14: 3.877395904 | IX14: 0.1334047053 | IY14: 0.01403244648 | IZ14: 0.006236450482 | JA14: 0.00448137691 | JB14: 0.01926859142 | JC14: 0.1343167726 | JD14: 0.06663081914 | JE14: 0.02960650422 | JF14: 0.009387880075 | JG14: 0.07357113814 | JH14: 0.2480591199 | JI14: 0.1627226203 | JJ14: 0.006997676179 | JK14: 0.03801670303 | JL14: 0.2152975199 | JM14: 1.098435082 | JN14: 0.02718545509 | JO14: 0.011122586 | JP14: 0.008619556721 | JQ14: 0.008309043391 | JR14: 0.01321528198 | JS14: 0.01770537144 | JT14: 0.01763113623 | JU14: 0.01682238242 | JV14: 0.01000768571 | JW14: 0.01495869513 | JX14: 0.02115786844 | JY14: 0.02715051396 | JZ14: 0.007142226316 | KA14: 0.01742157678 | KB14: 0.02671976938 | KC14: 0.04422138701 | KD14: 0.03040066581 | KE14: 0.01486621467 | KF14: 0.01268926316 | KG14: 0.01261723911 | KH14: 0.02011773393 | KI14: 0.02415179646 | KJ14: 0.02389378917 | KK14: 0.0256364131 | KL14: 0.01525490825 | KM14: 0.02493380481 | KN14: 0.03474986495 | KO14: 0.05524848015 | KP14: 0.02157200048 | KQ14: 0.04017183623 | KR14: 0.06763198449 | KS14: 0.1260206001 | KT14: 0.6081895743 | KU14: 0.2587872779 | KV14: 0.002765477686 | KW14: 0.001218214357 | KX14: 0.01428787485 | KY14: 0.5612723299 | KZ14: 0.1443804129 | LA14: 0.02014311122 | LB14: 0.003792853757 | LC14: 0.1936798373 | LD14: 0.9377390776 | LE14: 0.3009232698 | LF14: 0.003179154032 | LG14: 0.02642512133 | LH14: 0.4831606709 | LI14: 2.936780205 | LJ14: 0.4729860612 | LK14: 0.01239450705 | LL14: 0.001462845284 | LM14: 0.0007961983427 | LN14: 0.01888964321 | LO14: 0.4194359964 | LP14: 0.1701101241 | LQ14: 0.0238558187 | LR14: 0.002925148098 | LS14: 0.2165175801 | LT14: 0.7140326452 | LU14: 0.4059189819 | LV14: 0.001362418477 | LW14: 0.03292106886 | LX14: 0.5305370852 | LY14: 2.2700874 | LZ14: 0.04009228266 | MA14: 0.006601113139 | MB14: 0.003125877147 | MC14: 0.003169347076 | MD14: 0.008250715342 | ME14: 0.0530200803 | MF14: 0.02425172304 | MG14: 0.01466109997 | MH14: 0.005663069446 | MI14: 0.02598331812 | MJ14: 0.09357353765 | MK14: 0.0565277596 | ML14: 0.004284365722 | MM14: 0.01851447405 | MN14: 0.07507702478 | MO14: 0.3633437473 | MP14: 4.742032242 | MQ14: 0.0004521674232 | MR14: 0.0003074016193 | MS14: 2.624209148e-05 | MT14: 0.0004997513316 | MU14: 4.895650947 | MV14: 0.001530706425 | MW14: 0.000367530678 | MX14: 6.202659988e-05 | MY14: 0.002155694225 | MZ14: 6.481408535 | NA14: 0.003339721049 | NB14: 0.0001094240152 | NC14: 0.0007376122621 | ND14: 0.004622650825 | NE14: 22.75177687 | NF14: 4.807646831 | NG14: 0.0002491408556 | NH14: 0.0001010063345 | NI14: 0.000278622915 | NJ14: 8.368079696e-05 | NK14: 4.535782239 | NL14: 0.0002766265766 | NM14: 0.0006968091489 | NN14: 0.000141717823 | NO14: 0.0007176054413 | NP14: 6.461212241 | NQ14: 0.000977884331 | NR14: 0.0001065271299 | NS14: 0.000138466507 | NT14: 0.0008378770448 | NU14: 20.80228434 | NV14: 2.148958284 | NW14: 0.9143909861 | NX14: 1.030268146e-05 | NY14: 0.000216754693 | NZ14: 0.001179342075 | OA14: 2.411506492 | OB14: 0.006159403561 | OC14: 0.00194384584 | OD14: 0.0004181606434 | OE14: 0.01363050274 | OF14: 3.157350645 | OG14: 0.01064506468 | OH14: 0.0001791698586 | OI14: 0.002803940359 | OJ14: 0.02236534218 | OK14: 10.09151931 | OL14: 0.0599675802 | OM14: 0.02551646312 | ON14: 0.005953936701 | OO14: 0.003160702134 | OP14: 0.01921476241 | OQ14: 0.05672227204 | OR14: 0.05224300279 | OS14: 0.04005160272 | OT14: 0.007712419734 | OU14: 0.05341242245 | OV14: 0.1045173437 | OW14: 0.1344936753 | OX14: 0.005249089573 | OY14: 0.05083714518 | OZ14: 0.1477836938 | PA14: 0.327408311 | PB14: 1.972947346 | PC14: 0.001197302974 | PD14: 0.0003370844163 | PE14: -7.065433998e-05 | PF14: 0.001915410682 | PG14: 2.381014622 | PH14: 0.01742894068 | PI14: 0.002235265106 | PJ14: 0.0007009499827 | PK14: 0.02115964921 | PL14: 3.27013633 | PM14: 0.01708402026 | PN14: 0.0007754537484 | PO14: 0.002776694373 | PP14: 0.03463836777 | PQ14: 9.790286761 | PR14: 0.04588882283 | PS14: 0.01952589135 | PT14: 0.003534179069 | PU14: 0.002095763183 | PV14: 0.01465915543 | PW14: 0.04357274672 | PX14: 0.03630276573 | PY14: 0.02681605811 | PZ14: 0.007024035202 | QA14: 0.04471784277 | QB14: 0.07809433962 | QC14: 0.111227534 | QD14: 0.004681603893 | QE14: 0.04990896472 | QF14: 0.1281691434 | QG14: 0.3500972906 | QH14: 0.09761552837 | QI14: 0.01254411239 | QJ14: 0.008960030203 | QK14: 0.007809901095 | QL14: 0.01027920558 | QM14: 0.05846311824 | QN14: 0.02595999187 | QO14: 0.02276323458 | QP14: 0.009479872975 | QQ14: 0.02725921858 | QR14: 0.1097955618 | QS14: 0.08314215535 | QT14: 0.008699226405 | QU14: 0.01940650807 | QV14: 0.07169740878 | QW14: 0.4021235175 | QX14: 0.03405210958 | QY14: 0.01447413294 | QZ14: 0.01296897694 | RA14: 0.01257381509 | RB14: 0.0131645305 | RC14: 0.01537447563 | RD14: 0.01414098065 | RE14: 0.02025585916 | RF14: 0.01105749211 | RG14: 0.01327618406 | RH14: 0.01860917637 | RI14: 0.02777219546 | RJ14: 0.0112745592 | RK14: 0.01440766407 | RL14: 0.01861627312 | RM14: 0.04359249172 | RN14: 3.478921346 | RO14: 0.5509853534 | RP14: 0.3025119427 | RQ14: 0.1891827052 | RR14: 0.7488268979 | RS14: 3.224598009 | RT14: 1.759002022 | RU14: 0.8886862217 | RV14: 0.3954882408 | RW14: 1.967119744 | RX14: 4.253964816 | RY14: 2.398082488 | RZ14: 0.2979595047 | SA14: 1.200631274 | SB14: 3.108110549 | SC14: 8.158783713 | SD14: 1.099313331 | SE14: 0.07227498776 | SF14: 0.02302536011 | SG14: 0.01214067664 | SH14: 0.04046732934 | SI14: 0.5521043845 | SJ14: 0.2712067217 | SK14: 0.1544176788 | SL14: 0.02749225171 | SM14: 0.2355500571 | SN14: 0.7999912174 | SO14: 0.7131114306 | SP14: 0.01697129504 | SQ14: 0.1055929275 | SR14: 0.09437622176 | SS14: 1.667507569 | ST14: 11.99757563 | SU14: 0.04564494788 | SV14: 0.01278208744 | SW14: 0.007299453661 | SX14: 0.02605723882 | SY14: 5.967292188 | SZ14: 0.340143387 | TA14: 0.08648220097 | TB14: 0.008372148908 | TC14: 0.2304580676 | TD14: 6.363640765 | TE14: 0.6609828378 | TF14: 0.006931106294 | TG14: 0.06737656541 | TH14: 0.1089606359 | TI14: 10.52879246 | TJ14: 4.401112991 | TK14: 0.03352124499 | TL14: 0.01596215822 | TM14: 0.01270359718 | TN14: 0.02462035159 | TO14: 2.757535068 | TP14: 0.1024390448 | TQ14: 0.06397703984 | TR14: 0.01400426645 | TS14: 0.1229435198 | TT14: 3.692444468 | TU14: 0.2745453161 | TV14: 0.01031845168 | TW14: 0.05624991532 | TX14: 0.04818745048 | TY14: 6.813982934 | TZ14: 6.295694062 | UA14: 0.02235748028 | UB14: 0.009934989424 | UC14: 0.006569558122 | UD14: 0.01473520335 | UE14: 4.396164463 | UF14: 0.1004933267 | UG14: 0.03782241727 | UH14: 0.006102651969 | UI14: 0.05469997545 | UJ14: 5.814892755 | UK14: 0.2088451575 | UL14: 0.005105450031 | UM14: 0.0314766853 | UN14: 0.03779927217 | UO14: 13.24998451 | UP14: 0.9857136658 | UQ14: 0.002478913876 | UR14: 0.001691006382 | US14: 0.001053736235 | UT14: 0.002489368056 | UU14: 0.5935955106 | UV14: 0.01275173233 | UW14: 0.005375417613 | UX14: 0.0009629886603 | UY14: 0.01096232924 | UZ14: 0.8978633338 | VA14: 0.02669741697 | VB14: 0.0008216632265 | VC14: 0.003675254444 | VD14: 0.005199807206 | VE14: 2.627923046 | VF14: 0.06683451695 | VG14: 0.03543302086 | VH14: 0.03248767441 | VI14: 0.03264886559 | VJ14: 0.04390092988 | VK14: 0.04389277818 | VL14: 0.04522823836 | VM14: 0.04601420534 | VN14: 0.0402776981 | VO14: 0.04824917406 | VP14: 0.06030298412 | VQ14: 0.06512671081 | VR14: 0.052710254 | VS14: 0.06667346026 | VT14: 0.07979650307 | VU14: 0.1084662124 | VV14: 0.514936563 | VW14: 0.00206598531 | VX14: 0.0001361202763 | VY14: 0.0003613768522 | VZ14: 0.003110661128 | WA14: 0.207201621 | WB14: 0.02635145504 | WC14: 0.003821356196 | WD14: 0.0008961475905 | WE14: 0.01848700957 | WF14: 0.4771981538 | WG14: 0.06445966565 | WH14: 0.0004295100317 | WI14: 0.008901090003 | WJ14: 0.01422844646 | WK14: 1.80685177 | WL14: 3.571921094 | WM14: 0.001858825813 | WN14: 0.0005951168113 | WO14: 0.0003037189911 | WP14: 0.001625076083 | WQ14: 3.286890759 | WR14: 0.005328985411 | WS14: 0.001880318684 | WT14: 0.0006920000056 | WU14: 0.004795444005 | WV14: 5.0531115 | WW14: 0.005691588427 | WX14: 0.0004563593277 | WY14: 0.002331431735 | WZ14: 0.009658193054 | XA14: 21.46868936 | XB14: 5.71003222 | XC14: 0.005131703262 | XD14: 0.002117492626 | XE14: 0.001048961171 | XF14: 0.006426272555 | XG14: 5.055352513 | XH14: 0.02298598899 | XI14: 0.007280307118 | XJ14: 0.00242968935 | XK14: 0.03582955199 | XL14: 7.280736136 | XM14: 0.04101654865 | XN14: 0.001566927757 | XO14: 0.008726145432 | XP14: 0.05527838323 | XQ14: 19.22638975 | XR14: 0.1428776365 | XS14: 0.00679624303 | XT14: 0.002742239219 | XU14: 0.001993452244 | XV14: 0.008048200526 | XW14: 0.1296613871 | XX14: 0.04996629468 | XY14: 0.01407010664 | XZ14: 0.003585930416 | YA14: 0.06038374147 | YB14: 0.2339823936 | YC14: 0.1247691723 | YD14: 0.003415415285 | YE14: 0.01487197443 | YF14: 0.1765365517 | YG14: 1.024938555 | YH14: 0.0304432025 | YI14: 0.01164546871 | YJ14: 0.008919748231 | YK14: 0.007190250021 | YL14: 0.01446469715 | YM14: 0.02133046108 | YN14: 0.02299876055 | YO14: 0.02471789343 | YP14: 0.0115950174 | YQ14: 0.02303474422 | YR14: 0.03697020714 | YS14: 0.04803361226 | YT14: 0.01392312585 | YU14: 0.03174444609 | YV14: 0.06286045671 | YW14: 0.1315881355 | YX14: 0.05284227319 | YY14: 0.03076262389 | YZ14: 0.02720244275 | ZA14: 0.02913070631 | ZB14: 0.04042320377 | ZC14: 0.03938888575 | ZD14: 0.03950901226 | ZE14: 0.04016150939 | ZF14: 0.03712778123 | ZG14: 0.04371867916 | ZH14: 0.04801311165 | ZI14: 0.04928611802 | ZJ14: 0.04980350598 | ZK14: 0.05606913826 | ZL14: 0.06757837374 | ZM14: 0.08051093841 | ZN14: 0.0630179633 | ZO14: 0.03482650512 | ZP14: 0.03243784849 | ZQ14: 0.03111620288 | ZR14: 0.04456303194 | ZS14: 0.04597058469 | ZT14: 0.04547302672 | ZU14: 0.04900741215 | ZV14: 0.04141434801 | ZW14: 0.04913292157 | ZX14: 0.05696897896 | ZY14: 0.06269848464 | ZZ14: 0.05250657781 | AAA14: 0.06593243586 | AAB14: 0.08190093065 | AAC14: 0.1097311705 | AAD14: 0.03107874016 | AAE14: 0.01222660079 | AAF14: 0.007215535095 | AAG14: 0.005401394742 | AAH14: 0.0154743974 | AAI14: 0.03092705307 | AAJ14: 0.02639171309 | AAK14: 0.02753316418 | AAL14: 0.008685736107 | AAM14: 0.02753920307 | AAN14: 0.06032232305 | AAO14: 0.06954292618 | AAP14: 0.008010270783 | AAQ14: 0.04003995503 | AAR14: 0.1091228436 | AAS14: 0.2901960575 | AAT14: 0.06315763541 | AAU14: 0.008748716615 | AAV14: 0.004085752472 | AAW14: 0.002602733816 | AAX14: 0.01270485409 | AAY14: 0.06913562514 | AAZ14: 0.03669427186 | ABA14: 0.02167825941 | ABB14: 0.00594155614 | ABC14: 0.043197762 | ABD14: 0.1285708646 | ABE14: 0.09906939217 | ABF14: 0.00487324784 | ABG14: 0.03136794103 | ABH14: 0.124104776 | ABI14: 0.539632419 | ABJ14: 0.2320493891 | ABK14: 0.133547954 | ABL14: 0.108710142 | ABM14: 0.1027753098 | ABN14: 0.1610356358 | ABO14: 0.1555974024 | ABP14: 0.1537738639 | ABQ14: 0.147343888 | ABR14: 0.1462670553 | ABS14: 0.159288718 | ABT14: 0.1765027403 | ABU14: 0.1711968567 | ABV14: 0.1886194095 | ABW14: 0.2003484877 | ABX14: 0.229583529 | ABY14: 0.2860568608
A15: 242 | B15: 0.3122291768 | C15: 0.007134691681 | D15: 0.001955481545 | E15: 0.001882575199 | F15: 0.003173805289 | G15: 0.1560850394 | H15: 0.03353367982 | I15: 0.01497028134 | J15: 0.002954995461 | K15: 0.03193397428 | L15: 0.2140908698 | M15: 0.1078416749 | N15: 0.00166566307 | O15: 0.009548404847 | P15: 0.05082823103 | Q15: 1.082511806 | R15: 0.1352847602 | S15: 0.009011534966 | T15: 0.003417440509 | U15: 0.001697561077 | V15: 0.01227853425 | W15: 0.1258354854 | X15: 0.05449920857 | Y15: 0.02025067475 | Z15: 0.00500534285 | AA15: 0.06477800839 | AB15: 0.2247882885 | AC15: 0.1262138893 | AD15: 0.003770712077 | AE15: 0.02606577697 | AF15: 0.1832494464 | AG15: 1.01240363 | AH15: 0.07798874673 | AI15: 0.01003936242 | AJ15: 0.003623686003 | AK15: 0.002714421051 | AL15: 0.01447912971 | AM15: 0.07325528851 | AN15: 0.04458106818 | AO15: 0.02502750638 | AP15: 0.00691637005 | AQ15: 0.05294602312 | AR15: 0.145098004 | AS15: 0.1161561287 | AT15: 0.004920027213 | AU15: 0.03247763103 | AV15: 0.1568637846 | AW15: 0.6022737032 | AX15: 0.1681700135 | AY15: 0.007603399975 | AZ15: 0.003035852224 | BA15: 0.001883751007 | BB15: 0.009726106823 | BC15: 0.1528857643 | BD15: 0.04921775174 | BE15: 0.01583894579 | BF15: 0.004278230575 | BG15: 0.0607472773 | BH15: 0.326281455 | BI15: 0.1224118147 | BJ15: 0.002889199664 | BK15: 0.02033706249 | BL15: 0.1774703876 | BM15: 1.378782129 | BN15: 0.04088190772 | BO15: 0.009209266318 | BP15: 0.006313889366 | BQ15: 0.004639920871 | BR15: 0.01355957161 | BS15: 0.03919383129 | BT15: 0.02864739404 | BU15: 0.02332428273 | BV15: 0.007874207437 | BW15: 0.03335722818 | BX15: 0.08942963027 | BY15: 0.07621605391 | BZ15: 0.007394719444 | CA15: 0.03122549747 | CB15: 0.09580151597 | CC15: 0.3452743092 | CD15: 0.03164538204 | CE15: 0.01288143763 | CF15: 0.01178888891 | CG15: 0.0102435155 | CH15: 0.01523738619 | CI15: 0.02578612972 | CJ15: 0.02067351328 | CK15: 0.02129487774 | CL15: 0.0146226092 | CM15: 0.02457943933 | CN15: 0.04051895494 | CO15: 0.03873136924 | CP15: 0.0164566055 | CQ15: 0.02523263395 | CR15: 0.06006940557 | CS15: 0.1476758714 | CT15: 0.07792330313 | CU15: 0.007133880584 | CV15: 0.005039957057 | CW15: 0.002317654631 | CX15: 0.009603356657 | CY15: 0.07093130887 | CZ15: 0.03171228906 | DA15: 0.01655669569 | DB15: 0.004804987232 | DC15: 0.03239971722 | DD15: 0.1418367861 | DE15: 0.08036808718 | DF15: 0.003953449611 | DG15: 0.02308348563 | DH15: 0.09379507344 | DI15: 0.5866639735 | DJ15: 0.05394265314 | DK15: 0.01675638321 | DL15: 0.00934528256 | DM15: 0.007579399681 | DN15: 0.02083243733 | DO15: 0.04200319294 | DP15: 0.03773504033 | DQ15: 0.0310322322 | DR15: 0.01471299651 | DS15: 0.03892717714 | DT15: 0.06769140273 | DU15: 0.07480623039 | DV15: 0.01194809614 | DW15: 0.03547243951 | DX15: 0.08323241185 | DY15: 0.1773905375 | DZ15: 0.07904654348 | EA15: 0.03860592557 | EB15: 0.02997138319 | EC15: 0.02690092519 | ED15: 0.0319702263 | EE15: 0.02364873568 | EF15: 0.0207754184 | EG15: 0.02892688682 | EH15: 0.02572079874 | EI15: 0.02153115211 | EJ15: 0.02131212991 | EK15: 0.02080598102 | EL15: 0.02692254682 | EM15: 0.02264447782 | EN15: 0.01737346528 | EO15: 0.01686169603 | EP15: 0.02406621439 | EQ15: 0.0101563808 | ER15: 0.006995070326 | ES15: 0.006150757559 | ET15: 0.01321803613 | EU15: 0.02005225564 | EV15: 0.02062398945 | EW15: 0.02559191105 | EX15: 0.009222521199 | EY15: 0.02060925115 | EZ15: 0.03598025815 | FA15: 0.05233770709 | FB15: 0.01039608918 | FC15: 0.02752875161 | FD15: 0.0595329892 | FE15: 0.1342675182 | FF15: 0.01973452048 | FG15: 0.007134674049 | FH15: 0.006101892264 | FI15: 0.006811531009 | FJ15: 0.01064925812 | FK15: 0.01390681492 | FL15: 0.01607229168 | FM15: 0.01975739437 | FN15: 0.01009262287 | FO15: 0.01800703478 | FP15: 0.02331654134 | FQ15: 0.03417775168 | FR15: 0.01247882315 | FS15: 0.02337185958 | FT15: 0.0482790801 | FU15: 0.08808045749 | FV15: 0.04116735937 | FW15: 0.02180756937 | FX15: 0.01784198458 | FY15: 0.01652946042 | FZ15: 0.02739532585 | GA15: 0.02269770856 | GB15: 0.01922003857 | GC15: 0.01923613833 | GD15: 0.0251805183 | GE15: 0.02138621583 | GF15: 0.02036364387 | GG15: 0.01848365077 | GH15: 0.02690171989 | GI15: 0.02502808756 | GJ15: 0.02613892319 | GK15: 0.02706293966 | GL15: 0.1636964738 | GM15: 0.008553547259 | GN15: 0.003464796493 | GO15: 0.002111537048 | GP15: 0.01309504441 | GQ15: 0.05817165639 | GR15: 0.03622260083 | GS15: 0.02159048665 | GT15: 0.005637420243 | GU15: 0.04133985727 | GV15: 0.1089855148 | GW15: 0.08909303181 | GX15: 0.004543917085 | GY15: 0.03013616087 | GZ15: 0.1275808903 | HA15: 0.5228022389 | HB15: 1.73267296 | HC15: 0.03287262562 | HD15: 0.01555070015 | HE15: 0.007191393284 | HF15: 0.04894605793 | HG15: 0.906083799 | HH15: 0.1569396797 | HI15: 0.06159898515 | HJ15: 0.2185389683 | HK15: 0.2523470643 | HL15: 1.762440075 | HM15: 0.2564538607 | HN15: 0.01542483656 | HO15: 0.1098116127 | HP15: 0.7042983732 | HQ15: 5.797951864 | HR15: 0.625235381 | HS15: 0.002572129773 | HT15: 0.0007814928932 | HU15: 0.0004209391969 | HV15: 0.002978040848 | HW15: 0.6577113514 | HX15: 0.02398010152 | HY15: 0.004605837426 | HZ15: 0.001204756164 | IA15: 0.03287530996 | IB15: 1.327841574 | IC15: 0.05181056254 | ID15: 0.0004352424863 | IE15: 0.004531257479 | IF15: 0.09282276353 | IG15: 5.264167283 | IH15: 0.6015743654 | II15: 0.003526923233 | IJ15: 0.001452264635 | IK15: 0.0009910532836 | IL15: 0.006207855035 | IM15: 0.5167969976 | IN15: 0.02636365059 | IO15: 0.006276088154 | IP15: 0.002179981889 | IQ15: 0.04809870531 | IR15: 0.9418898066 | IS15: 0.06509749691 | IT15: 0.001473197797 | IU15: 0.01111891654 | IV15: 0.1459972574 | IW15: 3.880301171 | IX15: 0.1330673021 | IY15: 0.01418176725 | IZ15: 0.006543455408 | JA15: 0.004300937006 | JB15: 0.01930273337 | JC15: 0.1333372645 | JD15: 0.06592072955 | JE15: 0.03006470937 | JF15: 0.00930366435 | JG15: 0.07395538732 | JH15: 0.2489622353 | JI15: 0.1576426837 | JJ15: 0.006682511879 | JK15: 0.03646791107 | JL15: 0.2179148947 | JM15: 1.092778646 | JN15: 0.02670932772 | JO15: 0.01126774244 | JP15: 0.008155530244 | JQ15: 0.008425747163 | JR15: 0.01297164505 | JS15: 0.01820904705 | JT15: 0.01735979378 | JU15: 0.01616417598 | JV15: 0.01004805569 | JW15: 0.01430173028 | JX15: 0.02108199057 | JY15: 0.02750294622 | JZ15: 0.007058825842 | KA15: 0.01782307083 | KB15: 0.02667591832 | KC15: 0.04211120746 | KD15: 0.03132290615 | KE15: 0.01474401619 | KF15: 0.01346970141 | KG15: 0.01301716978 | KH15: 0.01998267915 | KI15: 0.02356453515 | KJ15: 0.02394303605 | KK15: 0.02610921154 | KL15: 0.0142620361 | KM15: 0.02528313321 | KN15: 0.03518837738 | KO15: 0.05722087512 | KP15: 0.0215540094 | KQ15: 0.04067542186 | KR15: 0.06737901875 | KS15: 0.1261893517 | KT15: 0.6037820256 | KU15: 0.2596549639 | KV15: 0.002914375242 | KW15: 0.001207447732 | KX15: 0.01440913773 | KY15: 0.5545762655 | KZ15: 0.1444927528 | LA15: 0.01932338674 | LB15: 0.003669325492 | LC15: 0.1913384964 | LD15: 0.9207753359 | LE15: 0.2995935825 | LF15: 0.00308051353 | LG15: 0.02466269379 | LH15: 0.4719876479 | LI15: 2.897875542 | LJ15: 0.4625027396 | LK15: 0.01182320285 | LL15: 0.001396524951 | LM15: 0.0008881624649 | LN15: 0.01943675381 | LO15: 0.4203551652 | LP15: 0.1680853197 | LQ15: 0.02368964205 | LR15: 0.002893559379 | LS15: 0.2142133143 | LT15: 0.7018275122 | LU15: 0.402143828 | LV15: 0.001407598793 | LW15: 0.03164886772 | LX15: 0.5336370422 | LY15: 2.237945899 | LZ15: 0.03796180953 | MA15: 0.00624957322 | MB15: 0.003075669379 | MC15: 0.002928784559 | MD15: 0.00828326208 | ME15: 0.05227205586 | MF15: 0.02417576281 | MG15: 0.01484675366 | MH15: 0.005628584024 | MI15: 0.02597685864 | MJ15: 0.09608144572 | MK15: 0.05713406778 | ML15: 0.004205434786 | MM15: 0.0188352931 | MN15: 0.07552592482 | MO15: 0.356891656 | MP15: 4.725191826 | MQ15: 0.0003365964552 | MR15: 0.0005340546245 | MS15: 6.955590371e-05 | MT15: 0.0005279442263 | MU15: 4.878296996 | MV15: 0.001478935872 | MW15: 0.0003801850641 | MX15: 8.852245018e-05 | MY15: 0.002197529215 | MZ15: 6.426245928 | NA15: 0.003603210469 | NB15: 9.722900609e-05 | NC15: 0.0005691837881 | ND15: 0.004289028298 | NE15: 22.55393986 | NF15: 4.787986151 | NG15: 0.0001663542396 | NH15: 6.077640194e-05 | NI15: 0.0004365453733 | NJ15: 3.063281293e-05 | NK15: 4.541387408 | NL15: 0.0003859527813 | NM15: 0.0006250814951 | NN15: 8.480730456e-05 | NO15: 0.0003889996481 | NP15: 6.401661579 | NQ15: 0.0005813110208 | NR15: 0.0001259085054 | NS15: 0.0003032300726 | NT15: 0.0006947843892 | NU15: 20.60434214 | NV15: 2.155960564 | NW15: 0.9271654978 | NX15: -3.398972541e-05 | NY15: 0.0004354001059 | NZ15: 0.001253023965 | OA15: 2.401354166 | OB15: 0.006247581958 | OC15: 0.001693863207 | OD15: 0.0004508802711 | OE15: 0.01303661083 | OF15: 3.117287984 | OG15: 0.01006682082 | OH15: 0.0002569154185 | OI15: 0.002789760211 | OJ15: 0.02312485657 | OK15: 10.03113213 | OL15: 0.0598996859 | OM15: 0.02575971148 | ON15: 0.00616754291 | OO15: 0.003163823959 | OP15: 0.01872403137 | OQ15: 0.05887644147 | OR15: 0.05239740909 | OS15: 0.04113898172 | OT15: 0.007460587891 | OU15: 0.05475290373 | OV15: 0.1043485279 | OW15: 0.1328921709 | OX15: 0.004861778987 | OY15: 0.04965513751 | OZ15: 0.1487814222 | PA15: 0.3254821804 | PB15: 1.95333276 | PC15: 0.00144860168 | PD15: 0.0001766859149 | PE15: -3.900017082e-05 | PF15: 0.002643883007 | PG15: 2.510409812 | PH15: 0.01717158463 | PI15: 0.002023124427 | PJ15: 0.001192838559 | PK15: 0.02109693958 | PL15: 3.398297095 | PM15: 0.01861398682 | PN15: 0.0009705370851 | PO15: 0.002441951499 | PP15: 0.03786140879 | PQ15: 10.37518132 | PR15: 0.04537844769 | PS15: 0.01951488898 | PT15: 0.003234158118 | PU15: 0.002525818424 | PV15: 0.01513870142 | PW15: 0.04206290465 | PX15: 0.03610311786 | PY15: 0.02679220702 | PZ15: 0.006876530577 | QA15: 0.04404796669 | QB15: 0.07662516231 | QC15: 0.1119591334 | QD15: 0.004459073566 | QE15: 0.05120829465 | QF15: 0.1261474572 | QG15: 0.350952231 | QH15: 0.09990184817 | QI15: 0.01236729027 | QJ15: 0.009222624928 | QK15: 0.007830676428 | QL15: 0.01075292757 | QM15: 0.05907684724 | QN15: 0.02856660234 | QO15: 0.02298676821 | QP15: 0.01081515313 | QQ15: 0.02889648932 | QR15: 0.1161975355 | QS15: 0.0840631914 | QT15: 0.00945610177 | QU15: 0.02051299984 | QV15: 0.07469169895 | QW15: 0.4316749876 | QX15: 0.03556292095 | QY15: 0.01366486333 | QZ15: 0.01321967799 | RA15: 0.01223632141 | RB15: 0.01220585995 | RC15: 0.0167232688 | RD15: 0.01671453818 | RE15: 0.01933159474 | RF15: 0.01229405305 | RG15: 0.01420708236 | RH15: 0.01990007198 | RI15: 0.0273220939 | RJ15: 0.01154717767 | RK15: 0.01530744336 | RL15: 0.01877332513 | RM15: 0.04680329799 | RN15: 3.491548379 | RO15: 0.5492463261 | RP15: 0.300073805 | RQ15: 0.1930577285 | RR15: 0.748435531 | RS15: 3.227821212 | RT15: 1.762978046 | RU15: 0.8985914137 | RV15: 0.39775681 | RW15: 1.953916001 | RX15: 4.226160576 | RY15: 2.388055421 | RZ15: 0.3003773369 | SA15: 1.206334147 | SB15: 3.086760543 | SC15: 8.116955605 | SD15: 1.100210592 | SE15: 0.07191165432 | SF15: 0.02323473939 | SG15: 0.01222239496 | SH15: 0.04506939049 | SI15: 0.5759886779 | SJ15: 0.2902180816 | SK15: 0.1567443829 | SL15: 0.02864614036 | SM15: 0.2452786647 | SN15: 0.8511889157 | SO15: 0.7190693338 | SP15: 0.01714011827 | SQ15: 0.1160089629 | SR15: 0.1006000186 | SS15: 1.787312689 | ST15: 12.07119179 | SU15: 0.04480371402 | SV15: 0.01368583621 | SW15: 0.008023590351 | SX15: 0.0290419293 | SY15: 6.379163539 | SZ15: 0.3652518111 | TA15: 0.08938207538 | TB15: 0.008832994251 | TC15: 0.246703519 | TD15: 6.761204178 | TE15: 0.6663067491 | TF15: 0.00658037556 | TG15: 0.06732100916 | TH15: 0.116972045 | TI15: 11.37542152 | TJ15: 4.419263896 | TK15: 0.03556523076 | TL15: 0.01732475151 | TM15: 0.01295092752 | TN15: 0.02753371173 | TO15: 2.915187295 | TP15: 0.1087513388 | TQ15: 0.06500229063 | TR15: 0.01448289058 | TS15: 0.1262859821 | TT15: 3.885746205 | TU15: 0.2739069457 | TV15: 0.01141289157 | TW15: 0.05965453616 | TX15: 0.05191742226 | TY15: 7.283537975 | TZ15: 6.332677254 | UA15: 0.02247123189 | UB15: 0.01105196827 | UC15: 0.005478103869 | UD15: 0.01580909804 | UE15: 4.699539946 | UF15: 0.1058790382 | UG15: 0.03671660221 | UH15: 0.007018507416 | UI15: 0.05719750296 | UJ15: 6.155317455 | UK15: 0.2166280804 | UL15: 0.00572602408 | UM15: 0.0331852603 | UN15: 0.04083543379 | UO15: 14.2708186 | UP15: 0.9793677025 | UQ15: 0.002340826056 | UR15: 0.001964146867 | US15: 0.001328418504 | UT15: 0.002426348266 | UU15: 0.6247630256 | UV15: 0.01255353591 | UW15: 0.005319873349 | UX15: 0.00116924617 | UY15: 0.01093479184 | UZ15: 0.9365908872 | VA15: 0.02777696371 | VB15: 0.001058552777 | VC15: 0.003219347425 | VD15: 0.005462385563 | VE15: 2.813644123 | VF15: 0.06896343851 | VG15: 0.03548995857 | VH15: 0.03214853851 | VI15: 0.03319508549 | VJ15: 0.04460921507 | VK15: 0.043817571 | VL15: 0.04482820819 | VM15: 0.0458019309 | VN15: 0.04138470001 | VO15: 0.04833816531 | VP15: 0.0612466145 | VQ15: 0.06540172822 | VR15: 0.05243305039 | VS15: 0.0672167697 | VT15: 0.08113039403 | VU15: 0.1104327076 | VV15: 0.5201783326 | VW15: 0.002147203087 | VX15: 6.340849349e-05 | VY15: 0.0004147089425 | VZ15: 0.003144747364 | WA15: 0.214921897 | WB15: 0.02987404725 | WC15: 0.004092386793 | WD15: 0.0008605442795 | WE15: 0.01931493437 | WF15: 0.4949523099 | WG15: 0.06223129049 | WH15: 0.0004050393249 | WI15: 0.009835097616 | WJ15: 0.01489577567 | WK15: 1.910363332 | WL15: 3.509234693 | WM15: 0.001902190067 | WN15: 0.0003814258097 | WO15: 0.00040464586 | WP15: 0.001608026411 | WQ15: 3.243179696 | WR15: 0.005250027515 | WS15: 0.001969135793 | WT15: 0.0007927100913 | WU15: 0.004464150742 | WV15: 4.947092514 | WW15: 0.005738166251 | WX15: 0.0004542092767 | WY15: 0.001666991628 | WZ15: 0.00956939398 | XA15: 21.07264012 | XB15: 5.602062497 | XC15: 0.005089360619 | XD15: 0.002107265491 | XE15: 0.001056226631 | XF15: 0.005963577601 | XG15: 4.946987005 | XH15: 0.02274416228 | XI15: 0.006918561961 | XJ15: 0.002463797161 | XK15: 0.03585167395 | XL15: 7.116046858 | XM15: 0.03781706462 | XN15: 0.001510191192 | XO15: 0.008383408578 | XP15: 0.05274999756 | XQ15: 18.81176469 | XR15: 0.142331736 | XS15: 0.00728437435 | XT15: 0.003346179067 | XU15: 0.002226750943 | XV15: 0.008434259655 | XW15: 0.1303398526 | XX15: 0.04850132946 | XY15: 0.01407314303 | XZ15: 0.003240757949 | YA15: 0.05988037718 | YB15: 0.2340019814 | YC15: 0.1218616946 | YD15: 0.003520943602 | YE15: 0.01381934294 | YF15: 0.1739072087 | YG15: 1.015482643 | YH15: 0.02978484166 | YI15: 0.01276819262 | YJ15: 0.009024423741 | YK15: 0.008167512281 | YL15: 0.01459905664 | YM15: 0.02102907486 | YN15: 0.02369111467 | YO15: 0.02595476419 | YP15: 0.01178712264 | YQ15: 0.0224559186 | YR15: 0.03647158751 | YS15: 0.04704105214 | YT15: 0.01362283095 | YU15: 0.03285413899 | YV15: 0.06442189788 | YW15: 0.1352485024 | YX15: 0.05215491478 | YY15: 0.03126361198 | YZ15: 0.02675412769 | ZA15: 0.02755943864 | ZB15: 0.03993171796 | ZC15: 0.03927533823 | ZD15: 0.0409417261 | ZE15: 0.03868509022 | ZF15: 0.03711161214 | ZG15: 0.04375886069 | ZH15: 0.04900621734 | ZI15: 0.05062098278 | ZJ15: 0.05050781172 | ZK15: 0.05581685573 | ZL15: 0.068212527 | ZM15: 0.08125531943 | ZN15: 0.06386944128 | ZO15: 0.03540381809 | ZP15: 0.03239778703 | ZQ15: 0.03272068521 | ZR15: 0.04430163661 | ZS15: 0.04581077635 | ZT15: 0.04396553525 | ZU15: 0.04890468506 | ZV15: 0.04084036904 | ZW15: 0.04884266453 | ZX15: 0.05892225265 | ZY15: 0.06180101478 | ZZ15: 0.05298605372 | AAA15: 0.06570798319 | AAB15: 0.08408450084 | AAC15: 0.1052502424 | AAD15: 0.03368204388 | AAE15: 0.01215835344 | AAF15: 0.007034053443 | AAG15: 0.005294158662 | AAH15: 0.01533022067 | AAI15: 0.03162726465 | AAJ15: 0.02569200969 | AAK15: 0.02733616969 | AAL15: 0.008164731825 | AAM15: 0.02855390997 | AAN15: 0.05792901895 | AAO15: 0.06813730743 | AAP15: 0.008459313363 | AAQ15: 0.03932948897 | AAR15: 0.1082377555 | AAS15: 0.2840595231 | AAT15: 0.06252698348 | AAU15: 0.008803638452 | AAV15: 0.003939764454 | AAW15: 0.002919011611 | AAX15: 0.01212605712 | AAY15: 0.06650580176 | AAZ15: 0.03651609823 | ABA15: 0.0220333716 | ABB15: 0.006280723203 | ABC15: 0.04243377017 | ABD15: 0.1279696167 | ABE15: 0.09949438717 | ABF15: 0.005028321879 | ABG15: 0.03222935403 | ABH15: 0.1226595397 | ABI15: 0.5346274179 | ABJ15: 0.2341954983 | ABK15: 0.1332185308 | ABL15: 0.1103450872 | ABM15: 0.106406541 | ABN15: 0.1611839176 | ABO15: 0.156933539 | ABP15: 0.1532161618 | ABQ15: 0.1478626744 | ABR15: 0.1442082224 | ABS15: 0.1612622084 | ABT15: 0.1710524919 | ABU15: 0.1681753145 | ABV15: 0.1855567513 | ABW15: 0.1945893201 | ABX15: 0.2220159911 | ABY15: 0.2844097879
A16: 243 | B16: 0.3159183897 | C16: 0.007411510194 | D16: 0.002599988665 | E16: 0.001764982814 | F16: 0.004223181847 | G16: 0.1644563761 | H16: 0.03619506227 | I16: 0.01352058796 | J16: 0.002463710902 | K16: 0.03366625341 | L16: 0.2266235765 | M16: 0.1109608736 | N16: 0.001866221158 | O16: 0.0096768065 | P16: 0.05260781871 | Q16: 1.131042306 | R16: 0.1352676947 | S16: 0.009070783002 | T16: 0.003229744187 | U16: 0.002084715083 | V16: 0.01248111458 | W16: 0.1224423455 | X16: 0.05266153388 | Y16: 0.02047868456 | Z16: 0.004969684582 | AA16: 0.06506248117 | AB16: 0.2232017197 | AC16: 0.1275497482 | AD16: 0.00387410564 | AE16: 0.0271012681 | AF16: 0.1858605464 | AG16: 1.013032884 | AH16: 0.0761568798 | AI16: 0.009910231649 | AJ16: 0.003871158897 | AK16: 0.003057805963 | AL16: 0.01438814051 | AM16: 0.07362911867 | AN16: 0.04481049773 | AO16: 0.02485375989 | AP16: 0.005836218343 | AQ16: 0.05335393439 | AR16: 0.1459668406 | AS16: 0.1143985189 | AT16: 0.005091822482 | AU16: 0.03135573609 | AV16: 0.157806376 | AW16: 0.6025484428 | AX16: 0.167683378 | AY16: 0.007160589301 | AZ16: 0.002937726404 | BA16: 0.001865985281 | BB16: 0.01021180269 | BC16: 0.1540583986 | BD16: 0.05101907302 | BE16: 0.01582550946 | BF16: 0.004131511215 | BG16: 0.05969967169 | BH16: 0.3179219838 | BI16: 0.1214334095 | BJ16: 0.002908294255 | BK16: 0.02035791319 | BL16: 0.1768311356 | BM16: 1.369195556 | BN16: 0.04222403654 | BO16: 0.0092014953 | BP16: 0.005547565587 | BQ16: 0.004124025065 | BR16: 0.01299384647 | BS16: 0.0399249188 | BT16: 0.0293410322 | BU16: 0.02436385833 | BV16: 0.007557732127 | BW16: 0.03369526106 | BX16: 0.08843694688 | BY16: 0.0764015156 | BZ16: 0.008423261349 | CA16: 0.03068657607 | CB16: 0.1001707452 | CC16: 0.3446758546 | CD16: 0.03101168438 | CE16: 0.01282342355 | CF16: 0.01079109048 | CG16: 0.009816162777 | CH16: 0.0156531959 | CI16: 0.02489642838 | CJ16: 0.02075557734 | CK16: 0.02065456395 | CL16: 0.01374702081 | CM16: 0.02426148185 | CN16: 0.04096004397 | CO16: 0.03984605164 | CP16: 0.01655651764 | CQ16: 0.02698828181 | CR16: 0.06000014882 | CS16: 0.1470111141 | CT16: 0.07664169078 | CU16: 0.007373656308 | CV16: 0.004421138677 | CW16: 0.00237686291 | CX16: 0.009450425605 | CY16: 0.06956916746 | CZ16: 0.03160410282 | DA16: 0.01758727137 | DB16: 0.005218660791 | DC16: 0.03054433163 | DD16: 0.1403671171 | DE16: 0.07860615911 | DF16: 0.004590017304 | DG16: 0.02190211318 | DH16: 0.09586519398 | DI16: 0.5841652357 | DJ16: 0.054102158 | DK16: 0.01700081789 | DL16: 0.009314065844 | DM16: 0.006988264625 | DN16: 0.02001846314 | DO16: 0.04105787689 | DP16: 0.03792388203 | DQ16: 0.02963027693 | DR16: 0.01456564822 | DS16: 0.03735703687 | DT16: 0.06644607378 | DU16: 0.07458400618 | DV16: 0.01189773067 | DW16: 0.03622400371 | DX16: 0.08236089118 | DY16: 0.1822284372 | DZ16: 0.07938793963 | EA16: 0.0381566328 | EB16: 0.02934593415 | EC16: 0.02676516909 | ED16: 0.03419130559 | EE16: 0.02601488473 | EF16: 0.02307056392 | EG16: 0.02754453448 | EH16: 0.02885620831 | EI16: 0.02290875107 | EJ16: 0.0218595933 | EK16: 0.02259397074 | EL16: 0.02868106376 | EM16: 0.02244051193 | EN16: 0.01878967443 | EO16: 0.01830188687 | EP16: 0.02273091783 | EQ16: 0.01019835755 | ER16: 0.006583444463 | ES16: 0.006200444445 | ET16: 0.0131386413 | EU16: 0.01966907457 | EV16: 0.02155204643 | EW16: 0.02555158463 | EX16: 0.009236579771 | EY16: 0.02108247546 | EZ16: 0.03435330871 | FA16: 0.05132320569 | FB16: 0.01054751936 | FC16: 0.02809144753 | FD16: 0.05960719287 | FE16: 0.1301215492 | FF16: 0.01918186864 | FG16: 0.007970441027 | FH16: 0.00606304115 | FI16: 0.006220597174 | FJ16: 0.01102153045 | FK16: 0.01417415221 | FL16: 0.01560208857 | FM16: 0.0181751741 | FN16: 0.009938267692 | FO16: 0.01796589205 | FP16: 0.02353070315 | FQ16: 0.033003866 | FR16: 0.0117578239 | FS16: 0.02406305292 | FT16: 0.04712193366 | FU16: 0.08786010133 | FV16: 0.04196286293 | FW16: 0.02139763698 | FX16: 0.01852722492 | FY16: 0.01636540606 | FZ16: 0.02789580746 | GA16: 0.02270361355 | GB16: 0.0198184002 | GC16: 0.01939713372 | GD16: 0.02565130776 | GE16: 0.02142738001 | GF16: 0.02038511912 | GG16: 0.01960158251 | GH16: 0.02763642142 | GI16: 0.02594934604 | GJ16: 0.02690684306 | GK16: 0.02741174609 | GL16: 0.1642179322 | GM16: 0.008750314617 | GN16: 0.003314417785 | GO16: 0.002482431175 | GP16: 0.01288315638 | GQ16: 0.05884635891 | GR16: 0.03543958311 | GS16: 0.02115562175 | GT16: 0.005732639794 | GU16: 0.04128162516 | GV16: 0.1098185517 | GW16: 0.08596514339 | GX16: 0.004472219044 | GY16: 0.03120004674 | GZ16: 0.1277921103 | HA16: 0.5241265823 | HB16: 1.744310965 | HC16: 0.03280174605 | HD16: 0.01537888577 | HE16: 0.006867900835 | HF16: 0.04920762507 | HG16: 0.8962964473 | HH16: 0.1535157456 | HI16: 0.06245426492 | HJ16: 0.2192248343 | HK16: 0.2531390342 | HL16: 1.741202265 | HM16: 0.2538305194 | HN16: 0.0148235896 | HO16: 0.1103375558 | HP16: 0.7014545598 | HQ16: 5.73586101 | HR16: 0.6337738902 | HS16: 0.00244260167 | HT16: 0.0007620723438 | HU16: 0.0002890992792 | HV16: 0.003234149652 | HW16: 0.6652946958 | HX16: 0.02325899358 | HY16: 0.004783254807 | HZ16: 0.001136601988 | IA16: 0.03352149389 | IB16: 1.321993292 | IC16: 0.0507615101 | ID16: 0.0005288473895 | IE16: 0.005095921859 | IF16: 0.09267928707 | IG16: 5.297790447 | IH16: 0.6153619619 | II16: 0.003708816987 | IJ16: 0.001493656413 | IK16: 0.0009695436064 | IL16: 0.006143972377 | IM16: 0.5246072019 | IN16: 0.02577930944 | IO16: 0.006957415409 | IP16: 0.001982291479 | IQ16: 0.04955103688 | IR16: 0.956444122 | IS16: 0.06445731872 | IT16: 0.001250517913 | IU16: 0.01125319601 | IV16: 0.1485602273 | IW16: 3.941435295 | IX16: 0.1360418776 | IY16: 0.01380519129 | IZ16: 0.006293893046 | JA16: 0.004941316883 | JB16: 0.01954832952 | JC16: 0.1302467061 | JD16: 0.06536509225 | JE16: 0.02972889905 | JF16: 0.009818377982 | JG16: 0.07530997021 | JH16: 0.2413481124 | JI16: 0.1605192991 | JJ16: 0.006670299429 | JK16: 0.03679334704 | JL16: 0.2188079544 | JM16: 1.085064162 | JN16: 0.0264953359 | JO16: 0.0122924715 | JP16: 0.007677101086 | JQ16: 0.008183152586 | JR16: 0.01335418964 | JS16: 0.01813406767 | JT16: 0.01742203815 | JU16: 0.01667775606 | JV16: 0.01035764397 | JW16: 0.01452544014 | JX16: 0.02086276999 | JY16: 0.02674680164 | JZ16: 0.0070857593 | KA16: 0.01683809744 | KB16: 0.02514175826 | KC16: 0.04273676808 | KD16: 0.02842615707 | KE16: 0.01543335853 | KF16: 0.01380766587 | KG16: 0.01342490597 | KH16: 0.02032209218 | KI16: 0.02313275109 | KJ16: 0.0243589932 | KK16: 0.02506886338 | KL16: 0.0144763828 | KM16: 0.02458354853 | KN16: 0.03544948221 | KO16: 0.05508883662 | KP16: 0.02044993501 | KQ16: 0.03983483426 | KR16: 0.06863497018 | KS16: 0.1244754612 | KT16: 0.6043669731 | KU16: 0.2627865647 | KV16: 0.002720586509 | KW16: 0.001253796116 | KX16: 0.01415339369 | KY16: 0.5484822833 | KZ16: 0.1422736899 | LA16: 0.01968999726 | LB16: 0.003588304701 | LC16: 0.1871651637 | LD16: 0.9161694454 | LE16: 0.2942570232 | LF16: 0.00286351983 | LG16: 0.02626917292 | LH16: 0.4770652365 | LI16: 2.876577544 | LJ16: 0.461254773 | LK16: 0.01225448378 | LL16: 0.001532933921 | LM16: 0.00103117485 | LN16: 0.01970011788 | LO16: 0.4141010219 | LP16: 0.1671816652 | LQ16: 0.02264715235 | LR16: 0.00283355194 | LS16: 0.2095402283 | LT16: 0.6937604296 | LU16: 0.3941205234 | LV16: 0.001293155077 | LW16: 0.03202788021 | LX16: 0.5207849176 | LY16: 2.221241641 | LZ16: 0.03691253652 | MA16: 0.006353568302 | MB16: 0.003400366918 | MC16: 0.003117168356 | MD16: 0.008360425913 | ME16: 0.05268416443 | MF16: 0.02342470009 | MG16: 0.01476592356 | MH16: 0.005595370931 | MI16: 0.02714278967 | MJ16: 0.0943803987 | MK16: 0.05531933548 | ML16: 0.004666930483 | MM16: 0.01938372981 | MN16: 0.07812978495 | MO16: 0.3585331517 | MP16: 4.718185224 | MQ16: 0.000328019696 | MR16: 0.0003848278988 | MS16: -3.20659477e-05 | MT16: 0.0004967343242 | MU16: 4.846549036 | MV16: 0.001493167576 | MW16: 0.0002661441661 | MX16: 7.408655081e-05 | MY16: 0.00208874363 | MZ16: 6.362706167 | NA16: 0.002981902483 | NB16: 9.992865144e-05 | NC16: 0.000527782473 | ND16: 0.003909209907 | NE16: 22.45380095 | NF16: 4.81424362 | NG16: 0.000117154816 | NH16: 8.09516265e-05 | NI16: 0.0008687378199 | NJ16: 9.554401094e-05 | NK16: 4.516035317 | NL16: 0.0004158427096 | NM16: 0.000507112063 | NN16: 0.0001118513072 | NO16: 0.0004296602367 | NP16: 6.354371636 | NQ16: 0.0006069814118 | NR16: 5.167824389e-05 | NS16: 0.0001349640441 | NT16: 0.0007493845284 | NU16: 20.59385908 | NV16: 2.1510057 | NW16: 0.9352850564 | NX16: 0.0002670601483 | NY16: 0.000398460668 | NZ16: 0.001413148436 | OA16: 2.388622876 | OB16: 0.005659178594 | OC16: 0.001669891469 | OD16: 0.0004133533371 | OE16: 0.01261451868 | OF16: 3.095184832 | OG16: 0.0104332304 | OH16: 0.0002681744687 | OI16: 0.003230697399 | OJ16: 0.02138351603 | OK16: 10.0209486 | OL16: 0.06389334405 | OM16: 0.02778165111 | ON16: 0.005856125464 | OO16: 0.003208371919 | OP16: 0.01856595273 | OQ16: 0.05702946431 | OR16: 0.05209031877 | OS16: 0.03949982306 | OT16: 0.007083379334 | OU16: 0.0536455285 | OV16: 0.1021430259 | OW16: 0.134203225 | OX16: 0.004975421662 | OY16: 0.04905779403 | OZ16: 0.1494060575 | PA16: 0.3170494649 | PB16: 1.929396482 | PC16: 0.001020238059 | PD16: 0.0004159140808 | PE16: 9.652798539e-05 | PF16: 0.002361854006 | PG16: 2.703030963 | PH16: 0.01794046318 | PI16: 0.001838229096 | PJ16: 0.0008100520119 | PK16: 0.02259109727 | PL16: 3.579768164 | PM16: 0.01722147883 | PN16: 0.0007472663005 | PO16: 0.002405114274 | PP16: 0.03873726388 | PQ16: 10.96453 | PR16: 0.04471174267 | PS16: 0.01944124312 | PT16: 0.003324078966 | PU16: 0.002229802082 | PV16: 0.01529532378 | PW16: 0.0425315949 | PX16: 0.03651640853 | PY16: 0.0273944917 | PZ16: 0.006925929092 | QA16: 0.04521953794 | QB16: 0.07604228125 | QC16: 0.1095461053 | QD16: 0.004275258786 | QE16: 0.05088890773 | QF16: 0.1289767638 | QG16: 0.3462292036 | QH16: 0.09847978988 | QI16: 0.0125353382 | QJ16: 0.009651145886 | QK16: 0.008676279799 | QL16: 0.011820009 | QM16: 0.06526972421 | QN16: 0.0345857556 | QO16: 0.02366579032 | QP16: 0.009860939282 | QQ16: 0.0298223363 | QR16: 0.1276087716 | QS16: 0.08459901383 | QT16: 0.009817040675 | QU16: 0.02038039355 | QV16: 0.07753573122 | QW16: 0.4498927157 | QX16: 0.03518754587 | QY16: 0.01442745931 | QZ16: 0.01353446222 | RA16: 0.01232428651 | RB16: 0.01311389398 | RC16: 0.01771362538 | RD16: 0.01701497403 | RE16: 0.01994732533 | RF16: 0.01260028513 | RG16: 0.01469468197 | RH16: 0.02126654609 | RI16: 0.02696139339 | RJ16: 0.01257150195 | RK16: 0.01752401337 | RL16: 0.0212735618 | RM16: 0.04679268357 | RN16: 3.51892308 | RO16: 0.5501494697 | RP16: 0.3067119903 | RQ16: 0.1923595355 | RR16: 0.7525730275 | RS16: 3.223202807 | RT16: 1.761187923 | RU16: 0.9032609056 | RV16: 0.3954620526 | RW16: 1.950318209 | RX16: 4.213146438 | RY16: 2.390104227 | RZ16: 0.3018537667 | SA16: 1.207456645 | SB16: 3.090648864 | SC16: 8.125544364 | SD16: 1.110382275 | SE16: 0.07260396599 | SF16: 0.02290285789 | SG16: 0.01219732924 | SH16: 0.04749891187 | SI16: 0.6164128859 | SJ16: 0.3190635771 | SK16: 0.157915484 | SL16: 0.02976931498 | SM16: 0.259459849 | SN16: 0.9008346326 | SO16: 0.723442312 | SP16: 0.01865613297 | SQ16: 0.1216544441 | SR16: 0.1091906026 | SS16: 1.89296106 | ST16: 12.22004281 | SU16: 0.04540879227 | SV16: 0.01422873191 | SW16: 0.008709645243 | SX16: 0.03044057895 | SY16: 6.967432719 | SZ16: 0.399617443 | TA16: 0.09011775404 | TB16: 0.008681498763 | TC16: 0.2603486477 | TD16: 7.262340783 | TE16: 0.6817743594 | TF16: 0.007251636731 | TG16: 0.07518273007 | TH16: 0.1279107214 | TI16: 12.12425115 | TJ16: 4.440196201 | TK16: 0.03393293291 | TL16: 0.01708500345 | TM16: 0.01251015896 | TN16: 0.03017689269 | TO16: 3.173598152 | TP16: 0.1225900527 | TQ16: 0.06520674019 | TR16: 0.01692218417 | TS16: 0.1371662146 | TT16: 4.132707668 | TU16: 0.2816289198 | TV16: 0.01171423975 | TW16: 0.06497072468 | TX16: 0.05569776006 | TY16: 7.721923201 | TZ16: 6.338561849 | UA16: 0.0222778784 | UB16: 0.01078863408 | UC16: 0.006920611212 | UD16: 0.01613073599 | UE16: 5.112169713 | UF16: 0.1158285122 | UG16: 0.03990979943 | UH16: 0.006875776957 | UI16: 0.05658631431 | UJ16: 6.584901374 | UK16: 0.2091239193 | UL16: 0.006307249883 | UM16: 0.03520708139 | UN16: 0.04415915435 | UO16: 15.14522085 | UP16: 1.010018951 | UQ16: 0.003148572178 | UR16: 0.001641593554 | US16: 0.0009432797338 | UT16: 0.002526148157 | UU16: 0.6748133456 | UV16: 0.01369581819 | UW16: 0.004691085473 | UX16: 0.001195319756 | UY16: 0.01298552656 | UZ16: 0.9952959872 | VA16: 0.02698511466 | VB16: 0.0008919551965 | VC16: 0.00401842725 | VD16: 0.00603382476 | VE16: 2.938920388 | VF16: 0.07104254134 | VG16: 0.03687366345 | VH16: 0.03207904215 | VI16: 0.03240143548 | VJ16: 0.04486252542 | VK16: 0.04383668146 | VL16: 0.04547020571 | VM16: 0.04763039951 | VN16: 0.04071867029 | VO16: 0.04845514457 | VP16: 0.0593460255 | VQ16: 0.06512272973 | VR16: 0.0535419362 | VS16: 0.06636532108 | VT16: 0.08196802402 | VU16: 0.1117067748 | VV16: 0.5277323647 | VW16: 0.002678444274 | VX16: 0.0004018831963 | VY16: 0.0005560860495 | VZ16: 0.003558721206 | WA16: 0.2379256561 | WB16: 0.03113500962 | WC16: 0.004231920926 | WD16: 0.0009715057977 | WE16: 0.02126560866 | WF16: 0.5257533426 | WG16: 0.06425308171 | WH16: 0.0005883924758 | WI16: 0.0101923592 | WJ16: 0.01596650066 | WK16: 2.007701516 | WL16: 3.455749787 | WM16: 0.001637677356 | WN16: 0.0004212902613 | WO16: 0.000555959612 | WP16: 0.001376763792 | WQ16: 3.177205999 | WR16: 0.0049836738 | WS16: 0.001508741104 | WT16: 0.0007253812884 | WU16: 0.005031952204 | WV16: 4.813927883 | WW16: 0.005389090993 | WX16: 0.0003846856748 | WY16: 0.001742849394 | WZ16: 0.009680664513 | XA16: 20.75859217 | XB16: 5.541070728 | XC16: 0.004614280799 | XD16: 0.002006570941 | XE16: 0.0007933108437 | XF16: 0.006157544068 | XG16: 4.821178712 | XH16: 0.02146149646 | XI16: 0.006715245001 | XJ16: 0.00222617882 | XK16: 0.03389548914 | XL16: 6.917708595 | XM16: 0.03685063668 | XN16: 0.001391539499 | XO16: 0.00828634646 | XP16: 0.05431986279 | XQ16: 18.55631815 | XR16: 0.1415350057 | XS16: 0.006514664285 | XT16: 0.003248264357 | XU16: 0.002120082454 | XV16: 0.008225772493 | XW16: 0.1298057707 | XX16: 0.05019933532 | XY16: 0.01413507799 | XZ16: 0.003202742609 | YA16: 0.05881955308 | YB16: 0.2340676795 | YC16: 0.1217009593 | YD16: 0.003208025016 | YE16: 0.01364233025 | YF16: 0.1708809493 | YG16: 1.012689871 | YH16: 0.02874374015 | YI16: 0.0119498115 | YJ16: 0.009175162081 | YK16: 0.008251660623 | YL16: 0.01509947785 | YM16: 0.02186046371 | YN16: 0.02338109868 | YO16: 0.02579985795 | YP16: 0.01135512569 | YQ16: 0.02398471077 | YR16: 0.03670014653 | YS16: 0.04861322804 | YT16: 0.01336386916 | YU16: 0.03265927794 | YV16: 0.06421853505 | YW16: 0.1302445293 | YX16: 0.05521623089 | YY16: 0.03179789043 | YZ16: 0.02659945563 | ZA16: 0.02878973505 | ZB16: 0.04092632018 | ZC16: 0.03848707784 | ZD16: 0.04025651886 | ZE16: 0.03795563509 | ZF16: 0.03775953126 | ZG16: 0.0427604636 | ZH16: 0.04797626295 | ZI16: 0.04986933839 | ZJ16: 0.04826743521 | ZK16: 0.05726327249 | ZL16: 0.06646967133 | ZM16: 0.08300192835 | ZN16: 0.06511077795 | ZO16: 0.034484358 | ZP16: 0.03282505511 | ZQ16: 0.03071553931 | ZR16: 0.04547860138 | ZS16: 0.04595953664 | ZT16: 0.04517570562 | ZU16: 0.04779664405 | ZV16: 0.04160960692 | ZW16: 0.04905056843 | ZX16: 0.05644810462 | ZY16: 0.06256777676 | ZZ16: 0.05341101668 | AAA16: 0.06785758448 | AAB16: 0.08222004489 | AAC16: 0.1048258761 | AAD16: 0.03154254711 | AAE16: 0.0114442184 | AAF16: 0.006929722307 | AAG16: 0.005502987254 | AAH16: 0.01528009082 | AAI16: 0.03267611117 | AAJ16: 0.025663318 | AAK16: 0.02765782769 | AAL16: 0.008187107905 | AAM16: 0.02736471925 | AAN16: 0.05819769479 | AAO16: 0.06921719385 | AAP16: 0.008352865639 | AAQ16: 0.03973815262 | AAR16: 0.1089818561 | AAS16: 0.2885479916 | AAT16: 0.06286127854 | AAU16: 0.009035248853 | AAV16: 0.004253256354 | AAW16: 0.003069016752 | AAX16: 0.0129490929 | AAY16: 0.06597765705 | AAZ16: 0.03832976295 | ABA16: 0.02148002166 | ABB16: 0.006036783348 | ABC16: 0.04232973895 | ABD16: 0.1283002265 | ABE16: 0.09806524282 | ABF16: 0.004824642661 | ABG16: 0.03085786772 | ABH16: 0.1241338652 | ABI16: 0.5321685366 | ABJ16: 0.2374240372 | ABK16: 0.1316935502 | ABL16: 0.1107756898 | ABM16: 0.1042176772 | ABN16: 0.1634241996 | ABO16: 0.1576800627 | ABP16: 0.1529089457 | ABQ16: 0.1479054809 | ABR16: 0.1454601415 | ABS16: 0.1599543484 | ABT16: 0.1686591163 | ABU16: 0.1722486314 | ABV16: 0.1874473868 | ABW16: 0.1970395336 | ABX16: 0.226824789 | ABY16: 0.2826700841
A17: 244 | B17: 0.3173642281 | C17: 0.007604589209 | D17: 0.003131417868 | E17: 0.001655509495 | F17: 0.005301532116 | G17: 0.1692964501 | H17: 0.03785481159 | I17: 0.01219566066 | J17: 0.001906265094 | K17: 0.03482796462 | L17: 0.2377704506 | M17: 0.1134304734 | N17: 0.002045236149 | O17: 0.00955788346 | P17: 0.05330367584 | Q17: 1.166184008 | R17: 0.1345607991 | S17: 0.009070288746 | T17: 0.003052702095 | U17: 0.002401021701 | V17: 0.01256331179 | W17: 0.11869078 | X17: 0.0507275383 | Y17: 0.0205251301 | Z17: 0.004931397434 | AA17: 0.06519915057 | AB17: 0.2214948263 | AC17: 0.1284784094 | AD17: 0.003933665565 | AE17: 0.02778288296 | AF17: 0.1867241771 | AG17: 1.00619572 | AH17: 0.07424560079 | AI17: 0.009745472884 | AJ17: 0.004059161106 | AK17: 0.003331599028 | AL17: 0.01420798675 | AM17: 0.07341832904 | AN17: 0.04468383599 | AO17: 0.02452852625 | AP17: 0.00490967496 | AQ17: 0.05361428549 | AR17: 0.1464692765 | AS17: 0.1127217725 | AT17: 0.005200573878 | AU17: 0.03017543584 | AV17: 0.1574580881 | AW17: 0.5983972439 | AX17: 0.166420524 | AY17: 0.006745478483 | AZ17: 0.002838190373 | BA17: 0.001840509938 | BB17: 0.01055009045 | BC17: 0.1539481087 | BD17: 0.05217951835 | BE17: 0.01570075534 | BF17: 0.004000275217 | BG17: 0.0587139427 | BH17: 0.3103116729 | BI17: 0.1204069316 | BJ17: 0.002903337856 | BK17: 0.0202274772 | BL17: 0.1750019174 | BM17: 1.35109672 | BN17: 0.04312236941 | BO17: 0.009143499414 | BP17: 0.004867422261 | BQ17: 0.003663971172 | BR17: 0.01242152186 | BS17: 0.04025822235 | BT17: 0.02971843318 | BU17: 0.02506996645 | BV17: 0.007276837021 | BW17: 0.03392796661 | BX17: 0.08745153111 | BY17: 0.07643583972 | BZ17: 0.009234886643 | CA17: 0.03000591033 | CB17: 0.1031499987 | CC17: 0.3416599596 | CD17: 0.03032661672 | CE17: 0.01270262975 | CF17: 0.009885568849 | CG17: 0.00939930831 | CH17: 0.0158933001 | CI17: 0.02396438777 | CJ17: 0.02067640536 | CK17: 0.01996417324 | CL17: 0.01298141721 | CM17: 0.02395240431 | CN17: 0.04126854279 | CO17: 0.04072828136 | CP17: 0.01652084093 | CQ17: 0.02828191063 | CR17: 0.05950478753 | CS17: 0.1453772314 | CT17: 0.07518488662 | CU17: 0.007535568195 | CV17: 0.003872239818 | CW17: 0.002413737086 | CX17: 0.009253172676 | CY17: 0.0679168826 | CZ17: 0.03128604814 | DA17: 0.01833430204 | DB17: 0.005561491437 | DC17: 0.0289197261 | DD17: 0.1388929982 | DE17: 0.07698343808 | DF17: 0.00509686903 | DG17: 0.0207401229 | DH17: 0.09692453925 | DI17: 0.5777939695 | DJ17: 0.05395755415 | DK17: 0.01711288482 | DL17: 0.009235580319 | DM17: 0.006448472327 | DN17: 0.0191855178 | DO17: 0.03996294528 | DP17: 0.03781217225 | DQ17: 0.02823038193 | DR17: 0.01441705995 | DS17: 0.03596364665 | DT17: 0.06528158749 | DU17: 0.07427510153 | DV17: 0.01176841351 | DW17: 0.03659827139 | DX17: 0.08102194913 | DY17: 0.1850083653 | DZ17: 0.07926489516 | EA17: 0.03756284145 | EB17: 0.02865215186 | EC17: 0.02650062153 | ED17: 0.03544626224 | EE17: 0.02796662808 | EF17: 0.0248453987 | EG17: 0.02617618754 | EH17: 0.03191588954 | EI17: 0.02392820539 | EJ17: 0.0222261588 | EK17: 0.02407570069 | EL17: 0.02995556138 | EM17: 0.02159647566 | EN17: 0.01991171615 | EO17: 0.01956262799 | EP17: 0.02150561591 | EQ17: 0.01017693264 | ER17: 0.006197974819 | ES17: 0.006207888964 | ET17: 0.01297726063 | EU17: 0.01920356665 | EV17: 0.02218382808 | EW17: 0.02533437497 | EX17: 0.009233628646 | EY17: 0.02145029941 | EZ17: 0.03291652446 | FA17: 0.05037908648 | FB17: 0.01059928936 | FC17: 0.02836459958 | FD17: 0.05923644469 | FE17: 0.1256560821 | FF17: 0.01862468734 | FG17: 0.008633877584 | FH17: 0.005996253608 | FI17: 0.005685264651 | FJ17: 0.01125793382 | FK17: 0.0142990778 | FL17: 0.01509199769 | FM17: 0.01670463547 | FN17: 0.009791188637 | FO17: 0.01790200019 | FP17: 0.02367461588 | FQ17: 0.03195394469 | FR17: 0.0110603627 | FS17: 0.02447457193 | FT17: 0.04579699495 | FU17: 0.08703378359 | FV17: 0.04240858965 | FW17: 0.02093082793 | FX17: 0.01900416585 | FY17: 0.0161349957 | FZ17: 0.02811993462 | GA17: 0.02254597005 | GB17: 0.02018330921 | GC17: 0.01939455795 | GD17: 0.02600970004 | GE17: 0.02142779399 | GF17: 0.02037049557 | GG17: 0.02051920226 | GH17: 0.02805886435 | GI17: 0.0265423943 | GJ17: 0.02736278683 | GK17: 0.02750831745 | GL17: 0.1638099943 | GM17: 0.008868102433 | GN17: 0.003168514018 | GO17: 0.002782741957 | GP17: 0.01261136805 | GQ17: 0.05899634673 | GR17: 0.03452238677 | GS17: 0.02063568186 | GT17: 0.005804248743 | GU17: 0.04116564155 | GV17: 0.1103488564 | GW17: 0.08317074982 | GX17: 0.004378827891 | GY17: 0.03187593576 | GZ17: 0.1270415079 | HA17: 0.5214368014 | HB17: 1.745042872 | HC17: 0.03255842565 | HD17: 0.01514741411 | HE17: 0.006555498874 | HF17: 0.04907668736 | HG17: 0.8815844118 | HH17: 0.1495154878 | HI17: 0.06273137717 | HJ17: 0.2194538322 | HK17: 0.2534034582 | HL17: 1.720363086 | HM17: 0.2511939533 | HN17: 0.01420545364 | HO17: 0.1099810625 | HP17: 0.6939369893 | HQ17: 5.641428674 | HR17: 0.6376190354 | HS17: 0.002319231525 | HT17: 0.0007413632994 | HU17: 0.0001758034562 | HV17: 0.003427936093 | HW17: 0.6669526304 | HX17: 0.02248150256 | HY17: 0.004899282402 | HZ17: 0.001076901541 | IA17: 0.03401612471 | IB17: 1.314896772 | IC17: 0.04978895962 | ID17: 0.0006044411043 | IE17: 0.00553806861 | IF17: 0.09188315036 | IG17: 5.287777474 | IH17: 0.6236604892 | II17: 0.00384217474 | IJ17: 0.001520373273 | IK17: 0.0009459056391 | IL17: 0.00604584133 | IM17: 0.5274651818 | IN17: 0.02509962139 | IO17: 0.007484740874 | IP17: 0.001811241153 | IQ17: 0.0507043151 | IR17: 0.9672602689 | IS17: 0.06380986 | IT17: 0.001052431862 | IU17: 0.01128527556 | IV17: 0.1496544214 | IW17: 3.964640024 | IX17: 0.1378154184 | IY17: 0.01340906079 | IZ17: 0.006047323895 | JA17: 0.005456167821 | JB17: 0.01961633779 | JC17: 0.1266955546 | JD17: 0.06442613245 | JE17: 0.02923145265 | JF17: 0.01023958577 | JG17: 0.07633873232 | JH17: 0.2344940883 | JI17: 0.1627030454 | JJ17: 0.00661139921 | JK17: 0.03680182001 | JL17: 0.2179737589 | JM17: 1.070621601 | JN17: 0.0261819408 | JO17: 0.01309182701 | JP17: 0.007228932154 | JQ17: 0.007931929598 | JR17: 0.013582584 | JS17: 0.01794064085 | JT17: 0.01734995751 | JU17: 0.01699334389 | JV17: 0.01060381451 | JW17: 0.01469197508 | JX17: 0.02064300629 | JY17: 0.02606166179 | JZ17: 0.00705705889 | KA17: 0.0158796373 | KB17: 0.0236567868 | KC17: 0.04295670812 | KD17: 0.02587498452 | KE17: 0.01593106115 | KF17: 0.01401680274 | KG17: 0.01369528456 | KH17: 0.02046403167 | KI17: 0.02260125716 | KJ17: 0.02453685508 | KK17: 0.02400797118 | KL17: 0.01463504673 | KM17: 0.02394991948 | KN17: 0.03561404207 | KO17: 0.05318976828 | KP17: 0.01936411364 | KQ17: 0.03883158043 | KR17: 0.06920147332 | KS17: 0.1221151646 | KT17: 0.6017576984 | KU17: 0.2639710042 | KV17: 0.00254122849 | KW17: 0.001286051889 | KX17: 0.01383535414 | KY17: 0.5393906792 | KZ17: 0.1393746419 | LA17: 0.01985950461 | LB17: 0.003513727676 | LC17: 0.1833199839 | LD17: 0.9107819427 | LE17: 0.2892515536 | LF17: 0.002658522796 | LG17: 0.02744143582 | LH17: 0.4779032437 | LI17: 2.83757103 | LJ17: 0.4578562555 | LK17: 0.01255134662 | LL17: 0.001639919584 | LM17: 0.001146557777 | LN17: 0.01978209034 | LO17: 0.4058364316 | LP17: 0.1652184915 | LQ17: 0.02160179483 | LR17: 0.002778033502 | LS17: 0.2052346522 | LT17: 0.6857925846 | LU17: 0.3866728246 | LV17: 0.001186618038 | LW17: 0.0321164985 | LX17: 0.5060879856 | LY17: 2.190902271 | LZ17: 0.03585213625 | MA17: 0.006406161262 | MB17: 0.003656416014 | MC17: 0.003259329591 | MD17: 0.008365900103 | ME17: 0.05265584824 | MF17: 0.0226206466 | MG17: 0.01459166942 | MH17: 0.005558151421 | MI17: 0.02808900939 | MJ17: 0.09278394488 | MK17: 0.05368931428 | ML17: 0.005024640219 | MM17: 0.0197081408 | MN17: 0.07977116066 | MO17: 0.3573174555 | MP17: 4.688204158 | MQ17: 0.0003189215936 | MR17: 0.0002562689755 | MS17: -0.0001179697977 | MT17: 0.0004667371806 | MU17: 4.78493458 | MV17: 0.001494526711 | MW17: 0.0001676309592 | MX17: 6.170988676e-05 | MY17: 0.001993009115 | MZ17: 6.29850003 | NA17: 0.002449555306 | NB17: 0.0001014927027 | NC17: 0.000488805132 | ND17: 0.003558415897 | NE17: 22.20543151 | NF17: 4.811394697 | NG17: 7.482379745e-05 | NH17: 9.758957478e-05 | NI17: 0.001229990365 | NJ17: 0.0001498472674 | NK17: 4.462206703 | NL17: 0.00043818409 | NM17: 0.0004035446446 | NN17: 0.0001346335677 | NO17: 0.0004634918207 | NP17: 6.303976344 | NQ17: 0.000627799289 | NR17: -1.169647446e-05 | NS17: -8.824170863e-06 | NT17: 0.0007902704702 | NU17: 20.43511354 | NV17: 2.135875361 | NW17: 0.9369371848 | NX17: 0.0005205847785 | NY17: 0.0003649431911 | NZ17: 0.001538669829 | OA17: 2.360726131 | OB17: 0.005120187377 | OC17: 0.00163762159 | OD17: 0.0003808236672 | OE17: 0.01223579554 | OF17: 3.071428489 | OG17: 0.01072752499 | OH17: 0.0002757786055 | OI17: 0.003581409847 | OJ17: 0.01975005838 | OK17: 9.939389733 | OL17: 0.06688266183 | OM17: 0.02933918993 | ON17: 0.005559605406 | OO17: 0.003228181425 | OP17: 0.01829903671 | OQ17: 0.05505629712 | OR17: 0.05145700741 | OS17: 0.03782828363 | OT17: 0.00675168137 | OU17: 0.05261880865 | OV17: 0.1001057368 | OW17: 0.1351001005 | OX17: 0.005035666346 | OY17: 0.04819387 | OZ17: 0.1488490464 | PA17: 0.3075857092 | PB17: 1.899637963 | PC17: 0.0006516742754 | PD17: 0.0006162383435 | PE17: 0.0002107934017 | PF17: 0.001929761839 | PG17: 2.845227363 | PH17: 0.01810431966 | PI17: 0.001668431308 | PJ17: 0.0003881098501 | PK17: 0.02375261743 | PL17: 3.738170648 | PM17: 0.01601136833 | PN17: 0.0004802971593 | PO17: 0.002297690245 | PP17: 0.03876340918 | PQ17: 11.43083829 | PR17: 0.04392910431 | PS17: 0.01927023088 | PT17: 0.003381676955 | PU17: 0.00196659016 | PV17: 0.01531842835 | PW17: 0.042623942 | PX17: 0.03660491743 | PY17: 0.02770844986 | PZ17: 0.006956708866 | QA17: 0.04614140964 | QB17: 0.0754247992 | QC17: 0.1073206771 | QD17: 0.004088148119 | QE17: 0.05024755957 | QF17: 0.1304394926 | QG17: 0.3397015108 | QH17: 0.09679451693 | QI17: 0.0126076493 | QJ17: 0.009960216861 | QK17: 0.009344104826 | QL17: 0.01261036195 | QM17: 0.07045836144 | QN17: 0.04033355081 | QO17: 0.0240714664 | QP17: 0.008721523797 | QQ17: 0.03015060306 | QR17: 0.1385505474 | QS17: 0.08491760945 | QT17: 0.009984468692 | QU17: 0.01967345648 | QV17: 0.07880883918 | QW17: 0.4627231076 | QX17: 0.03469561646 | QY17: 0.01499283491 | QZ17: 0.01372548984 | RA17: 0.01232993938 | RB17: 0.01366212141 | RC17: 0.01833590161 | RD17: 0.01665701249 | RE17: 0.02032602437 | RF17: 0.01278985287 | RG17: 0.0148925834 | RH17: 0.02251656632 | RI17: 0.0266116717 | RJ17: 0.01341296074 | RK17: 0.01955576092 | RL17: 0.02354747775 | RM17: 0.04611350675 | RN17: 3.523635467 | RO17: 0.5478405689 | RP17: 0.310621396 | RQ17: 0.1906932981 | RR17: 0.750686657 | RS17: 3.196199845 | RT17: 1.747054548 | RU17: 0.9007456917 | RV17: 0.3928761918 | RW17: 1.94411977 | RX17: 4.195305417 | RY17: 2.387991338 | RZ17: 0.3009104009 | SA17: 1.199623393 | SB17: 3.071460134 | SC17: 8.073709072 | SD17: 1.113142912 | SE17: 0.07278474457 | SF17: 0.02249375471 | SG17: 0.01210794402 | SH17: 0.04846075361 | SI17: 0.6448533077 | SJ17: 0.3401418984 | SK17: 0.1577762637 | SL17: 0.03064829477 | SM17: 0.2693695657 | SN17: 0.9449593399 | SO17: 0.7259892434 | SP17: 0.01990030305 | SQ17: 0.1247251243 | SR17: 0.1161146495 | SS17: 1.977588815 | ST17: 12.28107534 | SU17: 0.04566762849 | SV17: 0.01460911163 | SW17: 0.009242131664 | SX17: 0.03086833652 | SY17: 7.438424512 | SZ17: 0.4239072367 | TA17: 0.09009537187 | TB17: 0.008421112044 | TC17: 0.2696191541 | TD17: 7.726172459 | TE17: 0.6938086943 | TF17: 0.007826703776 | TG17: 0.08203300917 | TH17: 0.137001314 | TI17: 12.74254452 | TJ17: 4.434840554 | TK17: 0.03236062769 | TL17: 0.01678645286 | TM17: 0.01206688743 | TN17: 0.0320980547 | TO17: 3.377270004 | TP17: 0.1339881107 | TQ17: 0.0649128013 | TR17: 0.01936430613 | TS17: 0.1463005577 | TT17: 4.355711886 | TU17: 0.2877315572 | TV17: 0.0117697369 | TW17: 0.06921692831 | TX17: 0.05855639279 | TY17: 8.074980625 | TZ17: 6.310988087 | UA17: 0.0219896132 | UB17: 0.01050528467 | UC17: 0.008103878339 | UD17: 0.01585761334 | UE17: 5.436121189 | UF17: 0.1228552801 | UG17: 0.04232891927 | UH17: 0.006645015281 | UI17: 0.05448270754 | UJ17: 6.978889102 | UK17: 0.2024152023 | UL17: 0.006804506728 | UM17: 0.03653519485 | UN17: 0.04679097703 | UO17: 15.85309581 | UP17: 1.030300767 | UQ17: 0.003815214573 | UR17: 0.001359188987 | US17: 0.0006117613611 | UT17: 0.00254226433 | UU17: 0.7125466713 | UV17: 0.01448577337 | UW17: 0.004124818929 | UX17: 0.001210091892 | UY17: 0.01502552779 | UZ17: 1.048176281 | VA17: 0.02626927471 | VB17: 0.0006847400288 | VC17: 0.004813682586 | VD17: 0.006524683821 | VE17: 3.029360029 | VF17: 0.07240530917 | VG17: 0.03783975758 | VH17: 0.03184093153 | VI17: 0.03154809903 | VJ17: 0.04475572091 | VK17: 0.04353883004 | VL17: 0.04568831342 | VM17: 0.04883811795 | VN17: 0.04008752469 | VO17: 0.04847636696 | VP17: 0.05763661457 | VQ17: 0.06478086927 | VR17: 0.0540934484 | VS17: 0.06515980379 | VT17: 0.08208248447 | VU17: 0.111975246 | VV17: 0.5313030059 | VW17: 0.003113488487 | VX17: 0.0006863567649 | VY17: 0.0006727382939 | VZ17: 0.003907117382 | WA17: 0.2573280715 | WB17: 0.03133149919 | WC17: 0.004319806463 | WD17: 0.001080342582 | WE17: 0.02298555987 | WF17: 0.5534625509 | WG17: 0.06586617977 | WH17: 0.0007788308028 | WI17: 0.01031855693 | WJ17: 0.01677146438 | WK17: 2.081909135 | WL17: 3.393636021 | WM17: 0.001404460378 | WN17: 0.0004527051551 | WO17: 0.0006810298114 | WP17: 0.001170993119 | WQ17: 3.098557118 | WR17: 0.00472233724 | WS17: 0.001107922083 | WT17: 0.000667044476 | WU17: 0.005505950867 | WV17: 4.693100994 | WW17: 0.00508401142 | WX17: 0.0003228823775 | WY17: 0.001794547708 | WZ17: 0.009704658867 | XA17: 20.34101464 | XB17: 5.462043702 | XC17: 0.004186062493 | XD17: 0.001910061768 | XE17: 0.0005661644821 | XF17: 0.006277745531 | XG17: 4.680065404 | XH17: 0.02022117429 | XI17: 0.006494903529 | XJ17: 0.002020833337 | XK17: 0.03217989534 | XL17: 6.738153034 | XM17: 0.03597066336 | XN17: 0.001280715299 | XO17: 0.008143675975 | XP17: 0.0552569444 | XQ17: 18.20449978 | XR17: 0.1401485434 | XS17: 0.005826248826 | XT17: 0.003147172033 | XU17: 0.002017878564 | XV17: 0.007990230005 | XW17: 0.1284234262 | XX17: 0.05127813234 | XY17: 0.01408628261 | XZ17: 0.003165302163 | YA17: 0.05782401915 | YB17: 0.2337461802 | YC17: 0.1213683182 | YD17: 0.002919110473 | YE17: 0.01339283414 | YF17: 0.1670691909 | YG17: 1.002950955 | YH17: 0.02773195936 | YI17: 0.01118979846 | YJ17: 0.009251585278 | YK17: 0.008276836033 | YL17: 0.01541522509 | YM17: 0.02240814618 | YN17: 0.02295097806 | YO17: 0.02548380658 | YP17: 0.01097002252 | YQ17: 0.02524411934 | YR17: 0.03683505648 | YS17: 0.0498697754 | YT17: 0.01304684962 | YU17: 0.03225625962 | YV17: 0.06357866433 | YW17: 0.1250499853 | YX17: 0.05747572406 | YY17: 0.0320728033 | YZ17: 0.02631981045 | ZA17: 0.02967104691 | ZB17: 0.04147567899 | ZC17: 0.03754360846 | ZD17: 0.03938767205 | ZE17: 0.03706578815 | ZF17: 0.03824880432 | ZG17: 0.04184382012 | ZH17: 0.04702441768 | ZI17: 0.0491507495 | ZJ17: 0.04601483185 | ZK17: 0.05807416692 | ZL17: 0.06450686403 | ZM17: 0.08388030958 | ZN17: 0.06580820219 | ZO17: 0.03351281059 | ZP17: 0.03300358115 | ZQ17: 0.02884537474 | ZR17: 0.04614983163 | ZS17: 0.0457563066 | ZT17: 0.04587723497 | ZU17: 0.04651558885 | ZV17: 0.04219568368 | ZW17: 0.04914803347 | ZX17: 0.05425636665 | ZY17: 0.06311796983 | ZZ17: 0.05338304109 | AAA17: 0.06918817836 | AAB17: 0.08003943066 | AAC17: 0.103702967 | AAD17: 0.02960427351 | AAE17: 0.01077533631 | AAF17: 0.00680262463 | AAG17: 0.0056491364 | AAH17: 0.01512816011 | AAI17: 0.03333052497 | AAJ17: 0.02545516393 | AAK17: 0.02773217424 | AAL17: 0.008192910611 | AAM17: 0.02631089218 | AAN17: 0.05833201631 | AAO17: 0.07002253707 | AAP17: 0.008201745639 | AAQ17: 0.03979583281 | AAR17: 0.1088203761 | AAS17: 0.2902577391 | AAT17: 0.06281697218 | AAU17: 0.009180959856 | AAV17: 0.00449504775 | AAW17: 0.003178936796 | AAX17: 0.01355353922 | AAY17: 0.06505759849 | AAZ17: 0.03959156926 | ABA17: 0.0208573865 | ABB17: 0.005819928262 | ABC17: 0.04217317877 | ABD17: 0.1283741401 | ABE17: 0.09669371696 | ABF17: 0.004616675666 | ABG17: 0.02946936376 | ABH17: 0.12448187 | ABI17: 0.5262094438 | ABJ17: 0.23888929 | ABK17: 0.1296659176 | ABL17: 0.1105214933 | ABM17: 0.1017811953 | ABN17: 0.1641512425 | ABO17: 0.15718286 | ABP17: 0.1515532761 | ABQ17: 0.1468821674 | ABR17: 0.1462886622 | ABS17: 0.1585860468 | ABT17: 0.1663550932 | ABU17: 0.1754295681 | ABV17: 0.1876880181 | ABW17: 0.1976852785 | ABX17: 0.2292555189 | ABY17: 0.2791367964
A18: 245 | B18: 0.3192132859 | C18: 0.006805869545 | D18: 0.002756747138 | E18: 0.00203826394 | F18: 0.005611973073 | G18: 0.1755951075 | H18: 0.03841428895 | I18: 0.01300323824 | J18: 0.002184058534 | K18: 0.03572308122 | L18: 0.2578607738 | M18: 0.115111863 | N18: 0.002329584313 | O18: 0.009845258865 | P18: 0.05908396722 | Q18: 1.245518995 | R18: 0.1356007263 | S18: 0.008578323615 | T18: 0.002900569059 | U18: 0.002050265693 | V18: 0.01227256554 | W18: 0.1191933196 | X18: 0.05134027574 | Y18: 0.01993789816 | Z18: 0.005052845126 | AA18: 0.06430972073 | AB18: 0.2208945875 | AC18: 0.1283958837 | AD18: 0.003981043835 | AE18: 0.02761689148 | AF18: 0.1852861537 | AG18: 1.008729693 | AH18: 0.07872403563 | AI18: 0.009823353853 | AJ18: 0.003825746642 | AK18: 0.003189670924 | AL18: 0.01391056828 | AM18: 0.07302592249 | AN18: 0.04515890999 | AO18: 0.0254206803 | AP18: 0.00539534361 | AQ18: 0.05203841742 | AR18: 0.1435049156 | AS18: 0.1135686505 | AT18: 0.005045675979 | AU18: 0.02995678865 | AV18: 0.1565090157 | AW18: 0.5957905162 | AX18: 0.1681700332 | AY18: 0.006453667638 | AZ18: 0.002779143905 | BA18: 0.001944914333 | BB18: 0.01010520392 | BC18: 0.1512564477 | BD18: 0.04890834024 | BE18: 0.01558678639 | BF18: 0.004128434173 | BG18: 0.05816256374 | BH18: 0.3118842367 | BI18: 0.1175325379 | BJ18: 0.003224250519 | BK18: 0.02057734338 | BL18: 0.1725420485 | BM18: 1.358927372 | BN18: 0.04420781306 | BO18: 0.009584419546 | BP18: 0.004899306498 | BQ18: 0.00450917976 | BR18: 0.01314793496 | BS18: 0.03955074149 | BT18: 0.02973682665 | BU18: 0.02385519098 | BV18: 0.007407561691 | BW18: 0.03350319022 | BX18: 0.08545136806 | BY18: 0.07369695053 | BZ18: 0.008590502987 | CA18: 0.03021686213 | CB18: 0.1001099795 | CC18: 0.3434392513 | CD18: 0.03098870012 | CE18: 0.01271662391 | CF18: 0.00989091265 | CG18: 0.009813764073 | CH18: 0.01637697298 | CI18: 0.02431918891 | CJ18: 0.02075880246 | CK18: 0.02039154844 | CL18: 0.01320163169 | CM18: 0.02370382088 | CN18: 0.04064196712 | CO18: 0.03920913261 | CP18: 0.01664962873 | CQ18: 0.02800609029 | CR18: 0.0576235812 | CS18: 0.1514051711 | CT18: 0.07829620148 | CU18: 0.007363558045 | CV18: 0.004012235902 | CW18: 0.002620860411 | CX18: 0.009442154601 | CY18: 0.0682799231 | CZ18: 0.03067973609 | DA18: 0.01792868012 | DB18: 0.005498337043 | DC18: 0.02965186511 | DD18: 0.1397763237 | DE18: 0.07644490572 | DF18: 0.004776987435 | DG18: 0.02188642561 | DH18: 0.09571905661 | DI18: 0.586151776 | DJ18: 0.054412249 | DK18: 0.0159377326 | DL18: 0.008946405252 | DM18: 0.006792286192 | DN18: 0.01958787206 | DO18: 0.03952151058 | DP18: 0.03674477131 | DQ18: 0.02857204636 | DR18: 0.0141834917 | DS18: 0.03511769457 | DT18: 0.06435085768 | DU18: 0.07204271956 | DV18: 0.01127376741 | DW18: 0.03658285511 | DX18: 0.08149698848 | DY18: 0.1852665058 | DZ18: 0.08354055353 | EA18: 0.03672231286 | EB18: 0.02940749304 | EC18: 0.02820807943 | ED18: 0.03778366201 | EE18: 0.02870943956 | EF18: 0.02504650604 | EG18: 0.02816655758 | EH18: 0.0321049934 | EI18: 0.02557842849 | EJ18: 0.02386516823 | EK18: 0.02307319267 | EL18: 0.03260883402 | EM18: 0.02432614265 | EN18: 0.02098277136 | EO18: 0.02003990376 | EP18: 0.02191790742 | EQ18: 0.009590363288 | ER18: 0.006767852444 | ES18: 0.006104734851 | ET18: 0.01284429588 | EU18: 0.01890139957 | EV18: 0.02092386287 | EW18: 0.02443098898 | EX18: 0.009720885659 | EY18: 0.02050580964 | EZ18: 0.03278905717 | FA18: 0.0501599606 | FB18: 0.01006557622 | FC18: 0.02898288199 | FD18: 0.05969219271 | FE18: 0.1266502105 | FF18: 0.01838586873 | FG18: 0.008419696782 | FH18: 0.005819101094 | FI18: 0.006283417039 | FJ18: 0.01130858007 | FK18: 0.01419026611 | FL18: 0.01578707729 | FM18: 0.01822228269 | FN18: 0.00965923929 | FO18: 0.01733469395 | FP18: 0.02454923639 | FQ18: 0.03222413073 | FR18: 0.01143101344 | FS18: 0.02467445533 | FT18: 0.04626437238 | FU18: 0.08633992694 | FV18: 0.04483900955 | FW18: 0.02145877031 | FX18: 0.01844786981 | FY18: 0.01697344584 | FZ18: 0.02868239111 | GA18: 0.02260831671 | GB18: 0.02048972528 | GC18: 0.01848622671 | GD18: 0.02584253332 | GE18: 0.02123167778 | GF18: 0.01973624919 | GG18: 0.01945841942 | GH18: 0.02795156556 | GI18: 0.02654444331 | GJ18: 0.02731587247 | GK18: 0.02870427933 | GL18: 0.1638382446 | GM18: 0.008927630909 | GN18: 0.003072769781 | GO18: 0.002661326181 | GP18: 0.01237847209 | GQ18: 0.05667415249 | GR18: 0.03532765653 | GS18: 0.02038718602 | GT18: 0.005503377008 | GU18: 0.04169846347 | GV18: 0.1100953757 | GW18: 0.08576690374 | GX18: 0.004578400087 | GY18: 0.03157693883 | GZ18: 0.1279717515 | HA18: 0.5232876399 | HB18: 1.747889858 | HC18: 0.03224949544 | HD18: 0.01494387894 | HE18: 0.006675210623 | HF18: 0.04837266109 | HG18: 0.8828547591 | HH18: 0.151696752 | HI18: 0.06214716386 | HJ18: 0.2162885071 | HK18: 0.2497484556 | HL18: 1.719305542 | HM18: 0.2519934529 | HN18: 0.01465235593 | HO18: 0.1115198877 | HP18: 0.6935053264 | HQ18: 5.66283834 | HR18: 0.653380803 | HS18: 0.002190689542 | HT18: 0.0007208519066 | HU18: 0.0001366820006 | HV18: 0.003093311508 | HW18: 0.6712896027 | HX18: 0.02229631252 | HY18: 0.004129094137 | HZ18: 0.0009664950871 | IA18: 0.03364110955 | IB18: 1.316672872 | IC18: 0.04962690335 | ID18: 0.0004506688657 | IE18: 0.005230993455 | IF18: 0.09110517089 | IG18: 5.328340728 | IH18: 0.6350531186 | II18: 0.00395457652 | IJ18: 0.001375601922 | IK18: 0.0009573865811 | IL18: 0.006307638869 | IM18: 0.5298477776 | IN18: 0.02643359165 | IO18: 0.007508270815 | IP18: 0.001993839711 | IQ18: 0.04944049418 | IR18: 0.9690998484 | IS18: 0.06685029239 | IT18: 0.001064864466 | IU18: 0.01185569837 | IV18: 0.1501583402 | IW18: 3.974768407 | IX18: 0.1394804267 | IY18: 0.01327480343 | IZ18: 0.005729273563 | JA18: 0.005179458014 | JB18: 0.01895885206 | JC18: 0.1275830486 | JD18: 0.06442400126 | JE18: 0.02809292145 | JF18: 0.009453599616 | JG18: 0.07322529491 | JH18: 0.2348648446 | JI18: 0.1607563605 | JJ18: 0.006602798977 | JK18: 0.03708457684 | JL18: 0.2162267179 | JM18: 1.062994479 | JN18: 0.02643834733 | JO18: 0.01224973628 | JP18: 0.00759353337 | JQ18: 0.007238531732 | JR18: 0.01327079599 | JS18: 0.01707553233 | JT18: 0.01725889823 | JU18: 0.01716011038 | JV18: 0.01052064072 | JW18: 0.01485056099 | JX18: 0.02070176205 | JY18: 0.02715253705 | JZ18: 0.007295247076 | KA18: 0.01640991647 | KB18: 0.02506276604 | KC18: 0.04157554347 | KD18: 0.02900701078 | KE18: 0.01557014198 | KF18: 0.01352528063 | KG18: 0.01328717118 | KH18: 0.01967461256 | KI18: 0.02278375843 | KJ18: 0.02397353348 | KK18: 0.02489215559 | KL18: 0.01450481977 | KM18: 0.0235574868 | KN18: 0.03482270938 | KO18: 0.05358752497 | KP18: 0.02117443469 | KQ18: 0.03856363243 | KR18: 0.06767290983 | KS18: 0.1223833944 | KT18: 0.5959708444 | KU18: 0.2629741468 | KV18: 0.002291131471 | KW18: 0.001447846704 | KX18: 0.01411345317 | KY18: 0.5343511469 | KZ18: 0.1368756222 | LA18: 0.01996551699 | LB18: 0.003573992501 | LC18: 0.1824734465 | LD18: 0.8927614776 | LE18: 0.2859948372 | LF18: 0.002391768258 | LG18: 0.0271349754 | LH18: 0.4742520923 | LI18: 2.829287341 | LJ18: 0.4563596781 | LK18: 0.0122202339 | LL18: 0.001538053363 | LM18: 0.001073948696 | LN18: 0.01916988305 | LO18: 0.4003287793 | LP18: 0.1635699381 | LQ18: 0.02174546045 | LR18: 0.002984370678 | LS18: 0.20372444 | LT18: 0.6764212921 | LU18: 0.3804383009 | LV18: 0.001396732611 | LW18: 0.03271501118 | LX18: 0.5100480942 | LY18: 2.156276828 | LZ18: 0.03791609963 | MA18: 0.006119842916 | MB18: 0.00365283297 | MC18: 0.00305928122 | MD18: 0.008585213454 | ME18: 0.0526014398 | MF18: 0.02261988126 | MG18: 0.01412529949 | MH18: 0.005516322689 | MI18: 0.02704115852 | MJ18: 0.09282918574 | MK18: 0.05481138484 | ML18: 0.004575504072 | MM18: 0.01894491629 | MN18: 0.07988305254 | MO18: 0.3627623289 | MP18: 4.712644845 | MQ18: 0.0004657236012 | MR18: 0.0003030461027 | MS18: -8.915077837e-05 | MT18: 0.0004548882613 | MU18: 4.75452853 | MV18: 0.001330462663 | MW18: 0.0006078735687 | MX18: 3.579769535e-05 | MY18: 0.001941512195 | MZ18: 6.245311199 | NA18: 0.00237247739 | NB18: 8.641481671e-05 | NC18: 0.0006276694473 | ND18: 0.003838689739 | NE18: 22.15425824 | NF18: 4.804852354 | NG18: 0.0002214327162 | NH18: 2.139694902e-05 | NI18: 0.0006100553864 | NJ18: 0.000100559646 | NK18: 4.454492136 | NL18: 0.0004473059076 | NM18: 0.0003493236242 | NN18: 7.643614751e-05 | NO18: 0.0004697190494 | NP18: 6.261755195 | NQ18: 0.0006405963291 | NR18: -3.935456627e-07 | NS18: 7.184346695e-05 | NT18: 0.0007588386907 | NU18: 20.3949861 | NV18: 2.14210511 | NW18: 0.9452111103 | NX18: 0.0003569983072 | NY18: 0.000199539544 | NZ18: 0.001600040853 | OA18: 2.349306058 | OB18: 0.005102766383 | OC18: 0.001708211151 | OD18: 0.0004603556872 | OE18: 0.01239222377 | OF18: 3.031933386 | OG18: 0.01024872736 | OH18: 0.000271867953 | OI18: 0.003078247191 | OJ18: 0.01965599481 | OK18: 9.972378907 | OL18: 0.06520196747 | OM18: 0.02877058824 | ON18: 0.005578836812 | OO18: 0.003443236197 | OP18: 0.01817545444 | OQ18: 0.05501812872 | OR18: 0.05113043789 | OS18: 0.03863868434 | OT18: 0.00735033205 | OU18: 0.05218256529 | OV18: 0.1008611582 | OW18: 0.1314510228 | OX18: 0.005278126279 | OY18: 0.04890196016 | OZ18: 0.147194601 | PA18: 0.3125535657 | PB18: 1.921707445 | PC18: 0.001285304155 | PD18: 0.0004917838989 | PE18: 0.0002205991108 | PF18: 0.002155676685 | PG18: 2.93355405 | PH18: 0.01887052531 | PI18: 0.001851422282 | PJ18: 0.0005875191825 | PK18: 0.0229680672 | PL18: 3.948975606 | PM18: 0.01621327396 | PN18: 0.0005948300455 | PO18: 0.002458243179 | PP18: 0.04202876359 | PQ18: 12.04357621 | PR18: 0.04678548126 | PS18: 0.02064425153 | PT18: 0.003380262332 | PU18: 0.002384090455 | PV18: 0.01411269859 | PW18: 0.04192347838 | PX18: 0.03732476958 | PY18: 0.02641415631 | PZ18: 0.007010528567 | QA18: 0.04594793424 | QB18: 0.07499524224 | QC18: 0.1054206534 | QD18: 0.00430697575 | QE18: 0.0496570609 | QF18: 0.1260603354 | QG18: 0.3411148594 | QH18: 0.09890275974 | QI18: 0.0128795154 | QJ18: 0.01031740182 | QK18: 0.00938004167 | QL18: 0.01366211933 | QM18: 0.07376178053 | QN18: 0.03747132916 | QO18: 0.02455429019 | QP18: 0.01062932384 | QQ18: 0.03206616517 | QR18: 0.1399375184 | QS18: 0.08389661187 | QT18: 0.01067555854 | QU18: 0.02282164468 | QV18: 0.08762044096 | QW18: 0.4933079474 | QX18: 0.03464832768 | QY18: 0.01492666238 | QZ18: 0.01277398138 | RA18: 0.01272061273 | RB18: 0.01389333803 | RC18: 0.01882840332 | RD18: 0.01541937741 | RE18: 0.02075922566 | RF18: 0.01355289434 | RG18: 0.01528722189 | RH18: 0.02441019593 | RI18: 0.02725520639 | RJ18: 0.01372314798 | RK18: 0.02047484963 | RL18: 0.02554670724 | RM18: 0.05048244642 | RN18: 3.557317389 | RO18: 0.5537752033 | RP18: 0.3069966944 | RQ18: 0.189559134 | RR18: 0.7565906243 | RS18: 3.200929198 | RT18: 1.752568664 | RU18: 0.9004280198 | RV18: 0.3924575387 | RW18: 1.934060133 | RX18: 4.176066449 | RY18: 2.372941152 | RZ18: 0.3025299425 | SA18: 1.203188014 | SB18: 3.100832729 | SC18: 8.126624557 | SD18: 1.124978233 | SE18: 0.07251335661 | SF18: 0.02161992953 | SG18: 0.01229493709 | SH18: 0.05201420734 | SI18: 0.6757069847 | SJ18: 0.3415408515 | SK18: 0.1544211926 | SL18: 0.03340866133 | SM18: 0.2832513846 | SN18: 1.006769176 | SO18: 0.7269211326 | SP18: 0.02155102568 | SQ18: 0.1331786596 | SR18: 0.1237833296 | SS18: 2.109059164 | ST18: 12.47489741 | SU18: 0.04455871436 | SV18: 0.01509095765 | SW18: 0.009380339038 | SX18: 0.03377836393 | SY18: 7.746608104 | SZ18: 0.4243650051 | TA18: 0.08823440234 | TB18: 0.009672872065 | TC18: 0.2862351802 | TD18: 8.252081556 | TE18: 0.6925263962 | TF18: 0.00858072145 | TG18: 0.08856489823 | TH18: 0.1456323209 | TI18: 13.55975249 | TJ18: 4.490628633 | TK18: 0.03266280322 | TL18: 0.01669258172 | TM18: 0.01079463079 | TN18: 0.03377998124 | TO18: 3.504095728 | TP18: 0.1348577531 | TQ18: 0.06372551061 | TR18: 0.01900235924 | TS18: 0.1524124525 | TT18: 4.633532448 | TU18: 0.289385059 | TV18: 0.01232590888 | TW18: 0.07253352176 | TX18: 0.06230903133 | TY18: 8.566445173 | TZ18: 6.399824093 | UA18: 0.02261862657 | UB18: 0.01018920012 | UC18: 0.007823072986 | UD18: 0.01617562155 | UE18: 5.645954029 | UF18: 0.1203745733 | UG18: 0.04219706298 | UH18: 0.007036031182 | UI18: 0.05949319109 | UJ18: 7.372298687 | UK18: 0.2081620643 | UL18: 0.00643821532 | UM18: 0.03920967412 | UN18: 0.04893167894 | UO18: 16.90396358 | UP18: 1.052932048 | UQ18: 0.003263646562 | UR18: 0.001130671822 | US18: 0.0004819613594 | UT18: 0.002946307069 | UU18: 0.7391747479 | UV18: 0.01426940252 | UW18: 0.004872267532 | UX18: 0.001067770489 | UY18: 0.01553194958 | UZ18: 1.103469649 | VA18: 0.02631628913 | VB18: 0.0008535669735 | VC18: 0.00550038033 | VD18: 0.007027587837 | VE18: 3.200699018 | VF18: 0.07323874959 | VG18: 0.03744743068 | VH18: 0.03216856047 | VI18: 0.0310321213 | VJ18: 0.04426151339 | VK18: 0.04321363683 | VL18: 0.04587295233 | VM18: 0.04791719885 | VN18: 0.04072954275 | VO18: 0.04839372102 | VP18: 0.05783812971 | VQ18: 0.06638370062 | VR18: 0.05375964005 | VS18: 0.06659543107 | VT18: 0.08211172528 | VU18: 0.1132007189 | VV18: 0.5194979572 | VW18: 0.002599142391 | VX18: 0.0005313716295 | VY18: 0.0003732913779 | VZ18: 0.003725039013 | WA18: 0.2612301746 | WB18: 0.03138272994 | WC18: 0.00405515114 | WD18: 0.001170970292 | WE18: 0.02382423483 | WF18: 0.5905335449 | WG18: 0.06779871242 | WH18: 0.0008410621802 | WI18: 0.01044379687 | WJ18: 0.01807322434 | WK18: 2.219846286 | WL18: 3.352233192 | WM18: 0.001428654437 | WN18: 0.0006222622578 | WO18: 0.0003366081224 | WP18: 0.001177817675 | WQ18: 3.019853343 | WR18: 0.004270790567 | WS18: 0.001135295883 | WT18: 0.0006838244866 | WU18: 0.004950599948 | WV18: 4.599412256 | WW18: 0.00516254618 | WX18: 0.0003747516042 | WY18: 0.002209927799 | WZ18: 0.008700476823 | XA18: 20.08695595 | XB18: 5.376219402 | XC18: 0.004277152427 | XD18: 0.001848266938 | XE18: 0.0005273099041 | XF18: 0.006136399198 | XG18: 4.580258731 | XH18: 0.01942391844 | XI18: 0.006574978498 | XJ18: 0.002038652996 | XK18: 0.03188884595 | XL18: 6.564706295 | XM18: 0.03654334995 | XN18: 0.001409154835 | XO18: 0.007369628188 | XP18: 0.05223773575 | XQ18: 18.00794927 | XR18: 0.1411298748 | XS18: 0.006498058566 | XT18: 0.003002099101 | XU18: 0.002147266973 | XV18: 0.007304212786 | XW18: 0.1266012119 | XX18: 0.04923013053 | XY18: 0.01365511919 | XZ18: 0.003331843673 | YA18: 0.05884256979 | YB18: 0.2311192914 | YC18: 0.1191528714 | YD18: 0.003215000694 | YE18: 0.01431980024 | YF18: 0.1728757043 | YG18: 1.008376003 | YH18: 0.02940465598 | YI18: 0.01127278563 | YJ18: 0.009040151901 | YK18: 0.007877592345 | YL18: 0.01569632319 | YM18: 0.02271741838 | YN18: 0.02359946432 | YO18: 0.02476092932 | YP18: 0.01189044968 | YQ18: 0.02484554402 | YR18: 0.03787382236 | YS18: 0.05188401816 | YT18: 0.01376401321 | YU18: 0.03399143677 | YV18: 0.0642615767 | YW18: 0.1306179739 | YX18: 0.05786948812 | YY18: 0.03227427764 | YZ18: 0.0291771785 | ZA18: 0.02911991265 | ZB18: 0.04114467572 | ZC18: 0.03850862501 | ZD18: 0.03907046591 | ZE18: 0.040658744 | ZF18: 0.0374350571 | ZG18: 0.04315635554 | ZH18: 0.0459939936 | ZI18: 0.04907811369 | ZJ18: 0.04838067128 | ZK18: 0.05725809898 | ZL18: 0.06538376076 | ZM18: 0.08229349038 | ZN18: 0.06565242324 | ZO18: 0.03514147423 | ZP18: 0.03334757965 | ZQ18: 0.03082289066 | ZR18: 0.04625995129 | ZS18: 0.04525703297 | ZT18: 0.04482857232 | ZU18: 0.04643174814 | ZV18: 0.04238576488 | ZW18: 0.04951883858 | ZX18: 0.05532744465 | ZY18: 0.06189373904 | ZZ18: 0.05344030651 | AAA18: 0.06803361881 | AAB18: 0.08048625581 | AAC18: 0.1051939619 | AAD18: 0.0318689434 | AAE18: 0.01161420228 | AAF18: 0.006997127166 | AAG18: 0.005121982822 | AAH18: 0.01437095136 | AAI18: 0.03211387882 | AAJ18: 0.02649798833 | AAK18: 0.02785263439 | AAL18: 0.008012980716 | AAM18: 0.02713843679 | AAN18: 0.05924320634 | AAO18: 0.07041156388 | AAP18: 0.007823243159 | AAQ18: 0.03997110601 | AAR18: 0.1082819582 | AAS18: 0.2915321793 | AAT18: 0.0630193092 | AAU18: 0.009219526669 | AAV18: 0.004072376854 | AAW18: 0.002353895759 | AAX18: 0.0128864787 | AAY18: 0.06538823677 | AAZ18: 0.0378602949 | ABA18: 0.02076695225 | ABB18: 0.005748317595 | ABC18: 0.04179753589 | ABD18: 0.1257810542 | ABE18: 0.0966197117 | ABF18: 0.004704559011 | ABG18: 0.03017350356 | ABH18: 0.122295982 | ABI18: 0.5255612292 | ABJ18: 0.2403479317 | ABK18: 0.1314931266 | ABL18: 0.1105133752 | ABM18: 0.1035538209 | ABN18: 0.164298968 | ABO18: 0.1553937196 | ABP18: 0.1522711847 | ABQ18: 0.1511580453 | ABR18: 0.1433606765 | ABS18: 0.1610491138 | ABT18: 0.1699808086 | ABU18: 0.1714850512 | ABV18: 0.1854066258 | ABW18: 0.1978658598 | ABX18: 0.2325742125 | ABY18: 0.2872783847
